Workbook

Sheet Control
A1: Sheets | B1: Text File Names | C1: Description | E1: Notes: 50 sheets maximum
A2: Nbeach | B2: Project_Nbeach.txt | C2: Water Quality in the North Beach unsaturated zone | E2: Referenced text files must be in same root folder as this spreadsheet
A3: Ndam | B3: Project_Ndam.txt | C3: Water Quality in the North Dam unsaturated zone
A4: Ebeach | B4: Project_Ebeach.txt | C4: Water Quality in the East Beach unsaturated zone
A5: Edam | B5: Project_Edam.txt | C5: Water Quality in the East Dam unsaturated zone
A6: Sbeach | B6: Project_Sbeach.txt | C6: Water Quality in the South Beach unsaturated zone
A7: Sdam | B7: Project_Sdam.txt | C7: Water Quality in the South Dam unsaturated zone
A8: Cbeach | B8: Project_Cbeach.txt | C8: Water Quality in the Closure Beach unsaturated zone

Sheet PlotControl
A2: Model Name: | B2: Plant Site Version 6.0
A4: Plot: | B4: Annual Max | C4: =B2 & " Model " & IF(B4="Annual Max", "Annual Maximum", B4) & " of Concentration Statistics " & B6 & " in the " & B8 -> Plant Site Version 6.0 Model Annual Maximum of Concentration Statistics Zn in the Closure Beach | V4: Directory to save PDFs to: | W4: P:\Mpls\23 MN\69\2369862\WorkFiles\APA\Support Docs\Surface WQ\Workfiles\Models\GoldSim\Tailings Basin\2012 MODEL\Base Model\Output_Data\FTB\Unsat_Zones\Quality\plots
V5: Starting figure caption | W5: Figure A-1-0001
A6: Constituent to Plot (dropdown): | B6: Zn | C6: =MATCH(B6,$A$25:$A$52,0) -> 27
V7: Note: This loops through the plot, location, and constituent drop down menus.
A8: Location to Plot (dropdown): | B8: Closure Beach | C8: =MATCH(B8,$A$15:$A$21,0) -> 7
B11: =B10+20 -> 20
A12: Standard | B12: =VLOOKUP($B$6,$A$25:$B$52,2,FALSE) -> 0
A14: Locations
A15: North Beach
A16: North Dam
A17: East Beach
A18: East Dam
A19: South Beach
A20: South Dam
A21: Closure Beach
I23: Annual Project Results
A24: Constituent | H24: Time | I24: P10 | J24: P50 | K24: P90
A25: Ag | H25: 0 | I25: =IF(OR(LEFT($B$8,1) = "E",LEFT($B$8,1) = "S",LEFT($B$8,1) = "C"),#N/A,VLOOKUP($H25,P_All!$A$5:$V$205,3*($C$8-1)+2)) ->  | J25: =IF(OR(LEFT($B$8,1) = "E",LEFT($B$8,1) = "S",LEFT($B$8,1) = "C"),#N/A,VLOOKUP($H25,P_All!$A$5:$V$205,3*($C$8-1)+3)) ->  | K25: =IF(OR(LEFT($B$8,1) = "E",LEFT($B$8,1) = "S",LEFT($B$8,1) = "C"),#N/A,VLOOKUP($H25,P_All!$A$5:$V$205,3*($C$8-1)+4)) -> 
A26: Al | H26: 1 | I26: =IF(OR(LEFT($B$8,1) = "E",LEFT($B$8,1) = "S",LEFT($B$8,1) = "C"),#N/A,VLOOKUP($H26,P_All!$A$5:$V$205,3*($C$8-1)+2)) ->  | J26: =IF(OR(LEFT($B$8,1) = "E",LEFT($B$8,1) = "S",LEFT($B$8,1) = "C"),#N/A,VLOOKUP($H26,P_All!$A$5:$V$205,3*($C$8-1)+3)) ->  | K26: =IF(OR(LEFT($B$8,1) = "E",LEFT($B$8,1) = "S",LEFT($B$8,1) = "C"),#N/A,VLOOKUP($H26,P_All!$A$5:$V$205,3*($C$8-1)+4)) -> 
A27: Alkalinity | H27: 2 | I27: =IF(OR(LEFT($B$8,1) = "E",LEFT($B$8,1) = "S",LEFT($B$8,1) = "C"),#N/A,VLOOKUP($H27,P_All!$A$5:$V$205,3*($C$8-1)+2)) ->  | J27: =IF(OR(LEFT($B$8,1) = "E",LEFT($B$8,1) = "S",LEFT($B$8,1) = "C"),#N/A,VLOOKUP($H27,P_All!$A$5:$V$205,3*($C$8-1)+3)) ->  | K27: =IF(OR(LEFT($B$8,1) = "E",LEFT($B$8,1) = "S",LEFT($B$8,1) = "C"),#N/A,VLOOKUP($H27,P_All!$A$5:$V$205,3*($C$8-1)+4)) -> 
A28: As | H28: 3 | I28: =IF(OR(LEFT($B$8,1) = "E",LEFT($B$8,1) = "S",LEFT($B$8,1) = "C"),#N/A,VLOOKUP($H28,P_All!$A$5:$V$205,3*($C$8-1)+2)) ->  | J28: =IF(OR(LEFT($B$8,1) = "E",LEFT($B$8,1) = "S",LEFT($B$8,1) = "C"),#N/A,VLOOKUP($H28,P_All!$A$5:$V$205,3*($C$8-1)+3)) ->  | K28: =IF(OR(LEFT($B$8,1) = "E",LEFT($B$8,1) = "S",LEFT($B$8,1) = "C"),#N/A,VLOOKUP($H28,P_All!$A$5:$V$205,3*($C$8-1)+4)) -> 
A29: B | H29: 4 | I29: =IF(OR(LEFT($B$8,1) = "E",LEFT($B$8,1) = "S",LEFT($B$8,1) = "C"),#N/A,VLOOKUP($H29,P_All!$A$5:$V$205,3*($C$8-1)+2)) ->  | J29: =IF(OR(LEFT($B$8,1) = "E",LEFT($B$8,1) = "S",LEFT($B$8,1) = "C"),#N/A,VLOOKUP($H29,P_All!$A$5:$V$205,3*($C$8-1)+3)) ->  | K29: =IF(OR(LEFT($B$8,1) = "E",LEFT($B$8,1) = "S",LEFT($B$8,1) = "C"),#N/A,VLOOKUP($H29,P_All!$A$5:$V$205,3*($C$8-1)+4)) -> 
A30: Ba | H30: 5 | I30: =IF(OR(LEFT($B$8,1) = "E",LEFT($B$8,1) = "S",LEFT($B$8,1) = "C"),#N/A,VLOOKUP($H30,P_All!$A$5:$V$205,3*($C$8-1)+2)) ->  | J30: =IF(OR(LEFT($B$8,1) = "E",LEFT($B$8,1) = "S",LEFT($B$8,1) = "C"),#N/A,VLOOKUP($H30,P_All!$A$5:$V$205,3*($C$8-1)+3)) ->  | K30: =IF(OR(LEFT($B$8,1) = "E",LEFT($B$8,1) = "S",LEFT($B$8,1) = "C"),#N/A,VLOOKUP($H30,P_All!$A$5:$V$205,3*($C$8-1)+4)) -> 
A31: Be | H31: 6 | I31: =IF(OR(LEFT($B$8,1) = "E",LEFT($B$8,1) = "S",LEFT($B$8,1) = "C"),#N/A,VLOOKUP($H31,P_All!$A$5:$V$205,3*($C$8-1)+2)) ->  | J31: =IF(OR(LEFT($B$8,1) = "E",LEFT($B$8,1) = "S",LEFT($B$8,1) = "C"),#N/A,VLOOKUP($H31,P_All!$A$5:$V$205,3*($C$8-1)+3)) ->  | K31: =IF(OR(LEFT($B$8,1) = "E",LEFT($B$8,1) = "S",LEFT($B$8,1) = "C"),#N/A,VLOOKUP($H31,P_All!$A$5:$V$205,3*($C$8-1)+4)) -> 
A32: Ca | H32: 7 | I32: =IF(OR(LEFT($B$8,1) = "C"),#N/A,VLOOKUP($H32,P_All!$A$5:$V$205,3*($C$8-1)+2)) ->  | J32: =IF(OR(LEFT($B$8,1) = "C"),#N/A,VLOOKUP($H32,P_All!$A$5:$V$205,3*($C$8-1)+3)) ->  | K32: =IF(OR(LEFT($B$8,1) = "C"),#N/A,VLOOKUP($H32,P_All!$A$5:$V$205,3*($C$8-1)+4)) -> 
A33: Cd | H33: 8 | I33: =IF(OR(LEFT($B$8,1) = "C"),#N/A,VLOOKUP($H33,P_All!$A$5:$V$205,3*($C$8-1)+2)) ->  | J33: =IF(OR(LEFT($B$8,1) = "C"),#N/A,VLOOKUP($H33,P_All!$A$5:$V$205,3*($C$8-1)+3)) ->  | K33: =IF(OR(LEFT($B$8,1) = "C"),#N/A,VLOOKUP($H33,P_All!$A$5:$V$205,3*($C$8-1)+4)) -> 
A34: Cl | H34: 9 | I34: =IF(OR(LEFT($B$8,1) = "C"),#N/A,VLOOKUP($H34,P_All!$A$5:$V$205,3*($C$8-1)+2)) ->  | J34: =IF(OR(LEFT($B$8,1) = "C"),#N/A,VLOOKUP($H34,P_All!$A$5:$V$205,3*($C$8-1)+3)) ->  | K34: =IF(OR(LEFT($B$8,1) = "C"),#N/A,VLOOKUP($H34,P_All!$A$5:$V$205,3*($C$8-1)+4)) -> 
A35: Co | H35: 10 | I35: =IF(OR(LEFT($B$8,1) = "C"),#N/A,VLOOKUP($H35,P_All!$A$5:$V$205,3*($C$8-1)+2)) ->  | J35: =IF(OR(LEFT($B$8,1) = "C"),#N/A,VLOOKUP($H35,P_All!$A$5:$V$205,3*($C$8-1)+3)) ->  | K35: =IF(OR(LEFT($B$8,1) = "C"),#N/A,VLOOKUP($H35,P_All!$A$5:$V$205,3*($C$8-1)+4)) -> 
A36: Cr | H36: 11 | I36: =IF(OR(LEFT($B$8,1) = "C"),#N/A,VLOOKUP($H36,P_All!$A$5:$V$205,3*($C$8-1)+2)) ->  | J36: =IF(OR(LEFT($B$8,1) = "C"),#N/A,VLOOKUP($H36,P_All!$A$5:$V$205,3*($C$8-1)+3)) ->  | K36: =IF(OR(LEFT($B$8,1) = "C"),#N/A,VLOOKUP($H36,P_All!$A$5:$V$205,3*($C$8-1)+4)) -> 
A37: Cu | H37: 12 | I37: =IF(OR(LEFT($B$8,1) = "C"),#N/A,VLOOKUP($H37,P_All!$A$5:$V$205,3*($C$8-1)+2)) ->  | J37: =IF(OR(LEFT($B$8,1) = "C"),#N/A,VLOOKUP($H37,P_All!$A$5:$V$205,3*($C$8-1)+3)) ->  | K37: =IF(OR(LEFT($B$8,1) = "C"),#N/A,VLOOKUP($H37,P_All!$A$5:$V$205,3*($C$8-1)+4)) -> 
A38: F | H38: 13 | I38: =IF(OR(LEFT($B$8,1) = "C"),#N/A,VLOOKUP($H38,P_All!$A$5:$V$205,3*($C$8-1)+2)) ->  | J38: =IF(OR(LEFT($B$8,1) = "C"),#N/A,VLOOKUP($H38,P_All!$A$5:$V$205,3*($C$8-1)+3)) ->  | K38: =IF(OR(LEFT($B$8,1) = "C"),#N/A,VLOOKUP($H38,P_All!$A$5:$V$205,3*($C$8-1)+4)) -> 
A39: Fe | H39: 14 | I39: =IF(OR(LEFT($B$8,1) = "C"),#N/A,VLOOKUP($H39,P_All!$A$5:$V$205,3*($C$8-1)+2)) ->  | J39: =IF(OR(LEFT($B$8,1) = "C"),#N/A,VLOOKUP($H39,P_All!$A$5:$V$205,3*($C$8-1)+3)) ->  | K39: =IF(OR(LEFT($B$8,1) = "C"),#N/A,VLOOKUP($H39,P_All!$A$5:$V$205,3*($C$8-1)+4)) -> 
A40: K | H40: 15 | I40: =IF(OR(LEFT($B$8,1) = "C"),#N/A,VLOOKUP($H40,P_All!$A$5:$V$205,3*($C$8-1)+2)) ->  | J40: =IF(OR(LEFT($B$8,1) = "C"),#N/A,VLOOKUP($H40,P_All!$A$5:$V$205,3*($C$8-1)+3)) ->  | K40: =IF(OR(LEFT($B$8,1) = "C"),#N/A,VLOOKUP($H40,P_All!$A$5:$V$205,3*($C$8-1)+4)) -> 
A41: Mg | H41: 16 | I41: =IF(OR(LEFT($B$8,1) = "C"),#N/A,VLOOKUP($H41,P_All!$A$5:$V$205,3*($C$8-1)+2)) ->  | J41: =IF(OR(LEFT($B$8,1) = "C"),#N/A,VLOOKUP($H41,P_All!$A$5:$V$205,3*($C$8-1)+3)) ->  | K41: =IF(OR(LEFT($B$8,1) = "C"),#N/A,VLOOKUP($H41,P_All!$A$5:$V$205,3*($C$8-1)+4)) -> 
A42: Mn | H42: 17 | I42: =IF(OR(LEFT($B$8,1) = "C"),#N/A,VLOOKUP($H42,P_All!$A$5:$V$205,3*($C$8-1)+2)) ->  | J42: =IF(OR(LEFT($B$8,1) = "C"),#N/A,VLOOKUP($H42,P_All!$A$5:$V$205,3*($C$8-1)+3)) ->  | K42: =IF(OR(LEFT($B$8,1) = "C"),#N/A,VLOOKUP($H42,P_All!$A$5:$V$205,3*($C$8-1)+4)) -> 
A43: Na | H43: 18 | I43: =VLOOKUP($H43,P_All!$A$5:$V$205,3*($C$8-1)+2) -> 130.08 | J43: =VLOOKUP($H43,P_All!$A$5:$V$205,3*($C$8-1)+3) -> 226.93 | K43: =VLOOKUP($H43,P_All!$A$5:$V$205,3*($C$8-1)+4) -> 343.9
A44: Ni | H44: 19 | I44: =VLOOKUP($H44,P_All!$A$5:$V$205,3*($C$8-1)+2) -> 98.883 | J44: =VLOOKUP($H44,P_All!$A$5:$V$205,3*($C$8-1)+3) -> 201.8 | K44: =VLOOKUP($H44,P_All!$A$5:$V$205,3*($C$8-1)+4) -> 349.82
A45: Pb | H45: 20 | I45: =VLOOKUP($H45,P_All!$A$5:$V$205,3*($C$8-1)+2) -> 96.132 | J45: =VLOOKUP($H45,P_All!$A$5:$V$205,3*($C$8-1)+3) -> 220.03 | K45: =VLOOKUP($H45,P_All!$A$5:$V$205,3*($C$8-1)+4) -> 350.58
A46: Sb | H46: 21 | I46: =VLOOKUP($H46,P_All!$A$5:$V$205,3*($C$8-1)+2) -> 59.19 | J46: =VLOOKUP($H46,P_All!$A$5:$V$205,3*($C$8-1)+3) -> 169.69 | K46: =VLOOKUP($H46,P_All!$A$5:$V$205,3*($C$8-1)+4) -> 348.01
A47: Se | H47: 22 | I47: =VLOOKUP($H47,P_All!$A$5:$V$205,3*($C$8-1)+2) -> 36.198 | J47: =VLOOKUP($H47,P_All!$A$5:$V$205,3*($C$8-1)+3) -> 108.83 | K47: =VLOOKUP($H47,P_All!$A$5:$V$205,3*($C$8-1)+4) -> 343.9
A48: SO4 | H48: 23 | I48: =VLOOKUP($H48,P_All!$A$5:$V$205,3*($C$8-1)+2) -> 20.61 | J48: =VLOOKUP($H48,P_All!$A$5:$V$205,3*($C$8-1)+3) -> 84.852 | K48: =VLOOKUP($H48,P_All!$A$5:$V$205,3*($C$8-1)+4) -> 341.02
A49: Tl | H49: 24 | I49: =VLOOKUP($H49,P_All!$A$5:$V$205,3*($C$8-1)+2) -> 14.996 | J49: =VLOOKUP($H49,P_All!$A$5:$V$205,3*($C$8-1)+3) -> 70.688 | K49: =VLOOKUP($H49,P_All!$A$5:$V$205,3*($C$8-1)+4) -> 341.02
A50: V | H50: 25 | I50: =VLOOKUP($H50,P_All!$A$5:$V$205,3*($C$8-1)+2) -> 12.626 | J50: =VLOOKUP($H50,P_All!$A$5:$V$205,3*($C$8-1)+3) -> 67.027 | K50: =VLOOKUP($H50,P_All!$A$5:$V$205,3*($C$8-1)+4) -> 336.99
A51: Zn | H51: 26 | I51: =VLOOKUP($H51,P_All!$A$5:$V$205,3*($C$8-1)+2) -> 12.216 | J51: =VLOOKUP($H51,P_All!$A$5:$V$205,3*($C$8-1)+3) -> 63.178 | K51: =VLOOKUP($H51,P_All!$A$5:$V$205,3*($C$8-1)+4) -> 336.67
H52: 27 | I52: =VLOOKUP($H52,P_All!$A$5:$V$205,3*($C$8-1)+2) -> 11.076 | J52: =VLOOKUP($H52,P_All!$A$5:$V$205,3*($C$8-1)+3) -> 62.389 | K52: =VLOOKUP($H52,P_All!$A$5:$V$205,3*($C$8-1)+4) -> 335.25
A53: Plot | H53: 28 | I53: =VLOOKUP($H53,P_All!$A$5:$V$205,3*($C$8-1)+2) -> 11.543 | J53: =VLOOKUP($H53,P_All!$A$5:$V$205,3*($C$8-1)+3) -> 66.197 | K53: =VLOOKUP($H53,P_All!$A$5:$V$205,3*($C$8-1)+4) -> 329.03
A54: Annual Average | H54: 29 | I54: =VLOOKUP($H54,P_All!$A$5:$V$205,3*($C$8-1)+2) -> 11.242 | J54: =VLOOKUP($H54,P_All!$A$5:$V$205,3*($C$8-1)+3) -> 66.605 | K54: =VLOOKUP($H54,P_All!$A$5:$V$205,3*($C$8-1)+4) -> 329.03
A55: Annual Max | H55: 30 | I55: =VLOOKUP($H55,P_All!$A$5:$V$205,3*($C$8-1)+2) -> 11.52 | J55: =VLOOKUP($H55,P_All!$A$5:$V$205,3*($C$8-1)+3) -> 67.959 | K55: =VLOOKUP($H55,P_All!$A$5:$V$205,3*($C$8-1)+4) -> 328.18
H56: 31 | I56: =VLOOKUP($H56,P_All!$A$5:$V$205,3*($C$8-1)+2) -> 11.451 | J56: =VLOOKUP($H56,P_All!$A$5:$V$205,3*($C$8-1)+3) -> 67.843 | K56: =VLOOKUP($H56,P_All!$A$5:$V$205,3*($C$8-1)+4) -> 332.75
H57: 32 | I57: =VLOOKUP($H57,P_All!$A$5:$V$205,3*($C$8-1)+2) -> 11.359 | J57: =VLOOKUP($H57,P_All!$A$5:$V$205,3*($C$8-1)+3) -> 66.099 | K57: =VLOOKUP($H57,P_All!$A$5:$V$205,3*($C$8-1)+4) -> 330.63
H58: 33 | I58: =VLOOKUP($H58,P_All!$A$5:$V$205,3*($C$8-1)+2) -> 11.167 | J58: =VLOOKUP($H58,P_All!$A$5:$V$205,3*($C$8-1)+3) -> 66.018 | K58: =VLOOKUP($H58,P_All!$A$5:$V$205,3*($C$8-1)+4) -> 328.18
H59: 34 | I59: =VLOOKUP($H59,P_All!$A$5:$V$205,3*($C$8-1)+2) -> 11.367 | J59: =VLOOKUP($H59,P_All!$A$5:$V$205,3*($C$8-1)+3) -> 69.928 | K59: =VLOOKUP($H59,P_All!$A$5:$V$205,3*($C$8-1)+4) -> 329.16
H60: 35 | I60: =VLOOKUP($H60,P_All!$A$5:$V$205,3*($C$8-1)+2) -> 11.401 | J60: =VLOOKUP($H60,P_All!$A$5:$V$205,3*($C$8-1)+3) -> 69.695 | K60: =VLOOKUP($H60,P_All!$A$5:$V$205,3*($C$8-1)+4) -> 330.5
H61: 36 | I61: =VLOOKUP($H61,P_All!$A$5:$V$205,3*($C$8-1)+2) -> 10.717 | J61: =VLOOKUP($H61,P_All!$A$5:$V$205,3*($C$8-1)+3) -> 69.167 | K61: =VLOOKUP($H61,P_All!$A$5:$V$205,3*($C$8-1)+4) -> 331.24
H62: 37 | I62: =VLOOKUP($H62,P_All!$A$5:$V$205,3*($C$8-1)+2) -> 11.368 | J62: =VLOOKUP($H62,P_All!$A$5:$V$205,3*($C$8-1)+3) -> 66.781 | K62: =VLOOKUP($H62,P_All!$A$5:$V$205,3*($C$8-1)+4) -> 329.2
H63: 38 | I63: =VLOOKUP($H63,P_All!$A$5:$V$205,3*($C$8-1)+2) -> 12.019 | J63: =VLOOKUP($H63,P_All!$A$5:$V$205,3*($C$8-1)+3) -> 64.082 | K63: =VLOOKUP($H63,P_All!$A$5:$V$205,3*($C$8-1)+4) -> 328.18
H64: 39 | I64: =VLOOKUP($H64,P_All!$A$5:$V$205,3*($C$8-1)+2) -> 12.105 | J64: =VLOOKUP($H64,P_All!$A$5:$V$205,3*($C$8-1)+3) -> 68.766 | K64: =VLOOKUP($H64,P_All!$A$5:$V$205,3*($C$8-1)+4) -> 323.48
H65: 40 | I65: =VLOOKUP($H65,P_All!$A$5:$V$205,3*($C$8-1)+2) -> 11.493 | J65: =VLOOKUP($H65,P_All!$A$5:$V$205,3*($C$8-1)+3) -> 66.245 | K65: =VLOOKUP($H65,P_All!$A$5:$V$205,3*($C$8-1)+4) -> 326.91
H66: 41 | I66: =VLOOKUP($H66,P_All!$A$5:$V$205,3*($C$8-1)+2) -> 12.064 | J66: =VLOOKUP($H66,P_All!$A$5:$V$205,3*($C$8-1)+3) -> 63.557 | K66: =VLOOKUP($H66,P_All!$A$5:$V$205,3*($C$8-1)+4) -> 330.41
H67: 42 | I67: =VLOOKUP($H67,P_All!$A$5:$V$205,3*($C$8-1)+2) -> 12.387 | J67: =VLOOKUP($H67,P_All!$A$5:$V$205,3*($C$8-1)+3) -> 67.632 | K67: =VLOOKUP($H67,P_All!$A$5:$V$205,3*($C$8-1)+4) -> 326.89
H68: 43 | I68: =VLOOKUP($H68,P_All!$A$5:$V$205,3*($C$8-1)+2) -> 12.513 | J68: =VLOOKUP($H68,P_All!$A$5:$V$205,3*($C$8-1)+3) -> 66.125 | K68: =VLOOKUP($H68,P_All!$A$5:$V$205,3*($C$8-1)+4) -> 323.48
H69: 44 | I69: =VLOOKUP($H69,P_All!$A$5:$V$205,3*($C$8-1)+2) -> 11.723 | J69: =VLOOKUP($H69,P_All!$A$5:$V$205,3*($C$8-1)+3) -> 66.523 | K69: =VLOOKUP($H69,P_All!$A$5:$V$205,3*($C$8-1)+4) -> 322.82
H70: 45 | I70: =VLOOKUP($H70,P_All!$A$5:$V$205,3*($C$8-1)+2) -> 11.964 | J70: =VLOOKUP($H70,P_All!$A$5:$V$205,3*($C$8-1)+3) -> 65.131 | K70: =VLOOKUP($H70,P_All!$A$5:$V$205,3*($C$8-1)+4) -> 322.82
H71: 46 | I71: =VLOOKUP($H71,P_All!$A$5:$V$205,3*($C$8-1)+2) -> 11.328 | J71: =VLOOKUP($H71,P_All!$A$5:$V$205,3*($C$8-1)+3) -> 68.797 | K71: =VLOOKUP($H71,P_All!$A$5:$V$205,3*($C$8-1)+4) -> 322.82
H72: 47 | I72: =VLOOKUP($H72,P_All!$A$5:$V$205,3*($C$8-1)+2) -> 11.661 | J72: =VLOOKUP($H72,P_All!$A$5:$V$205,3*($C$8-1)+3) -> 65.394 | K72: =VLOOKUP($H72,P_All!$A$5:$V$205,3*($C$8-1)+4) -> 322.82
H73: 48 | I73: =VLOOKUP($H73,P_All!$A$5:$V$205,3*($C$8-1)+2) -> 11.826 | J73: =VLOOKUP($H73,P_All!$A$5:$V$205,3*($C$8-1)+3) -> 67.208 | K73: =VLOOKUP($H73,P_All!$A$5:$V$205,3*($C$8-1)+4) -> 320.91
H74: 49 | I74: =VLOOKUP($H74,P_All!$A$5:$V$205,3*($C$8-1)+2) -> 11.85 | J74: =VLOOKUP($H74,P_All!$A$5:$V$205,3*($C$8-1)+3) -> 68.246 | K74: =VLOOKUP($H74,P_All!$A$5:$V$205,3*($C$8-1)+4) -> 326.46
H75: 50 | I75: =VLOOKUP($H75,P_All!$A$5:$V$205,3*($C$8-1)+2) -> 11.586 | J75: =VLOOKUP($H75,P_All!$A$5:$V$205,3*($C$8-1)+3) -> 67.203 | K75: =VLOOKUP($H75,P_All!$A$5:$V$205,3*($C$8-1)+4) -> 323.48
H76: 51 | I76: =VLOOKUP($H76,P_All!$A$5:$V$205,3*($C$8-1)+2) -> 12.464 | J76: =VLOOKUP($H76,P_All!$A$5:$V$205,3*($C$8-1)+3) -> 66.077 | K76: =VLOOKUP($H76,P_All!$A$5:$V$205,3*($C$8-1)+4) -> 322.31
H77: 52 | I77: =VLOOKUP($H77,P_All!$A$5:$V$205,3*($C$8-1)+2) -> 12.199 | J77: =VLOOKUP($H77,P_All!$A$5:$V$205,3*($C$8-1)+3) -> 66.626 | K77: =VLOOKUP($H77,P_All!$A$5:$V$205,3*($C$8-1)+4) -> 325.01
H78: 53 | I78: =VLOOKUP($H78,P_All!$A$5:$V$205,3*($C$8-1)+2) -> 11.449 | J78: =VLOOKUP($H78,P_All!$A$5:$V$205,3*($C$8-1)+3) -> 68.747 | K78: =VLOOKUP($H78,P_All!$A$5:$V$205,3*($C$8-1)+4) -> 322.31
H79: 54 | I79: =VLOOKUP($H79,P_All!$A$5:$V$205,3*($C$8-1)+2) -> 12.003 | J79: =VLOOKUP($H79,P_All!$A$5:$V$205,3*($C$8-1)+3) -> 69.8 | K79: =VLOOKUP($H79,P_All!$A$5:$V$205,3*($C$8-1)+4) -> 323.48
H80: 55 | I80: =VLOOKUP($H80,P_All!$A$5:$V$205,3*($C$8-1)+2) -> 12.395 | J80: =VLOOKUP($H80,P_All!$A$5:$V$205,3*($C$8-1)+3) -> 62.649 | K80: =VLOOKUP($H80,P_All!$A$5:$V$205,3*($C$8-1)+4) -> 325.01
H81: 56 | I81: =VLOOKUP($H81,P_All!$A$5:$V$205,3*($C$8-1)+2) -> 12.974 | J81: =VLOOKUP($H81,P_All!$A$5:$V$205,3*($C$8-1)+3) -> 65.688 | K81: =VLOOKUP($H81,P_All!$A$5:$V$205,3*($C$8-1)+4) -> 323.48
H82: 57 | I82: =VLOOKUP($H82,P_All!$A$5:$V$205,3*($C$8-1)+2) -> 12.6 | J82: =VLOOKUP($H82,P_All!$A$5:$V$205,3*($C$8-1)+3) -> 68.92 | K82: =VLOOKUP($H82,P_All!$A$5:$V$205,3*($C$8-1)+4) -> 322.82
H83: 58 | I83: =VLOOKUP($H83,P_All!$A$5:$V$205,3*($C$8-1)+2) -> 12.266 | J83: =VLOOKUP($H83,P_All!$A$5:$V$205,3*($C$8-1)+3) -> 69.041 | K83: =VLOOKUP($H83,P_All!$A$5:$V$205,3*($C$8-1)+4) -> 322.31
H84: 59 | I84: =VLOOKUP($H84,P_All!$A$5:$V$205,3*($C$8-1)+2) -> 11.358 | J84: =VLOOKUP($H84,P_All!$A$5:$V$205,3*($C$8-1)+3) -> 65.187 | K84: =VLOOKUP($H84,P_All!$A$5:$V$205,3*($C$8-1)+4) -> 323.09
H85: 60 | I85: =VLOOKUP($H85,P_All!$A$5:$V$205,3*($C$8-1)+2) -> 11.578 | J85: =VLOOKUP($H85,P_All!$A$5:$V$205,3*($C$8-1)+3) -> 63.043 | K85: =VLOOKUP($H85,P_All!$A$5:$V$205,3*($C$8-1)+4) -> 322.31
H86: 61 | I86: =VLOOKUP($H86,P_All!$A$5:$V$205,3*($C$8-1)+2) -> 10.717 | J86: =VLOOKUP($H86,P_All!$A$5:$V$205,3*($C$8-1)+3) -> 63.259 | K86: =VLOOKUP($H86,P_All!$A$5:$V$205,3*($C$8-1)+4) -> 323.48
H87: 62 | I87: =VLOOKUP($H87,P_All!$A$5:$V$205,3*($C$8-1)+2) -> 11.335 | J87: =VLOOKUP($H87,P_All!$A$5:$V$205,3*($C$8-1)+3) -> 62.799 | K87: =VLOOKUP($H87,P_All!$A$5:$V$205,3*($C$8-1)+4) -> 322.03
H88: 63 | I88: =VLOOKUP($H88,P_All!$A$5:$V$205,3*($C$8-1)+2) -> 11.466 | J88: =VLOOKUP($H88,P_All!$A$5:$V$205,3*($C$8-1)+3) -> 65.653 | K88: =VLOOKUP($H88,P_All!$A$5:$V$205,3*($C$8-1)+4) -> 321.39
H89: 64 | I89: =VLOOKUP($H89,P_All!$A$5:$V$205,3*($C$8-1)+2) -> 11.032 | J89: =VLOOKUP($H89,P_All!$A$5:$V$205,3*($C$8-1)+3) -> 64.344 | K89: =VLOOKUP($H89,P_All!$A$5:$V$205,3*($C$8-1)+4) -> 323.45
H90: 65 | I90: =VLOOKUP($H90,P_All!$A$5:$V$205,3*($C$8-1)+2) -> 11.38 | J90: =VLOOKUP($H90,P_All!$A$5:$V$205,3*($C$8-1)+3) -> 66.114 | K90: =VLOOKUP($H90,P_All!$A$5:$V$205,3*($C$8-1)+4) -> 323.03
H91: 66 | I91: =VLOOKUP($H91,P_All!$A$5:$V$205,3*($C$8-1)+2) -> 12.01 | J91: =VLOOKUP($H91,P_All!$A$5:$V$205,3*($C$8-1)+3) -> 62.169 | K91: =VLOOKUP($H91,P_All!$A$5:$V$205,3*($C$8-1)+4) -> 322.31
H92: 67 | I92: =VLOOKUP($H92,P_All!$A$5:$V$205,3*($C$8-1)+2) -> 11.848 | J92: =VLOOKUP($H92,P_All!$A$5:$V$205,3*($C$8-1)+3) -> 63.668 | K92: =VLOOKUP($H92,P_All!$A$5:$V$205,3*($C$8-1)+4) -> 322.15
H93: 68 | I93: =VLOOKUP($H93,P_All!$A$5:$V$205,3*($C$8-1)+2) -> 11.675 | J93: =VLOOKUP($H93,P_All!$A$5:$V$205,3*($C$8-1)+3) -> 65.993 | K93: =VLOOKUP($H93,P_All!$A$5:$V$205,3*($C$8-1)+4) -> 322.82
H94: 69 | I94: =VLOOKUP($H94,P_All!$A$5:$V$205,3*($C$8-1)+2) -> 11.233 | J94: =VLOOKUP($H94,P_All!$A$5:$V$205,3*($C$8-1)+3) -> 63.27 | K94: =VLOOKUP($H94,P_All!$A$5:$V$205,3*($C$8-1)+4) -> 322.23
H95: 70 | I95: =VLOOKUP($H95,P_All!$A$5:$V$205,3*($C$8-1)+2) -> 12.062 | J95: =VLOOKUP($H95,P_All!$A$5:$V$205,3*($C$8-1)+3) -> 65.869 | K95: =VLOOKUP($H95,P_All!$A$5:$V$205,3*($C$8-1)+4) -> 326.58
H96: 71 | I96: =VLOOKUP($H96,P_All!$A$5:$V$205,3*($C$8-1)+2) -> 11.804 | J96: =VLOOKUP($H96,P_All!$A$5:$V$205,3*($C$8-1)+3) -> 66.139 | K96: =VLOOKUP($H96,P_All!$A$5:$V$205,3*($C$8-1)+4) -> 323.48
H97: 72 | I97: =VLOOKUP($H97,P_All!$A$5:$V$205,3*($C$8-1)+2) -> 11.686 | J97: =VLOOKUP($H97,P_All!$A$5:$V$205,3*($C$8-1)+3) -> 68.584 | K97: =VLOOKUP($H97,P_All!$A$5:$V$205,3*($C$8-1)+4) -> 325.01
H98: 73 | I98: =VLOOKUP($H98,P_All!$A$5:$V$205,3*($C$8-1)+2) -> 11.987 | J98: =VLOOKUP($H98,P_All!$A$5:$V$205,3*($C$8-1)+3) -> 68.316 | K98: =VLOOKUP($H98,P_All!$A$5:$V$205,3*($C$8-1)+4) -> 326.91
H99: 74 | I99: =VLOOKUP($H99,P_All!$A$5:$V$205,3*($C$8-1)+2) -> 11.672 | J99: =VLOOKUP($H99,P_All!$A$5:$V$205,3*($C$8-1)+3) -> 67.614 | K99: =VLOOKUP($H99,P_All!$A$5:$V$205,3*($C$8-1)+4) -> 322.82
H100: 75 | I100: =VLOOKUP($H100,P_All!$A$5:$V$205,3*($C$8-1)+2) -> 11.427 | J100: =VLOOKUP($H100,P_All!$A$5:$V$205,3*($C$8-1)+3) -> 64.587 | K100: =VLOOKUP($H100,P_All!$A$5:$V$205,3*($C$8-1)+4) -> 322.31
H101: 76 | I101: =VLOOKUP($H101,P_All!$A$5:$V$205,3*($C$8-1)+2) -> 11.272 | J101: =VLOOKUP($H101,P_All!$A$5:$V$205,3*($C$8-1)+3) -> 68.295 | K101: =VLOOKUP($H101,P_All!$A$5:$V$205,3*($C$8-1)+4) -> 323.48
H102: 77 | I102: =VLOOKUP($H102,P_All!$A$5:$V$205,3*($C$8-1)+2) -> 11.697 | J102: =VLOOKUP($H102,P_All!$A$5:$V$205,3*($C$8-1)+3) -> 71.214 | K102: =VLOOKUP($H102,P_All!$A$5:$V$205,3*($C$8-1)+4) -> 328.26
H103: 78 | I103: =VLOOKUP($H103,P_All!$A$5:$V$205,3*($C$8-1)+2) -> 11.622 | J103: =VLOOKUP($H103,P_All!$A$5:$V$205,3*($C$8-1)+3) -> 69.382 | K103: =VLOOKUP($H103,P_All!$A$5:$V$205,3*($C$8-1)+4) -> 324.41
H104: 79 | I104: =VLOOKUP($H104,P_All!$A$5:$V$205,3*($C$8-1)+2) -> 11.313 | J104: =VLOOKUP($H104,P_All!$A$5:$V$205,3*($C$8-1)+3) -> 69.534 | K104: =VLOOKUP($H104,P_All!$A$5:$V$205,3*($C$8-1)+4) -> 325.01
H105: 80 | I105: =VLOOKUP($H105,P_All!$A$5:$V$205,3*($C$8-1)+2) -> 10.937 | J105: =VLOOKUP($H105,P_All!$A$5:$V$205,3*($C$8-1)+3) -> 69.34 | K105: =VLOOKUP($H105,P_All!$A$5:$V$205,3*($C$8-1)+4) -> 328.18
H106: 81 | I106: =VLOOKUP($H106,P_All!$A$5:$V$205,3*($C$8-1)+2) -> 11.007 | J106: =VLOOKUP($H106,P_All!$A$5:$V$205,3*($C$8-1)+3) -> 64.131 | K106: =VLOOKUP($H106,P_All!$A$5:$V$205,3*($C$8-1)+4) -> 326.97
H107: 82 | I107: =VLOOKUP($H107,P_All!$A$5:$V$205,3*($C$8-1)+2) -> 11.953 | J107: =VLOOKUP($H107,P_All!$A$5:$V$205,3*($C$8-1)+3) -> 67.387 | K107: =VLOOKUP($H107,P_All!$A$5:$V$205,3*($C$8-1)+4) -> 322.82
H108: 83 | I108: =VLOOKUP($H108,P_All!$A$5:$V$205,3*($C$8-1)+2) -> 11.959 | J108: =VLOOKUP($H108,P_All!$A$5:$V$205,3*($C$8-1)+3) -> 66.4 | K108: =VLOOKUP($H108,P_All!$A$5:$V$205,3*($C$8-1)+4) -> 326.08
H109: 84 | I109: =VLOOKUP($H109,P_All!$A$5:$V$205,3*($C$8-1)+2) -> 11.775 | J109: =VLOOKUP($H109,P_All!$A$5:$V$205,3*($C$8-1)+3) -> 66.465 | K109: =VLOOKUP($H109,P_All!$A$5:$V$205,3*($C$8-1)+4) -> 323.65
H110: 85 | I110: =VLOOKUP($H110,P_All!$A$5:$V$205,3*($C$8-1)+2) -> 11.425 | J110: =VLOOKUP($H110,P_All!$A$5:$V$205,3*($C$8-1)+3) -> 63.081 | K110: =VLOOKUP($H110,P_All!$A$5:$V$205,3*($C$8-1)+4) -> 323.48
H111: 86 | I111: =VLOOKUP($H111,P_All!$A$5:$V$205,3*($C$8-1)+2) -> 12.322 | J111: =VLOOKUP($H111,P_All!$A$5:$V$205,3*($C$8-1)+3) -> 64.535 | K111: =VLOOKUP($H111,P_All!$A$5:$V$205,3*($C$8-1)+4) -> 323.48
H112: 87 | I112: =VLOOKUP($H112,P_All!$A$5:$V$205,3*($C$8-1)+2) -> 12.788 | J112: =VLOOKUP($H112,P_All!$A$5:$V$205,3*($C$8-1)+3) -> 63.382 | K112: =VLOOKUP($H112,P_All!$A$5:$V$205,3*($C$8-1)+4) -> 328.18
H113: 88 | I113: =VLOOKUP($H113,P_All!$A$5:$V$205,3*($C$8-1)+2) -> 12.197 | J113: =VLOOKUP($H113,P_All!$A$5:$V$205,3*($C$8-1)+3) -> 64.341 | K113: =VLOOKUP($H113,P_All!$A$5:$V$205,3*($C$8-1)+4) -> 330.32
H114: 89 | I114: =VLOOKUP($H114,P_All!$A$5:$V$205,3*($C$8-1)+2) -> 12.062 | J114: =VLOOKUP($H114,P_All!$A$5:$V$205,3*($C$8-1)+3) -> 62.418 | K114: =VLOOKUP($H114,P_All!$A$5:$V$205,3*($C$8-1)+4) -> 328.02
H115: 90 | I115: =VLOOKUP($H115,P_All!$A$5:$V$205,3*($C$8-1)+2) -> 10.879 | J115: =VLOOKUP($H115,P_All!$A$5:$V$205,3*($C$8-1)+3) -> 64.106 | K115: =VLOOKUP($H115,P_All!$A$5:$V$205,3*($C$8-1)+4) -> 322.31
H116: 91 | I116: =VLOOKUP($H116,P_All!$A$5:$V$205,3*($C$8-1)+2) -> 10.626 | J116: =VLOOKUP($H116,P_All!$A$5:$V$205,3*($C$8-1)+3) -> 65.259 | K116: =VLOOKUP($H116,P_All!$A$5:$V$205,3*($C$8-1)+4) -> 321.92
H117: 92 | I117: =VLOOKUP($H117,P_All!$A$5:$V$205,3*($C$8-1)+2) -> 11.341 | J117: =VLOOKUP($H117,P_All!$A$5:$V$205,3*($C$8-1)+3) -> 66.469 | K117: =VLOOKUP($H117,P_All!$A$5:$V$205,3*($C$8-1)+4) -> 323.48
H118: 93 | I118: =VLOOKUP($H118,P_All!$A$5:$V$205,3*($C$8-1)+2) -> 11.229 | J118: =VLOOKUP($H118,P_All!$A$5:$V$205,3*($C$8-1)+3) -> 67.379 | K118: =VLOOKUP($H118,P_All!$A$5:$V$205,3*($C$8-1)+4) -> 322.82
H119: 94 | I119: =VLOOKUP($H119,P_All!$A$5:$V$205,3*($C$8-1)+2) -> 11.081 | J119: =VLOOKUP($H119,P_All!$A$5:$V$205,3*($C$8-1)+3) -> 66.626 | K119: =VLOOKUP($H119,P_All!$A$5:$V$205,3*($C$8-1)+4) -> 323.6
H120: 95 | I120: =VLOOKUP($H120,P_All!$A$5:$V$205,3*($C$8-1)+2) -> 11.782 | J120: =VLOOKUP($H120,P_All!$A$5:$V$205,3*($C$8-1)+3) -> 68.741 | K120: =VLOOKUP($H120,P_All!$A$5:$V$205,3*($C$8-1)+4) -> 323.48
H121: 96 | I121: =VLOOKUP($H121,P_All!$A$5:$V$205,3*($C$8-1)+2) -> 12.562 | J121: =VLOOKUP($H121,P_All!$A$5:$V$205,3*($C$8-1)+3) -> 66.887 | K121: =VLOOKUP($H121,P_All!$A$5:$V$205,3*($C$8-1)+4) -> 322.31
H122: 97 | I122: =VLOOKUP($H122,P_All!$A$5:$V$205,3*($C$8-1)+2) -> 12.447 | J122: =VLOOKUP($H122,P_All!$A$5:$V$205,3*($C$8-1)+3) -> 69.041 | K122: =VLOOKUP($H122,P_All!$A$5:$V$205,3*($C$8-1)+4) -> 322.82
H123: 98 | I123: =VLOOKUP($H123,P_All!$A$5:$V$205,3*($C$8-1)+2) -> 12.56 | J123: =VLOOKUP($H123,P_All!$A$5:$V$205,3*($C$8-1)+3) -> 68.622 | K123: =VLOOKUP($H123,P_All!$A$5:$V$205,3*($C$8-1)+4) -> 326.97
H124: 99 | I124: =VLOOKUP($H124,P_All!$A$5:$V$205,3*($C$8-1)+2) -> 11.755 | J124: =VLOOKUP($H124,P_All!$A$5:$V$205,3*($C$8-1)+3) -> 69.294 | K124: =VLOOKUP($H124,P_All!$A$5:$V$205,3*($C$8-1)+4) -> 325.01
H125: 100 | I125: =VLOOKUP($H125,P_All!$A$5:$V$205,3*($C$8-1)+2) -> 11.65 | J125: =VLOOKUP($H125,P_All!$A$5:$V$205,3*($C$8-1)+3) -> 68.091 | K125: =VLOOKUP($H125,P_All!$A$5:$V$205,3*($C$8-1)+4) -> 321.98
H126: 101 | I126: =VLOOKUP($H126,P_All!$A$5:$V$205,3*($C$8-1)+2) -> 12.064 | J126: =VLOOKUP($H126,P_All!$A$5:$V$205,3*($C$8-1)+3) -> 68.353 | K126: =VLOOKUP($H126,P_All!$A$5:$V$205,3*($C$8-1)+4) -> 322.82
H127: 102 | I127: =VLOOKUP($H127,P_All!$A$5:$V$205,3*($C$8-1)+2) -> 10.674 | J127: =VLOOKUP($H127,P_All!$A$5:$V$205,3*($C$8-1)+3) -> 65.594 | K127: =VLOOKUP($H127,P_All!$A$5:$V$205,3*($C$8-1)+4) -> 325.01
H128: 103 | I128: =VLOOKUP($H128,P_All!$A$5:$V$205,3*($C$8-1)+2) -> 10.867 | J128: =VLOOKUP($H128,P_All!$A$5:$V$205,3*($C$8-1)+3) -> 68.826 | K128: =VLOOKUP($H128,P_All!$A$5:$V$205,3*($C$8-1)+4) -> 323.24
H129: 104 | I129: =VLOOKUP($H129,P_All!$A$5:$V$205,3*($C$8-1)+2) -> 11.436 | J129: =VLOOKUP($H129,P_All!$A$5:$V$205,3*($C$8-1)+3) -> 67.289 | K129: =VLOOKUP($H129,P_All!$A$5:$V$205,3*($C$8-1)+4) -> 325.56
H130: 105 | I130: =VLOOKUP($H130,P_All!$A$5:$V$205,3*($C$8-1)+2) -> 11.832 | J130: =VLOOKUP($H130,P_All!$A$5:$V$205,3*($C$8-1)+3) -> 66.758 | K130: =VLOOKUP($H130,P_All!$A$5:$V$205,3*($C$8-1)+4) -> 325.01
H131: 106 | I131: =VLOOKUP($H131,P_All!$A$5:$V$205,3*($C$8-1)+2) -> 11.68 | J131: =VLOOKUP($H131,P_All!$A$5:$V$205,3*($C$8-1)+3) -> 67.398 | K131: =VLOOKUP($H131,P_All!$A$5:$V$205,3*($C$8-1)+4) -> 331.24
H132: 107 | I132: =VLOOKUP($H132,P_All!$A$5:$V$205,3*($C$8-1)+2) -> 11.792 | J132: =VLOOKUP($H132,P_All!$A$5:$V$205,3*($C$8-1)+3) -> 64.289 | K132: =VLOOKUP($H132,P_All!$A$5:$V$205,3*($C$8-1)+4) -> 330.32
H133: 108 | I133: =VLOOKUP($H133,P_All!$A$5:$V$205,3*($C$8-1)+2) -> 12.056 | J133: =VLOOKUP($H133,P_All!$A$5:$V$205,3*($C$8-1)+3) -> 63.518 | K133: =VLOOKUP($H133,P_All!$A$5:$V$205,3*($C$8-1)+4) -> 326.91
H134: 109 | I134: =VLOOKUP($H134,P_All!$A$5:$V$205,3*($C$8-1)+2) -> 11.791 | J134: =VLOOKUP($H134,P_All!$A$5:$V$205,3*($C$8-1)+3) -> 63.668 | K134: =VLOOKUP($H134,P_All!$A$5:$V$205,3*($C$8-1)+4) -> 326.91
H135: 110 | I135: =VLOOKUP($H135,P_All!$A$5:$V$205,3*($C$8-1)+2) -> 11.21 | J135: =VLOOKUP($H135,P_All!$A$5:$V$205,3*($C$8-1)+3) -> 66.582 | K135: =VLOOKUP($H135,P_All!$A$5:$V$205,3*($C$8-1)+4) -> 334.46
H136: 111 | I136: =VLOOKUP($H136,P_All!$A$5:$V$205,3*($C$8-1)+2) -> 11.086 | J136: =VLOOKUP($H136,P_All!$A$5:$V$205,3*($C$8-1)+3) -> 63.728 | K136: =VLOOKUP($H136,P_All!$A$5:$V$205,3*($C$8-1)+4) -> 330.63
H137: 112 | I137: =VLOOKUP($H137,P_All!$A$5:$V$205,3*($C$8-1)+2) -> 11.435 | J137: =VLOOKUP($H137,P_All!$A$5:$V$205,3*($C$8-1)+3) -> 67.225 | K137: =VLOOKUP($H137,P_All!$A$5:$V$205,3*($C$8-1)+4) -> 329.03
H138: 113 | I138: =VLOOKUP($H138,P_All!$A$5:$V$205,3*($C$8-1)+2) -> 11.518 | J138: =VLOOKUP($H138,P_All!$A$5:$V$205,3*($C$8-1)+3) -> 67.455 | K138: =VLOOKUP($H138,P_All!$A$5:$V$205,3*($C$8-1)+4) -> 326.91
H139: 114 | I139: =VLOOKUP($H139,P_All!$A$5:$V$205,3*($C$8-1)+2) -> 11.717 | J139: =VLOOKUP($H139,P_All!$A$5:$V$205,3*($C$8-1)+3) -> 64.686 | K139: =VLOOKUP($H139,P_All!$A$5:$V$205,3*($C$8-1)+4) -> 329.03
H140: 115 | I140: =VLOOKUP($H140,P_All!$A$5:$V$205,3*($C$8-1)+2) -> 11.698 | J140: =VLOOKUP($H140,P_All!$A$5:$V$205,3*($C$8-1)+3) -> 62.851 | K140: =VLOOKUP($H140,P_All!$A$5:$V$205,3*($C$8-1)+4) -> 330.32
H141: 116 | I141: =VLOOKUP($H141,P_All!$A$5:$V$205,3*($C$8-1)+2) -> 11.331 | J141: =VLOOKUP($H141,P_All!$A$5:$V$205,3*($C$8-1)+3) -> 66.594 | K141: =VLOOKUP($H141,P_All!$A$5:$V$205,3*($C$8-1)+4) -> 329.03
H142: 117 | I142: =VLOOKUP($H142,P_All!$A$5:$V$205,3*($C$8-1)+2) -> 10.776 | J142: =VLOOKUP($H142,P_All!$A$5:$V$205,3*($C$8-1)+3) -> 66.836 | K142: =VLOOKUP($H142,P_All!$A$5:$V$205,3*($C$8-1)+4) -> 328.59
H143: 118 | I143: =VLOOKUP($H143,P_All!$A$5:$V$205,3*($C$8-1)+2) -> 11.581 | J143: =VLOOKUP($H143,P_All!$A$5:$V$205,3*($C$8-1)+3) -> 64.917 | K143: =VLOOKUP($H143,P_All!$A$5:$V$205,3*($C$8-1)+4) -> 323.48
H144: 119 | I144: =VLOOKUP($H144,P_All!$A$5:$V$205,3*($C$8-1)+2) -> 12.223 | J144: =VLOOKUP($H144,P_All!$A$5:$V$205,3*($C$8-1)+3) -> 62.393 | K144: =VLOOKUP($H144,P_All!$A$5:$V$205,3*($C$8-1)+4) -> 325.26
H145: 120 | I145: =VLOOKUP($H145,P_All!$A$5:$V$205,3*($C$8-1)+2) -> 12.364 | J145: =VLOOKUP($H145,P_All!$A$5:$V$205,3*($C$8-1)+3) -> 63.722 | K145: =VLOOKUP($H145,P_All!$A$5:$V$205,3*($C$8-1)+4) -> 323.48
H146: 121 | I146: =VLOOKUP($H146,P_All!$A$5:$V$205,3*($C$8-1)+2) -> 11.627 | J146: =VLOOKUP($H146,P_All!$A$5:$V$205,3*($C$8-1)+3) -> 66.129 | K146: =VLOOKUP($H146,P_All!$A$5:$V$205,3*($C$8-1)+4) -> 321.8
H147: 122 | I147: =VLOOKUP($H147,P_All!$A$5:$V$205,3*($C$8-1)+2) -> 11.741 | J147: =VLOOKUP($H147,P_All!$A$5:$V$205,3*($C$8-1)+3) -> 65.527 | K147: =VLOOKUP($H147,P_All!$A$5:$V$205,3*($C$8-1)+4) -> 325.01
H148: 123 | I148: =VLOOKUP($H148,P_All!$A$5:$V$205,3*($C$8-1)+2) -> 12.5 | J148: =VLOOKUP($H148,P_All!$A$5:$V$205,3*($C$8-1)+3) -> 66.715 | K148: =VLOOKUP($H148,P_All!$A$5:$V$205,3*($C$8-1)+4) -> 318.69
H149: 124 | I149: =VLOOKUP($H149,P_All!$A$5:$V$205,3*($C$8-1)+2) -> 12.835 | J149: =VLOOKUP($H149,P_All!$A$5:$V$205,3*($C$8-1)+3) -> 68.209 | K149: =VLOOKUP($H149,P_All!$A$5:$V$205,3*($C$8-1)+4) -> 324.28
H150: 125 | I150: =VLOOKUP($H150,P_All!$A$5:$V$205,3*($C$8-1)+2) -> 11.777 | J150: =VLOOKUP($H150,P_All!$A$5:$V$205,3*($C$8-1)+3) -> 68.493 | K150: =VLOOKUP($H150,P_All!$A$5:$V$205,3*($C$8-1)+4) -> 328.18
H151: 126 | I151: =VLOOKUP($H151,P_All!$A$5:$V$205,3*($C$8-1)+2) -> 11.618 | J151: =VLOOKUP($H151,P_All!$A$5:$V$205,3*($C$8-1)+3) -> 63.814 | K151: =VLOOKUP($H151,P_All!$A$5:$V$205,3*($C$8-1)+4) -> 326.91
H152: 127 | I152: =VLOOKUP($H152,P_All!$A$5:$V$205,3*($C$8-1)+2) -> 12.019 | J152: =VLOOKUP($H152,P_All!$A$5:$V$205,3*($C$8-1)+3) -> 62.976 | K152: =VLOOKUP($H152,P_All!$A$5:$V$205,3*($C$8-1)+4) -> 323.48
H153: 128 | I153: =VLOOKUP($H153,P_All!$A$5:$V$205,3*($C$8-1)+2) -> 11.415 | J153: =VLOOKUP($H153,P_All!$A$5:$V$205,3*($C$8-1)+3) -> 63.034 | K153: =VLOOKUP($H153,P_All!$A$5:$V$205,3*($C$8-1)+4) -> 322.82
H154: 129 | I154: =VLOOKUP($H154,P_All!$A$5:$V$205,3*($C$8-1)+2) -> 11.732 | J154: =VLOOKUP($H154,P_All!$A$5:$V$205,3*($C$8-1)+3) -> 64.929 | K154: =VLOOKUP($H154,P_All!$A$5:$V$205,3*($C$8-1)+4) -> 322.82
H155: 130 | I155: =VLOOKUP($H155,P_All!$A$5:$V$205,3*($C$8-1)+2) -> 11.83 | J155: =VLOOKUP($H155,P_All!$A$5:$V$205,3*($C$8-1)+3) -> 64.97 | K155: =VLOOKUP($H155,P_All!$A$5:$V$205,3*($C$8-1)+4) -> 322.86
H156: 131 | I156: =VLOOKUP($H156,P_All!$A$5:$V$205,3*($C$8-1)+2) -> 11.462 | J156: =VLOOKUP($H156,P_All!$A$5:$V$205,3*($C$8-1)+3) -> 66.38 | K156: =VLOOKUP($H156,P_All!$A$5:$V$205,3*($C$8-1)+4) -> 325.01
H157: 132 | I157: =VLOOKUP($H157,P_All!$A$5:$V$205,3*($C$8-1)+2) -> 11.344 | J157: =VLOOKUP($H157,P_All!$A$5:$V$205,3*($C$8-1)+3) -> 68.207 | K157: =VLOOKUP($H157,P_All!$A$5:$V$205,3*($C$8-1)+4) -> 322.82
H158: 133 | I158: =VLOOKUP($H158,P_All!$A$5:$V$205,3*($C$8-1)+2) -> 11.92 | J158: =VLOOKUP($H158,P_All!$A$5:$V$205,3*($C$8-1)+3) -> 66.88 | K158: =VLOOKUP($H158,P_All!$A$5:$V$205,3*($C$8-1)+4) -> 323.48
H159: 134 | I159: =VLOOKUP($H159,P_All!$A$5:$V$205,3*($C$8-1)+2) -> 11.016 | J159: =VLOOKUP($H159,P_All!$A$5:$V$205,3*($C$8-1)+3) -> 64.84 | K159: =VLOOKUP($H159,P_All!$A$5:$V$205,3*($C$8-1)+4) -> 326.91
H160: 135 | I160: =VLOOKUP($H160,P_All!$A$5:$V$205,3*($C$8-1)+2) -> 10.723 | J160: =VLOOKUP($H160,P_All!$A$5:$V$205,3*($C$8-1)+3) -> 67.458 | K160: =VLOOKUP($H160,P_All!$A$5:$V$205,3*($C$8-1)+4) -> 328.18
H161: 136 | I161: =VLOOKUP($H161,P_All!$A$5:$V$205,3*($C$8-1)+2) -> 11.153 | J161: =VLOOKUP($H161,P_All!$A$5:$V$205,3*($C$8-1)+3) -> 63.431 | K161: =VLOOKUP($H161,P_All!$A$5:$V$205,3*($C$8-1)+4) -> 330.63
H162: 137 | I162: =VLOOKUP($H162,P_All!$A$5:$V$205,3*($C$8-1)+2) -> 11.668 | J162: =VLOOKUP($H162,P_All!$A$5:$V$205,3*($C$8-1)+3) -> 64.785 | K162: =VLOOKUP($H162,P_All!$A$5:$V$205,3*($C$8-1)+4) -> 327.21
H163: 138 | I163: =VLOOKUP($H163,P_All!$A$5:$V$205,3*($C$8-1)+2) -> 11.529 | J163: =VLOOKUP($H163,P_All!$A$5:$V$205,3*($C$8-1)+3) -> 66.36 | K163: =VLOOKUP($H163,P_All!$A$5:$V$205,3*($C$8-1)+4) -> 327.79
H164: 139 | I164: =VLOOKUP($H164,P_All!$A$5:$V$205,3*($C$8-1)+2) -> 12.029 | J164: =VLOOKUP($H164,P_All!$A$5:$V$205,3*($C$8-1)+3) -> 63.877 | K164: =VLOOKUP($H164,P_All!$A$5:$V$205,3*($C$8-1)+4) -> 325.01
H165: 140 | I165: =VLOOKUP($H165,P_All!$A$5:$V$205,3*($C$8-1)+2) -> 11.767 | J165: =VLOOKUP($H165,P_All!$A$5:$V$205,3*($C$8-1)+3) -> 63.533 | K165: =VLOOKUP($H165,P_All!$A$5:$V$205,3*($C$8-1)+4) -> 325.01
H166: 141 | I166: =VLOOKUP($H166,P_All!$A$5:$V$205,3*($C$8-1)+2) -> 11.442 | J166: =VLOOKUP($H166,P_All!$A$5:$V$205,3*($C$8-1)+3) -> 66.062 | K166: =VLOOKUP($H166,P_All!$A$5:$V$205,3*($C$8-1)+4) -> 328.18
H167: 142 | I167: =VLOOKUP($H167,P_All!$A$5:$V$205,3*($C$8-1)+2) -> 10.673 | J167: =VLOOKUP($H167,P_All!$A$5:$V$205,3*($C$8-1)+3) -> 66.223 | K167: =VLOOKUP($H167,P_All!$A$5:$V$205,3*($C$8-1)+4) -> 324.16
H168: 143 | I168: =VLOOKUP($H168,P_All!$A$5:$V$205,3*($C$8-1)+2) -> 10.958 | J168: =VLOOKUP($H168,P_All!$A$5:$V$205,3*($C$8-1)+3) -> 67.26 | K168: =VLOOKUP($H168,P_All!$A$5:$V$205,3*($C$8-1)+4) -> 323.48
H169: 144 | I169: =VLOOKUP($H169,P_All!$A$5:$V$205,3*($C$8-1)+2) -> 11.03 | J169: =VLOOKUP($H169,P_All!$A$5:$V$205,3*($C$8-1)+3) -> 65.704 | K169: =VLOOKUP($H169,P_All!$A$5:$V$205,3*($C$8-1)+4) -> 322.31
H170: 145 | I170: =VLOOKUP($H170,P_All!$A$5:$V$205,3*($C$8-1)+2) -> 11.637 | J170: =VLOOKUP($H170,P_All!$A$5:$V$205,3*($C$8-1)+3) -> 64.583 | K170: =VLOOKUP($H170,P_All!$A$5:$V$205,3*($C$8-1)+4) -> 321.55
H171: 146 | I171: =VLOOKUP($H171,P_All!$A$5:$V$205,3*($C$8-1)+2) -> 11.613 | J171: =VLOOKUP($H171,P_All!$A$5:$V$205,3*($C$8-1)+3) -> 65.341 | K171: =VLOOKUP($H171,P_All!$A$5:$V$205,3*($C$8-1)+4) -> 320.91
H172: 147 | I172: =VLOOKUP($H172,P_All!$A$5:$V$205,3*($C$8-1)+2) -> 11.14 | J172: =VLOOKUP($H172,P_All!$A$5:$V$205,3*($C$8-1)+3) -> 64.764 | K172: =VLOOKUP($H172,P_All!$A$5:$V$205,3*($C$8-1)+4) -> 325.01
H173: 148 | I173: =VLOOKUP($H173,P_All!$A$5:$V$205,3*($C$8-1)+2) -> 10.81 | J173: =VLOOKUP($H173,P_All!$A$5:$V$205,3*($C$8-1)+3) -> 66.464 | K173: =VLOOKUP($H173,P_All!$A$5:$V$205,3*($C$8-1)+4) -> 322.31
H174: 149 | I174: =VLOOKUP($H174,P_All!$A$5:$V$205,3*($C$8-1)+2) -> 11.216 | J174: =VLOOKUP($H174,P_All!$A$5:$V$205,3*($C$8-1)+3) -> 65.65 | K174: =VLOOKUP($H174,P_All!$A$5:$V$205,3*($C$8-1)+4) -> 325.01
H175: 150 | I175: =VLOOKUP($H175,P_All!$A$5:$V$205,3*($C$8-1)+2) -> 11.611 | J175: =VLOOKUP($H175,P_All!$A$5:$V$205,3*($C$8-1)+3) -> 63.004 | K175: =VLOOKUP($H175,P_All!$A$5:$V$205,3*($C$8-1)+4) -> 323.48
H176: 151 | I176: =VLOOKUP($H176,P_All!$A$5:$V$205,3*($C$8-1)+2) -> 11.368 | J176: =VLOOKUP($H176,P_All!$A$5:$V$205,3*($C$8-1)+3) -> 64.384 | K176: =VLOOKUP($H176,P_All!$A$5:$V$205,3*($C$8-1)+4) -> 325.01
H177: 152 | I177: =VLOOKUP($H177,P_All!$A$5:$V$205,3*($C$8-1)+2) -> 11.708 | J177: =VLOOKUP($H177,P_All!$A$5:$V$205,3*($C$8-1)+3) -> 66.009 | K177: =VLOOKUP($H177,P_All!$A$5:$V$205,3*($C$8-1)+4) -> 324.86
H178: 153 | I178: =VLOOKUP($H178,P_All!$A$5:$V$205,3*($C$8-1)+2) -> 11.034 | J178: =VLOOKUP($H178,P_All!$A$5:$V$205,3*($C$8-1)+3) -> 66.959 | K178: =VLOOKUP($H178,P_All!$A$5:$V$205,3*($C$8-1)+4) -> 326.78
H179: 154 | I179: =VLOOKUP($H179,P_All!$A$5:$V$205,3*($C$8-1)+2) -> 11.094 | J179: =VLOOKUP($H179,P_All!$A$5:$V$205,3*($C$8-1)+3) -> 63.62 | K179: =VLOOKUP($H179,P_All!$A$5:$V$205,3*($C$8-1)+4) -> 325.01
H180: 155 | I180: =VLOOKUP($H180,P_All!$A$5:$V$205,3*($C$8-1)+2) -> 11.124 | J180: =VLOOKUP($H180,P_All!$A$5:$V$205,3*($C$8-1)+3) -> 63.088 | K180: =VLOOKUP($H180,P_All!$A$5:$V$205,3*($C$8-1)+4) -> 325.01
H181: 156 | I181: =VLOOKUP($H181,P_All!$A$5:$V$205,3*($C$8-1)+2) -> 10.781 | J181: =VLOOKUP($H181,P_All!$A$5:$V$205,3*($C$8-1)+3) -> 66.575 | K181: =VLOOKUP($H181,P_All!$A$5:$V$205,3*($C$8-1)+4) -> 322.31
H182: 157 | I182: =VLOOKUP($H182,P_All!$A$5:$V$205,3*($C$8-1)+2) -> 11.851 | J182: =VLOOKUP($H182,P_All!$A$5:$V$205,3*($C$8-1)+3) -> 68.274 | K182: =VLOOKUP($H182,P_All!$A$5:$V$205,3*($C$8-1)+4) -> 321.55
H183: 158 | I183: =VLOOKUP($H183,P_All!$A$5:$V$205,3*($C$8-1)+2) -> 11.759 | J183: =VLOOKUP($H183,P_All!$A$5:$V$205,3*($C$8-1)+3) -> 66.862 | K183: =VLOOKUP($H183,P_All!$A$5:$V$205,3*($C$8-1)+4) -> 320.91
H184: 159 | I184: =VLOOKUP($H184,P_All!$A$5:$V$205,3*($C$8-1)+2) -> 12.362 | J184: =VLOOKUP($H184,P_All!$A$5:$V$205,3*($C$8-1)+3) -> 67.996 | K184: =VLOOKUP($H184,P_All!$A$5:$V$205,3*($C$8-1)+4) -> 322.82
H185: 160 | I185: =VLOOKUP($H185,P_All!$A$5:$V$205,3*($C$8-1)+2) -> 12.317 | J185: =VLOOKUP($H185,P_All!$A$5:$V$205,3*($C$8-1)+3) -> 69.906 | K185: =VLOOKUP($H185,P_All!$A$5:$V$205,3*($C$8-1)+4) -> 326.91
H186: 161 | I186: =VLOOKUP($H186,P_All!$A$5:$V$205,3*($C$8-1)+2) -> 11.825 | J186: =VLOOKUP($H186,P_All!$A$5:$V$205,3*($C$8-1)+3) -> 64.526 | K186: =VLOOKUP($H186,P_All!$A$5:$V$205,3*($C$8-1)+4) -> 323.9
H187: 162 | I187: =VLOOKUP($H187,P_All!$A$5:$V$205,3*($C$8-1)+2) -> 11.683 | J187: =VLOOKUP($H187,P_All!$A$5:$V$205,3*($C$8-1)+3) -> 66.629 | K187: =VLOOKUP($H187,P_All!$A$5:$V$205,3*($C$8-1)+4) -> 322.82
H188: 163 | I188: =VLOOKUP($H188,P_All!$A$5:$V$205,3*($C$8-1)+2) -> 12.28 | J188: =VLOOKUP($H188,P_All!$A$5:$V$205,3*($C$8-1)+3) -> 67.707 | K188: =VLOOKUP($H188,P_All!$A$5:$V$205,3*($C$8-1)+4) -> 323.48
H189: 164 | I189: =VLOOKUP($H189,P_All!$A$5:$V$205,3*($C$8-1)+2) -> 11.978 | J189: =VLOOKUP($H189,P_All!$A$5:$V$205,3*($C$8-1)+3) -> 63.45 | K189: =VLOOKUP($H189,P_All!$A$5:$V$205,3*($C$8-1)+4) -> 322.31
H190: 165 | I190: =VLOOKUP($H190,P_All!$A$5:$V$205,3*($C$8-1)+2) -> 11.666 | J190: =VLOOKUP($H190,P_All!$A$5:$V$205,3*($C$8-1)+3) -> 63.065 | K190: =VLOOKUP($H190,P_All!$A$5:$V$205,3*($C$8-1)+4) -> 321.55
H191: 166 | I191: =VLOOKUP($H191,P_All!$A$5:$V$205,3*($C$8-1)+2) -> 11.178 | J191: =VLOOKUP($H191,P_All!$A$5:$V$205,3*($C$8-1)+3) -> 64.434 | K191: =VLOOKUP($H191,P_All!$A$5:$V$205,3*($C$8-1)+4) -> 322.82
H192: 167 | I192: =VLOOKUP($H192,P_All!$A$5:$V$205,3*($C$8-1)+2) -> 11.361 | J192: =VLOOKUP($H192,P_All!$A$5:$V$205,3*($C$8-1)+3) -> 67.623 | K192: =VLOOKUP($H192,P_All!$A$5:$V$205,3*($C$8-1)+4) -> 322.31
H193: 168 | I193: =VLOOKUP($H193,P_All!$A$5:$V$205,3*($C$8-1)+2) -> 12.059 | J193: =VLOOKUP($H193,P_All!$A$5:$V$205,3*($C$8-1)+3) -> 65.308 | K193: =VLOOKUP($H193,P_All!$A$5:$V$205,3*($C$8-1)+4) -> 321.55
H194: 169 | I194: =VLOOKUP($H194,P_All!$A$5:$V$205,3*($C$8-1)+2) -> 11.878 | J194: =VLOOKUP($H194,P_All!$A$5:$V$205,3*($C$8-1)+3) -> 67.831 | K194: =VLOOKUP($H194,P_All!$A$5:$V$205,3*($C$8-1)+4) -> 321.98
H195: 170 | I195: =VLOOKUP($H195,P_All!$A$5:$V$205,3*($C$8-1)+2) -> 11.14 | J195: =VLOOKUP($H195,P_All!$A$5:$V$205,3*($C$8-1)+3) -> 66.48 | K195: =VLOOKUP($H195,P_All!$A$5:$V$205,3*($C$8-1)+4) -> 321.98
H196: 171 | I196: =VLOOKUP($H196,P_All!$A$5:$V$205,3*($C$8-1)+2) -> 11.587 | J196: =VLOOKUP($H196,P_All!$A$5:$V$205,3*($C$8-1)+3) -> 67.783 | K196: =VLOOKUP($H196,P_All!$A$5:$V$205,3*($C$8-1)+4) -> 322.19
H197: 172 | I197: =VLOOKUP($H197,P_All!$A$5:$V$205,3*($C$8-1)+2) -> 11.787 | J197: =VLOOKUP($H197,P_All!$A$5:$V$205,3*($C$8-1)+3) -> 67.774 | K197: =VLOOKUP($H197,P_All!$A$5:$V$205,3*($C$8-1)+4) -> 322.31
H198: 173 | I198: =VLOOKUP($H198,P_All!$A$5:$V$205,3*($C$8-1)+2) -> 12.038 | J198: =VLOOKUP($H198,P_All!$A$5:$V$205,3*($C$8-1)+3) -> 66.244 | K198: =VLOOKUP($H198,P_All!$A$5:$V$205,3*($C$8-1)+4) -> 323.48
H199: 174 | I199: =VLOOKUP($H199,P_All!$A$5:$V$205,3*($C$8-1)+2) -> 11.613 | J199: =VLOOKUP($H199,P_All!$A$5:$V$205,3*($C$8-1)+3) -> 66.872 | K199: =VLOOKUP($H199,P_All!$A$5:$V$205,3*($C$8-1)+4) -> 326.91
H200: 175 | I200: =VLOOKUP($H200,P_All!$A$5:$V$205,3*($C$8-1)+2) -> 11.41 | J200: =VLOOKUP($H200,P_All!$A$5:$V$205,3*($C$8-1)+3) -> 68.431 | K200: =VLOOKUP($H200,P_All!$A$5:$V$205,3*($C$8-1)+4) -> 325.85
H201: 176 | I201: =VLOOKUP($H201,P_All!$A$5:$V$205,3*($C$8-1)+2) -> 11.078 | J201: =VLOOKUP($H201,P_All!$A$5:$V$205,3*($C$8-1)+3) -> 66.23 | K201: =VLOOKUP($H201,P_All!$A$5:$V$205,3*($C$8-1)+4) -> 322.82
H202: 177 | I202: =VLOOKUP($H202,P_All!$A$5:$V$205,3*($C$8-1)+2) -> 11.331 | J202: =VLOOKUP($H202,P_All!$A$5:$V$205,3*($C$8-1)+3) -> 66.291 | K202: =VLOOKUP($H202,P_All!$A$5:$V$205,3*($C$8-1)+4) -> 321.96
H203: 178 | I203: =VLOOKUP($H203,P_All!$A$5:$V$205,3*($C$8-1)+2) -> 11.299 | J203: =VLOOKUP($H203,P_All!$A$5:$V$205,3*($C$8-1)+3) -> 66.551 | K203: =VLOOKUP($H203,P_All!$A$5:$V$205,3*($C$8-1)+4) -> 326.84
H204: 179 | I204: =VLOOKUP($H204,P_All!$A$5:$V$205,3*($C$8-1)+2) -> 11.46 | J204: =VLOOKUP($H204,P_All!$A$5:$V$205,3*($C$8-1)+3) -> 67.518 | K204: =VLOOKUP($H204,P_All!$A$5:$V$205,3*($C$8-1)+4) -> 323.48
H205: 180 | I205: =VLOOKUP($H205,P_All!$A$5:$V$205,3*($C$8-1)+2) -> 12.443 | J205: =VLOOKUP($H205,P_All!$A$5:$V$205,3*($C$8-1)+3) -> 66.381 | K205: =VLOOKUP($H205,P_All!$A$5:$V$205,3*($C$8-1)+4) -> 322.82
H206: 181 | I206: =VLOOKUP($H206,P_All!$A$5:$V$205,3*($C$8-1)+2) -> 12.152 | J206: =VLOOKUP($H206,P_All!$A$5:$V$205,3*($C$8-1)+3) -> 67.185 | K206: =VLOOKUP($H206,P_All!$A$5:$V$205,3*($C$8-1)+4) -> 323.48
... 18 more rows

Sheet P_All
B1: Values shown for constituent selected on PlotControl tab
B2: =PlotControl!$A$15 -> North Beach | E2: =PlotControl!$A$16 -> North Dam | H2: =PlotControl!$A$17 -> East Beach | K2: =PlotControl!$A$18 -> East Dam | N2: =PlotControl!$A$19 -> South Beach | Q2: =PlotControl!$A$20 -> South Dam | T2: =PlotControl!$A$21 -> Closure Beach
B3: Annual Project Results | E3: Annual Project Results | H3: Annual Project Results | K3: Annual Project Results | N3: Annual Project Results | Q3: Annual Project Results | T3: Annual Project Results
A4: Time | B4: P10 | C4: P50 | D4: P90 | E4: P10 | F4: P50 | G4: P90 | H4: P10 | I4: P50 | J4: P90 | K4: P10 | L4: P50 | M4: P90 | N4: P10 | O4: P50 | P4: P90 | Q4: P10 | R4: P50 | S4: P90 | T4: P10 | U4: P50 | V4: P90
A5: 0 | B5: =IF(PlotControl!$B$4 = "Annual Max",MAX(OFFSET(Nbeach!$C$10,12*$A5,4*(PlotControl!$C$6-1),12,1)),AVERAGE(OFFSET(Nbeach!$C$10,12*$A5,4*(PlotControl!$C$6-1),12,1))) -> 28.738 | C5: =IF(PlotControl!$B$4 = "Annual Max",MAX(OFFSET(Nbeach!$D$10,12*$A5,4*(PlotControl!$C$6-1),12,1)),AVERAGE(OFFSET(Nbeach!$D$10,12*$A5,4*(PlotControl!$C$6-1),12,1))) -> 38.252 | D5: =IF(PlotControl!$B$4 = "Annual Max",MAX(OFFSET(Nbeach!$E$10,12*$A5,4*(PlotControl!$C$6-1),12,1)),AVERAGE(OFFSET(Nbeach!$E$10,12*$A5,4*(PlotControl!$C$6-1),12,1))) -> 89.509 | E5: =IF(PlotControl!$B$4 = "Annual Max",MAX(OFFSET(Ndam!$C$10,12*$A5,4*(PlotControl!$C$6-1),12,1)),AVERAGE(OFFSET(Ndam!$C$10,12*$A5,4*(PlotControl!$C$6-1),12,1))) -> 16.731 | F5: =IF(PlotControl!$B$4 = "Annual Max",MAX(OFFSET(Ndam!$D$10,12*$A5,4*(PlotControl!$C$6-1),12,1)),AVERAGE(OFFSET(Ndam!$D$10,12*$A5,4*(PlotControl!$C$6-1),12,1))) -> 20.386 | G5: =IF(PlotControl!$B$4 = "Annual Max",MAX(OFFSET(Ndam!$E$10,12*$A5,4*(PlotControl!$C$6-1),12,1)),AVERAGE(OFFSET(Ndam!$E$10,12*$A5,4*(PlotControl!$C$6-1),12,1))) -> 25.526 | H5: =IF(PlotControl!$B$4 = "Annual Max",MAX(OFFSET(Ebeach!$C$10,12*$A5,4*(PlotControl!$C$6-1),12,1)),AVERAGE(OFFSET(Ebeach!$C$10,12*$A5,4*(PlotControl!$C$6-1),12,1))) -> 0 | I5: =IF(PlotControl!$B$4 = "Annual Max",MAX(OFFSET(Ebeach!$D$10,12*$A5,4*(PlotControl!$C$6-1),12,1)),AVERAGE(OFFSET(Ebeach!$D$10,12*$A5,4*(PlotControl!$C$6-1),12,1))) -> 0 | J5: =IF(PlotControl!$B$4 = "Annual Max",MAX(OFFSET(Ebeach!$E$10,12*$A5,4*(PlotControl!$C$6-1),12,1)),AVERAGE(OFFSET(Ebeach!$E$10,12*$A5,4*(PlotControl!$C$6-1),12,1))) -> 0 | K5: =IF(PlotControl!$B$4 = "Annual Max",MAX(OFFSET(Edam!$C$10,12*$A5,4*(PlotControl!$C$6-1),12,1)),AVERAGE(OFFSET(Edam!$C$10,12*$A5,4*(PlotControl!$C$6-1),12,1))) -> 0 | L5: =IF(PlotControl!$B$4 = "Annual Max",MAX(OFFSET(Edam!$D$10,12*$A5,4*(PlotControl!$C$6-1),12,1)),AVERAGE(OFFSET(Edam!$D$10,12*$A5,4*(PlotControl!$C$6-1),12,1))) -> 0 | M5: =IF(PlotControl!$B$4 = "Annual Max",MAX(OFFSET(Edam!$E$10,12*$A5,4*(PlotControl!$C$6-1),12,1)),AVERAGE(OFFSET(Edam!$E$10,12*$A5,4*(PlotControl!$C$6-1),12,1))) -> 0 | N5: =IF(PlotControl!$B$4 = "Annual Max",MAX(OFFSET(Sbeach!$C$10,12*$A5,4*(PlotControl!$C$6-1),12,1)),AVERAGE(OFFSET(Sbeach!$C$10,12*$A5,4*(PlotControl!$C$6-1),12,1))) -> 0 | O5: =IF(PlotControl!$B$4 = "Annual Max",MAX(OFFSET(Sbeach!$D$10,12*$A5,4*(PlotControl!$C$6-1),12,1)),AVERAGE(OFFSET(Sbeach!$D$10,12*$A5,4*(PlotControl!$C$6-1),12,1))) -> 0 | P5: =IF(PlotControl!$B$4 = "Annual Max",MAX(OFFSET(Sbeach!$E$10,12*$A5,4*(PlotControl!$C$6-1),12,1)),AVERAGE(OFFSET(Sbeach!$E$10,12*$A5,4*(PlotControl!$C$6-1),12,1))) -> 0 | Q5: =IF(PlotControl!$B$4 = "Annual Max",MAX(OFFSET(Sdam!$C$10,12*$A5,4*(PlotControl!$C$6-1),12,1)),AVERAGE(OFFSET(Sdam!$C$10,12*$A5,4*(PlotControl!$C$6-1),12,1))) -> 0 | R5: =IF(PlotControl!$B$4 = "Annual Max",MAX(OFFSET(Sdam!$D$10,12*$A5,4*(PlotControl!$C$6-1),12,1)),AVERAGE(OFFSET(Sdam!$D$10,12*$A5,4*(PlotControl!$C$6-1),12,1))) -> 0 | S5: =IF(PlotControl!$B$4 = "Annual Max",MAX(OFFSET(Sdam!$E$10,12*$A5,4*(PlotControl!$C$6-1),12,1)),AVERAGE(OFFSET(Sdam!$E$10,12*$A5,4*(PlotControl!$C$6-1),12,1))) -> 0 | T5: =IF(PlotControl!$B$4 = "Annual Max",MAX(OFFSET(Cbeach!$C$10,12*$A5,4*(PlotControl!$C$6-1),12,1)),AVERAGE(OFFSET(Cbeach!$C$10,12*$A5,4*(PlotControl!$C$6-1),12,1))) -> 0 | U5: =IF(PlotControl!$B$4 = "Annual Max",MAX(OFFSET(Cbeach!$D$10,12*$A5,4*(PlotControl!$C$6-1),12,1)),AVERAGE(OFFSET(Cbeach!$D$10,12*$A5,4*(PlotControl!$C$6-1),12,1))) -> 0 | V5: =IF(PlotControl!$B$4 = "Annual Max",MAX(OFFSET(Cbeach!$E$10,12*$A5,4*(PlotControl!$C$6-1),12,1)),AVERAGE(OFFSET(Cbeach!$E$10,12*$A5,4*(PlotControl!$C$6-1),12,1))) -> 0
A6: 1 | B6: =IF(PlotControl!$B$4 = "Annual Max",MAX(OFFSET(Nbeach!$C$10,12*$A6,4*(PlotControl!$C$6-1),12,1)),AVERAGE(OFFSET(Nbeach!$C$10,12*$A6,4*(PlotControl!$C$6-1),12,1))) -> 36.853 | C6: =IF(PlotControl!$B$4 = "Annual Max",MAX(OFFSET(Nbeach!$D$10,12*$A6,4*(PlotControl!$C$6-1),12,1)),AVERAGE(OFFSET(Nbeach!$D$10,12*$A6,4*(PlotControl!$C$6-1),12,1))) -> 58.398 | D6: =IF(PlotControl!$B$4 = "Annual Max",MAX(OFFSET(Nbeach!$E$10,12*$A6,4*(PlotControl!$C$6-1),12,1)),AVERAGE(OFFSET(Nbeach!$E$10,12*$A6,4*(PlotControl!$C$6-1),12,1))) -> 116.68 | E6: =IF(PlotControl!$B$4 = "Annual Max",MAX(OFFSET(Ndam!$C$10,12*$A6,4*(PlotControl!$C$6-1),12,1)),AVERAGE(OFFSET(Ndam!$C$10,12*$A6,4*(PlotControl!$C$6-1),12,1))) -> 17.797 | F6: =IF(PlotControl!$B$4 = "Annual Max",MAX(OFFSET(Ndam!$D$10,12*$A6,4*(PlotControl!$C$6-1),12,1)),AVERAGE(OFFSET(Ndam!$D$10,12*$A6,4*(PlotControl!$C$6-1),12,1))) -> 21.69 | G6: =IF(PlotControl!$B$4 = "Annual Max",MAX(OFFSET(Ndam!$E$10,12*$A6,4*(PlotControl!$C$6-1),12,1)),AVERAGE(OFFSET(Ndam!$E$10,12*$A6,4*(PlotControl!$C$6-1),12,1))) -> 27.307 | H6: =IF(PlotControl!$B$4 = "Annual Max",MAX(OFFSET(Ebeach!$C$10,12*$A6,4*(PlotControl!$C$6-1),12,1)),AVERAGE(OFFSET(Ebeach!$C$10,12*$A6,4*(PlotControl!$C$6-1),12,1))) -> 0 | I6: =IF(PlotControl!$B$4 = "Annual Max",MAX(OFFSET(Ebeach!$D$10,12*$A6,4*(PlotControl!$C$6-1),12,1)),AVERAGE(OFFSET(Ebeach!$D$10,12*$A6,4*(PlotControl!$C$6-1),12,1))) -> 0 | J6: =IF(PlotControl!$B$4 = "Annual Max",MAX(OFFSET(Ebeach!$E$10,12*$A6,4*(PlotControl!$C$6-1),12,1)),AVERAGE(OFFSET(Ebeach!$E$10,12*$A6,4*(PlotControl!$C$6-1),12,1))) -> 0 | K6: =IF(PlotControl!$B$4 = "Annual Max",MAX(OFFSET(Edam!$C$10,12*$A6,4*(PlotControl!$C$6-1),12,1)),AVERAGE(OFFSET(Edam!$C$10,12*$A6,4*(PlotControl!$C$6-1),12,1))) -> 0 | L6: =IF(PlotControl!$B$4 = "Annual Max",MAX(OFFSET(Edam!$D$10,12*$A6,4*(PlotControl!$C$6-1),12,1)),AVERAGE(OFFSET(Edam!$D$10,12*$A6,4*(PlotControl!$C$6-1),12,1))) -> 0 | M6: =IF(PlotControl!$B$4 = "Annual Max",MAX(OFFSET(Edam!$E$10,12*$A6,4*(PlotControl!$C$6-1),12,1)),AVERAGE(OFFSET(Edam!$E$10,12*$A6,4*(PlotControl!$C$6-1),12,1))) -> 0 | N6: =IF(PlotControl!$B$4 = "Annual Max",MAX(OFFSET(Sbeach!$C$10,12*$A6,4*(PlotControl!$C$6-1),12,1)),AVERAGE(OFFSET(Sbeach!$C$10,12*$A6,4*(PlotControl!$C$6-1),12,1))) -> 0 | O6: =IF(PlotControl!$B$4 = "Annual Max",MAX(OFFSET(Sbeach!$D$10,12*$A6,4*(PlotControl!$C$6-1),12,1)),AVERAGE(OFFSET(Sbeach!$D$10,12*$A6,4*(PlotControl!$C$6-1),12,1))) -> 0 | P6: =IF(PlotControl!$B$4 = "Annual Max",MAX(OFFSET(Sbeach!$E$10,12*$A6,4*(PlotControl!$C$6-1),12,1)),AVERAGE(OFFSET(Sbeach!$E$10,12*$A6,4*(PlotControl!$C$6-1),12,1))) -> 0 | Q6: =IF(PlotControl!$B$4 = "Annual Max",MAX(OFFSET(Sdam!$C$10,12*$A6,4*(PlotControl!$C$6-1),12,1)),AVERAGE(OFFSET(Sdam!$C$10,12*$A6,4*(PlotControl!$C$6-1),12,1))) -> 0 | R6: =IF(PlotControl!$B$4 = "Annual Max",MAX(OFFSET(Sdam!$D$10,12*$A6,4*(PlotControl!$C$6-1),12,1)),AVERAGE(OFFSET(Sdam!$D$10,12*$A6,4*(PlotControl!$C$6-1),12,1))) -> 0 | S6: =IF(PlotControl!$B$4 = "Annual Max",MAX(OFFSET(Sdam!$E$10,12*$A6,4*(PlotControl!$C$6-1),12,1)),AVERAGE(OFFSET(Sdam!$E$10,12*$A6,4*(PlotControl!$C$6-1),12,1))) -> 0 | T6: =IF(PlotControl!$B$4 = "Annual Max",MAX(OFFSET(Cbeach!$C$10,12*$A6,4*(PlotControl!$C$6-1),12,1)),AVERAGE(OFFSET(Cbeach!$C$10,12*$A6,4*(PlotControl!$C$6-1),12,1))) -> 0 | U6: =IF(PlotControl!$B$4 = "Annual Max",MAX(OFFSET(Cbeach!$D$10,12*$A6,4*(PlotControl!$C$6-1),12,1)),AVERAGE(OFFSET(Cbeach!$D$10,12*$A6,4*(PlotControl!$C$6-1),12,1))) -> 0 | V6: =IF(PlotControl!$B$4 = "Annual Max",MAX(OFFSET(Cbeach!$E$10,12*$A6,4*(PlotControl!$C$6-1),12,1)),AVERAGE(OFFSET(Cbeach!$E$10,12*$A6,4*(PlotControl!$C$6-1),12,1))) -> 0
A7: 2 | B7: =IF(PlotControl!$B$4 = "Annual Max",MAX(OFFSET(Nbeach!$C$10,12*$A7,4*(PlotControl!$C$6-1),12,1)),AVERAGE(OFFSET(Nbeach!$C$10,12*$A7,4*(PlotControl!$C$6-1),12,1))) -> 39.215 | C7: =IF(PlotControl!$B$4 = "Annual Max",MAX(OFFSET(Nbeach!$D$10,12*$A7,4*(PlotControl!$C$6-1),12,1)),AVERAGE(OFFSET(Nbeach!$D$10,12*$A7,4*(PlotControl!$C$6-1),12,1))) -> 69.176 | D7: =IF(PlotControl!$B$4 = "Annual Max",MAX(OFFSET(Nbeach!$E$10,12*$A7,4*(PlotControl!$C$6-1),12,1)),AVERAGE(OFFSET(Nbeach!$E$10,12*$A7,4*(PlotControl!$C$6-1),12,1))) -> 143.41 | E7: =IF(PlotControl!$B$4 = "Annual Max",MAX(OFFSET(Ndam!$C$10,12*$A7,4*(PlotControl!$C$6-1),12,1)),AVERAGE(OFFSET(Ndam!$C$10,12*$A7,4*(PlotControl!$C$6-1),12,1))) -> 12.287 | F7: =IF(PlotControl!$B$4 = "Annual Max",MAX(OFFSET(Ndam!$D$10,12*$A7,4*(PlotControl!$C$6-1),12,1)),AVERAGE(OFFSET(Ndam!$D$10,12*$A7,4*(PlotControl!$C$6-1),12,1))) -> 15.43 | G7: =IF(PlotControl!$B$4 = "Annual Max",MAX(OFFSET(Ndam!$E$10,12*$A7,4*(PlotControl!$C$6-1),12,1)),AVERAGE(OFFSET(Ndam!$E$10,12*$A7,4*(PlotControl!$C$6-1),12,1))) -> 19.291 | H7: =IF(PlotControl!$B$4 = "Annual Max",MAX(OFFSET(Ebeach!$C$10,12*$A7,4*(PlotControl!$C$6-1),12,1)),AVERAGE(OFFSET(Ebeach!$C$10,12*$A7,4*(PlotControl!$C$6-1),12,1))) -> 0 | I7: =IF(PlotControl!$B$4 = "Annual Max",MAX(OFFSET(Ebeach!$D$10,12*$A7,4*(PlotControl!$C$6-1),12,1)),AVERAGE(OFFSET(Ebeach!$D$10,12*$A7,4*(PlotControl!$C$6-1),12,1))) -> 0 | J7: =IF(PlotControl!$B$4 = "Annual Max",MAX(OFFSET(Ebeach!$E$10,12*$A7,4*(PlotControl!$C$6-1),12,1)),AVERAGE(OFFSET(Ebeach!$E$10,12*$A7,4*(PlotControl!$C$6-1),12,1))) -> 0 | K7: =IF(PlotControl!$B$4 = "Annual Max",MAX(OFFSET(Edam!$C$10,12*$A7,4*(PlotControl!$C$6-1),12,1)),AVERAGE(OFFSET(Edam!$C$10,12*$A7,4*(PlotControl!$C$6-1),12,1))) -> 0 | L7: =IF(PlotControl!$B$4 = "Annual Max",MAX(OFFSET(Edam!$D$10,12*$A7,4*(PlotControl!$C$6-1),12,1)),AVERAGE(OFFSET(Edam!$D$10,12*$A7,4*(PlotControl!$C$6-1),12,1))) -> 0 | M7: =IF(PlotControl!$B$4 = "Annual Max",MAX(OFFSET(Edam!$E$10,12*$A7,4*(PlotControl!$C$6-1),12,1)),AVERAGE(OFFSET(Edam!$E$10,12*$A7,4*(PlotControl!$C$6-1),12,1))) -> 0 | N7: =IF(PlotControl!$B$4 = "Annual Max",MAX(OFFSET(Sbeach!$C$10,12*$A7,4*(PlotControl!$C$6-1),12,1)),AVERAGE(OFFSET(Sbeach!$C$10,12*$A7,4*(PlotControl!$C$6-1),12,1))) -> 0 | O7: =IF(PlotControl!$B$4 = "Annual Max",MAX(OFFSET(Sbeach!$D$10,12*$A7,4*(PlotControl!$C$6-1),12,1)),AVERAGE(OFFSET(Sbeach!$D$10,12*$A7,4*(PlotControl!$C$6-1),12,1))) -> 0 | P7: =IF(PlotControl!$B$4 = "Annual Max",MAX(OFFSET(Sbeach!$E$10,12*$A7,4*(PlotControl!$C$6-1),12,1)),AVERAGE(OFFSET(Sbeach!$E$10,12*$A7,4*(PlotControl!$C$6-1),12,1))) -> 0 | Q7: =IF(PlotControl!$B$4 = "Annual Max",MAX(OFFSET(Sdam!$C$10,12*$A7,4*(PlotControl!$C$6-1),12,1)),AVERAGE(OFFSET(Sdam!$C$10,12*$A7,4*(PlotControl!$C$6-1),12,1))) -> 0 | R7: =IF(PlotControl!$B$4 = "Annual Max",MAX(OFFSET(Sdam!$D$10,12*$A7,4*(PlotControl!$C$6-1),12,1)),AVERAGE(OFFSET(Sdam!$D$10,12*$A7,4*(PlotControl!$C$6-1),12,1))) -> 0 | S7: =IF(PlotControl!$B$4 = "Annual Max",MAX(OFFSET(Sdam!$E$10,12*$A7,4*(PlotControl!$C$6-1),12,1)),AVERAGE(OFFSET(Sdam!$E$10,12*$A7,4*(PlotControl!$C$6-1),12,1))) -> 0 | T7: =IF(PlotControl!$B$4 = "Annual Max",MAX(OFFSET(Cbeach!$C$10,12*$A7,4*(PlotControl!$C$6-1),12,1)),AVERAGE(OFFSET(Cbeach!$C$10,12*$A7,4*(PlotControl!$C$6-1),12,1))) -> 0 | U7: =IF(PlotControl!$B$4 = "Annual Max",MAX(OFFSET(Cbeach!$D$10,12*$A7,4*(PlotControl!$C$6-1),12,1)),AVERAGE(OFFSET(Cbeach!$D$10,12*$A7,4*(PlotControl!$C$6-1),12,1))) -> 0 | V7: =IF(PlotControl!$B$4 = "Annual Max",MAX(OFFSET(Cbeach!$E$10,12*$A7,4*(PlotControl!$C$6-1),12,1)),AVERAGE(OFFSET(Cbeach!$E$10,12*$A7,4*(PlotControl!$C$6-1),12,1))) -> 0
A8: 3 | B8: =IF(PlotControl!$B$4 = "Annual Max",MAX(OFFSET(Nbeach!$C$10,12*$A8,4*(PlotControl!$C$6-1),12,1)),AVERAGE(OFFSET(Nbeach!$C$10,12*$A8,4*(PlotControl!$C$6-1),12,1))) -> 41.171 | C8: =IF(PlotControl!$B$4 = "Annual Max",MAX(OFFSET(Nbeach!$D$10,12*$A8,4*(PlotControl!$C$6-1),12,1)),AVERAGE(OFFSET(Nbeach!$D$10,12*$A8,4*(PlotControl!$C$6-1),12,1))) -> 76.642 | D8: =IF(PlotControl!$B$4 = "Annual Max",MAX(OFFSET(Nbeach!$E$10,12*$A8,4*(PlotControl!$C$6-1),12,1)),AVERAGE(OFFSET(Nbeach!$E$10,12*$A8,4*(PlotControl!$C$6-1),12,1))) -> 153.47 | E8: =IF(PlotControl!$B$4 = "Annual Max",MAX(OFFSET(Ndam!$C$10,12*$A8,4*(PlotControl!$C$6-1),12,1)),AVERAGE(OFFSET(Ndam!$C$10,12*$A8,4*(PlotControl!$C$6-1),12,1))) -> 8.7957 | F8: =IF(PlotControl!$B$4 = "Annual Max",MAX(OFFSET(Ndam!$D$10,12*$A8,4*(PlotControl!$C$6-1),12,1)),AVERAGE(OFFSET(Ndam!$D$10,12*$A8,4*(PlotControl!$C$6-1),12,1))) -> 10.506 | G8: =IF(PlotControl!$B$4 = "Annual Max",MAX(OFFSET(Ndam!$E$10,12*$A8,4*(PlotControl!$C$6-1),12,1)),AVERAGE(OFFSET(Ndam!$E$10,12*$A8,4*(PlotControl!$C$6-1),12,1))) -> 13.173 | H8: =IF(PlotControl!$B$4 = "Annual Max",MAX(OFFSET(Ebeach!$C$10,12*$A8,4*(PlotControl!$C$6-1),12,1)),AVERAGE(OFFSET(Ebeach!$C$10,12*$A8,4*(PlotControl!$C$6-1),12,1))) -> 0 | I8: =IF(PlotControl!$B$4 = "Annual Max",MAX(OFFSET(Ebeach!$D$10,12*$A8,4*(PlotControl!$C$6-1),12,1)),AVERAGE(OFFSET(Ebeach!$D$10,12*$A8,4*(PlotControl!$C$6-1),12,1))) -> 0 | J8: =IF(PlotControl!$B$4 = "Annual Max",MAX(OFFSET(Ebeach!$E$10,12*$A8,4*(PlotControl!$C$6-1),12,1)),AVERAGE(OFFSET(Ebeach!$E$10,12*$A8,4*(PlotControl!$C$6-1),12,1))) -> 0 | K8: =IF(PlotControl!$B$4 = "Annual Max",MAX(OFFSET(Edam!$C$10,12*$A8,4*(PlotControl!$C$6-1),12,1)),AVERAGE(OFFSET(Edam!$C$10,12*$A8,4*(PlotControl!$C$6-1),12,1))) -> 0 | L8: =IF(PlotControl!$B$4 = "Annual Max",MAX(OFFSET(Edam!$D$10,12*$A8,4*(PlotControl!$C$6-1),12,1)),AVERAGE(OFFSET(Edam!$D$10,12*$A8,4*(PlotControl!$C$6-1),12,1))) -> 0 | M8: =IF(PlotControl!$B$4 = "Annual Max",MAX(OFFSET(Edam!$E$10,12*$A8,4*(PlotControl!$C$6-1),12,1)),AVERAGE(OFFSET(Edam!$E$10,12*$A8,4*(PlotControl!$C$6-1),12,1))) -> 0 | N8: =IF(PlotControl!$B$4 = "Annual Max",MAX(OFFSET(Sbeach!$C$10,12*$A8,4*(PlotControl!$C$6-1),12,1)),AVERAGE(OFFSET(Sbeach!$C$10,12*$A8,4*(PlotControl!$C$6-1),12,1))) -> 0 | O8: =IF(PlotControl!$B$4 = "Annual Max",MAX(OFFSET(Sbeach!$D$10,12*$A8,4*(PlotControl!$C$6-1),12,1)),AVERAGE(OFFSET(Sbeach!$D$10,12*$A8,4*(PlotControl!$C$6-1),12,1))) -> 0 | P8: =IF(PlotControl!$B$4 = "Annual Max",MAX(OFFSET(Sbeach!$E$10,12*$A8,4*(PlotControl!$C$6-1),12,1)),AVERAGE(OFFSET(Sbeach!$E$10,12*$A8,4*(PlotControl!$C$6-1),12,1))) -> 0 | Q8: =IF(PlotControl!$B$4 = "Annual Max",MAX(OFFSET(Sdam!$C$10,12*$A8,4*(PlotControl!$C$6-1),12,1)),AVERAGE(OFFSET(Sdam!$C$10,12*$A8,4*(PlotControl!$C$6-1),12,1))) -> 0 | R8: =IF(PlotControl!$B$4 = "Annual Max",MAX(OFFSET(Sdam!$D$10,12*$A8,4*(PlotControl!$C$6-1),12,1)),AVERAGE(OFFSET(Sdam!$D$10,12*$A8,4*(PlotControl!$C$6-1),12,1))) -> 0 | S8: =IF(PlotControl!$B$4 = "Annual Max",MAX(OFFSET(Sdam!$E$10,12*$A8,4*(PlotControl!$C$6-1),12,1)),AVERAGE(OFFSET(Sdam!$E$10,12*$A8,4*(PlotControl!$C$6-1),12,1))) -> 0 | T8: =IF(PlotControl!$B$4 = "Annual Max",MAX(OFFSET(Cbeach!$C$10,12*$A8,4*(PlotControl!$C$6-1),12,1)),AVERAGE(OFFSET(Cbeach!$C$10,12*$A8,4*(PlotControl!$C$6-1),12,1))) -> 0 | U8: =IF(PlotControl!$B$4 = "Annual Max",MAX(OFFSET(Cbeach!$D$10,12*$A8,4*(PlotControl!$C$6-1),12,1)),AVERAGE(OFFSET(Cbeach!$D$10,12*$A8,4*(PlotControl!$C$6-1),12,1))) -> 0 | V8: =IF(PlotControl!$B$4 = "Annual Max",MAX(OFFSET(Cbeach!$E$10,12*$A8,4*(PlotControl!$C$6-1),12,1)),AVERAGE(OFFSET(Cbeach!$E$10,12*$A8,4*(PlotControl!$C$6-1),12,1))) -> 0
A9: 4 | B9: =IF(PlotControl!$B$4 = "Annual Max",MAX(OFFSET(Nbeach!$C$10,12*$A9,4*(PlotControl!$C$6-1),12,1)),AVERAGE(OFFSET(Nbeach!$C$10,12*$A9,4*(PlotControl!$C$6-1),12,1))) -> 41.661 | C9: =IF(PlotControl!$B$4 = "Annual Max",MAX(OFFSET(Nbeach!$D$10,12*$A9,4*(PlotControl!$C$6-1),12,1)),AVERAGE(OFFSET(Nbeach!$D$10,12*$A9,4*(PlotControl!$C$6-1),12,1))) -> 77.425 | D9: =IF(PlotControl!$B$4 = "Annual Max",MAX(OFFSET(Nbeach!$E$10,12*$A9,4*(PlotControl!$C$6-1),12,1)),AVERAGE(OFFSET(Nbeach!$E$10,12*$A9,4*(PlotControl!$C$6-1),12,1))) -> 169.97 | E9: =IF(PlotControl!$B$4 = "Annual Max",MAX(OFFSET(Ndam!$C$10,12*$A9,4*(PlotControl!$C$6-1),12,1)),AVERAGE(OFFSET(Ndam!$C$10,12*$A9,4*(PlotControl!$C$6-1),12,1))) -> 6.5658 | F9: =IF(PlotControl!$B$4 = "Annual Max",MAX(OFFSET(Ndam!$D$10,12*$A9,4*(PlotControl!$C$6-1),12,1)),AVERAGE(OFFSET(Ndam!$D$10,12*$A9,4*(PlotControl!$C$6-1),12,1))) -> 7.8431 | G9: =IF(PlotControl!$B$4 = "Annual Max",MAX(OFFSET(Ndam!$E$10,12*$A9,4*(PlotControl!$C$6-1),12,1)),AVERAGE(OFFSET(Ndam!$E$10,12*$A9,4*(PlotControl!$C$6-1),12,1))) -> 9.6149 | H9: =IF(PlotControl!$B$4 = "Annual Max",MAX(OFFSET(Ebeach!$C$10,12*$A9,4*(PlotControl!$C$6-1),12,1)),AVERAGE(OFFSET(Ebeach!$C$10,12*$A9,4*(PlotControl!$C$6-1),12,1))) -> 0 | I9: =IF(PlotControl!$B$4 = "Annual Max",MAX(OFFSET(Ebeach!$D$10,12*$A9,4*(PlotControl!$C$6-1),12,1)),AVERAGE(OFFSET(Ebeach!$D$10,12*$A9,4*(PlotControl!$C$6-1),12,1))) -> 0 | J9: =IF(PlotControl!$B$4 = "Annual Max",MAX(OFFSET(Ebeach!$E$10,12*$A9,4*(PlotControl!$C$6-1),12,1)),AVERAGE(OFFSET(Ebeach!$E$10,12*$A9,4*(PlotControl!$C$6-1),12,1))) -> 0 | K9: =IF(PlotControl!$B$4 = "Annual Max",MAX(OFFSET(Edam!$C$10,12*$A9,4*(PlotControl!$C$6-1),12,1)),AVERAGE(OFFSET(Edam!$C$10,12*$A9,4*(PlotControl!$C$6-1),12,1))) -> 0 | L9: =IF(PlotControl!$B$4 = "Annual Max",MAX(OFFSET(Edam!$D$10,12*$A9,4*(PlotControl!$C$6-1),12,1)),AVERAGE(OFFSET(Edam!$D$10,12*$A9,4*(PlotControl!$C$6-1),12,1))) -> 0 | M9: =IF(PlotControl!$B$4 = "Annual Max",MAX(OFFSET(Edam!$E$10,12*$A9,4*(PlotControl!$C$6-1),12,1)),AVERAGE(OFFSET(Edam!$E$10,12*$A9,4*(PlotControl!$C$6-1),12,1))) -> 0 | N9: =IF(PlotControl!$B$4 = "Annual Max",MAX(OFFSET(Sbeach!$C$10,12*$A9,4*(PlotControl!$C$6-1),12,1)),AVERAGE(OFFSET(Sbeach!$C$10,12*$A9,4*(PlotControl!$C$6-1),12,1))) -> 0 | O9: =IF(PlotControl!$B$4 = "Annual Max",MAX(OFFSET(Sbeach!$D$10,12*$A9,4*(PlotControl!$C$6-1),12,1)),AVERAGE(OFFSET(Sbeach!$D$10,12*$A9,4*(PlotControl!$C$6-1),12,1))) -> 0 | P9: =IF(PlotControl!$B$4 = "Annual Max",MAX(OFFSET(Sbeach!$E$10,12*$A9,4*(PlotControl!$C$6-1),12,1)),AVERAGE(OFFSET(Sbeach!$E$10,12*$A9,4*(PlotControl!$C$6-1),12,1))) -> 0 | Q9: =IF(PlotControl!$B$4 = "Annual Max",MAX(OFFSET(Sdam!$C$10,12*$A9,4*(PlotControl!$C$6-1),12,1)),AVERAGE(OFFSET(Sdam!$C$10,12*$A9,4*(PlotControl!$C$6-1),12,1))) -> 0 | R9: =IF(PlotControl!$B$4 = "Annual Max",MAX(OFFSET(Sdam!$D$10,12*$A9,4*(PlotControl!$C$6-1),12,1)),AVERAGE(OFFSET(Sdam!$D$10,12*$A9,4*(PlotControl!$C$6-1),12,1))) -> 0 | S9: =IF(PlotControl!$B$4 = "Annual Max",MAX(OFFSET(Sdam!$E$10,12*$A9,4*(PlotControl!$C$6-1),12,1)),AVERAGE(OFFSET(Sdam!$E$10,12*$A9,4*(PlotControl!$C$6-1),12,1))) -> 0 | T9: =IF(PlotControl!$B$4 = "Annual Max",MAX(OFFSET(Cbeach!$C$10,12*$A9,4*(PlotControl!$C$6-1),12,1)),AVERAGE(OFFSET(Cbeach!$C$10,12*$A9,4*(PlotControl!$C$6-1),12,1))) -> 0 | U9: =IF(PlotControl!$B$4 = "Annual Max",MAX(OFFSET(Cbeach!$D$10,12*$A9,4*(PlotControl!$C$6-1),12,1)),AVERAGE(OFFSET(Cbeach!$D$10,12*$A9,4*(PlotControl!$C$6-1),12,1))) -> 0 | V9: =IF(PlotControl!$B$4 = "Annual Max",MAX(OFFSET(Cbeach!$E$10,12*$A9,4*(PlotControl!$C$6-1),12,1)),AVERAGE(OFFSET(Cbeach!$E$10,12*$A9,4*(PlotControl!$C$6-1),12,1))) -> 0
A10: 5 | B10: =IF(PlotControl!$B$4 = "Annual Max",MAX(OFFSET(Nbeach!$C$10,12*$A10,4*(PlotControl!$C$6-1),12,1)),AVERAGE(OFFSET(Nbeach!$C$10,12*$A10,4*(PlotControl!$C$6-1),12,1))) -> 42.069 | C10: =IF(PlotControl!$B$4 = "Annual Max",MAX(OFFSET(Nbeach!$D$10,12*$A10,4*(PlotControl!$C$6-1),12,1)),AVERAGE(OFFSET(Nbeach!$D$10,12*$A10,4*(PlotControl!$C$6-1),12,1))) -> 82.676 | D10: =IF(PlotControl!$B$4 = "Annual Max",MAX(OFFSET(Nbeach!$E$10,12*$A10,4*(PlotControl!$C$6-1),12,1)),AVERAGE(OFFSET(Nbeach!$E$10,12*$A10,4*(PlotControl!$C$6-1),12,1))) -> 183.29 | E10: =IF(PlotControl!$B$4 = "Annual Max",MAX(OFFSET(Ndam!$C$10,12*$A10,4*(PlotControl!$C$6-1),12,1)),AVERAGE(OFFSET(Ndam!$C$10,12*$A10,4*(PlotControl!$C$6-1),12,1))) -> 5.5094 | F10: =IF(PlotControl!$B$4 = "Annual Max",MAX(OFFSET(Ndam!$D$10,12*$A10,4*(PlotControl!$C$6-1),12,1)),AVERAGE(OFFSET(Ndam!$D$10,12*$A10,4*(PlotControl!$C$6-1),12,1))) -> 6.4854 | G10: =IF(PlotControl!$B$4 = "Annual Max",MAX(OFFSET(Ndam!$E$10,12*$A10,4*(PlotControl!$C$6-1),12,1)),AVERAGE(OFFSET(Ndam!$E$10,12*$A10,4*(PlotControl!$C$6-1),12,1))) -> 7.8956 | H10: =IF(PlotControl!$B$4 = "Annual Max",MAX(OFFSET(Ebeach!$C$10,12*$A10,4*(PlotControl!$C$6-1),12,1)),AVERAGE(OFFSET(Ebeach!$C$10,12*$A10,4*(PlotControl!$C$6-1),12,1))) -> 0 | I10: =IF(PlotControl!$B$4 = "Annual Max",MAX(OFFSET(Ebeach!$D$10,12*$A10,4*(PlotControl!$C$6-1),12,1)),AVERAGE(OFFSET(Ebeach!$D$10,12*$A10,4*(PlotControl!$C$6-1),12,1))) -> 0 | J10: =IF(PlotControl!$B$4 = "Annual Max",MAX(OFFSET(Ebeach!$E$10,12*$A10,4*(PlotControl!$C$6-1),12,1)),AVERAGE(OFFSET(Ebeach!$E$10,12*$A10,4*(PlotControl!$C$6-1),12,1))) -> 0 | K10: =IF(PlotControl!$B$4 = "Annual Max",MAX(OFFSET(Edam!$C$10,12*$A10,4*(PlotControl!$C$6-1),12,1)),AVERAGE(OFFSET(Edam!$C$10,12*$A10,4*(PlotControl!$C$6-1),12,1))) -> 0 | L10: =IF(PlotControl!$B$4 = "Annual Max",MAX(OFFSET(Edam!$D$10,12*$A10,4*(PlotControl!$C$6-1),12,1)),AVERAGE(OFFSET(Edam!$D$10,12*$A10,4*(PlotControl!$C$6-1),12,1))) -> 0 | M10: =IF(PlotControl!$B$4 = "Annual Max",MAX(OFFSET(Edam!$E$10,12*$A10,4*(PlotControl!$C$6-1),12,1)),AVERAGE(OFFSET(Edam!$E$10,12*$A10,4*(PlotControl!$C$6-1),12,1))) -> 0 | N10: =IF(PlotControl!$B$4 = "Annual Max",MAX(OFFSET(Sbeach!$C$10,12*$A10,4*(PlotControl!$C$6-1),12,1)),AVERAGE(OFFSET(Sbeach!$C$10,12*$A10,4*(PlotControl!$C$6-1),12,1))) -> 0 | O10: =IF(PlotControl!$B$4 = "Annual Max",MAX(OFFSET(Sbeach!$D$10,12*$A10,4*(PlotControl!$C$6-1),12,1)),AVERAGE(OFFSET(Sbeach!$D$10,12*$A10,4*(PlotControl!$C$6-1),12,1))) -> 0 | P10: =IF(PlotControl!$B$4 = "Annual Max",MAX(OFFSET(Sbeach!$E$10,12*$A10,4*(PlotControl!$C$6-1),12,1)),AVERAGE(OFFSET(Sbeach!$E$10,12*$A10,4*(PlotControl!$C$6-1),12,1))) -> 0 | Q10: =IF(PlotControl!$B$4 = "Annual Max",MAX(OFFSET(Sdam!$C$10,12*$A10,4*(PlotControl!$C$6-1),12,1)),AVERAGE(OFFSET(Sdam!$C$10,12*$A10,4*(PlotControl!$C$6-1),12,1))) -> 0 | R10: =IF(PlotControl!$B$4 = "Annual Max",MAX(OFFSET(Sdam!$D$10,12*$A10,4*(PlotControl!$C$6-1),12,1)),AVERAGE(OFFSET(Sdam!$D$10,12*$A10,4*(PlotControl!$C$6-1),12,1))) -> 0 | S10: =IF(PlotControl!$B$4 = "Annual Max",MAX(OFFSET(Sdam!$E$10,12*$A10,4*(PlotControl!$C$6-1),12,1)),AVERAGE(OFFSET(Sdam!$E$10,12*$A10,4*(PlotControl!$C$6-1),12,1))) -> 0 | T10: =IF(PlotControl!$B$4 = "Annual Max",MAX(OFFSET(Cbeach!$C$10,12*$A10,4*(PlotControl!$C$6-1),12,1)),AVERAGE(OFFSET(Cbeach!$C$10,12*$A10,4*(PlotControl!$C$6-1),12,1))) -> 0 | U10: =IF(PlotControl!$B$4 = "Annual Max",MAX(OFFSET(Cbeach!$D$10,12*$A10,4*(PlotControl!$C$6-1),12,1)),AVERAGE(OFFSET(Cbeach!$D$10,12*$A10,4*(PlotControl!$C$6-1),12,1))) -> 0 | V10: =IF(PlotControl!$B$4 = "Annual Max",MAX(OFFSET(Cbeach!$E$10,12*$A10,4*(PlotControl!$C$6-1),12,1)),AVERAGE(OFFSET(Cbeach!$E$10,12*$A10,4*(PlotControl!$C$6-1),12,1))) -> 0
A11: 6 | B11: =IF(PlotControl!$B$4 = "Annual Max",MAX(OFFSET(Nbeach!$C$10,12*$A11,4*(PlotControl!$C$6-1),12,1)),AVERAGE(OFFSET(Nbeach!$C$10,12*$A11,4*(PlotControl!$C$6-1),12,1))) -> 46.337 | C11: =IF(PlotControl!$B$4 = "Annual Max",MAX(OFFSET(Nbeach!$D$10,12*$A11,4*(PlotControl!$C$6-1),12,1)),AVERAGE(OFFSET(Nbeach!$D$10,12*$A11,4*(PlotControl!$C$6-1),12,1))) -> 84.81 | D11: =IF(PlotControl!$B$4 = "Annual Max",MAX(OFFSET(Nbeach!$E$10,12*$A11,4*(PlotControl!$C$6-1),12,1)),AVERAGE(OFFSET(Nbeach!$E$10,12*$A11,4*(PlotControl!$C$6-1),12,1))) -> 195.71 | E11: =IF(PlotControl!$B$4 = "Annual Max",MAX(OFFSET(Ndam!$C$10,12*$A11,4*(PlotControl!$C$6-1),12,1)),AVERAGE(OFFSET(Ndam!$C$10,12*$A11,4*(PlotControl!$C$6-1),12,1))) -> 4.8593 | F11: =IF(PlotControl!$B$4 = "Annual Max",MAX(OFFSET(Ndam!$D$10,12*$A11,4*(PlotControl!$C$6-1),12,1)),AVERAGE(OFFSET(Ndam!$D$10,12*$A11,4*(PlotControl!$C$6-1),12,1))) -> 5.7888 | G11: =IF(PlotControl!$B$4 = "Annual Max",MAX(OFFSET(Ndam!$E$10,12*$A11,4*(PlotControl!$C$6-1),12,1)),AVERAGE(OFFSET(Ndam!$E$10,12*$A11,4*(PlotControl!$C$6-1),12,1))) -> 6.9596 | H11: =IF(PlotControl!$B$4 = "Annual Max",MAX(OFFSET(Ebeach!$C$10,12*$A11,4*(PlotControl!$C$6-1),12,1)),AVERAGE(OFFSET(Ebeach!$C$10,12*$A11,4*(PlotControl!$C$6-1),12,1))) -> 0 | I11: =IF(PlotControl!$B$4 = "Annual Max",MAX(OFFSET(Ebeach!$D$10,12*$A11,4*(PlotControl!$C$6-1),12,1)),AVERAGE(OFFSET(Ebeach!$D$10,12*$A11,4*(PlotControl!$C$6-1),12,1))) -> 0 | J11: =IF(PlotControl!$B$4 = "Annual Max",MAX(OFFSET(Ebeach!$E$10,12*$A11,4*(PlotControl!$C$6-1),12,1)),AVERAGE(OFFSET(Ebeach!$E$10,12*$A11,4*(PlotControl!$C$6-1),12,1))) -> 0 | K11: =IF(PlotControl!$B$4 = "Annual Max",MAX(OFFSET(Edam!$C$10,12*$A11,4*(PlotControl!$C$6-1),12,1)),AVERAGE(OFFSET(Edam!$C$10,12*$A11,4*(PlotControl!$C$6-1),12,1))) -> 0 | L11: =IF(PlotControl!$B$4 = "Annual Max",MAX(OFFSET(Edam!$D$10,12*$A11,4*(PlotControl!$C$6-1),12,1)),AVERAGE(OFFSET(Edam!$D$10,12*$A11,4*(PlotControl!$C$6-1),12,1))) -> 0 | M11: =IF(PlotControl!$B$4 = "Annual Max",MAX(OFFSET(Edam!$E$10,12*$A11,4*(PlotControl!$C$6-1),12,1)),AVERAGE(OFFSET(Edam!$E$10,12*$A11,4*(PlotControl!$C$6-1),12,1))) -> 0 | N11: =IF(PlotControl!$B$4 = "Annual Max",MAX(OFFSET(Sbeach!$C$10,12*$A11,4*(PlotControl!$C$6-1),12,1)),AVERAGE(OFFSET(Sbeach!$C$10,12*$A11,4*(PlotControl!$C$6-1),12,1))) -> 0 | O11: =IF(PlotControl!$B$4 = "Annual Max",MAX(OFFSET(Sbeach!$D$10,12*$A11,4*(PlotControl!$C$6-1),12,1)),AVERAGE(OFFSET(Sbeach!$D$10,12*$A11,4*(PlotControl!$C$6-1),12,1))) -> 0 | P11: =IF(PlotControl!$B$4 = "Annual Max",MAX(OFFSET(Sbeach!$E$10,12*$A11,4*(PlotControl!$C$6-1),12,1)),AVERAGE(OFFSET(Sbeach!$E$10,12*$A11,4*(PlotControl!$C$6-1),12,1))) -> 0 | Q11: =IF(PlotControl!$B$4 = "Annual Max",MAX(OFFSET(Sdam!$C$10,12*$A11,4*(PlotControl!$C$6-1),12,1)),AVERAGE(OFFSET(Sdam!$C$10,12*$A11,4*(PlotControl!$C$6-1),12,1))) -> 0 | R11: =IF(PlotControl!$B$4 = "Annual Max",MAX(OFFSET(Sdam!$D$10,12*$A11,4*(PlotControl!$C$6-1),12,1)),AVERAGE(OFFSET(Sdam!$D$10,12*$A11,4*(PlotControl!$C$6-1),12,1))) -> 0 | S11: =IF(PlotControl!$B$4 = "Annual Max",MAX(OFFSET(Sdam!$E$10,12*$A11,4*(PlotControl!$C$6-1),12,1)),AVERAGE(OFFSET(Sdam!$E$10,12*$A11,4*(PlotControl!$C$6-1),12,1))) -> 0 | T11: =IF(PlotControl!$B$4 = "Annual Max",MAX(OFFSET(Cbeach!$C$10,12*$A11,4*(PlotControl!$C$6-1),12,1)),AVERAGE(OFFSET(Cbeach!$C$10,12*$A11,4*(PlotControl!$C$6-1),12,1))) -> 0 | U11: =IF(PlotControl!$B$4 = "Annual Max",MAX(OFFSET(Cbeach!$D$10,12*$A11,4*(PlotControl!$C$6-1),12,1)),AVERAGE(OFFSET(Cbeach!$D$10,12*$A11,4*(PlotControl!$C$6-1),12,1))) -> 0 | V11: =IF(PlotControl!$B$4 = "Annual Max",MAX(OFFSET(Cbeach!$E$10,12*$A11,4*(PlotControl!$C$6-1),12,1)),AVERAGE(OFFSET(Cbeach!$E$10,12*$A11,4*(PlotControl!$C$6-1),12,1))) -> 0
A12: 7 | B12: =IF(PlotControl!$B$4 = "Annual Max",MAX(OFFSET(Nbeach!$C$10,12*$A12,4*(PlotControl!$C$6-1),12,1)),AVERAGE(OFFSET(Nbeach!$C$10,12*$A12,4*(PlotControl!$C$6-1),12,1))) -> 123.18 | C12: =IF(PlotControl!$B$4 = "Annual Max",MAX(OFFSET(Nbeach!$D$10,12*$A12,4*(PlotControl!$C$6-1),12,1)),AVERAGE(OFFSET(Nbeach!$D$10,12*$A12,4*(PlotControl!$C$6-1),12,1))) -> 295.38 | D12: =IF(PlotControl!$B$4 = "Annual Max",MAX(OFFSET(Nbeach!$E$10,12*$A12,4*(PlotControl!$C$6-1),12,1)),AVERAGE(OFFSET(Nbeach!$E$10,12*$A12,4*(PlotControl!$C$6-1),12,1))) -> 354.13 | E12: =IF(PlotControl!$B$4 = "Annual Max",MAX(OFFSET(Ndam!$C$10,12*$A12,4*(PlotControl!$C$6-1),12,1)),AVERAGE(OFFSET(Ndam!$C$10,12*$A12,4*(PlotControl!$C$6-1),12,1))) -> 4.0743 | F12: =IF(PlotControl!$B$4 = "Annual Max",MAX(OFFSET(Ndam!$D$10,12*$A12,4*(PlotControl!$C$6-1),12,1)),AVERAGE(OFFSET(Ndam!$D$10,12*$A12,4*(PlotControl!$C$6-1),12,1))) -> 4.8734 | G12: =IF(PlotControl!$B$4 = "Annual Max",MAX(OFFSET(Ndam!$E$10,12*$A12,4*(PlotControl!$C$6-1),12,1)),AVERAGE(OFFSET(Ndam!$E$10,12*$A12,4*(PlotControl!$C$6-1),12,1))) -> 5.9139 | H12: =IF(PlotControl!$B$4 = "Annual Max",MAX(OFFSET(Ebeach!$C$10,12*$A12,4*(PlotControl!$C$6-1),12,1)),AVERAGE(OFFSET(Ebeach!$C$10,12*$A12,4*(PlotControl!$C$6-1),12,1))) -> 300.7 | I12: =IF(PlotControl!$B$4 = "Annual Max",MAX(OFFSET(Ebeach!$D$10,12*$A12,4*(PlotControl!$C$6-1),12,1)),AVERAGE(OFFSET(Ebeach!$D$10,12*$A12,4*(PlotControl!$C$6-1),12,1))) -> 331.47 | J12: =IF(PlotControl!$B$4 = "Annual Max",MAX(OFFSET(Ebeach!$E$10,12*$A12,4*(PlotControl!$C$6-1),12,1)),AVERAGE(OFFSET(Ebeach!$E$10,12*$A12,4*(PlotControl!$C$6-1),12,1))) -> 362.3 | K12: =IF(PlotControl!$B$4 = "Annual Max",MAX(OFFSET(Edam!$C$10,12*$A12,4*(PlotControl!$C$6-1),12,1)),AVERAGE(OFFSET(Edam!$C$10,12*$A12,4*(PlotControl!$C$6-1),12,1))) -> 3.4762 | L12: =IF(PlotControl!$B$4 = "Annual Max",MAX(OFFSET(Edam!$D$10,12*$A12,4*(PlotControl!$C$6-1),12,1)),AVERAGE(OFFSET(Edam!$D$10,12*$A12,4*(PlotControl!$C$6-1),12,1))) -> 4.7365 | M12: =IF(PlotControl!$B$4 = "Annual Max",MAX(OFFSET(Edam!$E$10,12*$A12,4*(PlotControl!$C$6-1),12,1)),AVERAGE(OFFSET(Edam!$E$10,12*$A12,4*(PlotControl!$C$6-1),12,1))) -> 6.4574 | N12: =IF(PlotControl!$B$4 = "Annual Max",MAX(OFFSET(Sbeach!$C$10,12*$A12,4*(PlotControl!$C$6-1),12,1)),AVERAGE(OFFSET(Sbeach!$C$10,12*$A12,4*(PlotControl!$C$6-1),12,1))) -> 40.043 | O12: =IF(PlotControl!$B$4 = "Annual Max",MAX(OFFSET(Sbeach!$D$10,12*$A12,4*(PlotControl!$C$6-1),12,1)),AVERAGE(OFFSET(Sbeach!$D$10,12*$A12,4*(PlotControl!$C$6-1),12,1))) -> 75.346 | P12: =IF(PlotControl!$B$4 = "Annual Max",MAX(OFFSET(Sbeach!$E$10,12*$A12,4*(PlotControl!$C$6-1),12,1)),AVERAGE(OFFSET(Sbeach!$E$10,12*$A12,4*(PlotControl!$C$6-1),12,1))) -> 150.3 | Q12: =IF(PlotControl!$B$4 = "Annual Max",MAX(OFFSET(Sdam!$C$10,12*$A12,4*(PlotControl!$C$6-1),12,1)),AVERAGE(OFFSET(Sdam!$C$10,12*$A12,4*(PlotControl!$C$6-1),12,1))) -> 2.3593 | R12: =IF(PlotControl!$B$4 = "Annual Max",MAX(OFFSET(Sdam!$D$10,12*$A12,4*(PlotControl!$C$6-1),12,1)),AVERAGE(OFFSET(Sdam!$D$10,12*$A12,4*(PlotControl!$C$6-1),12,1))) -> 3.0138 | S12: =IF(PlotControl!$B$4 = "Annual Max",MAX(OFFSET(Sdam!$E$10,12*$A12,4*(PlotControl!$C$6-1),12,1)),AVERAGE(OFFSET(Sdam!$E$10,12*$A12,4*(PlotControl!$C$6-1),12,1))) -> 3.9661 | T12: =IF(PlotControl!$B$4 = "Annual Max",MAX(OFFSET(Cbeach!$C$10,12*$A12,4*(PlotControl!$C$6-1),12,1)),AVERAGE(OFFSET(Cbeach!$C$10,12*$A12,4*(PlotControl!$C$6-1),12,1))) -> 0 | U12: =IF(PlotControl!$B$4 = "Annual Max",MAX(OFFSET(Cbeach!$D$10,12*$A12,4*(PlotControl!$C$6-1),12,1)),AVERAGE(OFFSET(Cbeach!$D$10,12*$A12,4*(PlotControl!$C$6-1),12,1))) -> 0 | V12: =IF(PlotControl!$B$4 = "Annual Max",MAX(OFFSET(Cbeach!$E$10,12*$A12,4*(PlotControl!$C$6-1),12,1)),AVERAGE(OFFSET(Cbeach!$E$10,12*$A12,4*(PlotControl!$C$6-1),12,1))) -> 0
A13: 8 | B13: =IF(PlotControl!$B$4 = "Annual Max",MAX(OFFSET(Nbeach!$C$10,12*$A13,4*(PlotControl!$C$6-1),12,1)),AVERAGE(OFFSET(Nbeach!$C$10,12*$A13,4*(PlotControl!$C$6-1),12,1))) -> 153.16 | C13: =IF(PlotControl!$B$4 = "Annual Max",MAX(OFFSET(Nbeach!$D$10,12*$A13,4*(PlotControl!$C$6-1),12,1)),AVERAGE(OFFSET(Nbeach!$D$10,12*$A13,4*(PlotControl!$C$6-1),12,1))) -> 305.31 | D13: =IF(PlotControl!$B$4 = "Annual Max",MAX(OFFSET(Nbeach!$E$10,12*$A13,4*(PlotControl!$C$6-1),12,1)),AVERAGE(OFFSET(Nbeach!$E$10,12*$A13,4*(PlotControl!$C$6-1),12,1))) -> 357.23 | E13: =IF(PlotControl!$B$4 = "Annual Max",MAX(OFFSET(Ndam!$C$10,12*$A13,4*(PlotControl!$C$6-1),12,1)),AVERAGE(OFFSET(Ndam!$C$10,12*$A13,4*(PlotControl!$C$6-1),12,1))) -> 3.1835 | F13: =IF(PlotControl!$B$4 = "Annual Max",MAX(OFFSET(Ndam!$D$10,12*$A13,4*(PlotControl!$C$6-1),12,1)),AVERAGE(OFFSET(Ndam!$D$10,12*$A13,4*(PlotControl!$C$6-1),12,1))) -> 3.6802 | G13: =IF(PlotControl!$B$4 = "Annual Max",MAX(OFFSET(Ndam!$E$10,12*$A13,4*(PlotControl!$C$6-1),12,1)),AVERAGE(OFFSET(Ndam!$E$10,12*$A13,4*(PlotControl!$C$6-1),12,1))) -> 4.4333 | H13: =IF(PlotControl!$B$4 = "Annual Max",MAX(OFFSET(Ebeach!$C$10,12*$A13,4*(PlotControl!$C$6-1),12,1)),AVERAGE(OFFSET(Ebeach!$C$10,12*$A13,4*(PlotControl!$C$6-1),12,1))) -> 300.7 | I13: =IF(PlotControl!$B$4 = "Annual Max",MAX(OFFSET(Ebeach!$D$10,12*$A13,4*(PlotControl!$C$6-1),12,1)),AVERAGE(OFFSET(Ebeach!$D$10,12*$A13,4*(PlotControl!$C$6-1),12,1))) -> 331.47 | J13: =IF(PlotControl!$B$4 = "Annual Max",MAX(OFFSET(Ebeach!$E$10,12*$A13,4*(PlotControl!$C$6-1),12,1)),AVERAGE(OFFSET(Ebeach!$E$10,12*$A13,4*(PlotControl!$C$6-1),12,1))) -> 362.3 | K13: =IF(PlotControl!$B$4 = "Annual Max",MAX(OFFSET(Edam!$C$10,12*$A13,4*(PlotControl!$C$6-1),12,1)),AVERAGE(OFFSET(Edam!$C$10,12*$A13,4*(PlotControl!$C$6-1),12,1))) -> 4.9687 | L13: =IF(PlotControl!$B$4 = "Annual Max",MAX(OFFSET(Edam!$D$10,12*$A13,4*(PlotControl!$C$6-1),12,1)),AVERAGE(OFFSET(Edam!$D$10,12*$A13,4*(PlotControl!$C$6-1),12,1))) -> 6.3165 | M13: =IF(PlotControl!$B$4 = "Annual Max",MAX(OFFSET(Edam!$E$10,12*$A13,4*(PlotControl!$C$6-1),12,1)),AVERAGE(OFFSET(Edam!$E$10,12*$A13,4*(PlotControl!$C$6-1),12,1))) -> 8.8573 | N13: =IF(PlotControl!$B$4 = "Annual Max",MAX(OFFSET(Sbeach!$C$10,12*$A13,4*(PlotControl!$C$6-1),12,1)),AVERAGE(OFFSET(Sbeach!$C$10,12*$A13,4*(PlotControl!$C$6-1),12,1))) -> 132.93 | O13: =IF(PlotControl!$B$4 = "Annual Max",MAX(OFFSET(Sbeach!$D$10,12*$A13,4*(PlotControl!$C$6-1),12,1)),AVERAGE(OFFSET(Sbeach!$D$10,12*$A13,4*(PlotControl!$C$6-1),12,1))) -> 294.6 | P13: =IF(PlotControl!$B$4 = "Annual Max",MAX(OFFSET(Sbeach!$E$10,12*$A13,4*(PlotControl!$C$6-1),12,1)),AVERAGE(OFFSET(Sbeach!$E$10,12*$A13,4*(PlotControl!$C$6-1),12,1))) -> 353.52 | Q13: =IF(PlotControl!$B$4 = "Annual Max",MAX(OFFSET(Sdam!$C$10,12*$A13,4*(PlotControl!$C$6-1),12,1)),AVERAGE(OFFSET(Sdam!$C$10,12*$A13,4*(PlotControl!$C$6-1),12,1))) -> 2.6672 | R13: =IF(PlotControl!$B$4 = "Annual Max",MAX(OFFSET(Sdam!$D$10,12*$A13,4*(PlotControl!$C$6-1),12,1)),AVERAGE(OFFSET(Sdam!$D$10,12*$A13,4*(PlotControl!$C$6-1),12,1))) -> 3.2277 | S13: =IF(PlotControl!$B$4 = "Annual Max",MAX(OFFSET(Sdam!$E$10,12*$A13,4*(PlotControl!$C$6-1),12,1)),AVERAGE(OFFSET(Sdam!$E$10,12*$A13,4*(PlotControl!$C$6-1),12,1))) -> 4.0917 | T13: =IF(PlotControl!$B$4 = "Annual Max",MAX(OFFSET(Cbeach!$C$10,12*$A13,4*(PlotControl!$C$6-1),12,1)),AVERAGE(OFFSET(Cbeach!$C$10,12*$A13,4*(PlotControl!$C$6-1),12,1))) -> 0 | U13: =IF(PlotControl!$B$4 = "Annual Max",MAX(OFFSET(Cbeach!$D$10,12*$A13,4*(PlotControl!$C$6-1),12,1)),AVERAGE(OFFSET(Cbeach!$D$10,12*$A13,4*(PlotControl!$C$6-1),12,1))) -> 0 | V13: =IF(PlotControl!$B$4 = "Annual Max",MAX(OFFSET(Cbeach!$E$10,12*$A13,4*(PlotControl!$C$6-1),12,1)),AVERAGE(OFFSET(Cbeach!$E$10,12*$A13,4*(PlotControl!$C$6-1),12,1))) -> 0
A14: 9 | B14: =IF(PlotControl!$B$4 = "Annual Max",MAX(OFFSET(Nbeach!$C$10,12*$A14,4*(PlotControl!$C$6-1),12,1)),AVERAGE(OFFSET(Nbeach!$C$10,12*$A14,4*(PlotControl!$C$6-1),12,1))) -> 161.53 | C14: =IF(PlotControl!$B$4 = "Annual Max",MAX(OFFSET(Nbeach!$D$10,12*$A14,4*(PlotControl!$C$6-1),12,1)),AVERAGE(OFFSET(Nbeach!$D$10,12*$A14,4*(PlotControl!$C$6-1),12,1))) -> 307.65 | D14: =IF(PlotControl!$B$4 = "Annual Max",MAX(OFFSET(Nbeach!$E$10,12*$A14,4*(PlotControl!$C$6-1),12,1)),AVERAGE(OFFSET(Nbeach!$E$10,12*$A14,4*(PlotControl!$C$6-1),12,1))) -> 358.12 | E14: =IF(PlotControl!$B$4 = "Annual Max",MAX(OFFSET(Ndam!$C$10,12*$A14,4*(PlotControl!$C$6-1),12,1)),AVERAGE(OFFSET(Ndam!$C$10,12*$A14,4*(PlotControl!$C$6-1),12,1))) -> 3.1496 | F14: =IF(PlotControl!$B$4 = "Annual Max",MAX(OFFSET(Ndam!$D$10,12*$A14,4*(PlotControl!$C$6-1),12,1)),AVERAGE(OFFSET(Ndam!$D$10,12*$A14,4*(PlotControl!$C$6-1),12,1))) -> 3.6348 | G14: =IF(PlotControl!$B$4 = "Annual Max",MAX(OFFSET(Ndam!$E$10,12*$A14,4*(PlotControl!$C$6-1),12,1)),AVERAGE(OFFSET(Ndam!$E$10,12*$A14,4*(PlotControl!$C$6-1),12,1))) -> 4.3829 | H14: =IF(PlotControl!$B$4 = "Annual Max",MAX(OFFSET(Ebeach!$C$10,12*$A14,4*(PlotControl!$C$6-1),12,1)),AVERAGE(OFFSET(Ebeach!$C$10,12*$A14,4*(PlotControl!$C$6-1),12,1))) -> 300.57 | I14: =IF(PlotControl!$B$4 = "Annual Max",MAX(OFFSET(Ebeach!$D$10,12*$A14,4*(PlotControl!$C$6-1),12,1)),AVERAGE(OFFSET(Ebeach!$D$10,12*$A14,4*(PlotControl!$C$6-1),12,1))) -> 331.32 | J14: =IF(PlotControl!$B$4 = "Annual Max",MAX(OFFSET(Ebeach!$E$10,12*$A14,4*(PlotControl!$C$6-1),12,1)),AVERAGE(OFFSET(Ebeach!$E$10,12*$A14,4*(PlotControl!$C$6-1),12,1))) -> 362.2 | K14: =IF(PlotControl!$B$4 = "Annual Max",MAX(OFFSET(Edam!$C$10,12*$A14,4*(PlotControl!$C$6-1),12,1)),AVERAGE(OFFSET(Edam!$C$10,12*$A14,4*(PlotControl!$C$6-1),12,1))) -> 5.256 | L14: =IF(PlotControl!$B$4 = "Annual Max",MAX(OFFSET(Edam!$D$10,12*$A14,4*(PlotControl!$C$6-1),12,1)),AVERAGE(OFFSET(Edam!$D$10,12*$A14,4*(PlotControl!$C$6-1),12,1))) -> 6.683 | M14: =IF(PlotControl!$B$4 = "Annual Max",MAX(OFFSET(Edam!$E$10,12*$A14,4*(PlotControl!$C$6-1),12,1)),AVERAGE(OFFSET(Edam!$E$10,12*$A14,4*(PlotControl!$C$6-1),12,1))) -> 8.9641 | N14: =IF(PlotControl!$B$4 = "Annual Max",MAX(OFFSET(Sbeach!$C$10,12*$A14,4*(PlotControl!$C$6-1),12,1)),AVERAGE(OFFSET(Sbeach!$C$10,12*$A14,4*(PlotControl!$C$6-1),12,1))) -> 155.93 | O14: =IF(PlotControl!$B$4 = "Annual Max",MAX(OFFSET(Sbeach!$D$10,12*$A14,4*(PlotControl!$C$6-1),12,1)),AVERAGE(OFFSET(Sbeach!$D$10,12*$A14,4*(PlotControl!$C$6-1),12,1))) -> 304.79 | P14: =IF(PlotControl!$B$4 = "Annual Max",MAX(OFFSET(Sbeach!$E$10,12*$A14,4*(PlotControl!$C$6-1),12,1)),AVERAGE(OFFSET(Sbeach!$E$10,12*$A14,4*(PlotControl!$C$6-1),12,1))) -> 356.59 | Q14: =IF(PlotControl!$B$4 = "Annual Max",MAX(OFFSET(Sdam!$C$10,12*$A14,4*(PlotControl!$C$6-1),12,1)),AVERAGE(OFFSET(Sdam!$C$10,12*$A14,4*(PlotControl!$C$6-1),12,1))) -> 2.8616 | R14: =IF(PlotControl!$B$4 = "Annual Max",MAX(OFFSET(Sdam!$D$10,12*$A14,4*(PlotControl!$C$6-1),12,1)),AVERAGE(OFFSET(Sdam!$D$10,12*$A14,4*(PlotControl!$C$6-1),12,1))) -> 3.4661 | S14: =IF(PlotControl!$B$4 = "Annual Max",MAX(OFFSET(Sdam!$E$10,12*$A14,4*(PlotControl!$C$6-1),12,1)),AVERAGE(OFFSET(Sdam!$E$10,12*$A14,4*(PlotControl!$C$6-1),12,1))) -> 4.4276 | T14: =IF(PlotControl!$B$4 = "Annual Max",MAX(OFFSET(Cbeach!$C$10,12*$A14,4*(PlotControl!$C$6-1),12,1)),AVERAGE(OFFSET(Cbeach!$C$10,12*$A14,4*(PlotControl!$C$6-1),12,1))) -> 0 | U14: =IF(PlotControl!$B$4 = "Annual Max",MAX(OFFSET(Cbeach!$D$10,12*$A14,4*(PlotControl!$C$6-1),12,1)),AVERAGE(OFFSET(Cbeach!$D$10,12*$A14,4*(PlotControl!$C$6-1),12,1))) -> 0 | V14: =IF(PlotControl!$B$4 = "Annual Max",MAX(OFFSET(Cbeach!$E$10,12*$A14,4*(PlotControl!$C$6-1),12,1)),AVERAGE(OFFSET(Cbeach!$E$10,12*$A14,4*(PlotControl!$C$6-1),12,1))) -> 0
A15: 10 | B15: =IF(PlotControl!$B$4 = "Annual Max",MAX(OFFSET(Nbeach!$C$10,12*$A15,4*(PlotControl!$C$6-1),12,1)),AVERAGE(OFFSET(Nbeach!$C$10,12*$A15,4*(PlotControl!$C$6-1),12,1))) -> 161.43 | C15: =IF(PlotControl!$B$4 = "Annual Max",MAX(OFFSET(Nbeach!$D$10,12*$A15,4*(PlotControl!$C$6-1),12,1)),AVERAGE(OFFSET(Nbeach!$D$10,12*$A15,4*(PlotControl!$C$6-1),12,1))) -> 308.53 | D15: =IF(PlotControl!$B$4 = "Annual Max",MAX(OFFSET(Nbeach!$E$10,12*$A15,4*(PlotControl!$C$6-1),12,1)),AVERAGE(OFFSET(Nbeach!$E$10,12*$A15,4*(PlotControl!$C$6-1),12,1))) -> 357.59 | E15: =IF(PlotControl!$B$4 = "Annual Max",MAX(OFFSET(Ndam!$C$10,12*$A15,4*(PlotControl!$C$6-1),12,1)),AVERAGE(OFFSET(Ndam!$C$10,12*$A15,4*(PlotControl!$C$6-1),12,1))) -> 3.1365 | F15: =IF(PlotControl!$B$4 = "Annual Max",MAX(OFFSET(Ndam!$D$10,12*$A15,4*(PlotControl!$C$6-1),12,1)),AVERAGE(OFFSET(Ndam!$D$10,12*$A15,4*(PlotControl!$C$6-1),12,1))) -> 3.6062 | G15: =IF(PlotControl!$B$4 = "Annual Max",MAX(OFFSET(Ndam!$E$10,12*$A15,4*(PlotControl!$C$6-1),12,1)),AVERAGE(OFFSET(Ndam!$E$10,12*$A15,4*(PlotControl!$C$6-1),12,1))) -> 4.4177 | H15: =IF(PlotControl!$B$4 = "Annual Max",MAX(OFFSET(Ebeach!$C$10,12*$A15,4*(PlotControl!$C$6-1),12,1)),AVERAGE(OFFSET(Ebeach!$C$10,12*$A15,4*(PlotControl!$C$6-1),12,1))) -> 300.57 | I15: =IF(PlotControl!$B$4 = "Annual Max",MAX(OFFSET(Ebeach!$D$10,12*$A15,4*(PlotControl!$C$6-1),12,1)),AVERAGE(OFFSET(Ebeach!$D$10,12*$A15,4*(PlotControl!$C$6-1),12,1))) -> 331.32 | J15: =IF(PlotControl!$B$4 = "Annual Max",MAX(OFFSET(Ebeach!$E$10,12*$A15,4*(PlotControl!$C$6-1),12,1)),AVERAGE(OFFSET(Ebeach!$E$10,12*$A15,4*(PlotControl!$C$6-1),12,1))) -> 362.2 | K15: =IF(PlotControl!$B$4 = "Annual Max",MAX(OFFSET(Edam!$C$10,12*$A15,4*(PlotControl!$C$6-1),12,1)),AVERAGE(OFFSET(Edam!$C$10,12*$A15,4*(PlotControl!$C$6-1),12,1))) -> 4.9463 | L15: =IF(PlotControl!$B$4 = "Annual Max",MAX(OFFSET(Edam!$D$10,12*$A15,4*(PlotControl!$C$6-1),12,1)),AVERAGE(OFFSET(Edam!$D$10,12*$A15,4*(PlotControl!$C$6-1),12,1))) -> 6.3797 | M15: =IF(PlotControl!$B$4 = "Annual Max",MAX(OFFSET(Edam!$E$10,12*$A15,4*(PlotControl!$C$6-1),12,1)),AVERAGE(OFFSET(Edam!$E$10,12*$A15,4*(PlotControl!$C$6-1),12,1))) -> 8.5085 | N15: =IF(PlotControl!$B$4 = "Annual Max",MAX(OFFSET(Sbeach!$C$10,12*$A15,4*(PlotControl!$C$6-1),12,1)),AVERAGE(OFFSET(Sbeach!$C$10,12*$A15,4*(PlotControl!$C$6-1),12,1))) -> 155.62 | O15: =IF(PlotControl!$B$4 = "Annual Max",MAX(OFFSET(Sbeach!$D$10,12*$A15,4*(PlotControl!$C$6-1),12,1)),AVERAGE(OFFSET(Sbeach!$D$10,12*$A15,4*(PlotControl!$C$6-1),12,1))) -> 302.7 | P15: =IF(PlotControl!$B$4 = "Annual Max",MAX(OFFSET(Sbeach!$E$10,12*$A15,4*(PlotControl!$C$6-1),12,1)),AVERAGE(OFFSET(Sbeach!$E$10,12*$A15,4*(PlotControl!$C$6-1),12,1))) -> 356.19 | Q15: =IF(PlotControl!$B$4 = "Annual Max",MAX(OFFSET(Sdam!$C$10,12*$A15,4*(PlotControl!$C$6-1),12,1)),AVERAGE(OFFSET(Sdam!$C$10,12*$A15,4*(PlotControl!$C$6-1),12,1))) -> 2.8127 | R15: =IF(PlotControl!$B$4 = "Annual Max",MAX(OFFSET(Sdam!$D$10,12*$A15,4*(PlotControl!$C$6-1),12,1)),AVERAGE(OFFSET(Sdam!$D$10,12*$A15,4*(PlotControl!$C$6-1),12,1))) -> 3.4389 | S15: =IF(PlotControl!$B$4 = "Annual Max",MAX(OFFSET(Sdam!$E$10,12*$A15,4*(PlotControl!$C$6-1),12,1)),AVERAGE(OFFSET(Sdam!$E$10,12*$A15,4*(PlotControl!$C$6-1),12,1))) -> 4.393 | T15: =IF(PlotControl!$B$4 = "Annual Max",MAX(OFFSET(Cbeach!$C$10,12*$A15,4*(PlotControl!$C$6-1),12,1)),AVERAGE(OFFSET(Cbeach!$C$10,12*$A15,4*(PlotControl!$C$6-1),12,1))) -> 0 | U15: =IF(PlotControl!$B$4 = "Annual Max",MAX(OFFSET(Cbeach!$D$10,12*$A15,4*(PlotControl!$C$6-1),12,1)),AVERAGE(OFFSET(Cbeach!$D$10,12*$A15,4*(PlotControl!$C$6-1),12,1))) -> 0 | V15: =IF(PlotControl!$B$4 = "Annual Max",MAX(OFFSET(Cbeach!$E$10,12*$A15,4*(PlotControl!$C$6-1),12,1)),AVERAGE(OFFSET(Cbeach!$E$10,12*$A15,4*(PlotControl!$C$6-1),12,1))) -> 0
A16: 11 | B16: =IF(PlotControl!$B$4 = "Annual Max",MAX(OFFSET(Nbeach!$C$10,12*$A16,4*(PlotControl!$C$6-1),12,1)),AVERAGE(OFFSET(Nbeach!$C$10,12*$A16,4*(PlotControl!$C$6-1),12,1))) -> 161.52 | C16: =IF(PlotControl!$B$4 = "Annual Max",MAX(OFFSET(Nbeach!$D$10,12*$A16,4*(PlotControl!$C$6-1),12,1)),AVERAGE(OFFSET(Nbeach!$D$10,12*$A16,4*(PlotControl!$C$6-1),12,1))) -> 309.51 | D16: =IF(PlotControl!$B$4 = "Annual Max",MAX(OFFSET(Nbeach!$E$10,12*$A16,4*(PlotControl!$C$6-1),12,1)),AVERAGE(OFFSET(Nbeach!$E$10,12*$A16,4*(PlotControl!$C$6-1),12,1))) -> 357.97 | E16: =IF(PlotControl!$B$4 = "Annual Max",MAX(OFFSET(Ndam!$C$10,12*$A16,4*(PlotControl!$C$6-1),12,1)),AVERAGE(OFFSET(Ndam!$C$10,12*$A16,4*(PlotControl!$C$6-1),12,1))) -> 3.1544 | F16: =IF(PlotControl!$B$4 = "Annual Max",MAX(OFFSET(Ndam!$D$10,12*$A16,4*(PlotControl!$C$6-1),12,1)),AVERAGE(OFFSET(Ndam!$D$10,12*$A16,4*(PlotControl!$C$6-1),12,1))) -> 3.7012 | G16: =IF(PlotControl!$B$4 = "Annual Max",MAX(OFFSET(Ndam!$E$10,12*$A16,4*(PlotControl!$C$6-1),12,1)),AVERAGE(OFFSET(Ndam!$E$10,12*$A16,4*(PlotControl!$C$6-1),12,1))) -> 4.4472 | H16: =IF(PlotControl!$B$4 = "Annual Max",MAX(OFFSET(Ebeach!$C$10,12*$A16,4*(PlotControl!$C$6-1),12,1)),AVERAGE(OFFSET(Ebeach!$C$10,12*$A16,4*(PlotControl!$C$6-1),12,1))) -> 300.21 | I16: =IF(PlotControl!$B$4 = "Annual Max",MAX(OFFSET(Ebeach!$D$10,12*$A16,4*(PlotControl!$C$6-1),12,1)),AVERAGE(OFFSET(Ebeach!$D$10,12*$A16,4*(PlotControl!$C$6-1),12,1))) -> 331.15 | J16: =IF(PlotControl!$B$4 = "Annual Max",MAX(OFFSET(Ebeach!$E$10,12*$A16,4*(PlotControl!$C$6-1),12,1)),AVERAGE(OFFSET(Ebeach!$E$10,12*$A16,4*(PlotControl!$C$6-1),12,1))) -> 362.3 | K16: =IF(PlotControl!$B$4 = "Annual Max",MAX(OFFSET(Edam!$C$10,12*$A16,4*(PlotControl!$C$6-1),12,1)),AVERAGE(OFFSET(Edam!$C$10,12*$A16,4*(PlotControl!$C$6-1),12,1))) -> 4.4324 | L16: =IF(PlotControl!$B$4 = "Annual Max",MAX(OFFSET(Edam!$D$10,12*$A16,4*(PlotControl!$C$6-1),12,1)),AVERAGE(OFFSET(Edam!$D$10,12*$A16,4*(PlotControl!$C$6-1),12,1))) -> 5.7373 | M16: =IF(PlotControl!$B$4 = "Annual Max",MAX(OFFSET(Edam!$E$10,12*$A16,4*(PlotControl!$C$6-1),12,1)),AVERAGE(OFFSET(Edam!$E$10,12*$A16,4*(PlotControl!$C$6-1),12,1))) -> 7.909 | N16: =IF(PlotControl!$B$4 = "Annual Max",MAX(OFFSET(Sbeach!$C$10,12*$A16,4*(PlotControl!$C$6-1),12,1)),AVERAGE(OFFSET(Sbeach!$C$10,12*$A16,4*(PlotControl!$C$6-1),12,1))) -> 157.65 | O16: =IF(PlotControl!$B$4 = "Annual Max",MAX(OFFSET(Sbeach!$D$10,12*$A16,4*(PlotControl!$C$6-1),12,1)),AVERAGE(OFFSET(Sbeach!$D$10,12*$A16,4*(PlotControl!$C$6-1),12,1))) -> 304.43 | P16: =IF(PlotControl!$B$4 = "Annual Max",MAX(OFFSET(Sbeach!$E$10,12*$A16,4*(PlotControl!$C$6-1),12,1)),AVERAGE(OFFSET(Sbeach!$E$10,12*$A16,4*(PlotControl!$C$6-1),12,1))) -> 356.89 | Q16: =IF(PlotControl!$B$4 = "Annual Max",MAX(OFFSET(Sdam!$C$10,12*$A16,4*(PlotControl!$C$6-1),12,1)),AVERAGE(OFFSET(Sdam!$C$10,12*$A16,4*(PlotControl!$C$6-1),12,1))) -> 2.2076 | R16: =IF(PlotControl!$B$4 = "Annual Max",MAX(OFFSET(Sdam!$D$10,12*$A16,4*(PlotControl!$C$6-1),12,1)),AVERAGE(OFFSET(Sdam!$D$10,12*$A16,4*(PlotControl!$C$6-1),12,1))) -> 2.6748 | S16: =IF(PlotControl!$B$4 = "Annual Max",MAX(OFFSET(Sdam!$E$10,12*$A16,4*(PlotControl!$C$6-1),12,1)),AVERAGE(OFFSET(Sdam!$E$10,12*$A16,4*(PlotControl!$C$6-1),12,1))) -> 3.4574 | T16: =IF(PlotControl!$B$4 = "Annual Max",MAX(OFFSET(Cbeach!$C$10,12*$A16,4*(PlotControl!$C$6-1),12,1)),AVERAGE(OFFSET(Cbeach!$C$10,12*$A16,4*(PlotControl!$C$6-1),12,1))) -> 0 | U16: =IF(PlotControl!$B$4 = "Annual Max",MAX(OFFSET(Cbeach!$D$10,12*$A16,4*(PlotControl!$C$6-1),12,1)),AVERAGE(OFFSET(Cbeach!$D$10,12*$A16,4*(PlotControl!$C$6-1),12,1))) -> 0 | V16: =IF(PlotControl!$B$4 = "Annual Max",MAX(OFFSET(Cbeach!$E$10,12*$A16,4*(PlotControl!$C$6-1),12,1)),AVERAGE(OFFSET(Cbeach!$E$10,12*$A16,4*(PlotControl!$C$6-1),12,1))) -> 0
A17: 12 | B17: =IF(PlotControl!$B$4 = "Annual Max",MAX(OFFSET(Nbeach!$C$10,12*$A17,4*(PlotControl!$C$6-1),12,1)),AVERAGE(OFFSET(Nbeach!$C$10,12*$A17,4*(PlotControl!$C$6-1),12,1))) -> 158.04 | C17: =IF(PlotControl!$B$4 = "Annual Max",MAX(OFFSET(Nbeach!$D$10,12*$A17,4*(PlotControl!$C$6-1),12,1)),AVERAGE(OFFSET(Nbeach!$D$10,12*$A17,4*(PlotControl!$C$6-1),12,1))) -> 309.3 | D17: =IF(PlotControl!$B$4 = "Annual Max",MAX(OFFSET(Nbeach!$E$10,12*$A17,4*(PlotControl!$C$6-1),12,1)),AVERAGE(OFFSET(Nbeach!$E$10,12*$A17,4*(PlotControl!$C$6-1),12,1))) -> 358.12 | E17: =IF(PlotControl!$B$4 = "Annual Max",MAX(OFFSET(Ndam!$C$10,12*$A17,4*(PlotControl!$C$6-1),12,1)),AVERAGE(OFFSET(Ndam!$C$10,12*$A17,4*(PlotControl!$C$6-1),12,1))) -> 3.1959 | F17: =IF(PlotControl!$B$4 = "Annual Max",MAX(OFFSET(Ndam!$D$10,12*$A17,4*(PlotControl!$C$6-1),12,1)),AVERAGE(OFFSET(Ndam!$D$10,12*$A17,4*(PlotControl!$C$6-1),12,1))) -> 3.6882 | G17: =IF(PlotControl!$B$4 = "Annual Max",MAX(OFFSET(Ndam!$E$10,12*$A17,4*(PlotControl!$C$6-1),12,1)),AVERAGE(OFFSET(Ndam!$E$10,12*$A17,4*(PlotControl!$C$6-1),12,1))) -> 4.3929 | H17: =IF(PlotControl!$B$4 = "Annual Max",MAX(OFFSET(Ebeach!$C$10,12*$A17,4*(PlotControl!$C$6-1),12,1)),AVERAGE(OFFSET(Ebeach!$C$10,12*$A17,4*(PlotControl!$C$6-1),12,1))) -> 300.7 | I17: =IF(PlotControl!$B$4 = "Annual Max",MAX(OFFSET(Ebeach!$D$10,12*$A17,4*(PlotControl!$C$6-1),12,1)),AVERAGE(OFFSET(Ebeach!$D$10,12*$A17,4*(PlotControl!$C$6-1),12,1))) -> 331.15 | J17: =IF(PlotControl!$B$4 = "Annual Max",MAX(OFFSET(Ebeach!$E$10,12*$A17,4*(PlotControl!$C$6-1),12,1)),AVERAGE(OFFSET(Ebeach!$E$10,12*$A17,4*(PlotControl!$C$6-1),12,1))) -> 361.98 | K17: =IF(PlotControl!$B$4 = "Annual Max",MAX(OFFSET(Edam!$C$10,12*$A17,4*(PlotControl!$C$6-1),12,1)),AVERAGE(OFFSET(Edam!$C$10,12*$A17,4*(PlotControl!$C$6-1),12,1))) -> 4.1167 | L17: =IF(PlotControl!$B$4 = "Annual Max",MAX(OFFSET(Edam!$D$10,12*$A17,4*(PlotControl!$C$6-1),12,1)),AVERAGE(OFFSET(Edam!$D$10,12*$A17,4*(PlotControl!$C$6-1),12,1))) -> 5.2049 | M17: =IF(PlotControl!$B$4 = "Annual Max",MAX(OFFSET(Edam!$E$10,12*$A17,4*(PlotControl!$C$6-1),12,1)),AVERAGE(OFFSET(Edam!$E$10,12*$A17,4*(PlotControl!$C$6-1),12,1))) -> 6.6981 | N17: =IF(PlotControl!$B$4 = "Annual Max",MAX(OFFSET(Sbeach!$C$10,12*$A17,4*(PlotControl!$C$6-1),12,1)),AVERAGE(OFFSET(Sbeach!$C$10,12*$A17,4*(PlotControl!$C$6-1),12,1))) -> 158.7 | O17: =IF(PlotControl!$B$4 = "Annual Max",MAX(OFFSET(Sbeach!$D$10,12*$A17,4*(PlotControl!$C$6-1),12,1)),AVERAGE(OFFSET(Sbeach!$D$10,12*$A17,4*(PlotControl!$C$6-1),12,1))) -> 303.73 | P17: =IF(PlotControl!$B$4 = "Annual Max",MAX(OFFSET(Sbeach!$E$10,12*$A17,4*(PlotControl!$C$6-1),12,1)),AVERAGE(OFFSET(Sbeach!$E$10,12*$A17,4*(PlotControl!$C$6-1),12,1))) -> 356.46 | Q17: =IF(PlotControl!$B$4 = "Annual Max",MAX(OFFSET(Sdam!$C$10,12*$A17,4*(PlotControl!$C$6-1),12,1)),AVERAGE(OFFSET(Sdam!$C$10,12*$A17,4*(PlotControl!$C$6-1),12,1))) -> 2.0362 | R17: =IF(PlotControl!$B$4 = "Annual Max",MAX(OFFSET(Sdam!$D$10,12*$A17,4*(PlotControl!$C$6-1),12,1)),AVERAGE(OFFSET(Sdam!$D$10,12*$A17,4*(PlotControl!$C$6-1),12,1))) -> 2.3833 | S17: =IF(PlotControl!$B$4 = "Annual Max",MAX(OFFSET(Sdam!$E$10,12*$A17,4*(PlotControl!$C$6-1),12,1)),AVERAGE(OFFSET(Sdam!$E$10,12*$A17,4*(PlotControl!$C$6-1),12,1))) -> 2.899 | T17: =IF(PlotControl!$B$4 = "Annual Max",MAX(OFFSET(Cbeach!$C$10,12*$A17,4*(PlotControl!$C$6-1),12,1)),AVERAGE(OFFSET(Cbeach!$C$10,12*$A17,4*(PlotControl!$C$6-1),12,1))) -> 0 | U17: =IF(PlotControl!$B$4 = "Annual Max",MAX(OFFSET(Cbeach!$D$10,12*$A17,4*(PlotControl!$C$6-1),12,1)),AVERAGE(OFFSET(Cbeach!$D$10,12*$A17,4*(PlotControl!$C$6-1),12,1))) -> 0 | V17: =IF(PlotControl!$B$4 = "Annual Max",MAX(OFFSET(Cbeach!$E$10,12*$A17,4*(PlotControl!$C$6-1),12,1)),AVERAGE(OFFSET(Cbeach!$E$10,12*$A17,4*(PlotControl!$C$6-1),12,1))) -> 0
A18: 13 | B18: =IF(PlotControl!$B$4 = "Annual Max",MAX(OFFSET(Nbeach!$C$10,12*$A18,4*(PlotControl!$C$6-1),12,1)),AVERAGE(OFFSET(Nbeach!$C$10,12*$A18,4*(PlotControl!$C$6-1),12,1))) -> 158.45 | C18: =IF(PlotControl!$B$4 = "Annual Max",MAX(OFFSET(Nbeach!$D$10,12*$A18,4*(PlotControl!$C$6-1),12,1)),AVERAGE(OFFSET(Nbeach!$D$10,12*$A18,4*(PlotControl!$C$6-1),12,1))) -> 310.28 | D18: =IF(PlotControl!$B$4 = "Annual Max",MAX(OFFSET(Nbeach!$E$10,12*$A18,4*(PlotControl!$C$6-1),12,1)),AVERAGE(OFFSET(Nbeach!$E$10,12*$A18,4*(PlotControl!$C$6-1),12,1))) -> 357.97 | E18: =IF(PlotControl!$B$4 = "Annual Max",MAX(OFFSET(Ndam!$C$10,12*$A18,4*(PlotControl!$C$6-1),12,1)),AVERAGE(OFFSET(Ndam!$C$10,12*$A18,4*(PlotControl!$C$6-1),12,1))) -> 3.196 | F18: =IF(PlotControl!$B$4 = "Annual Max",MAX(OFFSET(Ndam!$D$10,12*$A18,4*(PlotControl!$C$6-1),12,1)),AVERAGE(OFFSET(Ndam!$D$10,12*$A18,4*(PlotControl!$C$6-1),12,1))) -> 3.6933 | G18: =IF(PlotControl!$B$4 = "Annual Max",MAX(OFFSET(Ndam!$E$10,12*$A18,4*(PlotControl!$C$6-1),12,1)),AVERAGE(OFFSET(Ndam!$E$10,12*$A18,4*(PlotControl!$C$6-1),12,1))) -> 4.403 | H18: =IF(PlotControl!$B$4 = "Annual Max",MAX(OFFSET(Ebeach!$C$10,12*$A18,4*(PlotControl!$C$6-1),12,1)),AVERAGE(OFFSET(Ebeach!$C$10,12*$A18,4*(PlotControl!$C$6-1),12,1))) -> 300.57 | I18: =IF(PlotControl!$B$4 = "Annual Max",MAX(OFFSET(Ebeach!$D$10,12*$A18,4*(PlotControl!$C$6-1),12,1)),AVERAGE(OFFSET(Ebeach!$D$10,12*$A18,4*(PlotControl!$C$6-1),12,1))) -> 330.89 | J18: =IF(PlotControl!$B$4 = "Annual Max",MAX(OFFSET(Ebeach!$E$10,12*$A18,4*(PlotControl!$C$6-1),12,1)),AVERAGE(OFFSET(Ebeach!$E$10,12*$A18,4*(PlotControl!$C$6-1),12,1))) -> 361.78 | K18: =IF(PlotControl!$B$4 = "Annual Max",MAX(OFFSET(Edam!$C$10,12*$A18,4*(PlotControl!$C$6-1),12,1)),AVERAGE(OFFSET(Edam!$C$10,12*$A18,4*(PlotControl!$C$6-1),12,1))) -> 3.9461 | L18: =IF(PlotControl!$B$4 = "Annual Max",MAX(OFFSET(Edam!$D$10,12*$A18,4*(PlotControl!$C$6-1),12,1)),AVERAGE(OFFSET(Edam!$D$10,12*$A18,4*(PlotControl!$C$6-1),12,1))) -> 4.8922 | M18: =IF(PlotControl!$B$4 = "Annual Max",MAX(OFFSET(Edam!$E$10,12*$A18,4*(PlotControl!$C$6-1),12,1)),AVERAGE(OFFSET(Edam!$E$10,12*$A18,4*(PlotControl!$C$6-1),12,1))) -> 6.291 | N18: =IF(PlotControl!$B$4 = "Annual Max",MAX(OFFSET(Sbeach!$C$10,12*$A18,4*(PlotControl!$C$6-1),12,1)),AVERAGE(OFFSET(Sbeach!$C$10,12*$A18,4*(PlotControl!$C$6-1),12,1))) -> 154.42 | O18: =IF(PlotControl!$B$4 = "Annual Max",MAX(OFFSET(Sbeach!$D$10,12*$A18,4*(PlotControl!$C$6-1),12,1)),AVERAGE(OFFSET(Sbeach!$D$10,12*$A18,4*(PlotControl!$C$6-1),12,1))) -> 304.93 | P18: =IF(PlotControl!$B$4 = "Annual Max",MAX(OFFSET(Sbeach!$E$10,12*$A18,4*(PlotControl!$C$6-1),12,1)),AVERAGE(OFFSET(Sbeach!$E$10,12*$A18,4*(PlotControl!$C$6-1),12,1))) -> 357.23 | Q18: =IF(PlotControl!$B$4 = "Annual Max",MAX(OFFSET(Sdam!$C$10,12*$A18,4*(PlotControl!$C$6-1),12,1)),AVERAGE(OFFSET(Sdam!$C$10,12*$A18,4*(PlotControl!$C$6-1),12,1))) -> 1.9312 | R18: =IF(PlotControl!$B$4 = "Annual Max",MAX(OFFSET(Sdam!$D$10,12*$A18,4*(PlotControl!$C$6-1),12,1)),AVERAGE(OFFSET(Sdam!$D$10,12*$A18,4*(PlotControl!$C$6-1),12,1))) -> 2.2414 | S18: =IF(PlotControl!$B$4 = "Annual Max",MAX(OFFSET(Sdam!$E$10,12*$A18,4*(PlotControl!$C$6-1),12,1)),AVERAGE(OFFSET(Sdam!$E$10,12*$A18,4*(PlotControl!$C$6-1),12,1))) -> 2.7559 | T18: =IF(PlotControl!$B$4 = "Annual Max",MAX(OFFSET(Cbeach!$C$10,12*$A18,4*(PlotControl!$C$6-1),12,1)),AVERAGE(OFFSET(Cbeach!$C$10,12*$A18,4*(PlotControl!$C$6-1),12,1))) -> 0 | U18: =IF(PlotControl!$B$4 = "Annual Max",MAX(OFFSET(Cbeach!$D$10,12*$A18,4*(PlotControl!$C$6-1),12,1)),AVERAGE(OFFSET(Cbeach!$D$10,12*$A18,4*(PlotControl!$C$6-1),12,1))) -> 0 | V18: =IF(PlotControl!$B$4 = "Annual Max",MAX(OFFSET(Cbeach!$E$10,12*$A18,4*(PlotControl!$C$6-1),12,1)),AVERAGE(OFFSET(Cbeach!$E$10,12*$A18,4*(PlotControl!$C$6-1),12,1))) -> 0
A19: 14 | B19: =IF(PlotControl!$B$4 = "Annual Max",MAX(OFFSET(Nbeach!$C$10,12*$A19,4*(PlotControl!$C$6-1),12,1)),AVERAGE(OFFSET(Nbeach!$C$10,12*$A19,4*(PlotControl!$C$6-1),12,1))) -> 155.4 | C19: =IF(PlotControl!$B$4 = "Annual Max",MAX(OFFSET(Nbeach!$D$10,12*$A19,4*(PlotControl!$C$6-1),12,1)),AVERAGE(OFFSET(Nbeach!$D$10,12*$A19,4*(PlotControl!$C$6-1),12,1))) -> 309.3 | D19: =IF(PlotControl!$B$4 = "Annual Max",MAX(OFFSET(Nbeach!$E$10,12*$A19,4*(PlotControl!$C$6-1),12,1)),AVERAGE(OFFSET(Nbeach!$E$10,12*$A19,4*(PlotControl!$C$6-1),12,1))) -> 357.23 | E19: =IF(PlotControl!$B$4 = "Annual Max",MAX(OFFSET(Ndam!$C$10,12*$A19,4*(PlotControl!$C$6-1),12,1)),AVERAGE(OFFSET(Ndam!$C$10,12*$A19,4*(PlotControl!$C$6-1),12,1))) -> 3.2201 | F19: =IF(PlotControl!$B$4 = "Annual Max",MAX(OFFSET(Ndam!$D$10,12*$A19,4*(PlotControl!$C$6-1),12,1)),AVERAGE(OFFSET(Ndam!$D$10,12*$A19,4*(PlotControl!$C$6-1),12,1))) -> 3.708 | G19: =IF(PlotControl!$B$4 = "Annual Max",MAX(OFFSET(Ndam!$E$10,12*$A19,4*(PlotControl!$C$6-1),12,1)),AVERAGE(OFFSET(Ndam!$E$10,12*$A19,4*(PlotControl!$C$6-1),12,1))) -> 4.4375 | H19: =IF(PlotControl!$B$4 = "Annual Max",MAX(OFFSET(Ebeach!$C$10,12*$A19,4*(PlotControl!$C$6-1),12,1)),AVERAGE(OFFSET(Ebeach!$C$10,12*$A19,4*(PlotControl!$C$6-1),12,1))) -> 300.21 | I19: =IF(PlotControl!$B$4 = "Annual Max",MAX(OFFSET(Ebeach!$D$10,12*$A19,4*(PlotControl!$C$6-1),12,1)),AVERAGE(OFFSET(Ebeach!$D$10,12*$A19,4*(PlotControl!$C$6-1),12,1))) -> 331.15 | J19: =IF(PlotControl!$B$4 = "Annual Max",MAX(OFFSET(Ebeach!$E$10,12*$A19,4*(PlotControl!$C$6-1),12,1)),AVERAGE(OFFSET(Ebeach!$E$10,12*$A19,4*(PlotControl!$C$6-1),12,1))) -> 361.78 | K19: =IF(PlotControl!$B$4 = "Annual Max",MAX(OFFSET(Edam!$C$10,12*$A19,4*(PlotControl!$C$6-1),12,1)),AVERAGE(OFFSET(Edam!$C$10,12*$A19,4*(PlotControl!$C$6-1),12,1))) -> 3.9212 | L19: =IF(PlotControl!$B$4 = "Annual Max",MAX(OFFSET(Edam!$D$10,12*$A19,4*(PlotControl!$C$6-1),12,1)),AVERAGE(OFFSET(Edam!$D$10,12*$A19,4*(PlotControl!$C$6-1),12,1))) -> 4.8548 | M19: =IF(PlotControl!$B$4 = "Annual Max",MAX(OFFSET(Edam!$E$10,12*$A19,4*(PlotControl!$C$6-1),12,1)),AVERAGE(OFFSET(Edam!$E$10,12*$A19,4*(PlotControl!$C$6-1),12,1))) -> 6.2459 | N19: =IF(PlotControl!$B$4 = "Annual Max",MAX(OFFSET(Sbeach!$C$10,12*$A19,4*(PlotControl!$C$6-1),12,1)),AVERAGE(OFFSET(Sbeach!$C$10,12*$A19,4*(PlotControl!$C$6-1),12,1))) -> 163.04 | O19: =IF(PlotControl!$B$4 = "Annual Max",MAX(OFFSET(Sbeach!$D$10,12*$A19,4*(PlotControl!$C$6-1),12,1)),AVERAGE(OFFSET(Sbeach!$D$10,12*$A19,4*(PlotControl!$C$6-1),12,1))) -> 303.38 | P19: =IF(PlotControl!$B$4 = "Annual Max",MAX(OFFSET(Sbeach!$E$10,12*$A19,4*(PlotControl!$C$6-1),12,1)),AVERAGE(OFFSET(Sbeach!$E$10,12*$A19,4*(PlotControl!$C$6-1),12,1))) -> 356.19 | Q19: =IF(PlotControl!$B$4 = "Annual Max",MAX(OFFSET(Sdam!$C$10,12*$A19,4*(PlotControl!$C$6-1),12,1)),AVERAGE(OFFSET(Sdam!$C$10,12*$A19,4*(PlotControl!$C$6-1),12,1))) -> 1.8498 | R19: =IF(PlotControl!$B$4 = "Annual Max",MAX(OFFSET(Sdam!$D$10,12*$A19,4*(PlotControl!$C$6-1),12,1)),AVERAGE(OFFSET(Sdam!$D$10,12*$A19,4*(PlotControl!$C$6-1),12,1))) -> 2.1476 | S19: =IF(PlotControl!$B$4 = "Annual Max",MAX(OFFSET(Sdam!$E$10,12*$A19,4*(PlotControl!$C$6-1),12,1)),AVERAGE(OFFSET(Sdam!$E$10,12*$A19,4*(PlotControl!$C$6-1),12,1))) -> 2.6246 | T19: =IF(PlotControl!$B$4 = "Annual Max",MAX(OFFSET(Cbeach!$C$10,12*$A19,4*(PlotControl!$C$6-1),12,1)),AVERAGE(OFFSET(Cbeach!$C$10,12*$A19,4*(PlotControl!$C$6-1),12,1))) -> 0 | U19: =IF(PlotControl!$B$4 = "Annual Max",MAX(OFFSET(Cbeach!$D$10,12*$A19,4*(PlotControl!$C$6-1),12,1)),AVERAGE(OFFSET(Cbeach!$D$10,12*$A19,4*(PlotControl!$C$6-1),12,1))) -> 0 | V19: =IF(PlotControl!$B$4 = "Annual Max",MAX(OFFSET(Cbeach!$E$10,12*$A19,4*(PlotControl!$C$6-1),12,1)),AVERAGE(OFFSET(Cbeach!$E$10,12*$A19,4*(PlotControl!$C$6-1),12,1))) -> 0
A20: 15 | B20: =IF(PlotControl!$B$4 = "Annual Max",MAX(OFFSET(Nbeach!$C$10,12*$A20,4*(PlotControl!$C$6-1),12,1)),AVERAGE(OFFSET(Nbeach!$C$10,12*$A20,4*(PlotControl!$C$6-1),12,1))) -> 161.2 | C20: =IF(PlotControl!$B$4 = "Annual Max",MAX(OFFSET(Nbeach!$D$10,12*$A20,4*(PlotControl!$C$6-1),12,1)),AVERAGE(OFFSET(Nbeach!$D$10,12*$A20,4*(PlotControl!$C$6-1),12,1))) -> 308.57 | D20: =IF(PlotControl!$B$4 = "Annual Max",MAX(OFFSET(Nbeach!$E$10,12*$A20,4*(PlotControl!$C$6-1),12,1)),AVERAGE(OFFSET(Nbeach!$E$10,12*$A20,4*(PlotControl!$C$6-1),12,1))) -> 358.12 | E20: =IF(PlotControl!$B$4 = "Annual Max",MAX(OFFSET(Ndam!$C$10,12*$A20,4*(PlotControl!$C$6-1),12,1)),AVERAGE(OFFSET(Ndam!$C$10,12*$A20,4*(PlotControl!$C$6-1),12,1))) -> 3.2412 | F20: =IF(PlotControl!$B$4 = "Annual Max",MAX(OFFSET(Ndam!$D$10,12*$A20,4*(PlotControl!$C$6-1),12,1)),AVERAGE(OFFSET(Ndam!$D$10,12*$A20,4*(PlotControl!$C$6-1),12,1))) -> 3.7313 | G20: =IF(PlotControl!$B$4 = "Annual Max",MAX(OFFSET(Ndam!$E$10,12*$A20,4*(PlotControl!$C$6-1),12,1)),AVERAGE(OFFSET(Ndam!$E$10,12*$A20,4*(PlotControl!$C$6-1),12,1))) -> 4.4241 | H20: =IF(PlotControl!$B$4 = "Annual Max",MAX(OFFSET(Ebeach!$C$10,12*$A20,4*(PlotControl!$C$6-1),12,1)),AVERAGE(OFFSET(Ebeach!$C$10,12*$A20,4*(PlotControl!$C$6-1),12,1))) -> 299.34 | I20: =IF(PlotControl!$B$4 = "Annual Max",MAX(OFFSET(Ebeach!$D$10,12*$A20,4*(PlotControl!$C$6-1),12,1)),AVERAGE(OFFSET(Ebeach!$D$10,12*$A20,4*(PlotControl!$C$6-1),12,1))) -> 330.57 | J20: =IF(PlotControl!$B$4 = "Annual Max",MAX(OFFSET(Ebeach!$E$10,12*$A20,4*(PlotControl!$C$6-1),12,1)),AVERAGE(OFFSET(Ebeach!$E$10,12*$A20,4*(PlotControl!$C$6-1),12,1))) -> 361.42 | K20: =IF(PlotControl!$B$4 = "Annual Max",MAX(OFFSET(Edam!$C$10,12*$A20,4*(PlotControl!$C$6-1),12,1)),AVERAGE(OFFSET(Edam!$C$10,12*$A20,4*(PlotControl!$C$6-1),12,1))) -> 3.9092 | L20: =IF(PlotControl!$B$4 = "Annual Max",MAX(OFFSET(Edam!$D$10,12*$A20,4*(PlotControl!$C$6-1),12,1)),AVERAGE(OFFSET(Edam!$D$10,12*$A20,4*(PlotControl!$C$6-1),12,1))) -> 4.8392 | M20: =IF(PlotControl!$B$4 = "Annual Max",MAX(OFFSET(Edam!$E$10,12*$A20,4*(PlotControl!$C$6-1),12,1)),AVERAGE(OFFSET(Edam!$E$10,12*$A20,4*(PlotControl!$C$6-1),12,1))) -> 6.1525 | N20: =IF(PlotControl!$B$4 = "Annual Max",MAX(OFFSET(Sbeach!$C$10,12*$A20,4*(PlotControl!$C$6-1),12,1)),AVERAGE(OFFSET(Sbeach!$C$10,12*$A20,4*(PlotControl!$C$6-1),12,1))) -> 161.09 | O20: =IF(PlotControl!$B$4 = "Annual Max",MAX(OFFSET(Sbeach!$D$10,12*$A20,4*(PlotControl!$C$6-1),12,1)),AVERAGE(OFFSET(Sbeach!$D$10,12*$A20,4*(PlotControl!$C$6-1),12,1))) -> 304.26 | P20: =IF(PlotControl!$B$4 = "Annual Max",MAX(OFFSET(Sbeach!$E$10,12*$A20,4*(PlotControl!$C$6-1),12,1)),AVERAGE(OFFSET(Sbeach!$E$10,12*$A20,4*(PlotControl!$C$6-1),12,1))) -> 356.19 | Q20: =IF(PlotControl!$B$4 = "Annual Max",MAX(OFFSET(Sdam!$C$10,12*$A20,4*(PlotControl!$C$6-1),12,1)),AVERAGE(OFFSET(Sdam!$C$10,12*$A20,4*(PlotControl!$C$6-1),12,1))) -> 1.8219 | R20: =IF(PlotControl!$B$4 = "Annual Max",MAX(OFFSET(Sdam!$D$10,12*$A20,4*(PlotControl!$C$6-1),12,1)),AVERAGE(OFFSET(Sdam!$D$10,12*$A20,4*(PlotControl!$C$6-1),12,1))) -> 2.1037 | S20: =IF(PlotControl!$B$4 = "Annual Max",MAX(OFFSET(Sdam!$E$10,12*$A20,4*(PlotControl!$C$6-1),12,1)),AVERAGE(OFFSET(Sdam!$E$10,12*$A20,4*(PlotControl!$C$6-1),12,1))) -> 2.5459 | T20: =IF(PlotControl!$B$4 = "Annual Max",MAX(OFFSET(Cbeach!$C$10,12*$A20,4*(PlotControl!$C$6-1),12,1)),AVERAGE(OFFSET(Cbeach!$C$10,12*$A20,4*(PlotControl!$C$6-1),12,1))) -> 0 | U20: =IF(PlotControl!$B$4 = "Annual Max",MAX(OFFSET(Cbeach!$D$10,12*$A20,4*(PlotControl!$C$6-1),12,1)),AVERAGE(OFFSET(Cbeach!$D$10,12*$A20,4*(PlotControl!$C$6-1),12,1))) -> 0 | V20: =IF(PlotControl!$B$4 = "Annual Max",MAX(OFFSET(Cbeach!$E$10,12*$A20,4*(PlotControl!$C$6-1),12,1)),AVERAGE(OFFSET(Cbeach!$E$10,12*$A20,4*(PlotControl!$C$6-1),12,1))) -> 0
A21: 16 | B21: =IF(PlotControl!$B$4 = "Annual Max",MAX(OFFSET(Nbeach!$C$10,12*$A21,4*(PlotControl!$C$6-1),12,1)),AVERAGE(OFFSET(Nbeach!$C$10,12*$A21,4*(PlotControl!$C$6-1),12,1))) -> 152.01 | C21: =IF(PlotControl!$B$4 = "Annual Max",MAX(OFFSET(Nbeach!$D$10,12*$A21,4*(PlotControl!$C$6-1),12,1)),AVERAGE(OFFSET(Nbeach!$D$10,12*$A21,4*(PlotControl!$C$6-1),12,1))) -> 307.88 | D21: =IF(PlotControl!$B$4 = "Annual Max",MAX(OFFSET(Nbeach!$E$10,12*$A21,4*(PlotControl!$C$6-1),12,1)),AVERAGE(OFFSET(Nbeach!$E$10,12*$A21,4*(PlotControl!$C$6-1),12,1))) -> 357.59 | E21: =IF(PlotControl!$B$4 = "Annual Max",MAX(OFFSET(Ndam!$C$10,12*$A21,4*(PlotControl!$C$6-1),12,1)),AVERAGE(OFFSET(Ndam!$C$10,12*$A21,4*(PlotControl!$C$6-1),12,1))) -> 3.2654 | F21: =IF(PlotControl!$B$4 = "Annual Max",MAX(OFFSET(Ndam!$D$10,12*$A21,4*(PlotControl!$C$6-1),12,1)),AVERAGE(OFFSET(Ndam!$D$10,12*$A21,4*(PlotControl!$C$6-1),12,1))) -> 3.6985 | G21: =IF(PlotControl!$B$4 = "Annual Max",MAX(OFFSET(Ndam!$E$10,12*$A21,4*(PlotControl!$C$6-1),12,1)),AVERAGE(OFFSET(Ndam!$E$10,12*$A21,4*(PlotControl!$C$6-1),12,1))) -> 4.39 | H21: =IF(PlotControl!$B$4 = "Annual Max",MAX(OFFSET(Ebeach!$C$10,12*$A21,4*(PlotControl!$C$6-1),12,1)),AVERAGE(OFFSET(Ebeach!$C$10,12*$A21,4*(PlotControl!$C$6-1),12,1))) -> 298.52 | I21: =IF(PlotControl!$B$4 = "Annual Max",MAX(OFFSET(Ebeach!$D$10,12*$A21,4*(PlotControl!$C$6-1),12,1)),AVERAGE(OFFSET(Ebeach!$D$10,12*$A21,4*(PlotControl!$C$6-1),12,1))) -> 329.64 | J21: =IF(PlotControl!$B$4 = "Annual Max",MAX(OFFSET(Ebeach!$E$10,12*$A21,4*(PlotControl!$C$6-1),12,1)),AVERAGE(OFFSET(Ebeach!$E$10,12*$A21,4*(PlotControl!$C$6-1),12,1))) -> 361.29 | K21: =IF(PlotControl!$B$4 = "Annual Max",MAX(OFFSET(Edam!$C$10,12*$A21,4*(PlotControl!$C$6-1),12,1)),AVERAGE(OFFSET(Edam!$C$10,12*$A21,4*(PlotControl!$C$6-1),12,1))) -> 3.8295 | L21: =IF(PlotControl!$B$4 = "Annual Max",MAX(OFFSET(Edam!$D$10,12*$A21,4*(PlotControl!$C$6-1),12,1)),AVERAGE(OFFSET(Edam!$D$10,12*$A21,4*(PlotControl!$C$6-1),12,1))) -> 4.6278 | M21: =IF(PlotControl!$B$4 = "Annual Max",MAX(OFFSET(Edam!$E$10,12*$A21,4*(PlotControl!$C$6-1),12,1)),AVERAGE(OFFSET(Edam!$E$10,12*$A21,4*(PlotControl!$C$6-1),12,1))) -> 5.7044 | N21: =IF(PlotControl!$B$4 = "Annual Max",MAX(OFFSET(Sbeach!$C$10,12*$A21,4*(PlotControl!$C$6-1),12,1)),AVERAGE(OFFSET(Sbeach!$C$10,12*$A21,4*(PlotControl!$C$6-1),12,1))) -> 151.01 | O21: =IF(PlotControl!$B$4 = "Annual Max",MAX(OFFSET(Sbeach!$D$10,12*$A21,4*(PlotControl!$C$6-1),12,1)),AVERAGE(OFFSET(Sbeach!$D$10,12*$A21,4*(PlotControl!$C$6-1),12,1))) -> 302.7 | P21: =IF(PlotControl!$B$4 = "Annual Max",MAX(OFFSET(Sbeach!$E$10,12*$A21,4*(PlotControl!$C$6-1),12,1)),AVERAGE(OFFSET(Sbeach!$E$10,12*$A21,4*(PlotControl!$C$6-1),12,1))) -> 355.92 | Q21: =IF(PlotControl!$B$4 = "Annual Max",MAX(OFFSET(Sdam!$C$10,12*$A21,4*(PlotControl!$C$6-1),12,1)),AVERAGE(OFFSET(Sdam!$C$10,12*$A21,4*(PlotControl!$C$6-1),12,1))) -> 1.9016 | R21: =IF(PlotControl!$B$4 = "Annual Max",MAX(OFFSET(Sdam!$D$10,12*$A21,4*(PlotControl!$C$6-1),12,1)),AVERAGE(OFFSET(Sdam!$D$10,12*$A21,4*(PlotControl!$C$6-1),12,1))) -> 2.1898 | S21: =IF(PlotControl!$B$4 = "Annual Max",MAX(OFFSET(Sdam!$E$10,12*$A21,4*(PlotControl!$C$6-1),12,1)),AVERAGE(OFFSET(Sdam!$E$10,12*$A21,4*(PlotControl!$C$6-1),12,1))) -> 2.5853 | T21: =IF(PlotControl!$B$4 = "Annual Max",MAX(OFFSET(Cbeach!$C$10,12*$A21,4*(PlotControl!$C$6-1),12,1)),AVERAGE(OFFSET(Cbeach!$C$10,12*$A21,4*(PlotControl!$C$6-1),12,1))) -> 0 | U21: =IF(PlotControl!$B$4 = "Annual Max",MAX(OFFSET(Cbeach!$D$10,12*$A21,4*(PlotControl!$C$6-1),12,1)),AVERAGE(OFFSET(Cbeach!$D$10,12*$A21,4*(PlotControl!$C$6-1),12,1))) -> 0 | V21: =IF(PlotControl!$B$4 = "Annual Max",MAX(OFFSET(Cbeach!$E$10,12*$A21,4*(PlotControl!$C$6-1),12,1)),AVERAGE(OFFSET(Cbeach!$E$10,12*$A21,4*(PlotControl!$C$6-1),12,1))) -> 0
A22: 17 | B22: =IF(PlotControl!$B$4 = "Annual Max",MAX(OFFSET(Nbeach!$C$10,12*$A22,4*(PlotControl!$C$6-1),12,1)),AVERAGE(OFFSET(Nbeach!$C$10,12*$A22,4*(PlotControl!$C$6-1),12,1))) -> 138.77 | C22: =IF(PlotControl!$B$4 = "Annual Max",MAX(OFFSET(Nbeach!$D$10,12*$A22,4*(PlotControl!$C$6-1),12,1)),AVERAGE(OFFSET(Nbeach!$D$10,12*$A22,4*(PlotControl!$C$6-1),12,1))) -> 306.2 | D22: =IF(PlotControl!$B$4 = "Annual Max",MAX(OFFSET(Nbeach!$E$10,12*$A22,4*(PlotControl!$C$6-1),12,1)),AVERAGE(OFFSET(Nbeach!$E$10,12*$A22,4*(PlotControl!$C$6-1),12,1))) -> 357.23 | E22: =IF(PlotControl!$B$4 = "Annual Max",MAX(OFFSET(Ndam!$C$10,12*$A22,4*(PlotControl!$C$6-1),12,1)),AVERAGE(OFFSET(Ndam!$C$10,12*$A22,4*(PlotControl!$C$6-1),12,1))) -> 3.2224 | F22: =IF(PlotControl!$B$4 = "Annual Max",MAX(OFFSET(Ndam!$D$10,12*$A22,4*(PlotControl!$C$6-1),12,1)),AVERAGE(OFFSET(Ndam!$D$10,12*$A22,4*(PlotControl!$C$6-1),12,1))) -> 3.7155 | G22: =IF(PlotControl!$B$4 = "Annual Max",MAX(OFFSET(Ndam!$E$10,12*$A22,4*(PlotControl!$C$6-1),12,1)),AVERAGE(OFFSET(Ndam!$E$10,12*$A22,4*(PlotControl!$C$6-1),12,1))) -> 4.4186 | H22: =IF(PlotControl!$B$4 = "Annual Max",MAX(OFFSET(Ebeach!$C$10,12*$A22,4*(PlotControl!$C$6-1),12,1)),AVERAGE(OFFSET(Ebeach!$C$10,12*$A22,4*(PlotControl!$C$6-1),12,1))) -> 297.43 | I22: =IF(PlotControl!$B$4 = "Annual Max",MAX(OFFSET(Ebeach!$D$10,12*$A22,4*(PlotControl!$C$6-1),12,1)),AVERAGE(OFFSET(Ebeach!$D$10,12*$A22,4*(PlotControl!$C$6-1),12,1))) -> 328.26 | J22: =IF(PlotControl!$B$4 = "Annual Max",MAX(OFFSET(Ebeach!$E$10,12*$A22,4*(PlotControl!$C$6-1),12,1)),AVERAGE(OFFSET(Ebeach!$E$10,12*$A22,4*(PlotControl!$C$6-1),12,1))) -> 360.73 | K22: =IF(PlotControl!$B$4 = "Annual Max",MAX(OFFSET(Edam!$C$10,12*$A22,4*(PlotControl!$C$6-1),12,1)),AVERAGE(OFFSET(Edam!$C$10,12*$A22,4*(PlotControl!$C$6-1),12,1))) -> 3.6923 | L22: =IF(PlotControl!$B$4 = "Annual Max",MAX(OFFSET(Edam!$D$10,12*$A22,4*(PlotControl!$C$6-1),12,1)),AVERAGE(OFFSET(Edam!$D$10,12*$A22,4*(PlotControl!$C$6-1),12,1))) -> 4.4721 | M22: =IF(PlotControl!$B$4 = "Annual Max",MAX(OFFSET(Edam!$E$10,12*$A22,4*(PlotControl!$C$6-1),12,1)),AVERAGE(OFFSET(Edam!$E$10,12*$A22,4*(PlotControl!$C$6-1),12,1))) -> 5.6077 | N22: =IF(PlotControl!$B$4 = "Annual Max",MAX(OFFSET(Sbeach!$C$10,12*$A22,4*(PlotControl!$C$6-1),12,1)),AVERAGE(OFFSET(Sbeach!$C$10,12*$A22,4*(PlotControl!$C$6-1),12,1))) -> 133.74 | O22: =IF(PlotControl!$B$4 = "Annual Max",MAX(OFFSET(Sbeach!$D$10,12*$A22,4*(PlotControl!$C$6-1),12,1)),AVERAGE(OFFSET(Sbeach!$D$10,12*$A22,4*(PlotControl!$C$6-1),12,1))) -> 298.52 | P22: =IF(PlotControl!$B$4 = "Annual Max",MAX(OFFSET(Sbeach!$E$10,12*$A22,4*(PlotControl!$C$6-1),12,1)),AVERAGE(OFFSET(Sbeach!$E$10,12*$A22,4*(PlotControl!$C$6-1),12,1))) -> 355.54 | Q22: =IF(PlotControl!$B$4 = "Annual Max",MAX(OFFSET(Sdam!$C$10,12*$A22,4*(PlotControl!$C$6-1),12,1)),AVERAGE(OFFSET(Sdam!$C$10,12*$A22,4*(PlotControl!$C$6-1),12,1))) -> 1.9614 | R22: =IF(PlotControl!$B$4 = "Annual Max",MAX(OFFSET(Sdam!$D$10,12*$A22,4*(PlotControl!$C$6-1),12,1)),AVERAGE(OFFSET(Sdam!$D$10,12*$A22,4*(PlotControl!$C$6-1),12,1))) -> 2.2682 | S22: =IF(PlotControl!$B$4 = "Annual Max",MAX(OFFSET(Sdam!$E$10,12*$A22,4*(PlotControl!$C$6-1),12,1)),AVERAGE(OFFSET(Sdam!$E$10,12*$A22,4*(PlotControl!$C$6-1),12,1))) -> 2.73 | T22: =IF(PlotControl!$B$4 = "Annual Max",MAX(OFFSET(Cbeach!$C$10,12*$A22,4*(PlotControl!$C$6-1),12,1)),AVERAGE(OFFSET(Cbeach!$C$10,12*$A22,4*(PlotControl!$C$6-1),12,1))) -> 0 | U22: =IF(PlotControl!$B$4 = "Annual Max",MAX(OFFSET(Cbeach!$D$10,12*$A22,4*(PlotControl!$C$6-1),12,1)),AVERAGE(OFFSET(Cbeach!$D$10,12*$A22,4*(PlotControl!$C$6-1),12,1))) -> 0 | V22: =IF(PlotControl!$B$4 = "Annual Max",MAX(OFFSET(Cbeach!$E$10,12*$A22,4*(PlotControl!$C$6-1),12,1)),AVERAGE(OFFSET(Cbeach!$E$10,12*$A22,4*(PlotControl!$C$6-1),12,1))) -> 0
A23: 18 | B23: =IF(PlotControl!$B$4 = "Annual Max",MAX(OFFSET(Nbeach!$C$10,12*$A23,4*(PlotControl!$C$6-1),12,1)),AVERAGE(OFFSET(Nbeach!$C$10,12*$A23,4*(PlotControl!$C$6-1),12,1))) -> 127.95 | C23: =IF(PlotControl!$B$4 = "Annual Max",MAX(OFFSET(Nbeach!$D$10,12*$A23,4*(PlotControl!$C$6-1),12,1)),AVERAGE(OFFSET(Nbeach!$D$10,12*$A23,4*(PlotControl!$C$6-1),12,1))) -> 306.73 | D23: =IF(PlotControl!$B$4 = "Annual Max",MAX(OFFSET(Nbeach!$E$10,12*$A23,4*(PlotControl!$C$6-1),12,1)),AVERAGE(OFFSET(Nbeach!$E$10,12*$A23,4*(PlotControl!$C$6-1),12,1))) -> 357.59 | E23: =IF(PlotControl!$B$4 = "Annual Max",MAX(OFFSET(Ndam!$C$10,12*$A23,4*(PlotControl!$C$6-1),12,1)),AVERAGE(OFFSET(Ndam!$C$10,12*$A23,4*(PlotControl!$C$6-1),12,1))) -> 3.1926 | F23: =IF(PlotControl!$B$4 = "Annual Max",MAX(OFFSET(Ndam!$D$10,12*$A23,4*(PlotControl!$C$6-1),12,1)),AVERAGE(OFFSET(Ndam!$D$10,12*$A23,4*(PlotControl!$C$6-1),12,1))) -> 3.6814 | G23: =IF(PlotControl!$B$4 = "Annual Max",MAX(OFFSET(Ndam!$E$10,12*$A23,4*(PlotControl!$C$6-1),12,1)),AVERAGE(OFFSET(Ndam!$E$10,12*$A23,4*(PlotControl!$C$6-1),12,1))) -> 4.4476 | H23: =IF(PlotControl!$B$4 = "Annual Max",MAX(OFFSET(Ebeach!$C$10,12*$A23,4*(PlotControl!$C$6-1),12,1)),AVERAGE(OFFSET(Ebeach!$C$10,12*$A23,4*(PlotControl!$C$6-1),12,1))) -> 294.53 | I23: =IF(PlotControl!$B$4 = "Annual Max",MAX(OFFSET(Ebeach!$D$10,12*$A23,4*(PlotControl!$C$6-1),12,1)),AVERAGE(OFFSET(Ebeach!$D$10,12*$A23,4*(PlotControl!$C$6-1),12,1))) -> 327 | J23: =IF(PlotControl!$B$4 = "Annual Max",MAX(OFFSET(Ebeach!$E$10,12*$A23,4*(PlotControl!$C$6-1),12,1)),AVERAGE(OFFSET(Ebeach!$E$10,12*$A23,4*(PlotControl!$C$6-1),12,1))) -> 360.49 | K23: =IF(PlotControl!$B$4 = "Annual Max",MAX(OFFSET(Edam!$C$10,12*$A23,4*(PlotControl!$C$6-1),12,1)),AVERAGE(OFFSET(Edam!$C$10,12*$A23,4*(PlotControl!$C$6-1),12,1))) -> 3.5423 | L23: =IF(PlotControl!$B$4 = "Annual Max",MAX(OFFSET(Edam!$D$10,12*$A23,4*(PlotControl!$C$6-1),12,1)),AVERAGE(OFFSET(Edam!$D$10,12*$A23,4*(PlotControl!$C$6-1),12,1))) -> 4.3174 | M23: =IF(PlotControl!$B$4 = "Annual Max",MAX(OFFSET(Edam!$E$10,12*$A23,4*(PlotControl!$C$6-1),12,1)),AVERAGE(OFFSET(Edam!$E$10,12*$A23,4*(PlotControl!$C$6-1),12,1))) -> 5.505 | N23: =IF(PlotControl!$B$4 = "Annual Max",MAX(OFFSET(Sbeach!$C$10,12*$A23,4*(PlotControl!$C$6-1),12,1)),AVERAGE(OFFSET(Sbeach!$C$10,12*$A23,4*(PlotControl!$C$6-1),12,1))) -> 134.52 | O23: =IF(PlotControl!$B$4 = "Annual Max",MAX(OFFSET(Sbeach!$D$10,12*$A23,4*(PlotControl!$C$6-1),12,1)),AVERAGE(OFFSET(Sbeach!$D$10,12*$A23,4*(PlotControl!$C$6-1),12,1))) -> 304.06 | P23: =IF(PlotControl!$B$4 = "Annual Max",MAX(OFFSET(Sbeach!$E$10,12*$A23,4*(PlotControl!$C$6-1),12,1)),AVERAGE(OFFSET(Sbeach!$E$10,12*$A23,4*(PlotControl!$C$6-1),12,1))) -> 356.46 | Q23: =IF(PlotControl!$B$4 = "Annual Max",MAX(OFFSET(Sdam!$C$10,12*$A23,4*(PlotControl!$C$6-1),12,1)),AVERAGE(OFFSET(Sdam!$C$10,12*$A23,4*(PlotControl!$C$6-1),12,1))) -> 1.9835 | R23: =IF(PlotControl!$B$4 = "Annual Max",MAX(OFFSET(Sdam!$D$10,12*$A23,4*(PlotControl!$C$6-1),12,1)),AVERAGE(OFFSET(Sdam!$D$10,12*$A23,4*(PlotControl!$C$6-1),12,1))) -> 2.295 | S23: =IF(PlotControl!$B$4 = "Annual Max",MAX(OFFSET(Sdam!$E$10,12*$A23,4*(PlotControl!$C$6-1),12,1)),AVERAGE(OFFSET(Sdam!$E$10,12*$A23,4*(PlotControl!$C$6-1),12,1))) -> 2.7561 | T23: =IF(PlotControl!$B$4 = "Annual Max",MAX(OFFSET(Cbeach!$C$10,12*$A23,4*(PlotControl!$C$6-1),12,1)),AVERAGE(OFFSET(Cbeach!$C$10,12*$A23,4*(PlotControl!$C$6-1),12,1))) -> 130.08 | U23: =IF(PlotControl!$B$4 = "Annual Max",MAX(OFFSET(Cbeach!$D$10,12*$A23,4*(PlotControl!$C$6-1),12,1)),AVERAGE(OFFSET(Cbeach!$D$10,12*$A23,4*(PlotControl!$C$6-1),12,1))) -> 226.93 | V23: =IF(PlotControl!$B$4 = "Annual Max",MAX(OFFSET(Cbeach!$E$10,12*$A23,4*(PlotControl!$C$6-1),12,1)),AVERAGE(OFFSET(Cbeach!$E$10,12*$A23,4*(PlotControl!$C$6-1),12,1))) -> 343.9
A24: 19 | B24: =IF(PlotControl!$B$4 = "Annual Max",MAX(OFFSET(Nbeach!$C$10,12*$A24,4*(PlotControl!$C$6-1),12,1)),AVERAGE(OFFSET(Nbeach!$C$10,12*$A24,4*(PlotControl!$C$6-1),12,1))) -> 154.41 | C24: =IF(PlotControl!$B$4 = "Annual Max",MAX(OFFSET(Nbeach!$D$10,12*$A24,4*(PlotControl!$C$6-1),12,1)),AVERAGE(OFFSET(Nbeach!$D$10,12*$A24,4*(PlotControl!$C$6-1),12,1))) -> 312.48 | D24: =IF(PlotControl!$B$4 = "Annual Max",MAX(OFFSET(Nbeach!$E$10,12*$A24,4*(PlotControl!$C$6-1),12,1)),AVERAGE(OFFSET(Nbeach!$E$10,12*$A24,4*(PlotControl!$C$6-1),12,1))) -> 358.28 | E24: =IF(PlotControl!$B$4 = "Annual Max",MAX(OFFSET(Ndam!$C$10,12*$A24,4*(PlotControl!$C$6-1),12,1)),AVERAGE(OFFSET(Ndam!$C$10,12*$A24,4*(PlotControl!$C$6-1),12,1))) -> 3.1331 | F24: =IF(PlotControl!$B$4 = "Annual Max",MAX(OFFSET(Ndam!$D$10,12*$A24,4*(PlotControl!$C$6-1),12,1)),AVERAGE(OFFSET(Ndam!$D$10,12*$A24,4*(PlotControl!$C$6-1),12,1))) -> 3.6237 | G24: =IF(PlotControl!$B$4 = "Annual Max",MAX(OFFSET(Ndam!$E$10,12*$A24,4*(PlotControl!$C$6-1),12,1)),AVERAGE(OFFSET(Ndam!$E$10,12*$A24,4*(PlotControl!$C$6-1),12,1))) -> 4.3733 | H24: =IF(PlotControl!$B$4 = "Annual Max",MAX(OFFSET(Ebeach!$C$10,12*$A24,4*(PlotControl!$C$6-1),12,1)),AVERAGE(OFFSET(Ebeach!$C$10,12*$A24,4*(PlotControl!$C$6-1),12,1))) -> 292.88 | I24: =IF(PlotControl!$B$4 = "Annual Max",MAX(OFFSET(Ebeach!$D$10,12*$A24,4*(PlotControl!$C$6-1),12,1)),AVERAGE(OFFSET(Ebeach!$D$10,12*$A24,4*(PlotControl!$C$6-1),12,1))) -> 326.43 | J24: =IF(PlotControl!$B$4 = "Annual Max",MAX(OFFSET(Ebeach!$E$10,12*$A24,4*(PlotControl!$C$6-1),12,1)),AVERAGE(OFFSET(Ebeach!$E$10,12*$A24,4*(PlotControl!$C$6-1),12,1))) -> 360.96 | K24: =IF(PlotControl!$B$4 = "Annual Max",MAX(OFFSET(Edam!$C$10,12*$A24,4*(PlotControl!$C$6-1),12,1)),AVERAGE(OFFSET(Edam!$C$10,12*$A24,4*(PlotControl!$C$6-1),12,1))) -> 3.3742 | L24: =IF(PlotControl!$B$4 = "Annual Max",MAX(OFFSET(Edam!$D$10,12*$A24,4*(PlotControl!$C$6-1),12,1)),AVERAGE(OFFSET(Edam!$D$10,12*$A24,4*(PlotControl!$C$6-1),12,1))) -> 4.158 | M24: =IF(PlotControl!$B$4 = "Annual Max",MAX(OFFSET(Edam!$E$10,12*$A24,4*(PlotControl!$C$6-1),12,1)),AVERAGE(OFFSET(Edam!$E$10,12*$A24,4*(PlotControl!$C$6-1),12,1))) -> 5.2823 | N24: =IF(PlotControl!$B$4 = "Annual Max",MAX(OFFSET(Sbeach!$C$10,12*$A24,4*(PlotControl!$C$6-1),12,1)),AVERAGE(OFFSET(Sbeach!$C$10,12*$A24,4*(PlotControl!$C$6-1),12,1))) -> 150.95 | O24: =IF(PlotControl!$B$4 = "Annual Max",MAX(OFFSET(Sbeach!$D$10,12*$A24,4*(PlotControl!$C$6-1),12,1)),AVERAGE(OFFSET(Sbeach!$D$10,12*$A24,4*(PlotControl!$C$6-1),12,1))) -> 310.28 | P24: =IF(PlotControl!$B$4 = "Annual Max",MAX(OFFSET(Sbeach!$E$10,12*$A24,4*(PlotControl!$C$6-1),12,1)),AVERAGE(OFFSET(Sbeach!$E$10,12*$A24,4*(PlotControl!$C$6-1),12,1))) -> 358.12 | Q24: =IF(PlotControl!$B$4 = "Annual Max",MAX(OFFSET(Sdam!$C$10,12*$A24,4*(PlotControl!$C$6-1),12,1)),AVERAGE(OFFSET(Sdam!$C$10,12*$A24,4*(PlotControl!$C$6-1),12,1))) -> 1.9529 | R24: =IF(PlotControl!$B$4 = "Annual Max",MAX(OFFSET(Sdam!$D$10,12*$A24,4*(PlotControl!$C$6-1),12,1)),AVERAGE(OFFSET(Sdam!$D$10,12*$A24,4*(PlotControl!$C$6-1),12,1))) -> 2.2822 | S24: =IF(PlotControl!$B$4 = "Annual Max",MAX(OFFSET(Sdam!$E$10,12*$A24,4*(PlotControl!$C$6-1),12,1)),AVERAGE(OFFSET(Sdam!$E$10,12*$A24,4*(PlotControl!$C$6-1),12,1))) -> 2.7621 | T24: =IF(PlotControl!$B$4 = "Annual Max",MAX(OFFSET(Cbeach!$C$10,12*$A24,4*(PlotControl!$C$6-1),12,1)),AVERAGE(OFFSET(Cbeach!$C$10,12*$A24,4*(PlotControl!$C$6-1),12,1))) -> 98.883 | U24: =IF(PlotControl!$B$4 = "Annual Max",MAX(OFFSET(Cbeach!$D$10,12*$A24,4*(PlotControl!$C$6-1),12,1)),AVERAGE(OFFSET(Cbeach!$D$10,12*$A24,4*(PlotControl!$C$6-1),12,1))) -> 201.8 | V24: =IF(PlotControl!$B$4 = "Annual Max",MAX(OFFSET(Cbeach!$E$10,12*$A24,4*(PlotControl!$C$6-1),12,1)),AVERAGE(OFFSET(Cbeach!$E$10,12*$A24,4*(PlotControl!$C$6-1),12,1))) -> 349.82
A25: 20 | B25: =IF(PlotControl!$B$4 = "Annual Max",MAX(OFFSET(Nbeach!$C$10,12*$A25,4*(PlotControl!$C$6-1),12,1)),AVERAGE(OFFSET(Nbeach!$C$10,12*$A25,4*(PlotControl!$C$6-1),12,1))) -> 159.21 | C25: =IF(PlotControl!$B$4 = "Annual Max",MAX(OFFSET(Nbeach!$D$10,12*$A25,4*(PlotControl!$C$6-1),12,1)),AVERAGE(OFFSET(Nbeach!$D$10,12*$A25,4*(PlotControl!$C$6-1),12,1))) -> 313.77 | D25: =IF(PlotControl!$B$4 = "Annual Max",MAX(OFFSET(Nbeach!$E$10,12*$A25,4*(PlotControl!$C$6-1),12,1)),AVERAGE(OFFSET(Nbeach!$E$10,12*$A25,4*(PlotControl!$C$6-1),12,1))) -> 358.45 | E25: =IF(PlotControl!$B$4 = "Annual Max",MAX(OFFSET(Ndam!$C$10,12*$A25,4*(PlotControl!$C$6-1),12,1)),AVERAGE(OFFSET(Ndam!$C$10,12*$A25,4*(PlotControl!$C$6-1),12,1))) -> 3.0569 | F25: =IF(PlotControl!$B$4 = "Annual Max",MAX(OFFSET(Ndam!$D$10,12*$A25,4*(PlotControl!$C$6-1),12,1)),AVERAGE(OFFSET(Ndam!$D$10,12*$A25,4*(PlotControl!$C$6-1),12,1))) -> 3.5411 | G25: =IF(PlotControl!$B$4 = "Annual Max",MAX(OFFSET(Ndam!$E$10,12*$A25,4*(PlotControl!$C$6-1),12,1)),AVERAGE(OFFSET(Ndam!$E$10,12*$A25,4*(PlotControl!$C$6-1),12,1))) -> 4.2558 | H25: =IF(PlotControl!$B$4 = "Annual Max",MAX(OFFSET(Ebeach!$C$10,12*$A25,4*(PlotControl!$C$6-1),12,1)),AVERAGE(OFFSET(Ebeach!$C$10,12*$A25,4*(PlotControl!$C$6-1),12,1))) -> 254.89 | I25: =IF(PlotControl!$B$4 = "Annual Max",MAX(OFFSET(Ebeach!$D$10,12*$A25,4*(PlotControl!$C$6-1),12,1)),AVERAGE(OFFSET(Ebeach!$D$10,12*$A25,4*(PlotControl!$C$6-1),12,1))) -> 318.28 | J25: =IF(PlotControl!$B$4 = "Annual Max",MAX(OFFSET(Ebeach!$E$10,12*$A25,4*(PlotControl!$C$6-1),12,1)),AVERAGE(OFFSET(Ebeach!$E$10,12*$A25,4*(PlotControl!$C$6-1),12,1))) -> 358.58 | K25: =IF(PlotControl!$B$4 = "Annual Max",MAX(OFFSET(Edam!$C$10,12*$A25,4*(PlotControl!$C$6-1),12,1)),AVERAGE(OFFSET(Edam!$C$10,12*$A25,4*(PlotControl!$C$6-1),12,1))) -> 3.1088 | L25: =IF(PlotControl!$B$4 = "Annual Max",MAX(OFFSET(Edam!$D$10,12*$A25,4*(PlotControl!$C$6-1),12,1)),AVERAGE(OFFSET(Edam!$D$10,12*$A25,4*(PlotControl!$C$6-1),12,1))) -> 3.8957 | M25: =IF(PlotControl!$B$4 = "Annual Max",MAX(OFFSET(Edam!$E$10,12*$A25,4*(PlotControl!$C$6-1),12,1)),AVERAGE(OFFSET(Edam!$E$10,12*$A25,4*(PlotControl!$C$6-1),12,1))) -> 5.1068 | N25: =IF(PlotControl!$B$4 = "Annual Max",MAX(OFFSET(Sbeach!$C$10,12*$A25,4*(PlotControl!$C$6-1),12,1)),AVERAGE(OFFSET(Sbeach!$C$10,12*$A25,4*(PlotControl!$C$6-1),12,1))) -> 101.14 | O25: =IF(PlotControl!$B$4 = "Annual Max",MAX(OFFSET(Sbeach!$D$10,12*$A25,4*(PlotControl!$C$6-1),12,1)),AVERAGE(OFFSET(Sbeach!$D$10,12*$A25,4*(PlotControl!$C$6-1),12,1))) -> 176.62 | P25: =IF(PlotControl!$B$4 = "Annual Max",MAX(OFFSET(Sbeach!$E$10,12*$A25,4*(PlotControl!$C$6-1),12,1)),AVERAGE(OFFSET(Sbeach!$E$10,12*$A25,4*(PlotControl!$C$6-1),12,1))) -> 348.88 | Q25: =IF(PlotControl!$B$4 = "Annual Max",MAX(OFFSET(Sdam!$C$10,12*$A25,4*(PlotControl!$C$6-1),12,1)),AVERAGE(OFFSET(Sdam!$C$10,12*$A25,4*(PlotControl!$C$6-1),12,1))) -> 1.8786 | R25: =IF(PlotControl!$B$4 = "Annual Max",MAX(OFFSET(Sdam!$D$10,12*$A25,4*(PlotControl!$C$6-1),12,1)),AVERAGE(OFFSET(Sdam!$D$10,12*$A25,4*(PlotControl!$C$6-1),12,1))) -> 2.2162 | S25: =IF(PlotControl!$B$4 = "Annual Max",MAX(OFFSET(Sdam!$E$10,12*$A25,4*(PlotControl!$C$6-1),12,1)),AVERAGE(OFFSET(Sdam!$E$10,12*$A25,4*(PlotControl!$C$6-1),12,1))) -> 2.7299 | T25: =IF(PlotControl!$B$4 = "Annual Max",MAX(OFFSET(Cbeach!$C$10,12*$A25,4*(PlotControl!$C$6-1),12,1)),AVERAGE(OFFSET(Cbeach!$C$10,12*$A25,4*(PlotControl!$C$6-1),12,1))) -> 96.132 | U25: =IF(PlotControl!$B$4 = "Annual Max",MAX(OFFSET(Cbeach!$D$10,12*$A25,4*(PlotControl!$C$6-1),12,1)),AVERAGE(OFFSET(Cbeach!$D$10,12*$A25,4*(PlotControl!$C$6-1),12,1))) -> 220.03 | V25: =IF(PlotControl!$B$4 = "Annual Max",MAX(OFFSET(Cbeach!$E$10,12*$A25,4*(PlotControl!$C$6-1),12,1)),AVERAGE(OFFSET(Cbeach!$E$10,12*$A25,4*(PlotControl!$C$6-1),12,1))) -> 350.58
A26: 21 | B26: =IF(PlotControl!$B$4 = "Annual Max",MAX(OFFSET(Nbeach!$C$10,12*$A26,4*(PlotControl!$C$6-1),12,1)),AVERAGE(OFFSET(Nbeach!$C$10,12*$A26,4*(PlotControl!$C$6-1),12,1))) -> 134.37 | C26: =IF(PlotControl!$B$4 = "Annual Max",MAX(OFFSET(Nbeach!$D$10,12*$A26,4*(PlotControl!$C$6-1),12,1)),AVERAGE(OFFSET(Nbeach!$D$10,12*$A26,4*(PlotControl!$C$6-1),12,1))) -> 311.55 | D26: =IF(PlotControl!$B$4 = "Annual Max",MAX(OFFSET(Nbeach!$E$10,12*$A26,4*(PlotControl!$C$6-1),12,1)),AVERAGE(OFFSET(Nbeach!$E$10,12*$A26,4*(PlotControl!$C$6-1),12,1))) -> 358.28 | E26: =IF(PlotControl!$B$4 = "Annual Max",MAX(OFFSET(Ndam!$C$10,12*$A26,4*(PlotControl!$C$6-1),12,1)),AVERAGE(OFFSET(Ndam!$C$10,12*$A26,4*(PlotControl!$C$6-1),12,1))) -> 2.8819 | F26: =IF(PlotControl!$B$4 = "Annual Max",MAX(OFFSET(Ndam!$D$10,12*$A26,4*(PlotControl!$C$6-1),12,1)),AVERAGE(OFFSET(Ndam!$D$10,12*$A26,4*(PlotControl!$C$6-1),12,1))) -> 3.3811 | G26: =IF(PlotControl!$B$4 = "Annual Max",MAX(OFFSET(Ndam!$E$10,12*$A26,4*(PlotControl!$C$6-1),12,1)),AVERAGE(OFFSET(Ndam!$E$10,12*$A26,4*(PlotControl!$C$6-1),12,1))) -> 4.0848 | H26: =IF(PlotControl!$B$4 = "Annual Max",MAX(OFFSET(Ebeach!$C$10,12*$A26,4*(PlotControl!$C$6-1),12,1)),AVERAGE(OFFSET(Ebeach!$C$10,12*$A26,4*(PlotControl!$C$6-1),12,1))) -> 110.24 | I26: =IF(PlotControl!$B$4 = "Annual Max",MAX(OFFSET(Ebeach!$D$10,12*$A26,4*(PlotControl!$C$6-1),12,1)),AVERAGE(OFFSET(Ebeach!$D$10,12*$A26,4*(PlotControl!$C$6-1),12,1))) -> 295.38 | J26: =IF(PlotControl!$B$4 = "Annual Max",MAX(OFFSET(Ebeach!$E$10,12*$A26,4*(PlotControl!$C$6-1),12,1)),AVERAGE(OFFSET(Ebeach!$E$10,12*$A26,4*(PlotControl!$C$6-1),12,1))) -> 352.3 | K26: =IF(PlotControl!$B$4 = "Annual Max",MAX(OFFSET(Edam!$C$10,12*$A26,4*(PlotControl!$C$6-1),12,1)),AVERAGE(OFFSET(Edam!$C$10,12*$A26,4*(PlotControl!$C$6-1),12,1))) -> 2.2671 | L26: =IF(PlotControl!$B$4 = "Annual Max",MAX(OFFSET(Edam!$D$10,12*$A26,4*(PlotControl!$C$6-1),12,1)),AVERAGE(OFFSET(Edam!$D$10,12*$A26,4*(PlotControl!$C$6-1),12,1))) -> 2.9811 | M26: =IF(PlotControl!$B$4 = "Annual Max",MAX(OFFSET(Edam!$E$10,12*$A26,4*(PlotControl!$C$6-1),12,1)),AVERAGE(OFFSET(Edam!$E$10,12*$A26,4*(PlotControl!$C$6-1),12,1))) -> 4.0064 | N26: =IF(PlotControl!$B$4 = "Annual Max",MAX(OFFSET(Sbeach!$C$10,12*$A26,4*(PlotControl!$C$6-1),12,1)),AVERAGE(OFFSET(Sbeach!$C$10,12*$A26,4*(PlotControl!$C$6-1),12,1))) -> 83.222 | O26: =IF(PlotControl!$B$4 = "Annual Max",MAX(OFFSET(Sbeach!$D$10,12*$A26,4*(PlotControl!$C$6-1),12,1)),AVERAGE(OFFSET(Sbeach!$D$10,12*$A26,4*(PlotControl!$C$6-1),12,1))) -> 167.49 | P26: =IF(PlotControl!$B$4 = "Annual Max",MAX(OFFSET(Sbeach!$E$10,12*$A26,4*(PlotControl!$C$6-1),12,1)),AVERAGE(OFFSET(Sbeach!$E$10,12*$A26,4*(PlotControl!$C$6-1),12,1))) -> 348.88 | Q26: =IF(PlotControl!$B$4 = "Annual Max",MAX(OFFSET(Sdam!$C$10,12*$A26,4*(PlotControl!$C$6-1),12,1)),AVERAGE(OFFSET(Sdam!$C$10,12*$A26,4*(PlotControl!$C$6-1),12,1))) -> 1.7056 | R26: =IF(PlotControl!$B$4 = "Annual Max",MAX(OFFSET(Sdam!$D$10,12*$A26,4*(PlotControl!$C$6-1),12,1)),AVERAGE(OFFSET(Sdam!$D$10,12*$A26,4*(PlotControl!$C$6-1),12,1))) -> 2.0349 | S26: =IF(PlotControl!$B$4 = "Annual Max",MAX(OFFSET(Sdam!$E$10,12*$A26,4*(PlotControl!$C$6-1),12,1)),AVERAGE(OFFSET(Sdam!$E$10,12*$A26,4*(PlotControl!$C$6-1),12,1))) -> 2.5077 | T26: =IF(PlotControl!$B$4 = "Annual Max",MAX(OFFSET(Cbeach!$C$10,12*$A26,4*(PlotControl!$C$6-1),12,1)),AVERAGE(OFFSET(Cbeach!$C$10,12*$A26,4*(PlotControl!$C$6-1),12,1))) -> 59.19 | U26: =IF(PlotControl!$B$4 = "Annual Max",MAX(OFFSET(Cbeach!$D$10,12*$A26,4*(PlotControl!$C$6-1),12,1)),AVERAGE(OFFSET(Cbeach!$D$10,12*$A26,4*(PlotControl!$C$6-1),12,1))) -> 169.69 | V26: =IF(PlotControl!$B$4 = "Annual Max",MAX(OFFSET(Cbeach!$E$10,12*$A26,4*(PlotControl!$C$6-1),12,1)),AVERAGE(OFFSET(Cbeach!$E$10,12*$A26,4*(PlotControl!$C$6-1),12,1))) -> 348.01
A27: 22 | B27: =IF(PlotControl!$B$4 = "Annual Max",MAX(OFFSET(Nbeach!$C$10,12*$A27,4*(PlotControl!$C$6-1),12,1)),AVERAGE(OFFSET(Nbeach!$C$10,12*$A27,4*(PlotControl!$C$6-1),12,1))) -> 111.19 | C27: =IF(PlotControl!$B$4 = "Annual Max",MAX(OFFSET(Nbeach!$D$10,12*$A27,4*(PlotControl!$C$6-1),12,1)),AVERAGE(OFFSET(Nbeach!$D$10,12*$A27,4*(PlotControl!$C$6-1),12,1))) -> 304.43 | D27: =IF(PlotControl!$B$4 = "Annual Max",MAX(OFFSET(Nbeach!$E$10,12*$A27,4*(PlotControl!$C$6-1),12,1)),AVERAGE(OFFSET(Nbeach!$E$10,12*$A27,4*(PlotControl!$C$6-1),12,1))) -> 356.89 | E27: =IF(PlotControl!$B$4 = "Annual Max",MAX(OFFSET(Ndam!$C$10,12*$A27,4*(PlotControl!$C$6-1),12,1)),AVERAGE(OFFSET(Ndam!$C$10,12*$A27,4*(PlotControl!$C$6-1),12,1))) -> 2.7221 | F27: =IF(PlotControl!$B$4 = "Annual Max",MAX(OFFSET(Ndam!$D$10,12*$A27,4*(PlotControl!$C$6-1),12,1)),AVERAGE(OFFSET(Ndam!$D$10,12*$A27,4*(PlotControl!$C$6-1),12,1))) -> 3.1717 | G27: =IF(PlotControl!$B$4 = "Annual Max",MAX(OFFSET(Ndam!$E$10,12*$A27,4*(PlotControl!$C$6-1),12,1)),AVERAGE(OFFSET(Ndam!$E$10,12*$A27,4*(PlotControl!$C$6-1),12,1))) -> 3.7884 | H27: =IF(PlotControl!$B$4 = "Annual Max",MAX(OFFSET(Ebeach!$C$10,12*$A27,4*(PlotControl!$C$6-1),12,1)),AVERAGE(OFFSET(Ebeach!$C$10,12*$A27,4*(PlotControl!$C$6-1),12,1))) -> 49.9 | I27: =IF(PlotControl!$B$4 = "Annual Max",MAX(OFFSET(Ebeach!$D$10,12*$A27,4*(PlotControl!$C$6-1),12,1)),AVERAGE(OFFSET(Ebeach!$D$10,12*$A27,4*(PlotControl!$C$6-1),12,1))) -> 159.56 | J27: =IF(PlotControl!$B$4 = "Annual Max",MAX(OFFSET(Ebeach!$E$10,12*$A27,4*(PlotControl!$C$6-1),12,1)),AVERAGE(OFFSET(Ebeach!$E$10,12*$A27,4*(PlotControl!$C$6-1),12,1))) -> 347.79 | K27: =IF(PlotControl!$B$4 = "Annual Max",MAX(OFFSET(Edam!$C$10,12*$A27,4*(PlotControl!$C$6-1),12,1)),AVERAGE(OFFSET(Edam!$C$10,12*$A27,4*(PlotControl!$C$6-1),12,1))) -> 1.6914 | L27: =IF(PlotControl!$B$4 = "Annual Max",MAX(OFFSET(Edam!$D$10,12*$A27,4*(PlotControl!$C$6-1),12,1)),AVERAGE(OFFSET(Edam!$D$10,12*$A27,4*(PlotControl!$C$6-1),12,1))) -> 2.2732 | M27: =IF(PlotControl!$B$4 = "Annual Max",MAX(OFFSET(Edam!$E$10,12*$A27,4*(PlotControl!$C$6-1),12,1)),AVERAGE(OFFSET(Edam!$E$10,12*$A27,4*(PlotControl!$C$6-1),12,1))) -> 3.0561 | N27: =IF(PlotControl!$B$4 = "Annual Max",MAX(OFFSET(Sbeach!$C$10,12*$A27,4*(PlotControl!$C$6-1),12,1)),AVERAGE(OFFSET(Sbeach!$C$10,12*$A27,4*(PlotControl!$C$6-1),12,1))) -> 63.834 | O27: =IF(PlotControl!$B$4 = "Annual Max",MAX(OFFSET(Sbeach!$D$10,12*$A27,4*(PlotControl!$C$6-1),12,1)),AVERAGE(OFFSET(Sbeach!$D$10,12*$A27,4*(PlotControl!$C$6-1),12,1))) -> 135.45 | P27: =IF(PlotControl!$B$4 = "Annual Max",MAX(OFFSET(Sbeach!$E$10,12*$A27,4*(PlotControl!$C$6-1),12,1)),AVERAGE(OFFSET(Sbeach!$E$10,12*$A27,4*(PlotControl!$C$6-1),12,1))) -> 347.79 | Q27: =IF(PlotControl!$B$4 = "Annual Max",MAX(OFFSET(Sdam!$C$10,12*$A27,4*(PlotControl!$C$6-1),12,1)),AVERAGE(OFFSET(Sdam!$C$10,12*$A27,4*(PlotControl!$C$6-1),12,1))) -> 1.5357 | R27: =IF(PlotControl!$B$4 = "Annual Max",MAX(OFFSET(Sdam!$D$10,12*$A27,4*(PlotControl!$C$6-1),12,1)),AVERAGE(OFFSET(Sdam!$D$10,12*$A27,4*(PlotControl!$C$6-1),12,1))) -> 1.846 | S27: =IF(PlotControl!$B$4 = "Annual Max",MAX(OFFSET(Sdam!$E$10,12*$A27,4*(PlotControl!$C$6-1),12,1)),AVERAGE(OFFSET(Sdam!$E$10,12*$A27,4*(PlotControl!$C$6-1),12,1))) -> 2.2512 | T27: =IF(PlotControl!$B$4 = "Annual Max",MAX(OFFSET(Cbeach!$C$10,12*$A27,4*(PlotControl!$C$6-1),12,1)),AVERAGE(OFFSET(Cbeach!$C$10,12*$A27,4*(PlotControl!$C$6-1),12,1))) -> 36.198 | U27: =IF(PlotControl!$B$4 = "Annual Max",MAX(OFFSET(Cbeach!$D$10,12*$A27,4*(PlotControl!$C$6-1),12,1)),AVERAGE(OFFSET(Cbeach!$D$10,12*$A27,4*(PlotControl!$C$6-1),12,1))) -> 108.83 | V27: =IF(PlotControl!$B$4 = "Annual Max",MAX(OFFSET(Cbeach!$E$10,12*$A27,4*(PlotControl!$C$6-1),12,1)),AVERAGE(OFFSET(Cbeach!$E$10,12*$A27,4*(PlotControl!$C$6-1),12,1))) -> 343.9
A28: 23 | B28: =IF(PlotControl!$B$4 = "Annual Max",MAX(OFFSET(Nbeach!$C$10,12*$A28,4*(PlotControl!$C$6-1),12,1)),AVERAGE(OFFSET(Nbeach!$C$10,12*$A28,4*(PlotControl!$C$6-1),12,1))) -> 82.057 | C28: =IF(PlotControl!$B$4 = "Annual Max",MAX(OFFSET(Nbeach!$D$10,12*$A28,4*(PlotControl!$C$6-1),12,1)),AVERAGE(OFFSET(Nbeach!$D$10,12*$A28,4*(PlotControl!$C$6-1),12,1))) -> 296.88 | D28: =IF(PlotControl!$B$4 = "Annual Max",MAX(OFFSET(Nbeach!$E$10,12*$A28,4*(PlotControl!$C$6-1),12,1)),AVERAGE(OFFSET(Nbeach!$E$10,12*$A28,4*(PlotControl!$C$6-1),12,1))) -> 355.65 | E28: =IF(PlotControl!$B$4 = "Annual Max",MAX(OFFSET(Ndam!$C$10,12*$A28,4*(PlotControl!$C$6-1),12,1)),AVERAGE(OFFSET(Ndam!$C$10,12*$A28,4*(PlotControl!$C$6-1),12,1))) -> 2.6133 | F28: =IF(PlotControl!$B$4 = "Annual Max",MAX(OFFSET(Ndam!$D$10,12*$A28,4*(PlotControl!$C$6-1),12,1)),AVERAGE(OFFSET(Ndam!$D$10,12*$A28,4*(PlotControl!$C$6-1),12,1))) -> 3.0284 | G28: =IF(PlotControl!$B$4 = "Annual Max",MAX(OFFSET(Ndam!$E$10,12*$A28,4*(PlotControl!$C$6-1),12,1)),AVERAGE(OFFSET(Ndam!$E$10,12*$A28,4*(PlotControl!$C$6-1),12,1))) -> 3.6383 | H28: =IF(PlotControl!$B$4 = "Annual Max",MAX(OFFSET(Ebeach!$C$10,12*$A28,4*(PlotControl!$C$6-1),12,1)),AVERAGE(OFFSET(Ebeach!$C$10,12*$A28,4*(PlotControl!$C$6-1),12,1))) -> 23.341 | I28: =IF(PlotControl!$B$4 = "Annual Max",MAX(OFFSET(Ebeach!$D$10,12*$A28,4*(PlotControl!$C$6-1),12,1)),AVERAGE(OFFSET(Ebeach!$D$10,12*$A28,4*(PlotControl!$C$6-1),12,1))) -> 94.047 | J28: =IF(PlotControl!$B$4 = "Annual Max",MAX(OFFSET(Ebeach!$E$10,12*$A28,4*(PlotControl!$C$6-1),12,1)),AVERAGE(OFFSET(Ebeach!$E$10,12*$A28,4*(PlotControl!$C$6-1),12,1))) -> 343.2 | K28: =IF(PlotControl!$B$4 = "Annual Max",MAX(OFFSET(Edam!$C$10,12*$A28,4*(PlotControl!$C$6-1),12,1)),AVERAGE(OFFSET(Edam!$C$10,12*$A28,4*(PlotControl!$C$6-1),12,1))) -> 1.3282 | L28: =IF(PlotControl!$B$4 = "Annual Max",MAX(OFFSET(Edam!$D$10,12*$A28,4*(PlotControl!$C$6-1),12,1)),AVERAGE(OFFSET(Edam!$D$10,12*$A28,4*(PlotControl!$C$6-1),12,1))) -> 1.8115 | M28: =IF(PlotControl!$B$4 = "Annual Max",MAX(OFFSET(Edam!$E$10,12*$A28,4*(PlotControl!$C$6-1),12,1)),AVERAGE(OFFSET(Edam!$E$10,12*$A28,4*(PlotControl!$C$6-1),12,1))) -> 2.4757 | N28: =IF(PlotControl!$B$4 = "Annual Max",MAX(OFFSET(Sbeach!$C$10,12*$A28,4*(PlotControl!$C$6-1),12,1)),AVERAGE(OFFSET(Sbeach!$C$10,12*$A28,4*(PlotControl!$C$6-1),12,1))) -> 44.837 | O28: =IF(PlotControl!$B$4 = "Annual Max",MAX(OFFSET(Sbeach!$D$10,12*$A28,4*(PlotControl!$C$6-1),12,1)),AVERAGE(OFFSET(Sbeach!$D$10,12*$A28,4*(PlotControl!$C$6-1),12,1))) -> 111.35 | P28: =IF(PlotControl!$B$4 = "Annual Max",MAX(OFFSET(Sbeach!$E$10,12*$A28,4*(PlotControl!$C$6-1),12,1)),AVERAGE(OFFSET(Sbeach!$E$10,12*$A28,4*(PlotControl!$C$6-1),12,1))) -> 347.32 | Q28: =IF(PlotControl!$B$4 = "Annual Max",MAX(OFFSET(Sdam!$C$10,12*$A28,4*(PlotControl!$C$6-1),12,1)),AVERAGE(OFFSET(Sdam!$C$10,12*$A28,4*(PlotControl!$C$6-1),12,1))) -> 1.4215 | R28: =IF(PlotControl!$B$4 = "Annual Max",MAX(OFFSET(Sdam!$D$10,12*$A28,4*(PlotControl!$C$6-1),12,1)),AVERAGE(OFFSET(Sdam!$D$10,12*$A28,4*(PlotControl!$C$6-1),12,1))) -> 1.6934 | S28: =IF(PlotControl!$B$4 = "Annual Max",MAX(OFFSET(Sdam!$E$10,12*$A28,4*(PlotControl!$C$6-1),12,1)),AVERAGE(OFFSET(Sdam!$E$10,12*$A28,4*(PlotControl!$C$6-1),12,1))) -> 2.0736 | T28: =IF(PlotControl!$B$4 = "Annual Max",MAX(OFFSET(Cbeach!$C$10,12*$A28,4*(PlotControl!$C$6-1),12,1)),AVERAGE(OFFSET(Cbeach!$C$10,12*$A28,4*(PlotControl!$C$6-1),12,1))) -> 20.61 | U28: =IF(PlotControl!$B$4 = "Annual Max",MAX(OFFSET(Cbeach!$D$10,12*$A28,4*(PlotControl!$C$6-1),12,1)),AVERAGE(OFFSET(Cbeach!$D$10,12*$A28,4*(PlotControl!$C$6-1),12,1))) -> 84.852 | V28: =IF(PlotControl!$B$4 = "Annual Max",MAX(OFFSET(Cbeach!$E$10,12*$A28,4*(PlotControl!$C$6-1),12,1)),AVERAGE(OFFSET(Cbeach!$E$10,12*$A28,4*(PlotControl!$C$6-1),12,1))) -> 341.02
A29: 24 | B29: =IF(PlotControl!$B$4 = "Annual Max",MAX(OFFSET(Nbeach!$C$10,12*$A29,4*(PlotControl!$C$6-1),12,1)),AVERAGE(OFFSET(Nbeach!$C$10,12*$A29,4*(PlotControl!$C$6-1),12,1))) -> 62.888 | C29: =IF(PlotControl!$B$4 = "Annual Max",MAX(OFFSET(Nbeach!$D$10,12*$A29,4*(PlotControl!$C$6-1),12,1)),AVERAGE(OFFSET(Nbeach!$D$10,12*$A29,4*(PlotControl!$C$6-1),12,1))) -> 271.89 | D29: =IF(PlotControl!$B$4 = "Annual Max",MAX(OFFSET(Nbeach!$E$10,12*$A29,4*(PlotControl!$C$6-1),12,1)),AVERAGE(OFFSET(Nbeach!$E$10,12*$A29,4*(PlotControl!$C$6-1),12,1))) -> 354.13 | E29: =IF(PlotControl!$B$4 = "Annual Max",MAX(OFFSET(Ndam!$C$10,12*$A29,4*(PlotControl!$C$6-1),12,1)),AVERAGE(OFFSET(Ndam!$C$10,12*$A29,4*(PlotControl!$C$6-1),12,1))) -> 2.4444 | F29: =IF(PlotControl!$B$4 = "Annual Max",MAX(OFFSET(Ndam!$D$10,12*$A29,4*(PlotControl!$C$6-1),12,1)),AVERAGE(OFFSET(Ndam!$D$10,12*$A29,4*(PlotControl!$C$6-1),12,1))) -> 2.8825 | G29: =IF(PlotControl!$B$4 = "Annual Max",MAX(OFFSET(Ndam!$E$10,12*$A29,4*(PlotControl!$C$6-1),12,1)),AVERAGE(OFFSET(Ndam!$E$10,12*$A29,4*(PlotControl!$C$6-1),12,1))) -> 3.4864 | H29: =IF(PlotControl!$B$4 = "Annual Max",MAX(OFFSET(Ebeach!$C$10,12*$A29,4*(PlotControl!$C$6-1),12,1)),AVERAGE(OFFSET(Ebeach!$C$10,12*$A29,4*(PlotControl!$C$6-1),12,1))) -> 16.079 | I29: =IF(PlotControl!$B$4 = "Annual Max",MAX(OFFSET(Ebeach!$D$10,12*$A29,4*(PlotControl!$C$6-1),12,1)),AVERAGE(OFFSET(Ebeach!$D$10,12*$A29,4*(PlotControl!$C$6-1),12,1))) -> 73.759 | J29: =IF(PlotControl!$B$4 = "Annual Max",MAX(OFFSET(Ebeach!$E$10,12*$A29,4*(PlotControl!$C$6-1),12,1)),AVERAGE(OFFSET(Ebeach!$E$10,12*$A29,4*(PlotControl!$C$6-1),12,1))) -> 342.18 | K29: =IF(PlotControl!$B$4 = "Annual Max",MAX(OFFSET(Edam!$C$10,12*$A29,4*(PlotControl!$C$6-1),12,1)),AVERAGE(OFFSET(Edam!$C$10,12*$A29,4*(PlotControl!$C$6-1),12,1))) -> 1.0386 | L29: =IF(PlotControl!$B$4 = "Annual Max",MAX(OFFSET(Edam!$D$10,12*$A29,4*(PlotControl!$C$6-1),12,1)),AVERAGE(OFFSET(Edam!$D$10,12*$A29,4*(PlotControl!$C$6-1),12,1))) -> 1.442 | M29: =IF(PlotControl!$B$4 = "Annual Max",MAX(OFFSET(Edam!$E$10,12*$A29,4*(PlotControl!$C$6-1),12,1)),AVERAGE(OFFSET(Edam!$E$10,12*$A29,4*(PlotControl!$C$6-1),12,1))) -> 2.0207 | N29: =IF(PlotControl!$B$4 = "Annual Max",MAX(OFFSET(Sbeach!$C$10,12*$A29,4*(PlotControl!$C$6-1),12,1)),AVERAGE(OFFSET(Sbeach!$C$10,12*$A29,4*(PlotControl!$C$6-1),12,1))) -> 31.836 | O29: =IF(PlotControl!$B$4 = "Annual Max",MAX(OFFSET(Sbeach!$D$10,12*$A29,4*(PlotControl!$C$6-1),12,1)),AVERAGE(OFFSET(Sbeach!$D$10,12*$A29,4*(PlotControl!$C$6-1),12,1))) -> 92.084 | P29: =IF(PlotControl!$B$4 = "Annual Max",MAX(OFFSET(Sbeach!$E$10,12*$A29,4*(PlotControl!$C$6-1),12,1)),AVERAGE(OFFSET(Sbeach!$E$10,12*$A29,4*(PlotControl!$C$6-1),12,1))) -> 346.88 | Q29: =IF(PlotControl!$B$4 = "Annual Max",MAX(OFFSET(Sdam!$C$10,12*$A29,4*(PlotControl!$C$6-1),12,1)),AVERAGE(OFFSET(Sdam!$C$10,12*$A29,4*(PlotControl!$C$6-1),12,1))) -> 1.2916 | R29: =IF(PlotControl!$B$4 = "Annual Max",MAX(OFFSET(Sdam!$D$10,12*$A29,4*(PlotControl!$C$6-1),12,1)),AVERAGE(OFFSET(Sdam!$D$10,12*$A29,4*(PlotControl!$C$6-1),12,1))) -> 1.5616 | S29: =IF(PlotControl!$B$4 = "Annual Max",MAX(OFFSET(Sdam!$E$10,12*$A29,4*(PlotControl!$C$6-1),12,1)),AVERAGE(OFFSET(Sdam!$E$10,12*$A29,4*(PlotControl!$C$6-1),12,1))) -> 1.9419 | T29: =IF(PlotControl!$B$4 = "Annual Max",MAX(OFFSET(Cbeach!$C$10,12*$A29,4*(PlotControl!$C$6-1),12,1)),AVERAGE(OFFSET(Cbeach!$C$10,12*$A29,4*(PlotControl!$C$6-1),12,1))) -> 14.996 | U29: =IF(PlotControl!$B$4 = "Annual Max",MAX(OFFSET(Cbeach!$D$10,12*$A29,4*(PlotControl!$C$6-1),12,1)),AVERAGE(OFFSET(Cbeach!$D$10,12*$A29,4*(PlotControl!$C$6-1),12,1))) -> 70.688 | V29: =IF(PlotControl!$B$4 = "Annual Max",MAX(OFFSET(Cbeach!$E$10,12*$A29,4*(PlotControl!$C$6-1),12,1)),AVERAGE(OFFSET(Cbeach!$E$10,12*$A29,4*(PlotControl!$C$6-1),12,1))) -> 341.02
A30: 25 | B30: =IF(PlotControl!$B$4 = "Annual Max",MAX(OFFSET(Nbeach!$C$10,12*$A30,4*(PlotControl!$C$6-1),12,1)),AVERAGE(OFFSET(Nbeach!$C$10,12*$A30,4*(PlotControl!$C$6-1),12,1))) -> 47.994 | C30: =IF(PlotControl!$B$4 = "Annual Max",MAX(OFFSET(Nbeach!$D$10,12*$A30,4*(PlotControl!$C$6-1),12,1)),AVERAGE(OFFSET(Nbeach!$D$10,12*$A30,4*(PlotControl!$C$6-1),12,1))) -> 204.57 | D30: =IF(PlotControl!$B$4 = "Annual Max",MAX(OFFSET(Nbeach!$E$10,12*$A30,4*(PlotControl!$C$6-1),12,1)),AVERAGE(OFFSET(Nbeach!$E$10,12*$A30,4*(PlotControl!$C$6-1),12,1))) -> 352.45 | E30: =IF(PlotControl!$B$4 = "Annual Max",MAX(OFFSET(Ndam!$C$10,12*$A30,4*(PlotControl!$C$6-1),12,1)),AVERAGE(OFFSET(Ndam!$C$10,12*$A30,4*(PlotControl!$C$6-1),12,1))) -> 2.3233 | F30: =IF(PlotControl!$B$4 = "Annual Max",MAX(OFFSET(Ndam!$D$10,12*$A30,4*(PlotControl!$C$6-1),12,1)),AVERAGE(OFFSET(Ndam!$D$10,12*$A30,4*(PlotControl!$C$6-1),12,1))) -> 2.7168 | G30: =IF(PlotControl!$B$4 = "Annual Max",MAX(OFFSET(Ndam!$E$10,12*$A30,4*(PlotControl!$C$6-1),12,1)),AVERAGE(OFFSET(Ndam!$E$10,12*$A30,4*(PlotControl!$C$6-1),12,1))) -> 3.3601 | H30: =IF(PlotControl!$B$4 = "Annual Max",MAX(OFFSET(Ebeach!$C$10,12*$A30,4*(PlotControl!$C$6-1),12,1)),AVERAGE(OFFSET(Ebeach!$C$10,12*$A30,4*(PlotControl!$C$6-1),12,1))) -> 13.06 | I30: =IF(PlotControl!$B$4 = "Annual Max",MAX(OFFSET(Ebeach!$D$10,12*$A30,4*(PlotControl!$C$6-1),12,1)),AVERAGE(OFFSET(Ebeach!$D$10,12*$A30,4*(PlotControl!$C$6-1),12,1))) -> 66.095 | J30: =IF(PlotControl!$B$4 = "Annual Max",MAX(OFFSET(Ebeach!$E$10,12*$A30,4*(PlotControl!$C$6-1),12,1)),AVERAGE(OFFSET(Ebeach!$E$10,12*$A30,4*(PlotControl!$C$6-1),12,1))) -> 337.5 | K30: =IF(PlotControl!$B$4 = "Annual Max",MAX(OFFSET(Edam!$C$10,12*$A30,4*(PlotControl!$C$6-1),12,1)),AVERAGE(OFFSET(Edam!$C$10,12*$A30,4*(PlotControl!$C$6-1),12,1))) -> 0.83254 | L30: =IF(PlotControl!$B$4 = "Annual Max",MAX(OFFSET(Edam!$D$10,12*$A30,4*(PlotControl!$C$6-1),12,1)),AVERAGE(OFFSET(Edam!$D$10,12*$A30,4*(PlotControl!$C$6-1),12,1))) -> 1.1709 | M30: =IF(PlotControl!$B$4 = "Annual Max",MAX(OFFSET(Edam!$E$10,12*$A30,4*(PlotControl!$C$6-1),12,1)),AVERAGE(OFFSET(Edam!$E$10,12*$A30,4*(PlotControl!$C$6-1),12,1))) -> 1.6127 | N30: =IF(PlotControl!$B$4 = "Annual Max",MAX(OFFSET(Sbeach!$C$10,12*$A30,4*(PlotControl!$C$6-1),12,1)),AVERAGE(OFFSET(Sbeach!$C$10,12*$A30,4*(PlotControl!$C$6-1),12,1))) -> 23.517 | O30: =IF(PlotControl!$B$4 = "Annual Max",MAX(OFFSET(Sbeach!$D$10,12*$A30,4*(PlotControl!$C$6-1),12,1)),AVERAGE(OFFSET(Sbeach!$D$10,12*$A30,4*(PlotControl!$C$6-1),12,1))) -> 77.037 | P30: =IF(PlotControl!$B$4 = "Annual Max",MAX(OFFSET(Sbeach!$E$10,12*$A30,4*(PlotControl!$C$6-1),12,1)),AVERAGE(OFFSET(Sbeach!$E$10,12*$A30,4*(PlotControl!$C$6-1),12,1))) -> 345.74 | Q30: =IF(PlotControl!$B$4 = "Annual Max",MAX(OFFSET(Sdam!$C$10,12*$A30,4*(PlotControl!$C$6-1),12,1)),AVERAGE(OFFSET(Sdam!$C$10,12*$A30,4*(PlotControl!$C$6-1),12,1))) -> 1.1756 | R30: =IF(PlotControl!$B$4 = "Annual Max",MAX(OFFSET(Sdam!$D$10,12*$A30,4*(PlotControl!$C$6-1),12,1)),AVERAGE(OFFSET(Sdam!$D$10,12*$A30,4*(PlotControl!$C$6-1),12,1))) -> 1.4213 | S30: =IF(PlotControl!$B$4 = "Annual Max",MAX(OFFSET(Sdam!$E$10,12*$A30,4*(PlotControl!$C$6-1),12,1)),AVERAGE(OFFSET(Sdam!$E$10,12*$A30,4*(PlotControl!$C$6-1),12,1))) -> 1.7831 | T30: =IF(PlotControl!$B$4 = "Annual Max",MAX(OFFSET(Cbeach!$C$10,12*$A30,4*(PlotControl!$C$6-1),12,1)),AVERAGE(OFFSET(Cbeach!$C$10,12*$A30,4*(PlotControl!$C$6-1),12,1))) -> 12.626 | U30: =IF(PlotControl!$B$4 = "Annual Max",MAX(OFFSET(Cbeach!$D$10,12*$A30,4*(PlotControl!$C$6-1),12,1)),AVERAGE(OFFSET(Cbeach!$D$10,12*$A30,4*(PlotControl!$C$6-1),12,1))) -> 67.027 | V30: =IF(PlotControl!$B$4 = "Annual Max",MAX(OFFSET(Cbeach!$E$10,12*$A30,4*(PlotControl!$C$6-1),12,1)),AVERAGE(OFFSET(Cbeach!$E$10,12*$A30,4*(PlotControl!$C$6-1),12,1))) -> 336.99
A31: 26 | B31: =IF(PlotControl!$B$4 = "Annual Max",MAX(OFFSET(Nbeach!$C$10,12*$A31,4*(PlotControl!$C$6-1),12,1)),AVERAGE(OFFSET(Nbeach!$C$10,12*$A31,4*(PlotControl!$C$6-1),12,1))) -> 41.055 | C31: =IF(PlotControl!$B$4 = "Annual Max",MAX(OFFSET(Nbeach!$D$10,12*$A31,4*(PlotControl!$C$6-1),12,1)),AVERAGE(OFFSET(Nbeach!$D$10,12*$A31,4*(PlotControl!$C$6-1),12,1))) -> 168.37 | D31: =IF(PlotControl!$B$4 = "Annual Max",MAX(OFFSET(Nbeach!$E$10,12*$A31,4*(PlotControl!$C$6-1),12,1)),AVERAGE(OFFSET(Nbeach!$E$10,12*$A31,4*(PlotControl!$C$6-1),12,1))) -> 352.45 | E31: =IF(PlotControl!$B$4 = "Annual Max",MAX(OFFSET(Ndam!$C$10,12*$A31,4*(PlotControl!$C$6-1),12,1)),AVERAGE(OFFSET(Ndam!$C$10,12*$A31,4*(PlotControl!$C$6-1),12,1))) -> 2.2374 | F31: =IF(PlotControl!$B$4 = "Annual Max",MAX(OFFSET(Ndam!$D$10,12*$A31,4*(PlotControl!$C$6-1),12,1)),AVERAGE(OFFSET(Ndam!$D$10,12*$A31,4*(PlotControl!$C$6-1),12,1))) -> 2.603 | G31: =IF(PlotControl!$B$4 = "Annual Max",MAX(OFFSET(Ndam!$E$10,12*$A31,4*(PlotControl!$C$6-1),12,1)),AVERAGE(OFFSET(Ndam!$E$10,12*$A31,4*(PlotControl!$C$6-1),12,1))) -> 3.1834 | H31: =IF(PlotControl!$B$4 = "Annual Max",MAX(OFFSET(Ebeach!$C$10,12*$A31,4*(PlotControl!$C$6-1),12,1)),AVERAGE(OFFSET(Ebeach!$C$10,12*$A31,4*(PlotControl!$C$6-1),12,1))) -> 12.24 | I31: =IF(PlotControl!$B$4 = "Annual Max",MAX(OFFSET(Ebeach!$D$10,12*$A31,4*(PlotControl!$C$6-1),12,1)),AVERAGE(OFFSET(Ebeach!$D$10,12*$A31,4*(PlotControl!$C$6-1),12,1))) -> 64.189 | J31: =IF(PlotControl!$B$4 = "Annual Max",MAX(OFFSET(Ebeach!$E$10,12*$A31,4*(PlotControl!$C$6-1),12,1)),AVERAGE(OFFSET(Ebeach!$E$10,12*$A31,4*(PlotControl!$C$6-1),12,1))) -> 336.67 | K31: =IF(PlotControl!$B$4 = "Annual Max",MAX(OFFSET(Edam!$C$10,12*$A31,4*(PlotControl!$C$6-1),12,1)),AVERAGE(OFFSET(Edam!$C$10,12*$A31,4*(PlotControl!$C$6-1),12,1))) -> 0.71562 | L31: =IF(PlotControl!$B$4 = "Annual Max",MAX(OFFSET(Edam!$D$10,12*$A31,4*(PlotControl!$C$6-1),12,1)),AVERAGE(OFFSET(Edam!$D$10,12*$A31,4*(PlotControl!$C$6-1),12,1))) -> 0.97418 | M31: =IF(PlotControl!$B$4 = "Annual Max",MAX(OFFSET(Edam!$E$10,12*$A31,4*(PlotControl!$C$6-1),12,1)),AVERAGE(OFFSET(Edam!$E$10,12*$A31,4*(PlotControl!$C$6-1),12,1))) -> 1.3557 | N31: =IF(PlotControl!$B$4 = "Annual Max",MAX(OFFSET(Sbeach!$C$10,12*$A31,4*(PlotControl!$C$6-1),12,1)),AVERAGE(OFFSET(Sbeach!$C$10,12*$A31,4*(PlotControl!$C$6-1),12,1))) -> 19.546 | O31: =IF(PlotControl!$B$4 = "Annual Max",MAX(OFFSET(Sbeach!$D$10,12*$A31,4*(PlotControl!$C$6-1),12,1)),AVERAGE(OFFSET(Sbeach!$D$10,12*$A31,4*(PlotControl!$C$6-1),12,1))) -> 65.964 | P31: =IF(PlotControl!$B$4 = "Annual Max",MAX(OFFSET(Sbeach!$E$10,12*$A31,4*(PlotControl!$C$6-1),12,1)),AVERAGE(OFFSET(Sbeach!$E$10,12*$A31,4*(PlotControl!$C$6-1),12,1))) -> 344.5 | Q31: =IF(PlotControl!$B$4 = "Annual Max",MAX(OFFSET(Sdam!$C$10,12*$A31,4*(PlotControl!$C$6-1),12,1)),AVERAGE(OFFSET(Sdam!$C$10,12*$A31,4*(PlotControl!$C$6-1),12,1))) -> 1.1057 | R31: =IF(PlotControl!$B$4 = "Annual Max",MAX(OFFSET(Sdam!$D$10,12*$A31,4*(PlotControl!$C$6-1),12,1)),AVERAGE(OFFSET(Sdam!$D$10,12*$A31,4*(PlotControl!$C$6-1),12,1))) -> 1.3216 | S31: =IF(PlotControl!$B$4 = "Annual Max",MAX(OFFSET(Sdam!$E$10,12*$A31,4*(PlotControl!$C$6-1),12,1)),AVERAGE(OFFSET(Sdam!$E$10,12*$A31,4*(PlotControl!$C$6-1),12,1))) -> 1.6656 | T31: =IF(PlotControl!$B$4 = "Annual Max",MAX(OFFSET(Cbeach!$C$10,12*$A31,4*(PlotControl!$C$6-1),12,1)),AVERAGE(OFFSET(Cbeach!$C$10,12*$A31,4*(PlotControl!$C$6-1),12,1))) -> 12.216 | U31: =IF(PlotControl!$B$4 = "Annual Max",MAX(OFFSET(Cbeach!$D$10,12*$A31,4*(PlotControl!$C$6-1),12,1)),AVERAGE(OFFSET(Cbeach!$D$10,12*$A31,4*(PlotControl!$C$6-1),12,1))) -> 63.178 | V31: =IF(PlotControl!$B$4 = "Annual Max",MAX(OFFSET(Cbeach!$E$10,12*$A31,4*(PlotControl!$C$6-1),12,1)),AVERAGE(OFFSET(Cbeach!$E$10,12*$A31,4*(PlotControl!$C$6-1),12,1))) -> 336.67
A32: 27 | B32: =IF(PlotControl!$B$4 = "Annual Max",MAX(OFFSET(Nbeach!$C$10,12*$A32,4*(PlotControl!$C$6-1),12,1)),AVERAGE(OFFSET(Nbeach!$C$10,12*$A32,4*(PlotControl!$C$6-1),12,1))) -> 31.682 | C32: =IF(PlotControl!$B$4 = "Annual Max",MAX(OFFSET(Nbeach!$D$10,12*$A32,4*(PlotControl!$C$6-1),12,1)),AVERAGE(OFFSET(Nbeach!$D$10,12*$A32,4*(PlotControl!$C$6-1),12,1))) -> 145.46 | D32: =IF(PlotControl!$B$4 = "Annual Max",MAX(OFFSET(Nbeach!$E$10,12*$A32,4*(PlotControl!$C$6-1),12,1)),AVERAGE(OFFSET(Nbeach!$E$10,12*$A32,4*(PlotControl!$C$6-1),12,1))) -> 351.79 | E32: =IF(PlotControl!$B$4 = "Annual Max",MAX(OFFSET(Ndam!$C$10,12*$A32,4*(PlotControl!$C$6-1),12,1)),AVERAGE(OFFSET(Ndam!$C$10,12*$A32,4*(PlotControl!$C$6-1),12,1))) -> 2.1295 | F32: =IF(PlotControl!$B$4 = "Annual Max",MAX(OFFSET(Ndam!$D$10,12*$A32,4*(PlotControl!$C$6-1),12,1)),AVERAGE(OFFSET(Ndam!$D$10,12*$A32,4*(PlotControl!$C$6-1),12,1))) -> 2.4707 | G32: =IF(PlotControl!$B$4 = "Annual Max",MAX(OFFSET(Ndam!$E$10,12*$A32,4*(PlotControl!$C$6-1),12,1)),AVERAGE(OFFSET(Ndam!$E$10,12*$A32,4*(PlotControl!$C$6-1),12,1))) -> 2.9572 | H32: =IF(PlotControl!$B$4 = "Annual Max",MAX(OFFSET(Ebeach!$C$10,12*$A32,4*(PlotControl!$C$6-1),12,1)),AVERAGE(OFFSET(Ebeach!$C$10,12*$A32,4*(PlotControl!$C$6-1),12,1))) -> 10.947 | I32: =IF(PlotControl!$B$4 = "Annual Max",MAX(OFFSET(Ebeach!$D$10,12*$A32,4*(PlotControl!$C$6-1),12,1)),AVERAGE(OFFSET(Ebeach!$D$10,12*$A32,4*(PlotControl!$C$6-1),12,1))) -> 63.024 | J32: =IF(PlotControl!$B$4 = "Annual Max",MAX(OFFSET(Ebeach!$E$10,12*$A32,4*(PlotControl!$C$6-1),12,1)),AVERAGE(OFFSET(Ebeach!$E$10,12*$A32,4*(PlotControl!$C$6-1),12,1))) -> 330.63 | K32: =IF(PlotControl!$B$4 = "Annual Max",MAX(OFFSET(Edam!$C$10,12*$A32,4*(PlotControl!$C$6-1),12,1)),AVERAGE(OFFSET(Edam!$C$10,12*$A32,4*(PlotControl!$C$6-1),12,1))) -> 0.59753 | L32: =IF(PlotControl!$B$4 = "Annual Max",MAX(OFFSET(Edam!$D$10,12*$A32,4*(PlotControl!$C$6-1),12,1)),AVERAGE(OFFSET(Edam!$D$10,12*$A32,4*(PlotControl!$C$6-1),12,1))) -> 0.81547 | M32: =IF(PlotControl!$B$4 = "Annual Max",MAX(OFFSET(Edam!$E$10,12*$A32,4*(PlotControl!$C$6-1),12,1)),AVERAGE(OFFSET(Edam!$E$10,12*$A32,4*(PlotControl!$C$6-1),12,1))) -> 1.1141 | N32: =IF(PlotControl!$B$4 = "Annual Max",MAX(OFFSET(Sbeach!$C$10,12*$A32,4*(PlotControl!$C$6-1),12,1)),AVERAGE(OFFSET(Sbeach!$C$10,12*$A32,4*(PlotControl!$C$6-1),12,1))) -> 15.736 | O32: =IF(PlotControl!$B$4 = "Annual Max",MAX(OFFSET(Sbeach!$D$10,12*$A32,4*(PlotControl!$C$6-1),12,1)),AVERAGE(OFFSET(Sbeach!$D$10,12*$A32,4*(PlotControl!$C$6-1),12,1))) -> 64.407 | P32: =IF(PlotControl!$B$4 = "Annual Max",MAX(OFFSET(Sbeach!$E$10,12*$A32,4*(PlotControl!$C$6-1),12,1)),AVERAGE(OFFSET(Sbeach!$E$10,12*$A32,4*(PlotControl!$C$6-1),12,1))) -> 343.37 | Q32: =IF(PlotControl!$B$4 = "Annual Max",MAX(OFFSET(Sdam!$C$10,12*$A32,4*(PlotControl!$C$6-1),12,1)),AVERAGE(OFFSET(Sdam!$C$10,12*$A32,4*(PlotControl!$C$6-1),12,1))) -> 1.0218 | R32: =IF(PlotControl!$B$4 = "Annual Max",MAX(OFFSET(Sdam!$D$10,12*$A32,4*(PlotControl!$C$6-1),12,1)),AVERAGE(OFFSET(Sdam!$D$10,12*$A32,4*(PlotControl!$C$6-1),12,1))) -> 1.2199 | S32: =IF(PlotControl!$B$4 = "Annual Max",MAX(OFFSET(Sdam!$E$10,12*$A32,4*(PlotControl!$C$6-1),12,1)),AVERAGE(OFFSET(Sdam!$E$10,12*$A32,4*(PlotControl!$C$6-1),12,1))) -> 1.499 | T32: =IF(PlotControl!$B$4 = "Annual Max",MAX(OFFSET(Cbeach!$C$10,12*$A32,4*(PlotControl!$C$6-1),12,1)),AVERAGE(OFFSET(Cbeach!$C$10,12*$A32,4*(PlotControl!$C$6-1),12,1))) -> 11.076 | U32: =IF(PlotControl!$B$4 = "Annual Max",MAX(OFFSET(Cbeach!$D$10,12*$A32,4*(PlotControl!$C$6-1),12,1)),AVERAGE(OFFSET(Cbeach!$D$10,12*$A32,4*(PlotControl!$C$6-1),12,1))) -> 62.389 | V32: =IF(PlotControl!$B$4 = "Annual Max",MAX(OFFSET(Cbeach!$E$10,12*$A32,4*(PlotControl!$C$6-1),12,1)),AVERAGE(OFFSET(Cbeach!$E$10,12*$A32,4*(PlotControl!$C$6-1),12,1))) -> 335.25
A33: 28 | B33: =IF(PlotControl!$B$4 = "Annual Max",MAX(OFFSET(Nbeach!$C$10,12*$A33,4*(PlotControl!$C$6-1),12,1)),AVERAGE(OFFSET(Nbeach!$C$10,12*$A33,4*(PlotControl!$C$6-1),12,1))) -> 27.978 | C33: =IF(PlotControl!$B$4 = "Annual Max",MAX(OFFSET(Nbeach!$D$10,12*$A33,4*(PlotControl!$C$6-1),12,1)),AVERAGE(OFFSET(Nbeach!$D$10,12*$A33,4*(PlotControl!$C$6-1),12,1))) -> 127.33 | D33: =IF(PlotControl!$B$4 = "Annual Max",MAX(OFFSET(Nbeach!$E$10,12*$A33,4*(PlotControl!$C$6-1),12,1)),AVERAGE(OFFSET(Nbeach!$E$10,12*$A33,4*(PlotControl!$C$6-1),12,1))) -> 351.38 | E33: =IF(PlotControl!$B$4 = "Annual Max",MAX(OFFSET(Ndam!$C$10,12*$A33,4*(PlotControl!$C$6-1),12,1)),AVERAGE(OFFSET(Ndam!$C$10,12*$A33,4*(PlotControl!$C$6-1),12,1))) -> 1.9981 | F33: =IF(PlotControl!$B$4 = "Annual Max",MAX(OFFSET(Ndam!$D$10,12*$A33,4*(PlotControl!$C$6-1),12,1)),AVERAGE(OFFSET(Ndam!$D$10,12*$A33,4*(PlotControl!$C$6-1),12,1))) -> 2.3536 | G33: =IF(PlotControl!$B$4 = "Annual Max",MAX(OFFSET(Ndam!$E$10,12*$A33,4*(PlotControl!$C$6-1),12,1)),AVERAGE(OFFSET(Ndam!$E$10,12*$A33,4*(PlotControl!$C$6-1),12,1))) -> 2.9193 | H33: =IF(PlotControl!$B$4 = "Annual Max",MAX(OFFSET(Ebeach!$C$10,12*$A33,4*(PlotControl!$C$6-1),12,1)),AVERAGE(OFFSET(Ebeach!$C$10,12*$A33,4*(PlotControl!$C$6-1),12,1))) -> 11.741 | I33: =IF(PlotControl!$B$4 = "Annual Max",MAX(OFFSET(Ebeach!$D$10,12*$A33,4*(PlotControl!$C$6-1),12,1)),AVERAGE(OFFSET(Ebeach!$D$10,12*$A33,4*(PlotControl!$C$6-1),12,1))) -> 67.397 | J33: =IF(PlotControl!$B$4 = "Annual Max",MAX(OFFSET(Ebeach!$E$10,12*$A33,4*(PlotControl!$C$6-1),12,1)),AVERAGE(OFFSET(Ebeach!$E$10,12*$A33,4*(PlotControl!$C$6-1),12,1))) -> 331.69 | K33: =IF(PlotControl!$B$4 = "Annual Max",MAX(OFFSET(Edam!$C$10,12*$A33,4*(PlotControl!$C$6-1),12,1)),AVERAGE(OFFSET(Edam!$C$10,12*$A33,4*(PlotControl!$C$6-1),12,1))) -> 0.49325 | L33: =IF(PlotControl!$B$4 = "Annual Max",MAX(OFFSET(Edam!$D$10,12*$A33,4*(PlotControl!$C$6-1),12,1)),AVERAGE(OFFSET(Edam!$D$10,12*$A33,4*(PlotControl!$C$6-1),12,1))) -> 0.69467 | M33: =IF(PlotControl!$B$4 = "Annual Max",MAX(OFFSET(Edam!$E$10,12*$A33,4*(PlotControl!$C$6-1),12,1)),AVERAGE(OFFSET(Edam!$E$10,12*$A33,4*(PlotControl!$C$6-1),12,1))) -> 0.98541 | N33: =IF(PlotControl!$B$4 = "Annual Max",MAX(OFFSET(Sbeach!$C$10,12*$A33,4*(PlotControl!$C$6-1),12,1)),AVERAGE(OFFSET(Sbeach!$C$10,12*$A33,4*(PlotControl!$C$6-1),12,1))) -> 13.436 | O33: =IF(PlotControl!$B$4 = "Annual Max",MAX(OFFSET(Sbeach!$D$10,12*$A33,4*(PlotControl!$C$6-1),12,1)),AVERAGE(OFFSET(Sbeach!$D$10,12*$A33,4*(PlotControl!$C$6-1),12,1))) -> 61.906 | P33: =IF(PlotControl!$B$4 = "Annual Max",MAX(OFFSET(Sbeach!$E$10,12*$A33,4*(PlotControl!$C$6-1),12,1)),AVERAGE(OFFSET(Sbeach!$E$10,12*$A33,4*(PlotControl!$C$6-1),12,1))) -> 343.37 | Q33: =IF(PlotControl!$B$4 = "Annual Max",MAX(OFFSET(Sdam!$C$10,12*$A33,4*(PlotControl!$C$6-1),12,1)),AVERAGE(OFFSET(Sdam!$C$10,12*$A33,4*(PlotControl!$C$6-1),12,1))) -> 0.93288 | R33: =IF(PlotControl!$B$4 = "Annual Max",MAX(OFFSET(Sdam!$D$10,12*$A33,4*(PlotControl!$C$6-1),12,1)),AVERAGE(OFFSET(Sdam!$D$10,12*$A33,4*(PlotControl!$C$6-1),12,1))) -> 1.1366 | S33: =IF(PlotControl!$B$4 = "Annual Max",MAX(OFFSET(Sdam!$E$10,12*$A33,4*(PlotControl!$C$6-1),12,1)),AVERAGE(OFFSET(Sdam!$E$10,12*$A33,4*(PlotControl!$C$6-1),12,1))) -> 1.427 | T33: =IF(PlotControl!$B$4 = "Annual Max",MAX(OFFSET(Cbeach!$C$10,12*$A33,4*(PlotControl!$C$6-1),12,1)),AVERAGE(OFFSET(Cbeach!$C$10,12*$A33,4*(PlotControl!$C$6-1),12,1))) -> 11.543 | U33: =IF(PlotControl!$B$4 = "Annual Max",MAX(OFFSET(Cbeach!$D$10,12*$A33,4*(PlotControl!$C$6-1),12,1)),AVERAGE(OFFSET(Cbeach!$D$10,12*$A33,4*(PlotControl!$C$6-1),12,1))) -> 66.197 | V33: =IF(PlotControl!$B$4 = "Annual Max",MAX(OFFSET(Cbeach!$E$10,12*$A33,4*(PlotControl!$C$6-1),12,1)),AVERAGE(OFFSET(Cbeach!$E$10,12*$A33,4*(PlotControl!$C$6-1),12,1))) -> 329.03
A34: 29 | B34: =IF(PlotControl!$B$4 = "Annual Max",MAX(OFFSET(Nbeach!$C$10,12*$A34,4*(PlotControl!$C$6-1),12,1)),AVERAGE(OFFSET(Nbeach!$C$10,12*$A34,4*(PlotControl!$C$6-1),12,1))) -> 24.707 | C34: =IF(PlotControl!$B$4 = "Annual Max",MAX(OFFSET(Nbeach!$D$10,12*$A34,4*(PlotControl!$C$6-1),12,1)),AVERAGE(OFFSET(Nbeach!$D$10,12*$A34,4*(PlotControl!$C$6-1),12,1))) -> 108.88 | D34: =IF(PlotControl!$B$4 = "Annual Max",MAX(OFFSET(Nbeach!$E$10,12*$A34,4*(PlotControl!$C$6-1),12,1)),AVERAGE(OFFSET(Nbeach!$E$10,12*$A34,4*(PlotControl!$C$6-1),12,1))) -> 350.87 | E34: =IF(PlotControl!$B$4 = "Annual Max",MAX(OFFSET(Ndam!$C$10,12*$A34,4*(PlotControl!$C$6-1),12,1)),AVERAGE(OFFSET(Ndam!$C$10,12*$A34,4*(PlotControl!$C$6-1),12,1))) -> 1.9111 | F34: =IF(PlotControl!$B$4 = "Annual Max",MAX(OFFSET(Ndam!$D$10,12*$A34,4*(PlotControl!$C$6-1),12,1)),AVERAGE(OFFSET(Ndam!$D$10,12*$A34,4*(PlotControl!$C$6-1),12,1))) -> 2.2293 | G34: =IF(PlotControl!$B$4 = "Annual Max",MAX(OFFSET(Ndam!$E$10,12*$A34,4*(PlotControl!$C$6-1),12,1)),AVERAGE(OFFSET(Ndam!$E$10,12*$A34,4*(PlotControl!$C$6-1),12,1))) -> 2.7576 | H34: =IF(PlotControl!$B$4 = "Annual Max",MAX(OFFSET(Ebeach!$C$10,12*$A34,4*(PlotControl!$C$6-1),12,1)),AVERAGE(OFFSET(Ebeach!$C$10,12*$A34,4*(PlotControl!$C$6-1),12,1))) -> 11.529 | I34: =IF(PlotControl!$B$4 = "Annual Max",MAX(OFFSET(Ebeach!$D$10,12*$A34,4*(PlotControl!$C$6-1),12,1)),AVERAGE(OFFSET(Ebeach!$D$10,12*$A34,4*(PlotControl!$C$6-1),12,1))) -> 67.528 | J34: =IF(PlotControl!$B$4 = "Annual Max",MAX(OFFSET(Ebeach!$E$10,12*$A34,4*(PlotControl!$C$6-1),12,1)),AVERAGE(OFFSET(Ebeach!$E$10,12*$A34,4*(PlotControl!$C$6-1),12,1))) -> 330.63 | K34: =IF(PlotControl!$B$4 = "Annual Max",MAX(OFFSET(Edam!$C$10,12*$A34,4*(PlotControl!$C$6-1),12,1)),AVERAGE(OFFSET(Edam!$C$10,12*$A34,4*(PlotControl!$C$6-1),12,1))) -> 0.43149 | L34: =IF(PlotControl!$B$4 = "Annual Max",MAX(OFFSET(Edam!$D$10,12*$A34,4*(PlotControl!$C$6-1),12,1)),AVERAGE(OFFSET(Edam!$D$10,12*$A34,4*(PlotControl!$C$6-1),12,1))) -> 0.59567 | M34: =IF(PlotControl!$B$4 = "Annual Max",MAX(OFFSET(Edam!$E$10,12*$A34,4*(PlotControl!$C$6-1),12,1)),AVERAGE(OFFSET(Edam!$E$10,12*$A34,4*(PlotControl!$C$6-1),12,1))) -> 0.85057 | N34: =IF(PlotControl!$B$4 = "Annual Max",MAX(OFFSET(Sbeach!$C$10,12*$A34,4*(PlotControl!$C$6-1),12,1)),AVERAGE(OFFSET(Sbeach!$C$10,12*$A34,4*(PlotControl!$C$6-1),12,1))) -> 12.52 | O34: =IF(PlotControl!$B$4 = "Annual Max",MAX(OFFSET(Sbeach!$D$10,12*$A34,4*(PlotControl!$C$6-1),12,1)),AVERAGE(OFFSET(Sbeach!$D$10,12*$A34,4*(PlotControl!$C$6-1),12,1))) -> 60.386 | P34: =IF(PlotControl!$B$4 = "Annual Max",MAX(OFFSET(Sbeach!$E$10,12*$A34,4*(PlotControl!$C$6-1),12,1)),AVERAGE(OFFSET(Sbeach!$E$10,12*$A34,4*(PlotControl!$C$6-1),12,1))) -> 342.85 | Q34: =IF(PlotControl!$B$4 = "Annual Max",MAX(OFFSET(Sdam!$C$10,12*$A34,4*(PlotControl!$C$6-1),12,1)),AVERAGE(OFFSET(Sdam!$C$10,12*$A34,4*(PlotControl!$C$6-1),12,1))) -> 0.87275 | R34: =IF(PlotControl!$B$4 = "Annual Max",MAX(OFFSET(Sdam!$D$10,12*$A34,4*(PlotControl!$C$6-1),12,1)),AVERAGE(OFFSET(Sdam!$D$10,12*$A34,4*(PlotControl!$C$6-1),12,1))) -> 1.0433 | S34: =IF(PlotControl!$B$4 = "Annual Max",MAX(OFFSET(Sdam!$E$10,12*$A34,4*(PlotControl!$C$6-1),12,1)),AVERAGE(OFFSET(Sdam!$E$10,12*$A34,4*(PlotControl!$C$6-1),12,1))) -> 1.3287 | T34: =IF(PlotControl!$B$4 = "Annual Max",MAX(OFFSET(Cbeach!$C$10,12*$A34,4*(PlotControl!$C$6-1),12,1)),AVERAGE(OFFSET(Cbeach!$C$10,12*$A34,4*(PlotControl!$C$6-1),12,1))) -> 11.242 | U34: =IF(PlotControl!$B$4 = "Annual Max",MAX(OFFSET(Cbeach!$D$10,12*$A34,4*(PlotControl!$C$6-1),12,1)),AVERAGE(OFFSET(Cbeach!$D$10,12*$A34,4*(PlotControl!$C$6-1),12,1))) -> 66.605 | V34: =IF(PlotControl!$B$4 = "Annual Max",MAX(OFFSET(Cbeach!$E$10,12*$A34,4*(PlotControl!$C$6-1),12,1)),AVERAGE(OFFSET(Cbeach!$E$10,12*$A34,4*(PlotControl!$C$6-1),12,1))) -> 329.03
A35: 30 | B35: =IF(PlotControl!$B$4 = "Annual Max",MAX(OFFSET(Nbeach!$C$10,12*$A35,4*(PlotControl!$C$6-1),12,1)),AVERAGE(OFFSET(Nbeach!$C$10,12*$A35,4*(PlotControl!$C$6-1),12,1))) -> 21.301 | C35: =IF(PlotControl!$B$4 = "Annual Max",MAX(OFFSET(Nbeach!$D$10,12*$A35,4*(PlotControl!$C$6-1),12,1)),AVERAGE(OFFSET(Nbeach!$D$10,12*$A35,4*(PlotControl!$C$6-1),12,1))) -> 100.41 | D35: =IF(PlotControl!$B$4 = "Annual Max",MAX(OFFSET(Nbeach!$E$10,12*$A35,4*(PlotControl!$C$6-1),12,1)),AVERAGE(OFFSET(Nbeach!$E$10,12*$A35,4*(PlotControl!$C$6-1),12,1))) -> 350.51 | E35: =IF(PlotControl!$B$4 = "Annual Max",MAX(OFFSET(Ndam!$C$10,12*$A35,4*(PlotControl!$C$6-1),12,1)),AVERAGE(OFFSET(Ndam!$C$10,12*$A35,4*(PlotControl!$C$6-1),12,1))) -> 1.8284 | F35: =IF(PlotControl!$B$4 = "Annual Max",MAX(OFFSET(Ndam!$D$10,12*$A35,4*(PlotControl!$C$6-1),12,1)),AVERAGE(OFFSET(Ndam!$D$10,12*$A35,4*(PlotControl!$C$6-1),12,1))) -> 2.1499 | G35: =IF(PlotControl!$B$4 = "Annual Max",MAX(OFFSET(Ndam!$E$10,12*$A35,4*(PlotControl!$C$6-1),12,1)),AVERAGE(OFFSET(Ndam!$E$10,12*$A35,4*(PlotControl!$C$6-1),12,1))) -> 2.6638 | H35: =IF(PlotControl!$B$4 = "Annual Max",MAX(OFFSET(Ebeach!$C$10,12*$A35,4*(PlotControl!$C$6-1),12,1)),AVERAGE(OFFSET(Ebeach!$C$10,12*$A35,4*(PlotControl!$C$6-1),12,1))) -> 11.575 | I35: =IF(PlotControl!$B$4 = "Annual Max",MAX(OFFSET(Ebeach!$D$10,12*$A35,4*(PlotControl!$C$6-1),12,1)),AVERAGE(OFFSET(Ebeach!$D$10,12*$A35,4*(PlotControl!$C$6-1),12,1))) -> 67.997 | J35: =IF(PlotControl!$B$4 = "Annual Max",MAX(OFFSET(Ebeach!$E$10,12*$A35,4*(PlotControl!$C$6-1),12,1)),AVERAGE(OFFSET(Ebeach!$E$10,12*$A35,4*(PlotControl!$C$6-1),12,1))) -> 328.18 | K35: =IF(PlotControl!$B$4 = "Annual Max",MAX(OFFSET(Edam!$C$10,12*$A35,4*(PlotControl!$C$6-1),12,1)),AVERAGE(OFFSET(Edam!$C$10,12*$A35,4*(PlotControl!$C$6-1),12,1))) -> 0.38956 | L35: =IF(PlotControl!$B$4 = "Annual Max",MAX(OFFSET(Edam!$D$10,12*$A35,4*(PlotControl!$C$6-1),12,1)),AVERAGE(OFFSET(Edam!$D$10,12*$A35,4*(PlotControl!$C$6-1),12,1))) -> 0.53563 | M35: =IF(PlotControl!$B$4 = "Annual Max",MAX(OFFSET(Edam!$E$10,12*$A35,4*(PlotControl!$C$6-1),12,1)),AVERAGE(OFFSET(Edam!$E$10,12*$A35,4*(PlotControl!$C$6-1),12,1))) -> 0.78816 | N35: =IF(PlotControl!$B$4 = "Annual Max",MAX(OFFSET(Sbeach!$C$10,12*$A35,4*(PlotControl!$C$6-1),12,1)),AVERAGE(OFFSET(Sbeach!$C$10,12*$A35,4*(PlotControl!$C$6-1),12,1))) -> 11.927 | O35: =IF(PlotControl!$B$4 = "Annual Max",MAX(OFFSET(Sbeach!$D$10,12*$A35,4*(PlotControl!$C$6-1),12,1)),AVERAGE(OFFSET(Sbeach!$D$10,12*$A35,4*(PlotControl!$C$6-1),12,1))) -> 60.398 | P35: =IF(PlotControl!$B$4 = "Annual Max",MAX(OFFSET(Sbeach!$E$10,12*$A35,4*(PlotControl!$C$6-1),12,1)),AVERAGE(OFFSET(Sbeach!$E$10,12*$A35,4*(PlotControl!$C$6-1),12,1))) -> 342.5 | Q35: =IF(PlotControl!$B$4 = "Annual Max",MAX(OFFSET(Sdam!$C$10,12*$A35,4*(PlotControl!$C$6-1),12,1)),AVERAGE(OFFSET(Sdam!$C$10,12*$A35,4*(PlotControl!$C$6-1),12,1))) -> 0.81311 | R35: =IF(PlotControl!$B$4 = "Annual Max",MAX(OFFSET(Sdam!$D$10,12*$A35,4*(PlotControl!$C$6-1),12,1)),AVERAGE(OFFSET(Sdam!$D$10,12*$A35,4*(PlotControl!$C$6-1),12,1))) -> 0.98625 | S35: =IF(PlotControl!$B$4 = "Annual Max",MAX(OFFSET(Sdam!$E$10,12*$A35,4*(PlotControl!$C$6-1),12,1)),AVERAGE(OFFSET(Sdam!$E$10,12*$A35,4*(PlotControl!$C$6-1),12,1))) -> 1.2716 | T35: =IF(PlotControl!$B$4 = "Annual Max",MAX(OFFSET(Cbeach!$C$10,12*$A35,4*(PlotControl!$C$6-1),12,1)),AVERAGE(OFFSET(Cbeach!$C$10,12*$A35,4*(PlotControl!$C$6-1),12,1))) -> 11.52 | U35: =IF(PlotControl!$B$4 = "Annual Max",MAX(OFFSET(Cbeach!$D$10,12*$A35,4*(PlotControl!$C$6-1),12,1)),AVERAGE(OFFSET(Cbeach!$D$10,12*$A35,4*(PlotControl!$C$6-1),12,1))) -> 67.959 | V35: =IF(PlotControl!$B$4 = "Annual Max",MAX(OFFSET(Cbeach!$E$10,12*$A35,4*(PlotControl!$C$6-1),12,1)),AVERAGE(OFFSET(Cbeach!$E$10,12*$A35,4*(PlotControl!$C$6-1),12,1))) -> 328.18
A36: 31 | B36: =IF(PlotControl!$B$4 = "Annual Max",MAX(OFFSET(Nbeach!$C$10,12*$A36,4*(PlotControl!$C$6-1),12,1)),AVERAGE(OFFSET(Nbeach!$C$10,12*$A36,4*(PlotControl!$C$6-1),12,1))) -> 18.743 | C36: =IF(PlotControl!$B$4 = "Annual Max",MAX(OFFSET(Nbeach!$D$10,12*$A36,4*(PlotControl!$C$6-1),12,1)),AVERAGE(OFFSET(Nbeach!$D$10,12*$A36,4*(PlotControl!$C$6-1),12,1))) -> 90.578 | D36: =IF(PlotControl!$B$4 = "Annual Max",MAX(OFFSET(Nbeach!$E$10,12*$A36,4*(PlotControl!$C$6-1),12,1)),AVERAGE(OFFSET(Nbeach!$E$10,12*$A36,4*(PlotControl!$C$6-1),12,1))) -> 349.93 | E36: =IF(PlotControl!$B$4 = "Annual Max",MAX(OFFSET(Ndam!$C$10,12*$A36,4*(PlotControl!$C$6-1),12,1)),AVERAGE(OFFSET(Ndam!$C$10,12*$A36,4*(PlotControl!$C$6-1),12,1))) -> 1.7431 | F36: =IF(PlotControl!$B$4 = "Annual Max",MAX(OFFSET(Ndam!$D$10,12*$A36,4*(PlotControl!$C$6-1),12,1)),AVERAGE(OFFSET(Ndam!$D$10,12*$A36,4*(PlotControl!$C$6-1),12,1))) -> 2.0334 | G36: =IF(PlotControl!$B$4 = "Annual Max",MAX(OFFSET(Ndam!$E$10,12*$A36,4*(PlotControl!$C$6-1),12,1)),AVERAGE(OFFSET(Ndam!$E$10,12*$A36,4*(PlotControl!$C$6-1),12,1))) -> 2.5011 | H36: =IF(PlotControl!$B$4 = "Annual Max",MAX(OFFSET(Ebeach!$C$10,12*$A36,4*(PlotControl!$C$6-1),12,1)),AVERAGE(OFFSET(Ebeach!$C$10,12*$A36,4*(PlotControl!$C$6-1),12,1))) -> 11.404 | I36: =IF(PlotControl!$B$4 = "Annual Max",MAX(OFFSET(Ebeach!$D$10,12*$A36,4*(PlotControl!$C$6-1),12,1)),AVERAGE(OFFSET(Ebeach!$D$10,12*$A36,4*(PlotControl!$C$6-1),12,1))) -> 68.774 | J36: =IF(PlotControl!$B$4 = "Annual Max",MAX(OFFSET(Ebeach!$E$10,12*$A36,4*(PlotControl!$C$6-1),12,1)),AVERAGE(OFFSET(Ebeach!$E$10,12*$A36,4*(PlotControl!$C$6-1),12,1))) -> 332.75 | K36: =IF(PlotControl!$B$4 = "Annual Max",MAX(OFFSET(Edam!$C$10,12*$A36,4*(PlotControl!$C$6-1),12,1)),AVERAGE(OFFSET(Edam!$C$10,12*$A36,4*(PlotControl!$C$6-1),12,1))) -> 0.36002 | L36: =IF(PlotControl!$B$4 = "Annual Max",MAX(OFFSET(Edam!$D$10,12*$A36,4*(PlotControl!$C$6-1),12,1)),AVERAGE(OFFSET(Edam!$D$10,12*$A36,4*(PlotControl!$C$6-1),12,1))) -> 0.47594 | M36: =IF(PlotControl!$B$4 = "Annual Max",MAX(OFFSET(Edam!$E$10,12*$A36,4*(PlotControl!$C$6-1),12,1)),AVERAGE(OFFSET(Edam!$E$10,12*$A36,4*(PlotControl!$C$6-1),12,1))) -> 0.68362 | N36: =IF(PlotControl!$B$4 = "Annual Max",MAX(OFFSET(Sbeach!$C$10,12*$A36,4*(PlotControl!$C$6-1),12,1)),AVERAGE(OFFSET(Sbeach!$C$10,12*$A36,4*(PlotControl!$C$6-1),12,1))) -> 11.114 | O36: =IF(PlotControl!$B$4 = "Annual Max",MAX(OFFSET(Sbeach!$D$10,12*$A36,4*(PlotControl!$C$6-1),12,1)),AVERAGE(OFFSET(Sbeach!$D$10,12*$A36,4*(PlotControl!$C$6-1),12,1))) -> 58.078 | P36: =IF(PlotControl!$B$4 = "Annual Max",MAX(OFFSET(Sbeach!$E$10,12*$A36,4*(PlotControl!$C$6-1),12,1)),AVERAGE(OFFSET(Sbeach!$E$10,12*$A36,4*(PlotControl!$C$6-1),12,1))) -> 342.5 | Q36: =IF(PlotControl!$B$4 = "Annual Max",MAX(OFFSET(Sdam!$C$10,12*$A36,4*(PlotControl!$C$6-1),12,1)),AVERAGE(OFFSET(Sdam!$C$10,12*$A36,4*(PlotControl!$C$6-1),12,1))) -> 0.76924 | R36: =IF(PlotControl!$B$4 = "Annual Max",MAX(OFFSET(Sdam!$D$10,12*$A36,4*(PlotControl!$C$6-1),12,1)),AVERAGE(OFFSET(Sdam!$D$10,12*$A36,4*(PlotControl!$C$6-1),12,1))) -> 0.92514 | S36: =IF(PlotControl!$B$4 = "Annual Max",MAX(OFFSET(Sdam!$E$10,12*$A36,4*(PlotControl!$C$6-1),12,1)),AVERAGE(OFFSET(Sdam!$E$10,12*$A36,4*(PlotControl!$C$6-1),12,1))) -> 1.1561 | T36: =IF(PlotControl!$B$4 = "Annual Max",MAX(OFFSET(Cbeach!$C$10,12*$A36,4*(PlotControl!$C$6-1),12,1)),AVERAGE(OFFSET(Cbeach!$C$10,12*$A36,4*(PlotControl!$C$6-1),12,1))) -> 11.451 | U36: =IF(PlotControl!$B$4 = "Annual Max",MAX(OFFSET(Cbeach!$D$10,12*$A36,4*(PlotControl!$C$6-1),12,1)),AVERAGE(OFFSET(Cbeach!$D$10,12*$A36,4*(PlotControl!$C$6-1),12,1))) -> 67.843 | V36: =IF(PlotControl!$B$4 = "Annual Max",MAX(OFFSET(Cbeach!$E$10,12*$A36,4*(PlotControl!$C$6-1),12,1)),AVERAGE(OFFSET(Cbeach!$E$10,12*$A36,4*(PlotControl!$C$6-1),12,1))) -> 332.75
A37: 32 | B37: =IF(PlotControl!$B$4 = "Annual Max",MAX(OFFSET(Nbeach!$C$10,12*$A37,4*(PlotControl!$C$6-1),12,1)),AVERAGE(OFFSET(Nbeach!$C$10,12*$A37,4*(PlotControl!$C$6-1),12,1))) -> 16.933 | C37: =IF(PlotControl!$B$4 = "Annual Max",MAX(OFFSET(Nbeach!$D$10,12*$A37,4*(PlotControl!$C$6-1),12,1)),AVERAGE(OFFSET(Nbeach!$D$10,12*$A37,4*(PlotControl!$C$6-1),12,1))) -> 79.73 | D37: =IF(PlotControl!$B$4 = "Annual Max",MAX(OFFSET(Nbeach!$E$10,12*$A37,4*(PlotControl!$C$6-1),12,1)),AVERAGE(OFFSET(Nbeach!$E$10,12*$A37,4*(PlotControl!$C$6-1),12,1))) -> 349.82 | E37: =IF(PlotControl!$B$4 = "Annual Max",MAX(OFFSET(Ndam!$C$10,12*$A37,4*(PlotControl!$C$6-1),12,1)),AVERAGE(OFFSET(Ndam!$C$10,12*$A37,4*(PlotControl!$C$6-1),12,1))) -> 1.6744 | F37: =IF(PlotControl!$B$4 = "Annual Max",MAX(OFFSET(Ndam!$D$10,12*$A37,4*(PlotControl!$C$6-1),12,1)),AVERAGE(OFFSET(Ndam!$D$10,12*$A37,4*(PlotControl!$C$6-1),12,1))) -> 1.9536 | G37: =IF(PlotControl!$B$4 = "Annual Max",MAX(OFFSET(Ndam!$E$10,12*$A37,4*(PlotControl!$C$6-1),12,1)),AVERAGE(OFFSET(Ndam!$E$10,12*$A37,4*(PlotControl!$C$6-1),12,1))) -> 2.4008 | H37: =IF(PlotControl!$B$4 = "Annual Max",MAX(OFFSET(Ebeach!$C$10,12*$A37,4*(PlotControl!$C$6-1),12,1)),AVERAGE(OFFSET(Ebeach!$C$10,12*$A37,4*(PlotControl!$C$6-1),12,1))) -> 11.377 | I37: =IF(PlotControl!$B$4 = "Annual Max",MAX(OFFSET(Ebeach!$D$10,12*$A37,4*(PlotControl!$C$6-1),12,1)),AVERAGE(OFFSET(Ebeach!$D$10,12*$A37,4*(PlotControl!$C$6-1),12,1))) -> 65.191 | J37: =IF(PlotControl!$B$4 = "Annual Max",MAX(OFFSET(Ebeach!$E$10,12*$A37,4*(PlotControl!$C$6-1),12,1)),AVERAGE(OFFSET(Ebeach!$E$10,12*$A37,4*(PlotControl!$C$6-1),12,1))) -> 330.63 | K37: =IF(PlotControl!$B$4 = "Annual Max",MAX(OFFSET(Edam!$C$10,12*$A37,4*(PlotControl!$C$6-1),12,1)),AVERAGE(OFFSET(Edam!$C$10,12*$A37,4*(PlotControl!$C$6-1),12,1))) -> 0.32738 | L37: =IF(PlotControl!$B$4 = "Annual Max",MAX(OFFSET(Edam!$D$10,12*$A37,4*(PlotControl!$C$6-1),12,1)),AVERAGE(OFFSET(Edam!$D$10,12*$A37,4*(PlotControl!$C$6-1),12,1))) -> 0.4392 | M37: =IF(PlotControl!$B$4 = "Annual Max",MAX(OFFSET(Edam!$E$10,12*$A37,4*(PlotControl!$C$6-1),12,1)),AVERAGE(OFFSET(Edam!$E$10,12*$A37,4*(PlotControl!$C$6-1),12,1))) -> 0.62113 | N37: =IF(PlotControl!$B$4 = "Annual Max",MAX(OFFSET(Sbeach!$C$10,12*$A37,4*(PlotControl!$C$6-1),12,1)),AVERAGE(OFFSET(Sbeach!$C$10,12*$A37,4*(PlotControl!$C$6-1),12,1))) -> 10.679 | O37: =IF(PlotControl!$B$4 = "Annual Max",MAX(OFFSET(Sbeach!$D$10,12*$A37,4*(PlotControl!$C$6-1),12,1)),AVERAGE(OFFSET(Sbeach!$D$10,12*$A37,4*(PlotControl!$C$6-1),12,1))) -> 58.511 | P37: =IF(PlotControl!$B$4 = "Annual Max",MAX(OFFSET(Sbeach!$E$10,12*$A37,4*(PlotControl!$C$6-1),12,1)),AVERAGE(OFFSET(Sbeach!$E$10,12*$A37,4*(PlotControl!$C$6-1),12,1))) -> 342.5 | Q37: =IF(PlotControl!$B$4 = "Annual Max",MAX(OFFSET(Sdam!$C$10,12*$A37,4*(PlotControl!$C$6-1),12,1)),AVERAGE(OFFSET(Sdam!$C$10,12*$A37,4*(PlotControl!$C$6-1),12,1))) -> 0.71934 | R37: =IF(PlotControl!$B$4 = "Annual Max",MAX(OFFSET(Sdam!$D$10,12*$A37,4*(PlotControl!$C$6-1),12,1)),AVERAGE(OFFSET(Sdam!$D$10,12*$A37,4*(PlotControl!$C$6-1),12,1))) -> 0.87278 | S37: =IF(PlotControl!$B$4 = "Annual Max",MAX(OFFSET(Sdam!$E$10,12*$A37,4*(PlotControl!$C$6-1),12,1)),AVERAGE(OFFSET(Sdam!$E$10,12*$A37,4*(PlotControl!$C$6-1),12,1))) -> 1.0956 | T37: =IF(PlotControl!$B$4 = "Annual Max",MAX(OFFSET(Cbeach!$C$10,12*$A37,4*(PlotControl!$C$6-1),12,1)),AVERAGE(OFFSET(Cbeach!$C$10,12*$A37,4*(PlotControl!$C$6-1),12,1))) -> 11.359 | U37: =IF(PlotControl!$B$4 = "Annual Max",MAX(OFFSET(Cbeach!$D$10,12*$A37,4*(PlotControl!$C$6-1),12,1)),AVERAGE(OFFSET(Cbeach!$D$10,12*$A37,4*(PlotControl!$C$6-1),12,1))) -> 66.099 | V37: =IF(PlotControl!$B$4 = "Annual Max",MAX(OFFSET(Cbeach!$E$10,12*$A37,4*(PlotControl!$C$6-1),12,1)),AVERAGE(OFFSET(Cbeach!$E$10,12*$A37,4*(PlotControl!$C$6-1),12,1))) -> 330.63
A38: 33 | B38: =IF(PlotControl!$B$4 = "Annual Max",MAX(OFFSET(Nbeach!$C$10,12*$A38,4*(PlotControl!$C$6-1),12,1)),AVERAGE(OFFSET(Nbeach!$C$10,12*$A38,4*(PlotControl!$C$6-1),12,1))) -> 15.588 | C38: =IF(PlotControl!$B$4 = "Annual Max",MAX(OFFSET(Nbeach!$D$10,12*$A38,4*(PlotControl!$C$6-1),12,1)),AVERAGE(OFFSET(Nbeach!$D$10,12*$A38,4*(PlotControl!$C$6-1),12,1))) -> 72.105 | D38: =IF(PlotControl!$B$4 = "Annual Max",MAX(OFFSET(Nbeach!$E$10,12*$A38,4*(PlotControl!$C$6-1),12,1)),AVERAGE(OFFSET(Nbeach!$E$10,12*$A38,4*(PlotControl!$C$6-1),12,1))) -> 349.69 | E38: =IF(PlotControl!$B$4 = "Annual Max",MAX(OFFSET(Ndam!$C$10,12*$A38,4*(PlotControl!$C$6-1),12,1)),AVERAGE(OFFSET(Ndam!$C$10,12*$A38,4*(PlotControl!$C$6-1),12,1))) -> 1.5905 | F38: =IF(PlotControl!$B$4 = "Annual Max",MAX(OFFSET(Ndam!$D$10,12*$A38,4*(PlotControl!$C$6-1),12,1)),AVERAGE(OFFSET(Ndam!$D$10,12*$A38,4*(PlotControl!$C$6-1),12,1))) -> 1.8987 | G38: =IF(PlotControl!$B$4 = "Annual Max",MAX(OFFSET(Ndam!$E$10,12*$A38,4*(PlotControl!$C$6-1),12,1)),AVERAGE(OFFSET(Ndam!$E$10,12*$A38,4*(PlotControl!$C$6-1),12,1))) -> 2.3264 | H38: =IF(PlotControl!$B$4 = "Annual Max",MAX(OFFSET(Ebeach!$C$10,12*$A38,4*(PlotControl!$C$6-1),12,1)),AVERAGE(OFFSET(Ebeach!$C$10,12*$A38,4*(PlotControl!$C$6-1),12,1))) -> 11.208 | I38: =IF(PlotControl!$B$4 = "Annual Max",MAX(OFFSET(Ebeach!$D$10,12*$A38,4*(PlotControl!$C$6-1),12,1)),AVERAGE(OFFSET(Ebeach!$D$10,12*$A38,4*(PlotControl!$C$6-1),12,1))) -> 66.965 | J38: =IF(PlotControl!$B$4 = "Annual Max",MAX(OFFSET(Ebeach!$E$10,12*$A38,4*(PlotControl!$C$6-1),12,1)),AVERAGE(OFFSET(Ebeach!$E$10,12*$A38,4*(PlotControl!$C$6-1),12,1))) -> 329.03 | K38: =IF(PlotControl!$B$4 = "Annual Max",MAX(OFFSET(Edam!$C$10,12*$A38,4*(PlotControl!$C$6-1),12,1)),AVERAGE(OFFSET(Edam!$C$10,12*$A38,4*(PlotControl!$C$6-1),12,1))) -> 0.30344 | L38: =IF(PlotControl!$B$4 = "Annual Max",MAX(OFFSET(Edam!$D$10,12*$A38,4*(PlotControl!$C$6-1),12,1)),AVERAGE(OFFSET(Edam!$D$10,12*$A38,4*(PlotControl!$C$6-1),12,1))) -> 0.41164 | M38: =IF(PlotControl!$B$4 = "Annual Max",MAX(OFFSET(Edam!$E$10,12*$A38,4*(PlotControl!$C$6-1),12,1)),AVERAGE(OFFSET(Edam!$E$10,12*$A38,4*(PlotControl!$C$6-1),12,1))) -> 0.59744 | N38: =IF(PlotControl!$B$4 = "Annual Max",MAX(OFFSET(Sbeach!$C$10,12*$A38,4*(PlotControl!$C$6-1),12,1)),AVERAGE(OFFSET(Sbeach!$C$10,12*$A38,4*(PlotControl!$C$6-1),12,1))) -> 10.285 | O38: =IF(PlotControl!$B$4 = "Annual Max",MAX(OFFSET(Sbeach!$D$10,12*$A38,4*(PlotControl!$C$6-1),12,1)),AVERAGE(OFFSET(Sbeach!$D$10,12*$A38,4*(PlotControl!$C$6-1),12,1))) -> 55.926 | P38: =IF(PlotControl!$B$4 = "Annual Max",MAX(OFFSET(Sbeach!$E$10,12*$A38,4*(PlotControl!$C$6-1),12,1)),AVERAGE(OFFSET(Sbeach!$E$10,12*$A38,4*(PlotControl!$C$6-1),12,1))) -> 342.18 | Q38: =IF(PlotControl!$B$4 = "Annual Max",MAX(OFFSET(Sdam!$C$10,12*$A38,4*(PlotControl!$C$6-1),12,1)),AVERAGE(OFFSET(Sdam!$C$10,12*$A38,4*(PlotControl!$C$6-1),12,1))) -> 0.67067 | R38: =IF(PlotControl!$B$4 = "Annual Max",MAX(OFFSET(Sdam!$D$10,12*$A38,4*(PlotControl!$C$6-1),12,1)),AVERAGE(OFFSET(Sdam!$D$10,12*$A38,4*(PlotControl!$C$6-1),12,1))) -> 0.82745 | S38: =IF(PlotControl!$B$4 = "Annual Max",MAX(OFFSET(Sdam!$E$10,12*$A38,4*(PlotControl!$C$6-1),12,1)),AVERAGE(OFFSET(Sdam!$E$10,12*$A38,4*(PlotControl!$C$6-1),12,1))) -> 1.0483 | T38: =IF(PlotControl!$B$4 = "Annual Max",MAX(OFFSET(Cbeach!$C$10,12*$A38,4*(PlotControl!$C$6-1),12,1)),AVERAGE(OFFSET(Cbeach!$C$10,12*$A38,4*(PlotControl!$C$6-1),12,1))) -> 11.167 | U38: =IF(PlotControl!$B$4 = "Annual Max",MAX(OFFSET(Cbeach!$D$10,12*$A38,4*(PlotControl!$C$6-1),12,1)),AVERAGE(OFFSET(Cbeach!$D$10,12*$A38,4*(PlotControl!$C$6-1),12,1))) -> 66.018 | V38: =IF(PlotControl!$B$4 = "Annual Max",MAX(OFFSET(Cbeach!$E$10,12*$A38,4*(PlotControl!$C$6-1),12,1)),AVERAGE(OFFSET(Cbeach!$E$10,12*$A38,4*(PlotControl!$C$6-1),12,1))) -> 328.18
A39: 34 | B39: =IF(PlotControl!$B$4 = "Annual Max",MAX(OFFSET(Nbeach!$C$10,12*$A39,4*(PlotControl!$C$6-1),12,1)),AVERAGE(OFFSET(Nbeach!$C$10,12*$A39,4*(PlotControl!$C$6-1),12,1))) -> 14.669 | C39: =IF(PlotControl!$B$4 = "Annual Max",MAX(OFFSET(Nbeach!$D$10,12*$A39,4*(PlotControl!$C$6-1),12,1)),AVERAGE(OFFSET(Nbeach!$D$10,12*$A39,4*(PlotControl!$C$6-1),12,1))) -> 72.623 | D39: =IF(PlotControl!$B$4 = "Annual Max",MAX(OFFSET(Nbeach!$E$10,12*$A39,4*(PlotControl!$C$6-1),12,1)),AVERAGE(OFFSET(Nbeach!$E$10,12*$A39,4*(PlotControl!$C$6-1),12,1))) -> 349.28 | E39: =IF(PlotControl!$B$4 = "Annual Max",MAX(OFFSET(Ndam!$C$10,12*$A39,4*(PlotControl!$C$6-1),12,1)),AVERAGE(OFFSET(Ndam!$C$10,12*$A39,4*(PlotControl!$C$6-1),12,1))) -> 1.5376 | F39: =IF(PlotControl!$B$4 = "Annual Max",MAX(OFFSET(Ndam!$D$10,12*$A39,4*(PlotControl!$C$6-1),12,1)),AVERAGE(OFFSET(Ndam!$D$10,12*$A39,4*(PlotControl!$C$6-1),12,1))) -> 1.8 | G39: =IF(PlotControl!$B$4 = "Annual Max",MAX(OFFSET(Ndam!$E$10,12*$A39,4*(PlotControl!$C$6-1),12,1)),AVERAGE(OFFSET(Ndam!$E$10,12*$A39,4*(PlotControl!$C$6-1),12,1))) -> 2.2233 | H39: =IF(PlotControl!$B$4 = "Annual Max",MAX(OFFSET(Ebeach!$C$10,12*$A39,4*(PlotControl!$C$6-1),12,1)),AVERAGE(OFFSET(Ebeach!$C$10,12*$A39,4*(PlotControl!$C$6-1),12,1))) -> 11.16 | I39: =IF(PlotControl!$B$4 = "Annual Max",MAX(OFFSET(Ebeach!$D$10,12*$A39,4*(PlotControl!$C$6-1),12,1)),AVERAGE(OFFSET(Ebeach!$D$10,12*$A39,4*(PlotControl!$C$6-1),12,1))) -> 70.522 | J39: =IF(PlotControl!$B$4 = "Annual Max",MAX(OFFSET(Ebeach!$E$10,12*$A39,4*(PlotControl!$C$6-1),12,1)),AVERAGE(OFFSET(Ebeach!$E$10,12*$A39,4*(PlotControl!$C$6-1),12,1))) -> 332.08 | K39: =IF(PlotControl!$B$4 = "Annual Max",MAX(OFFSET(Edam!$C$10,12*$A39,4*(PlotControl!$C$6-1),12,1)),AVERAGE(OFFSET(Edam!$C$10,12*$A39,4*(PlotControl!$C$6-1),12,1))) -> 0.28201 | L39: =IF(PlotControl!$B$4 = "Annual Max",MAX(OFFSET(Edam!$D$10,12*$A39,4*(PlotControl!$C$6-1),12,1)),AVERAGE(OFFSET(Edam!$D$10,12*$A39,4*(PlotControl!$C$6-1),12,1))) -> 0.38312 | M39: =IF(PlotControl!$B$4 = "Annual Max",MAX(OFFSET(Edam!$E$10,12*$A39,4*(PlotControl!$C$6-1),12,1)),AVERAGE(OFFSET(Edam!$E$10,12*$A39,4*(PlotControl!$C$6-1),12,1))) -> 0.56713 | N39: =IF(PlotControl!$B$4 = "Annual Max",MAX(OFFSET(Sbeach!$C$10,12*$A39,4*(PlotControl!$C$6-1),12,1)),AVERAGE(OFFSET(Sbeach!$C$10,12*$A39,4*(PlotControl!$C$6-1),12,1))) -> 10.365 | O39: =IF(PlotControl!$B$4 = "Annual Max",MAX(OFFSET(Sbeach!$D$10,12*$A39,4*(PlotControl!$C$6-1),12,1)),AVERAGE(OFFSET(Sbeach!$D$10,12*$A39,4*(PlotControl!$C$6-1),12,1))) -> 58.918 | P39: =IF(PlotControl!$B$4 = "Annual Max",MAX(OFFSET(Sbeach!$E$10,12*$A39,4*(PlotControl!$C$6-1),12,1)),AVERAGE(OFFSET(Sbeach!$E$10,12*$A39,4*(PlotControl!$C$6-1),12,1))) -> 342.18 | Q39: =IF(PlotControl!$B$4 = "Annual Max",MAX(OFFSET(Sdam!$C$10,12*$A39,4*(PlotControl!$C$6-1),12,1)),AVERAGE(OFFSET(Sdam!$C$10,12*$A39,4*(PlotControl!$C$6-1),12,1))) -> 0.64015 | R39: =IF(PlotControl!$B$4 = "Annual Max",MAX(OFFSET(Sdam!$D$10,12*$A39,4*(PlotControl!$C$6-1),12,1)),AVERAGE(OFFSET(Sdam!$D$10,12*$A39,4*(PlotControl!$C$6-1),12,1))) -> 0.77959 | S39: =IF(PlotControl!$B$4 = "Annual Max",MAX(OFFSET(Sdam!$E$10,12*$A39,4*(PlotControl!$C$6-1),12,1)),AVERAGE(OFFSET(Sdam!$E$10,12*$A39,4*(PlotControl!$C$6-1),12,1))) -> 0.99563 | T39: =IF(PlotControl!$B$4 = "Annual Max",MAX(OFFSET(Cbeach!$C$10,12*$A39,4*(PlotControl!$C$6-1),12,1)),AVERAGE(OFFSET(Cbeach!$C$10,12*$A39,4*(PlotControl!$C$6-1),12,1))) -> 11.367 | U39: =IF(PlotControl!$B$4 = "Annual Max",MAX(OFFSET(Cbeach!$D$10,12*$A39,4*(PlotControl!$C$6-1),12,1)),AVERAGE(OFFSET(Cbeach!$D$10,12*$A39,4*(PlotControl!$C$6-1),12,1))) -> 69.928 | V39: =IF(PlotControl!$B$4 = "Annual Max",MAX(OFFSET(Cbeach!$E$10,12*$A39,4*(PlotControl!$C$6-1),12,1)),AVERAGE(OFFSET(Cbeach!$E$10,12*$A39,4*(PlotControl!$C$6-1),12,1))) -> 329.16
A40: 35 | B40: =IF(PlotControl!$B$4 = "Annual Max",MAX(OFFSET(Nbeach!$C$10,12*$A40,4*(PlotControl!$C$6-1),12,1)),AVERAGE(OFFSET(Nbeach!$C$10,12*$A40,4*(PlotControl!$C$6-1),12,1))) -> 13.932 | C40: =IF(PlotControl!$B$4 = "Annual Max",MAX(OFFSET(Nbeach!$D$10,12*$A40,4*(PlotControl!$C$6-1),12,1)),AVERAGE(OFFSET(Nbeach!$D$10,12*$A40,4*(PlotControl!$C$6-1),12,1))) -> 71.394 | D40: =IF(PlotControl!$B$4 = "Annual Max",MAX(OFFSET(Nbeach!$E$10,12*$A40,4*(PlotControl!$C$6-1),12,1)),AVERAGE(OFFSET(Nbeach!$E$10,12*$A40,4*(PlotControl!$C$6-1),12,1))) -> 349.28 | E40: =IF(PlotControl!$B$4 = "Annual Max",MAX(OFFSET(Ndam!$C$10,12*$A40,4*(PlotControl!$C$6-1),12,1)),AVERAGE(OFFSET(Ndam!$C$10,12*$A40,4*(PlotControl!$C$6-1),12,1))) -> 1.4488 | F40: =IF(PlotControl!$B$4 = "Annual Max",MAX(OFFSET(Ndam!$D$10,12*$A40,4*(PlotControl!$C$6-1),12,1)),AVERAGE(OFFSET(Ndam!$D$10,12*$A40,4*(PlotControl!$C$6-1),12,1))) -> 1.71 | G40: =IF(PlotControl!$B$4 = "Annual Max",MAX(OFFSET(Ndam!$E$10,12*$A40,4*(PlotControl!$C$6-1),12,1)),AVERAGE(OFFSET(Ndam!$E$10,12*$A40,4*(PlotControl!$C$6-1),12,1))) -> 2.1049 | H40: =IF(PlotControl!$B$4 = "Annual Max",MAX(OFFSET(Ebeach!$C$10,12*$A40,4*(PlotControl!$C$6-1),12,1)),AVERAGE(OFFSET(Ebeach!$C$10,12*$A40,4*(PlotControl!$C$6-1),12,1))) -> 11.394 | I40: =IF(PlotControl!$B$4 = "Annual Max",MAX(OFFSET(Ebeach!$D$10,12*$A40,4*(PlotControl!$C$6-1),12,1)),AVERAGE(OFFSET(Ebeach!$D$10,12*$A40,4*(PlotControl!$C$6-1),12,1))) -> 70.016 | J40: =IF(PlotControl!$B$4 = "Annual Max",MAX(OFFSET(Ebeach!$E$10,12*$A40,4*(PlotControl!$C$6-1),12,1)),AVERAGE(OFFSET(Ebeach!$E$10,12*$A40,4*(PlotControl!$C$6-1),12,1))) -> 331.24 | K40: =IF(PlotControl!$B$4 = "Annual Max",MAX(OFFSET(Edam!$C$10,12*$A40,4*(PlotControl!$C$6-1),12,1)),AVERAGE(OFFSET(Edam!$C$10,12*$A40,4*(PlotControl!$C$6-1),12,1))) -> 0.26801 | L40: =IF(PlotControl!$B$4 = "Annual Max",MAX(OFFSET(Edam!$D$10,12*$A40,4*(PlotControl!$C$6-1),12,1)),AVERAGE(OFFSET(Edam!$D$10,12*$A40,4*(PlotControl!$C$6-1),12,1))) -> 0.36292 | M40: =IF(PlotControl!$B$4 = "Annual Max",MAX(OFFSET(Edam!$E$10,12*$A40,4*(PlotControl!$C$6-1),12,1)),AVERAGE(OFFSET(Edam!$E$10,12*$A40,4*(PlotControl!$C$6-1),12,1))) -> 0.52542 | N40: =IF(PlotControl!$B$4 = "Annual Max",MAX(OFFSET(Sbeach!$C$10,12*$A40,4*(PlotControl!$C$6-1),12,1)),AVERAGE(OFFSET(Sbeach!$C$10,12*$A40,4*(PlotControl!$C$6-1),12,1))) -> 10.303 | O40: =IF(PlotControl!$B$4 = "Annual Max",MAX(OFFSET(Sbeach!$D$10,12*$A40,4*(PlotControl!$C$6-1),12,1)),AVERAGE(OFFSET(Sbeach!$D$10,12*$A40,4*(PlotControl!$C$6-1),12,1))) -> 59.505 | P40: =IF(PlotControl!$B$4 = "Annual Max",MAX(OFFSET(Sbeach!$E$10,12*$A40,4*(PlotControl!$C$6-1),12,1)),AVERAGE(OFFSET(Sbeach!$E$10,12*$A40,4*(PlotControl!$C$6-1),12,1))) -> 342.18 | Q40: =IF(PlotControl!$B$4 = "Annual Max",MAX(OFFSET(Sdam!$C$10,12*$A40,4*(PlotControl!$C$6-1),12,1)),AVERAGE(OFFSET(Sdam!$C$10,12*$A40,4*(PlotControl!$C$6-1),12,1))) -> 0.61271 | R40: =IF(PlotControl!$B$4 = "Annual Max",MAX(OFFSET(Sdam!$D$10,12*$A40,4*(PlotControl!$C$6-1),12,1)),AVERAGE(OFFSET(Sdam!$D$10,12*$A40,4*(PlotControl!$C$6-1),12,1))) -> 0.74165 | S40: =IF(PlotControl!$B$4 = "Annual Max",MAX(OFFSET(Sdam!$E$10,12*$A40,4*(PlotControl!$C$6-1),12,1)),AVERAGE(OFFSET(Sdam!$E$10,12*$A40,4*(PlotControl!$C$6-1),12,1))) -> 0.94733 | T40: =IF(PlotControl!$B$4 = "Annual Max",MAX(OFFSET(Cbeach!$C$10,12*$A40,4*(PlotControl!$C$6-1),12,1)),AVERAGE(OFFSET(Cbeach!$C$10,12*$A40,4*(PlotControl!$C$6-1),12,1))) -> 11.401 | U40: =IF(PlotControl!$B$4 = "Annual Max",MAX(OFFSET(Cbeach!$D$10,12*$A40,4*(PlotControl!$C$6-1),12,1)),AVERAGE(OFFSET(Cbeach!$D$10,12*$A40,4*(PlotControl!$C$6-1),12,1))) -> 69.695 | V40: =IF(PlotControl!$B$4 = "Annual Max",MAX(OFFSET(Cbeach!$E$10,12*$A40,4*(PlotControl!$C$6-1),12,1)),AVERAGE(OFFSET(Cbeach!$E$10,12*$A40,4*(PlotControl!$C$6-1),12,1))) -> 330.5
A41: 36 | B41: =IF(PlotControl!$B$4 = "Annual Max",MAX(OFFSET(Nbeach!$C$10,12*$A41,4*(PlotControl!$C$6-1),12,1)),AVERAGE(OFFSET(Nbeach!$C$10,12*$A41,4*(PlotControl!$C$6-1),12,1))) -> 13.106 | C41: =IF(PlotControl!$B$4 = "Annual Max",MAX(OFFSET(Nbeach!$D$10,12*$A41,4*(PlotControl!$C$6-1),12,1)),AVERAGE(OFFSET(Nbeach!$D$10,12*$A41,4*(PlotControl!$C$6-1),12,1))) -> 65.775 | D41: =IF(PlotControl!$B$4 = "Annual Max",MAX(OFFSET(Nbeach!$E$10,12*$A41,4*(PlotControl!$C$6-1),12,1)),AVERAGE(OFFSET(Nbeach!$E$10,12*$A41,4*(PlotControl!$C$6-1),12,1))) -> 348.35 | E41: =IF(PlotControl!$B$4 = "Annual Max",MAX(OFFSET(Ndam!$C$10,12*$A41,4*(PlotControl!$C$6-1),12,1)),AVERAGE(OFFSET(Ndam!$C$10,12*$A41,4*(PlotControl!$C$6-1),12,1))) -> 1.3893 | F41: =IF(PlotControl!$B$4 = "Annual Max",MAX(OFFSET(Ndam!$D$10,12*$A41,4*(PlotControl!$C$6-1),12,1)),AVERAGE(OFFSET(Ndam!$D$10,12*$A41,4*(PlotControl!$C$6-1),12,1))) -> 1.6448 | G41: =IF(PlotControl!$B$4 = "Annual Max",MAX(OFFSET(Ndam!$E$10,12*$A41,4*(PlotControl!$C$6-1),12,1)),AVERAGE(OFFSET(Ndam!$E$10,12*$A41,4*(PlotControl!$C$6-1),12,1))) -> 2.0285 | H41: =IF(PlotControl!$B$4 = "Annual Max",MAX(OFFSET(Ebeach!$C$10,12*$A41,4*(PlotControl!$C$6-1),12,1)),AVERAGE(OFFSET(Ebeach!$C$10,12*$A41,4*(PlotControl!$C$6-1),12,1))) -> 10.809 | I41: =IF(PlotControl!$B$4 = "Annual Max",MAX(OFFSET(Ebeach!$D$10,12*$A41,4*(PlotControl!$C$6-1),12,1)),AVERAGE(OFFSET(Ebeach!$D$10,12*$A41,4*(PlotControl!$C$6-1),12,1))) -> 69.29 | J41: =IF(PlotControl!$B$4 = "Annual Max",MAX(OFFSET(Ebeach!$E$10,12*$A41,4*(PlotControl!$C$6-1),12,1)),AVERAGE(OFFSET(Ebeach!$E$10,12*$A41,4*(PlotControl!$C$6-1),12,1))) -> 332.75 | K41: =IF(PlotControl!$B$4 = "Annual Max",MAX(OFFSET(Edam!$C$10,12*$A41,4*(PlotControl!$C$6-1),12,1)),AVERAGE(OFFSET(Edam!$C$10,12*$A41,4*(PlotControl!$C$6-1),12,1))) -> 0.24982 | L41: =IF(PlotControl!$B$4 = "Annual Max",MAX(OFFSET(Edam!$D$10,12*$A41,4*(PlotControl!$C$6-1),12,1)),AVERAGE(OFFSET(Edam!$D$10,12*$A41,4*(PlotControl!$C$6-1),12,1))) -> 0.34514 | M41: =IF(PlotControl!$B$4 = "Annual Max",MAX(OFFSET(Edam!$E$10,12*$A41,4*(PlotControl!$C$6-1),12,1)),AVERAGE(OFFSET(Edam!$E$10,12*$A41,4*(PlotControl!$C$6-1),12,1))) -> 0.50899 | N41: =IF(PlotControl!$B$4 = "Annual Max",MAX(OFFSET(Sbeach!$C$10,12*$A41,4*(PlotControl!$C$6-1),12,1)),AVERAGE(OFFSET(Sbeach!$C$10,12*$A41,4*(PlotControl!$C$6-1),12,1))) -> 10.057 | O41: =IF(PlotControl!$B$4 = "Annual Max",MAX(OFFSET(Sbeach!$D$10,12*$A41,4*(PlotControl!$C$6-1),12,1)),AVERAGE(OFFSET(Sbeach!$D$10,12*$A41,4*(PlotControl!$C$6-1),12,1))) -> 57.48 | P41: =IF(PlotControl!$B$4 = "Annual Max",MAX(OFFSET(Sbeach!$E$10,12*$A41,4*(PlotControl!$C$6-1),12,1)),AVERAGE(OFFSET(Sbeach!$E$10,12*$A41,4*(PlotControl!$C$6-1),12,1))) -> 340.96 | Q41: =IF(PlotControl!$B$4 = "Annual Max",MAX(OFFSET(Sdam!$C$10,12*$A41,4*(PlotControl!$C$6-1),12,1)),AVERAGE(OFFSET(Sdam!$C$10,12*$A41,4*(PlotControl!$C$6-1),12,1))) -> 0.58144 | R41: =IF(PlotControl!$B$4 = "Annual Max",MAX(OFFSET(Sdam!$D$10,12*$A41,4*(PlotControl!$C$6-1),12,1)),AVERAGE(OFFSET(Sdam!$D$10,12*$A41,4*(PlotControl!$C$6-1),12,1))) -> 0.71295 | S41: =IF(PlotControl!$B$4 = "Annual Max",MAX(OFFSET(Sdam!$E$10,12*$A41,4*(PlotControl!$C$6-1),12,1)),AVERAGE(OFFSET(Sdam!$E$10,12*$A41,4*(PlotControl!$C$6-1),12,1))) -> 0.93253 | T41: =IF(PlotControl!$B$4 = "Annual Max",MAX(OFFSET(Cbeach!$C$10,12*$A41,4*(PlotControl!$C$6-1),12,1)),AVERAGE(OFFSET(Cbeach!$C$10,12*$A41,4*(PlotControl!$C$6-1),12,1))) -> 10.717 | U41: =IF(PlotControl!$B$4 = "Annual Max",MAX(OFFSET(Cbeach!$D$10,12*$A41,4*(PlotControl!$C$6-1),12,1)),AVERAGE(OFFSET(Cbeach!$D$10,12*$A41,4*(PlotControl!$C$6-1),12,1))) -> 69.167 | V41: =IF(PlotControl!$B$4 = "Annual Max",MAX(OFFSET(Cbeach!$E$10,12*$A41,4*(PlotControl!$C$6-1),12,1)),AVERAGE(OFFSET(Cbeach!$E$10,12*$A41,4*(PlotControl!$C$6-1),12,1))) -> 331.24
A42: 37 | B42: =IF(PlotControl!$B$4 = "Annual Max",MAX(OFFSET(Nbeach!$C$10,12*$A42,4*(PlotControl!$C$6-1),12,1)),AVERAGE(OFFSET(Nbeach!$C$10,12*$A42,4*(PlotControl!$C$6-1),12,1))) -> 12.716 | C42: =IF(PlotControl!$B$4 = "Annual Max",MAX(OFFSET(Nbeach!$D$10,12*$A42,4*(PlotControl!$C$6-1),12,1)),AVERAGE(OFFSET(Nbeach!$D$10,12*$A42,4*(PlotControl!$C$6-1),12,1))) -> 62.266 | D42: =IF(PlotControl!$B$4 = "Annual Max",MAX(OFFSET(Nbeach!$E$10,12*$A42,4*(PlotControl!$C$6-1),12,1)),AVERAGE(OFFSET(Nbeach!$E$10,12*$A42,4*(PlotControl!$C$6-1),12,1))) -> 348.35 | E42: =IF(PlotControl!$B$4 = "Annual Max",MAX(OFFSET(Ndam!$C$10,12*$A42,4*(PlotControl!$C$6-1),12,1)),AVERAGE(OFFSET(Ndam!$C$10,12*$A42,4*(PlotControl!$C$6-1),12,1))) -> 1.3443 | F42: =IF(PlotControl!$B$4 = "Annual Max",MAX(OFFSET(Ndam!$D$10,12*$A42,4*(PlotControl!$C$6-1),12,1)),AVERAGE(OFFSET(Ndam!$D$10,12*$A42,4*(PlotControl!$C$6-1),12,1))) -> 1.5649 | G42: =IF(PlotControl!$B$4 = "Annual Max",MAX(OFFSET(Ndam!$E$10,12*$A42,4*(PlotControl!$C$6-1),12,1)),AVERAGE(OFFSET(Ndam!$E$10,12*$A42,4*(PlotControl!$C$6-1),12,1))) -> 1.9351 | H42: =IF(PlotControl!$B$4 = "Annual Max",MAX(OFFSET(Ebeach!$C$10,12*$A42,4*(PlotControl!$C$6-1),12,1)),AVERAGE(OFFSET(Ebeach!$C$10,12*$A42,4*(PlotControl!$C$6-1),12,1))) -> 11.375 | I42: =IF(PlotControl!$B$4 = "Annual Max",MAX(OFFSET(Ebeach!$D$10,12*$A42,4*(PlotControl!$C$6-1),12,1)),AVERAGE(OFFSET(Ebeach!$D$10,12*$A42,4*(PlotControl!$C$6-1),12,1))) -> 66.515 | J42: =IF(PlotControl!$B$4 = "Annual Max",MAX(OFFSET(Ebeach!$E$10,12*$A42,4*(PlotControl!$C$6-1),12,1)),AVERAGE(OFFSET(Ebeach!$E$10,12*$A42,4*(PlotControl!$C$6-1),12,1))) -> 330.64 | K42: =IF(PlotControl!$B$4 = "Annual Max",MAX(OFFSET(Edam!$C$10,12*$A42,4*(PlotControl!$C$6-1),12,1)),AVERAGE(OFFSET(Edam!$C$10,12*$A42,4*(PlotControl!$C$6-1),12,1))) -> 0.23805 | L42: =IF(PlotControl!$B$4 = "Annual Max",MAX(OFFSET(Edam!$D$10,12*$A42,4*(PlotControl!$C$6-1),12,1)),AVERAGE(OFFSET(Edam!$D$10,12*$A42,4*(PlotControl!$C$6-1),12,1))) -> 0.3312 | M42: =IF(PlotControl!$B$4 = "Annual Max",MAX(OFFSET(Edam!$E$10,12*$A42,4*(PlotControl!$C$6-1),12,1)),AVERAGE(OFFSET(Edam!$E$10,12*$A42,4*(PlotControl!$C$6-1),12,1))) -> 0.4725 | N42: =IF(PlotControl!$B$4 = "Annual Max",MAX(OFFSET(Sbeach!$C$10,12*$A42,4*(PlotControl!$C$6-1),12,1)),AVERAGE(OFFSET(Sbeach!$C$10,12*$A42,4*(PlotControl!$C$6-1),12,1))) -> 10.264 | O42: =IF(PlotControl!$B$4 = "Annual Max",MAX(OFFSET(Sbeach!$D$10,12*$A42,4*(PlotControl!$C$6-1),12,1)),AVERAGE(OFFSET(Sbeach!$D$10,12*$A42,4*(PlotControl!$C$6-1),12,1))) -> 59.124 | P42: =IF(PlotControl!$B$4 = "Annual Max",MAX(OFFSET(Sbeach!$E$10,12*$A42,4*(PlotControl!$C$6-1),12,1)),AVERAGE(OFFSET(Sbeach!$E$10,12*$A42,4*(PlotControl!$C$6-1),12,1))) -> 340.96 | Q42: =IF(PlotControl!$B$4 = "Annual Max",MAX(OFFSET(Sdam!$C$10,12*$A42,4*(PlotControl!$C$6-1),12,1)),AVERAGE(OFFSET(Sdam!$C$10,12*$A42,4*(PlotControl!$C$6-1),12,1))) -> 0.55919 | R42: =IF(PlotControl!$B$4 = "Annual Max",MAX(OFFSET(Sdam!$D$10,12*$A42,4*(PlotControl!$C$6-1),12,1)),AVERAGE(OFFSET(Sdam!$D$10,12*$A42,4*(PlotControl!$C$6-1),12,1))) -> 0.68563 | S42: =IF(PlotControl!$B$4 = "Annual Max",MAX(OFFSET(Sdam!$E$10,12*$A42,4*(PlotControl!$C$6-1),12,1)),AVERAGE(OFFSET(Sdam!$E$10,12*$A42,4*(PlotControl!$C$6-1),12,1))) -> 0.86897 | T42: =IF(PlotControl!$B$4 = "Annual Max",MAX(OFFSET(Cbeach!$C$10,12*$A42,4*(PlotControl!$C$6-1),12,1)),AVERAGE(OFFSET(Cbeach!$C$10,12*$A42,4*(PlotControl!$C$6-1),12,1))) -> 11.368 | U42: =IF(PlotControl!$B$4 = "Annual Max",MAX(OFFSET(Cbeach!$D$10,12*$A42,4*(PlotControl!$C$6-1),12,1)),AVERAGE(OFFSET(Cbeach!$D$10,12*$A42,4*(PlotControl!$C$6-1),12,1))) -> 66.781 | V42: =IF(PlotControl!$B$4 = "Annual Max",MAX(OFFSET(Cbeach!$E$10,12*$A42,4*(PlotControl!$C$6-1),12,1)),AVERAGE(OFFSET(Cbeach!$E$10,12*$A42,4*(PlotControl!$C$6-1),12,1))) -> 329.2
A43: 38 | B43: =IF(PlotControl!$B$4 = "Annual Max",MAX(OFFSET(Nbeach!$C$10,12*$A43,4*(PlotControl!$C$6-1),12,1)),AVERAGE(OFFSET(Nbeach!$C$10,12*$A43,4*(PlotControl!$C$6-1),12,1))) -> 11.771 | C43: =IF(PlotControl!$B$4 = "Annual Max",MAX(OFFSET(Nbeach!$D$10,12*$A43,4*(PlotControl!$C$6-1),12,1)),AVERAGE(OFFSET(Nbeach!$D$10,12*$A43,4*(PlotControl!$C$6-1),12,1))) -> 61.668 | D43: =IF(PlotControl!$B$4 = "Annual Max",MAX(OFFSET(Nbeach!$E$10,12*$A43,4*(PlotControl!$C$6-1),12,1)),AVERAGE(OFFSET(Nbeach!$E$10,12*$A43,4*(PlotControl!$C$6-1),12,1))) -> 348.35 | E43: =IF(PlotControl!$B$4 = "Annual Max",MAX(OFFSET(Ndam!$C$10,12*$A43,4*(PlotControl!$C$6-1),12,1)),AVERAGE(OFFSET(Ndam!$C$10,12*$A43,4*(PlotControl!$C$6-1),12,1))) -> 1.292 | F43: =IF(PlotControl!$B$4 = "Annual Max",MAX(OFFSET(Ndam!$D$10,12*$A43,4*(PlotControl!$C$6-1),12,1)),AVERAGE(OFFSET(Ndam!$D$10,12*$A43,4*(PlotControl!$C$6-1),12,1))) -> 1.5043 | G43: =IF(PlotControl!$B$4 = "Annual Max",MAX(OFFSET(Ndam!$E$10,12*$A43,4*(PlotControl!$C$6-1),12,1)),AVERAGE(OFFSET(Ndam!$E$10,12*$A43,4*(PlotControl!$C$6-1),12,1))) -> 1.8487 | H43: =IF(PlotControl!$B$4 = "Annual Max",MAX(OFFSET(Ebeach!$C$10,12*$A43,4*(PlotControl!$C$6-1),12,1)),AVERAGE(OFFSET(Ebeach!$C$10,12*$A43,4*(PlotControl!$C$6-1),12,1))) -> 11.81 | I43: =IF(PlotControl!$B$4 = "Annual Max",MAX(OFFSET(Ebeach!$D$10,12*$A43,4*(PlotControl!$C$6-1),12,1)),AVERAGE(OFFSET(Ebeach!$D$10,12*$A43,4*(PlotControl!$C$6-1),12,1))) -> 64.127 | J43: =IF(PlotControl!$B$4 = "Annual Max",MAX(OFFSET(Ebeach!$E$10,12*$A43,4*(PlotControl!$C$6-1),12,1)),AVERAGE(OFFSET(Ebeach!$E$10,12*$A43,4*(PlotControl!$C$6-1),12,1))) -> 329.03 | K43: =IF(PlotControl!$B$4 = "Annual Max",MAX(OFFSET(Edam!$C$10,12*$A43,4*(PlotControl!$C$6-1),12,1)),AVERAGE(OFFSET(Edam!$C$10,12*$A43,4*(PlotControl!$C$6-1),12,1))) -> 0.23094 | L43: =IF(PlotControl!$B$4 = "Annual Max",MAX(OFFSET(Edam!$D$10,12*$A43,4*(PlotControl!$C$6-1),12,1)),AVERAGE(OFFSET(Edam!$D$10,12*$A43,4*(PlotControl!$C$6-1),12,1))) -> 0.32276 | M43: =IF(PlotControl!$B$4 = "Annual Max",MAX(OFFSET(Edam!$E$10,12*$A43,4*(PlotControl!$C$6-1),12,1)),AVERAGE(OFFSET(Edam!$E$10,12*$A43,4*(PlotControl!$C$6-1),12,1))) -> 0.46977 | N43: =IF(PlotControl!$B$4 = "Annual Max",MAX(OFFSET(Sbeach!$C$10,12*$A43,4*(PlotControl!$C$6-1),12,1)),AVERAGE(OFFSET(Sbeach!$C$10,12*$A43,4*(PlotControl!$C$6-1),12,1))) -> 10.282 | O43: =IF(PlotControl!$B$4 = "Annual Max",MAX(OFFSET(Sbeach!$D$10,12*$A43,4*(PlotControl!$C$6-1),12,1)),AVERAGE(OFFSET(Sbeach!$D$10,12*$A43,4*(PlotControl!$C$6-1),12,1))) -> 57.221 | P43: =IF(PlotControl!$B$4 = "Annual Max",MAX(OFFSET(Sbeach!$E$10,12*$A43,4*(PlotControl!$C$6-1),12,1)),AVERAGE(OFFSET(Sbeach!$E$10,12*$A43,4*(PlotControl!$C$6-1),12,1))) -> 339.22 | Q43: =IF(PlotControl!$B$4 = "Annual Max",MAX(OFFSET(Sdam!$C$10,12*$A43,4*(PlotControl!$C$6-1),12,1)),AVERAGE(OFFSET(Sdam!$C$10,12*$A43,4*(PlotControl!$C$6-1),12,1))) -> 0.53953 | R43: =IF(PlotControl!$B$4 = "Annual Max",MAX(OFFSET(Sdam!$D$10,12*$A43,4*(PlotControl!$C$6-1),12,1)),AVERAGE(OFFSET(Sdam!$D$10,12*$A43,4*(PlotControl!$C$6-1),12,1))) -> 0.65478 | S43: =IF(PlotControl!$B$4 = "Annual Max",MAX(OFFSET(Sdam!$E$10,12*$A43,4*(PlotControl!$C$6-1),12,1)),AVERAGE(OFFSET(Sdam!$E$10,12*$A43,4*(PlotControl!$C$6-1),12,1))) -> 0.84002 | T43: =IF(PlotControl!$B$4 = "Annual Max",MAX(OFFSET(Cbeach!$C$10,12*$A43,4*(PlotControl!$C$6-1),12,1)),AVERAGE(OFFSET(Cbeach!$C$10,12*$A43,4*(PlotControl!$C$6-1),12,1))) -> 12.019 | U43: =IF(PlotControl!$B$4 = "Annual Max",MAX(OFFSET(Cbeach!$D$10,12*$A43,4*(PlotControl!$C$6-1),12,1)),AVERAGE(OFFSET(Cbeach!$D$10,12*$A43,4*(PlotControl!$C$6-1),12,1))) -> 64.082 | V43: =IF(PlotControl!$B$4 = "Annual Max",MAX(OFFSET(Cbeach!$E$10,12*$A43,4*(PlotControl!$C$6-1),12,1)),AVERAGE(OFFSET(Cbeach!$E$10,12*$A43,4*(PlotControl!$C$6-1),12,1))) -> 328.18
A44: 39 | B44: =IF(PlotControl!$B$4 = "Annual Max",MAX(OFFSET(Nbeach!$C$10,12*$A44,4*(PlotControl!$C$6-1),12,1)),AVERAGE(OFFSET(Nbeach!$C$10,12*$A44,4*(PlotControl!$C$6-1),12,1))) -> 11.533 | C44: =IF(PlotControl!$B$4 = "Annual Max",MAX(OFFSET(Nbeach!$D$10,12*$A44,4*(PlotControl!$C$6-1),12,1)),AVERAGE(OFFSET(Nbeach!$D$10,12*$A44,4*(PlotControl!$C$6-1),12,1))) -> 58.042 | D44: =IF(PlotControl!$B$4 = "Annual Max",MAX(OFFSET(Nbeach!$E$10,12*$A44,4*(PlotControl!$C$6-1),12,1)),AVERAGE(OFFSET(Nbeach!$E$10,12*$A44,4*(PlotControl!$C$6-1),12,1))) -> 348.01 | E44: =IF(PlotControl!$B$4 = "Annual Max",MAX(OFFSET(Ndam!$C$10,12*$A44,4*(PlotControl!$C$6-1),12,1)),AVERAGE(OFFSET(Ndam!$C$10,12*$A44,4*(PlotControl!$C$6-1),12,1))) -> 1.2391 | F44: =IF(PlotControl!$B$4 = "Annual Max",MAX(OFFSET(Ndam!$D$10,12*$A44,4*(PlotControl!$C$6-1),12,1)),AVERAGE(OFFSET(Ndam!$D$10,12*$A44,4*(PlotControl!$C$6-1),12,1))) -> 1.445 | G44: =IF(PlotControl!$B$4 = "Annual Max",MAX(OFFSET(Ndam!$E$10,12*$A44,4*(PlotControl!$C$6-1),12,1)),AVERAGE(OFFSET(Ndam!$E$10,12*$A44,4*(PlotControl!$C$6-1),12,1))) -> 1.8097 | H44: =IF(PlotControl!$B$4 = "Annual Max",MAX(OFFSET(Ebeach!$C$10,12*$A44,4*(PlotControl!$C$6-1),12,1)),AVERAGE(OFFSET(Ebeach!$C$10,12*$A44,4*(PlotControl!$C$6-1),12,1))) -> 12.037 | I44: =IF(PlotControl!$B$4 = "Annual Max",MAX(OFFSET(Ebeach!$D$10,12*$A44,4*(PlotControl!$C$6-1),12,1)),AVERAGE(OFFSET(Ebeach!$D$10,12*$A44,4*(PlotControl!$C$6-1),12,1))) -> 68.146 | J44: =IF(PlotControl!$B$4 = "Annual Max",MAX(OFFSET(Ebeach!$E$10,12*$A44,4*(PlotControl!$C$6-1),12,1)),AVERAGE(OFFSET(Ebeach!$E$10,12*$A44,4*(PlotControl!$C$6-1),12,1))) -> 323.48 | K44: =IF(PlotControl!$B$4 = "Annual Max",MAX(OFFSET(Edam!$C$10,12*$A44,4*(PlotControl!$C$6-1),12,1)),AVERAGE(OFFSET(Edam!$C$10,12*$A44,4*(PlotControl!$C$6-1),12,1))) -> 0.22658 | L44: =IF(PlotControl!$B$4 = "Annual Max",MAX(OFFSET(Edam!$D$10,12*$A44,4*(PlotControl!$C$6-1),12,1)),AVERAGE(OFFSET(Edam!$D$10,12*$A44,4*(PlotControl!$C$6-1),12,1))) -> 0.31462 | M44: =IF(PlotControl!$B$4 = "Annual Max",MAX(OFFSET(Edam!$E$10,12*$A44,4*(PlotControl!$C$6-1),12,1)),AVERAGE(OFFSET(Edam!$E$10,12*$A44,4*(PlotControl!$C$6-1),12,1))) -> 0.45778 | N44: =IF(PlotControl!$B$4 = "Annual Max",MAX(OFFSET(Sbeach!$C$10,12*$A44,4*(PlotControl!$C$6-1),12,1)),AVERAGE(OFFSET(Sbeach!$C$10,12*$A44,4*(PlotControl!$C$6-1),12,1))) -> 10.53 | O44: =IF(PlotControl!$B$4 = "Annual Max",MAX(OFFSET(Sbeach!$D$10,12*$A44,4*(PlotControl!$C$6-1),12,1)),AVERAGE(OFFSET(Sbeach!$D$10,12*$A44,4*(PlotControl!$C$6-1),12,1))) -> 57.808 | P44: =IF(PlotControl!$B$4 = "Annual Max",MAX(OFFSET(Sbeach!$E$10,12*$A44,4*(PlotControl!$C$6-1),12,1)),AVERAGE(OFFSET(Sbeach!$E$10,12*$A44,4*(PlotControl!$C$6-1),12,1))) -> 339.22 | Q44: =IF(PlotControl!$B$4 = "Annual Max",MAX(OFFSET(Sdam!$C$10,12*$A44,4*(PlotControl!$C$6-1),12,1)),AVERAGE(OFFSET(Sdam!$C$10,12*$A44,4*(PlotControl!$C$6-1),12,1))) -> 0.52245 | R44: =IF(PlotControl!$B$4 = "Annual Max",MAX(OFFSET(Sdam!$D$10,12*$A44,4*(PlotControl!$C$6-1),12,1)),AVERAGE(OFFSET(Sdam!$D$10,12*$A44,4*(PlotControl!$C$6-1),12,1))) -> 0.63968 | S44: =IF(PlotControl!$B$4 = "Annual Max",MAX(OFFSET(Sdam!$E$10,12*$A44,4*(PlotControl!$C$6-1),12,1)),AVERAGE(OFFSET(Sdam!$E$10,12*$A44,4*(PlotControl!$C$6-1),12,1))) -> 0.83137 | T44: =IF(PlotControl!$B$4 = "Annual Max",MAX(OFFSET(Cbeach!$C$10,12*$A44,4*(PlotControl!$C$6-1),12,1)),AVERAGE(OFFSET(Cbeach!$C$10,12*$A44,4*(PlotControl!$C$6-1),12,1))) -> 12.105 | U44: =IF(PlotControl!$B$4 = "Annual Max",MAX(OFFSET(Cbeach!$D$10,12*$A44,4*(PlotControl!$C$6-1),12,1)),AVERAGE(OFFSET(Cbeach!$D$10,12*$A44,4*(PlotControl!$C$6-1),12,1))) -> 68.766 | V44: =IF(PlotControl!$B$4 = "Annual Max",MAX(OFFSET(Cbeach!$E$10,12*$A44,4*(PlotControl!$C$6-1),12,1)),AVERAGE(OFFSET(Cbeach!$E$10,12*$A44,4*(PlotControl!$C$6-1),12,1))) -> 323.48
A45: 40 | B45: =IF(PlotControl!$B$4 = "Annual Max",MAX(OFFSET(Nbeach!$C$10,12*$A45,4*(PlotControl!$C$6-1),12,1)),AVERAGE(OFFSET(Nbeach!$C$10,12*$A45,4*(PlotControl!$C$6-1),12,1))) -> 10.974 | C45: =IF(PlotControl!$B$4 = "Annual Max",MAX(OFFSET(Nbeach!$D$10,12*$A45,4*(PlotControl!$C$6-1),12,1)),AVERAGE(OFFSET(Nbeach!$D$10,12*$A45,4*(PlotControl!$C$6-1),12,1))) -> 56.942 | D45: =IF(PlotControl!$B$4 = "Annual Max",MAX(OFFSET(Nbeach!$E$10,12*$A45,4*(PlotControl!$C$6-1),12,1)),AVERAGE(OFFSET(Nbeach!$E$10,12*$A45,4*(PlotControl!$C$6-1),12,1))) -> 347.79 | E45: =IF(PlotControl!$B$4 = "Annual Max",MAX(OFFSET(Ndam!$C$10,12*$A45,4*(PlotControl!$C$6-1),12,1)),AVERAGE(OFFSET(Ndam!$C$10,12*$A45,4*(PlotControl!$C$6-1),12,1))) -> 1.1894 | F45: =IF(PlotControl!$B$4 = "Annual Max",MAX(OFFSET(Ndam!$D$10,12*$A45,4*(PlotControl!$C$6-1),12,1)),AVERAGE(OFFSET(Ndam!$D$10,12*$A45,4*(PlotControl!$C$6-1),12,1))) -> 1.4112 | G45: =IF(PlotControl!$B$4 = "Annual Max",MAX(OFFSET(Ndam!$E$10,12*$A45,4*(PlotControl!$C$6-1),12,1)),AVERAGE(OFFSET(Ndam!$E$10,12*$A45,4*(PlotControl!$C$6-1),12,1))) -> 1.7279 | H45: =IF(PlotControl!$B$4 = "Annual Max",MAX(OFFSET(Ebeach!$C$10,12*$A45,4*(PlotControl!$C$6-1),12,1)),AVERAGE(OFFSET(Ebeach!$C$10,12*$A45,4*(PlotControl!$C$6-1),12,1))) -> 11.504 | I45: =IF(PlotControl!$B$4 = "Annual Max",MAX(OFFSET(Ebeach!$D$10,12*$A45,4*(PlotControl!$C$6-1),12,1)),AVERAGE(OFFSET(Ebeach!$D$10,12*$A45,4*(PlotControl!$C$6-1),12,1))) -> 65.739 | J45: =IF(PlotControl!$B$4 = "Annual Max",MAX(OFFSET(Ebeach!$E$10,12*$A45,4*(PlotControl!$C$6-1),12,1)),AVERAGE(OFFSET(Ebeach!$E$10,12*$A45,4*(PlotControl!$C$6-1),12,1))) -> 326.91 | K45: =IF(PlotControl!$B$4 = "Annual Max",MAX(OFFSET(Edam!$C$10,12*$A45,4*(PlotControl!$C$6-1),12,1)),AVERAGE(OFFSET(Edam!$C$10,12*$A45,4*(PlotControl!$C$6-1),12,1))) -> 0.21662 | L45: =IF(PlotControl!$B$4 = "Annual Max",MAX(OFFSET(Edam!$D$10,12*$A45,4*(PlotControl!$C$6-1),12,1)),AVERAGE(OFFSET(Edam!$D$10,12*$A45,4*(PlotControl!$C$6-1),12,1))) -> 0.31252 | M45: =IF(PlotControl!$B$4 = "Annual Max",MAX(OFFSET(Edam!$E$10,12*$A45,4*(PlotControl!$C$6-1),12,1)),AVERAGE(OFFSET(Edam!$E$10,12*$A45,4*(PlotControl!$C$6-1),12,1))) -> 0.45766 | N45: =IF(PlotControl!$B$4 = "Annual Max",MAX(OFFSET(Sbeach!$C$10,12*$A45,4*(PlotControl!$C$6-1),12,1)),AVERAGE(OFFSET(Sbeach!$C$10,12*$A45,4*(PlotControl!$C$6-1),12,1))) -> 10.443 | O45: =IF(PlotControl!$B$4 = "Annual Max",MAX(OFFSET(Sbeach!$D$10,12*$A45,4*(PlotControl!$C$6-1),12,1)),AVERAGE(OFFSET(Sbeach!$D$10,12*$A45,4*(PlotControl!$C$6-1),12,1))) -> 57.061 | P45: =IF(PlotControl!$B$4 = "Annual Max",MAX(OFFSET(Sbeach!$E$10,12*$A45,4*(PlotControl!$C$6-1),12,1)),AVERAGE(OFFSET(Sbeach!$E$10,12*$A45,4*(PlotControl!$C$6-1),12,1))) -> 339.22 | Q45: =IF(PlotControl!$B$4 = "Annual Max",MAX(OFFSET(Sdam!$C$10,12*$A45,4*(PlotControl!$C$6-1),12,1)),AVERAGE(OFFSET(Sdam!$C$10,12*$A45,4*(PlotControl!$C$6-1),12,1))) -> 0.50471 | R45: =IF(PlotControl!$B$4 = "Annual Max",MAX(OFFSET(Sdam!$D$10,12*$A45,4*(PlotControl!$C$6-1),12,1)),AVERAGE(OFFSET(Sdam!$D$10,12*$A45,4*(PlotControl!$C$6-1),12,1))) -> 0.618 | S45: =IF(PlotControl!$B$4 = "Annual Max",MAX(OFFSET(Sdam!$E$10,12*$A45,4*(PlotControl!$C$6-1),12,1)),AVERAGE(OFFSET(Sdam!$E$10,12*$A45,4*(PlotControl!$C$6-1),12,1))) -> 0.80865 | T45: =IF(PlotControl!$B$4 = "Annual Max",MAX(OFFSET(Cbeach!$C$10,12*$A45,4*(PlotControl!$C$6-1),12,1)),AVERAGE(OFFSET(Cbeach!$C$10,12*$A45,4*(PlotControl!$C$6-1),12,1))) -> 11.493 | U45: =IF(PlotControl!$B$4 = "Annual Max",MAX(OFFSET(Cbeach!$D$10,12*$A45,4*(PlotControl!$C$6-1),12,1)),AVERAGE(OFFSET(Cbeach!$D$10,12*$A45,4*(PlotControl!$C$6-1),12,1))) -> 66.245 | V45: =IF(PlotControl!$B$4 = "Annual Max",MAX(OFFSET(Cbeach!$E$10,12*$A45,4*(PlotControl!$C$6-1),12,1)),AVERAGE(OFFSET(Cbeach!$E$10,12*$A45,4*(PlotControl!$C$6-1),12,1))) -> 326.91
A46: 41 | B46: =IF(PlotControl!$B$4 = "Annual Max",MAX(OFFSET(Nbeach!$C$10,12*$A46,4*(PlotControl!$C$6-1),12,1)),AVERAGE(OFFSET(Nbeach!$C$10,12*$A46,4*(PlotControl!$C$6-1),12,1))) -> 10.602 | C46: =IF(PlotControl!$B$4 = "Annual Max",MAX(OFFSET(Nbeach!$D$10,12*$A46,4*(PlotControl!$C$6-1),12,1)),AVERAGE(OFFSET(Nbeach!$D$10,12*$A46,4*(PlotControl!$C$6-1),12,1))) -> 54.723 | D46: =IF(PlotControl!$B$4 = "Annual Max",MAX(OFFSET(Nbeach!$E$10,12*$A46,4*(PlotControl!$C$6-1),12,1)),AVERAGE(OFFSET(Nbeach!$E$10,12*$A46,4*(PlotControl!$C$6-1),12,1))) -> 347.66 | E46: =IF(PlotControl!$B$4 = "Annual Max",MAX(OFFSET(Ndam!$C$10,12*$A46,4*(PlotControl!$C$6-1),12,1)),AVERAGE(OFFSET(Ndam!$C$10,12*$A46,4*(PlotControl!$C$6-1),12,1))) -> 1.129 | F46: =IF(PlotControl!$B$4 = "Annual Max",MAX(OFFSET(Ndam!$D$10,12*$A46,4*(PlotControl!$C$6-1),12,1)),AVERAGE(OFFSET(Ndam!$D$10,12*$A46,4*(PlotControl!$C$6-1),12,1))) -> 1.3318 | G46: =IF(PlotControl!$B$4 = "Annual Max",MAX(OFFSET(Ndam!$E$10,12*$A46,4*(PlotControl!$C$6-1),12,1)),AVERAGE(OFFSET(Ndam!$E$10,12*$A46,4*(PlotControl!$C$6-1),12,1))) -> 1.65 | H46: =IF(PlotControl!$B$4 = "Annual Max",MAX(OFFSET(Ebeach!$C$10,12*$A46,4*(PlotControl!$C$6-1),12,1)),AVERAGE(OFFSET(Ebeach!$C$10,12*$A46,4*(PlotControl!$C$6-1),12,1))) -> 12.025 | I46: =IF(PlotControl!$B$4 = "Annual Max",MAX(OFFSET(Ebeach!$D$10,12*$A46,4*(PlotControl!$C$6-1),12,1)),AVERAGE(OFFSET(Ebeach!$D$10,12*$A46,4*(PlotControl!$C$6-1),12,1))) -> 64.053 | J46: =IF(PlotControl!$B$4 = "Annual Max",MAX(OFFSET(Ebeach!$E$10,12*$A46,4*(PlotControl!$C$6-1),12,1)),AVERAGE(OFFSET(Ebeach!$E$10,12*$A46,4*(PlotControl!$C$6-1),12,1))) -> 332.47 | K46: =IF(PlotControl!$B$4 = "Annual Max",MAX(OFFSET(Edam!$C$10,12*$A46,4*(PlotControl!$C$6-1),12,1)),AVERAGE(OFFSET(Edam!$C$10,12*$A46,4*(PlotControl!$C$6-1),12,1))) -> 0.20925 | L46: =IF(PlotControl!$B$4 = "Annual Max",MAX(OFFSET(Edam!$D$10,12*$A46,4*(PlotControl!$C$6-1),12,1)),AVERAGE(OFFSET(Edam!$D$10,12*$A46,4*(PlotControl!$C$6-1),12,1))) -> 0.30434 | M46: =IF(PlotControl!$B$4 = "Annual Max",MAX(OFFSET(Edam!$E$10,12*$A46,4*(PlotControl!$C$6-1),12,1)),AVERAGE(OFFSET(Edam!$E$10,12*$A46,4*(PlotControl!$C$6-1),12,1))) -> 0.4411 | N46: =IF(PlotControl!$B$4 = "Annual Max",MAX(OFFSET(Sbeach!$C$10,12*$A46,4*(PlotControl!$C$6-1),12,1)),AVERAGE(OFFSET(Sbeach!$C$10,12*$A46,4*(PlotControl!$C$6-1),12,1))) -> 10.387 | O46: =IF(PlotControl!$B$4 = "Annual Max",MAX(OFFSET(Sbeach!$D$10,12*$A46,4*(PlotControl!$C$6-1),12,1)),AVERAGE(OFFSET(Sbeach!$D$10,12*$A46,4*(PlotControl!$C$6-1),12,1))) -> 55.143 | P46: =IF(PlotControl!$B$4 = "Annual Max",MAX(OFFSET(Sbeach!$E$10,12*$A46,4*(PlotControl!$C$6-1),12,1)),AVERAGE(OFFSET(Sbeach!$E$10,12*$A46,4*(PlotControl!$C$6-1),12,1))) -> 338.08 | Q46: =IF(PlotControl!$B$4 = "Annual Max",MAX(OFFSET(Sdam!$C$10,12*$A46,4*(PlotControl!$C$6-1),12,1)),AVERAGE(OFFSET(Sdam!$C$10,12*$A46,4*(PlotControl!$C$6-1),12,1))) -> 0.47666 | R46: =IF(PlotControl!$B$4 = "Annual Max",MAX(OFFSET(Sdam!$D$10,12*$A46,4*(PlotControl!$C$6-1),12,1)),AVERAGE(OFFSET(Sdam!$D$10,12*$A46,4*(PlotControl!$C$6-1),12,1))) -> 0.59194 | S46: =IF(PlotControl!$B$4 = "Annual Max",MAX(OFFSET(Sdam!$E$10,12*$A46,4*(PlotControl!$C$6-1),12,1)),AVERAGE(OFFSET(Sdam!$E$10,12*$A46,4*(PlotControl!$C$6-1),12,1))) -> 0.77295 | T46: =IF(PlotControl!$B$4 = "Annual Max",MAX(OFFSET(Cbeach!$C$10,12*$A46,4*(PlotControl!$C$6-1),12,1)),AVERAGE(OFFSET(Cbeach!$C$10,12*$A46,4*(PlotControl!$C$6-1),12,1))) -> 12.064 | U46: =IF(PlotControl!$B$4 = "Annual Max",MAX(OFFSET(Cbeach!$D$10,12*$A46,4*(PlotControl!$C$6-1),12,1)),AVERAGE(OFFSET(Cbeach!$D$10,12*$A46,4*(PlotControl!$C$6-1),12,1))) -> 63.557 | V46: =IF(PlotControl!$B$4 = "Annual Max",MAX(OFFSET(Cbeach!$E$10,12*$A46,4*(PlotControl!$C$6-1),12,1)),AVERAGE(OFFSET(Cbeach!$E$10,12*$A46,4*(PlotControl!$C$6-1),12,1))) -> 330.41
A47: 42 | B47: =IF(PlotControl!$B$4 = "Annual Max",MAX(OFFSET(Nbeach!$C$10,12*$A47,4*(PlotControl!$C$6-1),12,1)),AVERAGE(OFFSET(Nbeach!$C$10,12*$A47,4*(PlotControl!$C$6-1),12,1))) -> 10.487 | C47: =IF(PlotControl!$B$4 = "Annual Max",MAX(OFFSET(Nbeach!$D$10,12*$A47,4*(PlotControl!$C$6-1),12,1)),AVERAGE(OFFSET(Nbeach!$D$10,12*$A47,4*(PlotControl!$C$6-1),12,1))) -> 55.316 | D47: =IF(PlotControl!$B$4 = "Annual Max",MAX(OFFSET(Nbeach!$E$10,12*$A47,4*(PlotControl!$C$6-1),12,1)),AVERAGE(OFFSET(Nbeach!$E$10,12*$A47,4*(PlotControl!$C$6-1),12,1))) -> 347.66 | E47: =IF(PlotControl!$B$4 = "Annual Max",MAX(OFFSET(Ndam!$C$10,12*$A47,4*(PlotControl!$C$6-1),12,1)),AVERAGE(OFFSET(Ndam!$C$10,12*$A47,4*(PlotControl!$C$6-1),12,1))) -> 1.1011 | F47: =IF(PlotControl!$B$4 = "Annual Max",MAX(OFFSET(Ndam!$D$10,12*$A47,4*(PlotControl!$C$6-1),12,1)),AVERAGE(OFFSET(Ndam!$D$10,12*$A47,4*(PlotControl!$C$6-1),12,1))) -> 1.2759 | G47: =IF(PlotControl!$B$4 = "Annual Max",MAX(OFFSET(Ndam!$E$10,12*$A47,4*(PlotControl!$C$6-1),12,1)),AVERAGE(OFFSET(Ndam!$E$10,12*$A47,4*(PlotControl!$C$6-1),12,1))) -> 1.601 | H47: =IF(PlotControl!$B$4 = "Annual Max",MAX(OFFSET(Ebeach!$C$10,12*$A47,4*(PlotControl!$C$6-1),12,1)),AVERAGE(OFFSET(Ebeach!$C$10,12*$A47,4*(PlotControl!$C$6-1),12,1))) -> 12.269 | I47: =IF(PlotControl!$B$4 = "Annual Max",MAX(OFFSET(Ebeach!$D$10,12*$A47,4*(PlotControl!$C$6-1),12,1)),AVERAGE(OFFSET(Ebeach!$D$10,12*$A47,4*(PlotControl!$C$6-1),12,1))) -> 67.594 | J47: =IF(PlotControl!$B$4 = "Annual Max",MAX(OFFSET(Ebeach!$E$10,12*$A47,4*(PlotControl!$C$6-1),12,1)),AVERAGE(OFFSET(Ebeach!$E$10,12*$A47,4*(PlotControl!$C$6-1),12,1))) -> 327.94 | K47: =IF(PlotControl!$B$4 = "Annual Max",MAX(OFFSET(Edam!$C$10,12*$A47,4*(PlotControl!$C$6-1),12,1)),AVERAGE(OFFSET(Edam!$C$10,12*$A47,4*(PlotControl!$C$6-1),12,1))) -> 0.2103 | L47: =IF(PlotControl!$B$4 = "Annual Max",MAX(OFFSET(Edam!$D$10,12*$A47,4*(PlotControl!$C$6-1),12,1)),AVERAGE(OFFSET(Edam!$D$10,12*$A47,4*(PlotControl!$C$6-1),12,1))) -> 0.29891 | M47: =IF(PlotControl!$B$4 = "Annual Max",MAX(OFFSET(Edam!$E$10,12*$A47,4*(PlotControl!$C$6-1),12,1)),AVERAGE(OFFSET(Edam!$E$10,12*$A47,4*(PlotControl!$C$6-1),12,1))) -> 0.43307 | N47: =IF(PlotControl!$B$4 = "Annual Max",MAX(OFFSET(Sbeach!$C$10,12*$A47,4*(PlotControl!$C$6-1),12,1)),AVERAGE(OFFSET(Sbeach!$C$10,12*$A47,4*(PlotControl!$C$6-1),12,1))) -> 10.532 | O47: =IF(PlotControl!$B$4 = "Annual Max",MAX(OFFSET(Sbeach!$D$10,12*$A47,4*(PlotControl!$C$6-1),12,1)),AVERAGE(OFFSET(Sbeach!$D$10,12*$A47,4*(PlotControl!$C$6-1),12,1))) -> 57.032 | P47: =IF(PlotControl!$B$4 = "Annual Max",MAX(OFFSET(Sbeach!$E$10,12*$A47,4*(PlotControl!$C$6-1),12,1)),AVERAGE(OFFSET(Sbeach!$E$10,12*$A47,4*(PlotControl!$C$6-1),12,1))) -> 338.08 | Q47: =IF(PlotControl!$B$4 = "Annual Max",MAX(OFFSET(Sdam!$C$10,12*$A47,4*(PlotControl!$C$6-1),12,1)),AVERAGE(OFFSET(Sdam!$C$10,12*$A47,4*(PlotControl!$C$6-1),12,1))) -> 0.4658 | R47: =IF(PlotControl!$B$4 = "Annual Max",MAX(OFFSET(Sdam!$D$10,12*$A47,4*(PlotControl!$C$6-1),12,1)),AVERAGE(OFFSET(Sdam!$D$10,12*$A47,4*(PlotControl!$C$6-1),12,1))) -> 0.57189 | S47: =IF(PlotControl!$B$4 = "Annual Max",MAX(OFFSET(Sdam!$E$10,12*$A47,4*(PlotControl!$C$6-1),12,1)),AVERAGE(OFFSET(Sdam!$E$10,12*$A47,4*(PlotControl!$C$6-1),12,1))) -> 0.75871 | T47: =IF(PlotControl!$B$4 = "Annual Max",MAX(OFFSET(Cbeach!$C$10,12*$A47,4*(PlotControl!$C$6-1),12,1)),AVERAGE(OFFSET(Cbeach!$C$10,12*$A47,4*(PlotControl!$C$6-1),12,1))) -> 12.387 | U47: =IF(PlotControl!$B$4 = "Annual Max",MAX(OFFSET(Cbeach!$D$10,12*$A47,4*(PlotControl!$C$6-1),12,1)),AVERAGE(OFFSET(Cbeach!$D$10,12*$A47,4*(PlotControl!$C$6-1),12,1))) -> 67.632 | V47: =IF(PlotControl!$B$4 = "Annual Max",MAX(OFFSET(Cbeach!$E$10,12*$A47,4*(PlotControl!$C$6-1),12,1)),AVERAGE(OFFSET(Cbeach!$E$10,12*$A47,4*(PlotControl!$C$6-1),12,1))) -> 326.89
A48: 43 | B48: =IF(PlotControl!$B$4 = "Annual Max",MAX(OFFSET(Nbeach!$C$10,12*$A48,4*(PlotControl!$C$6-1),12,1)),AVERAGE(OFFSET(Nbeach!$C$10,12*$A48,4*(PlotControl!$C$6-1),12,1))) -> 10.282 | C48: =IF(PlotControl!$B$4 = "Annual Max",MAX(OFFSET(Nbeach!$D$10,12*$A48,4*(PlotControl!$C$6-1),12,1)),AVERAGE(OFFSET(Nbeach!$D$10,12*$A48,4*(PlotControl!$C$6-1),12,1))) -> 52.551 | D48: =IF(PlotControl!$B$4 = "Annual Max",MAX(OFFSET(Nbeach!$E$10,12*$A48,4*(PlotControl!$C$6-1),12,1)),AVERAGE(OFFSET(Nbeach!$E$10,12*$A48,4*(PlotControl!$C$6-1),12,1))) -> 347.66 | E48: =IF(PlotControl!$B$4 = "Annual Max",MAX(OFFSET(Ndam!$C$10,12*$A48,4*(PlotControl!$C$6-1),12,1)),AVERAGE(OFFSET(Ndam!$C$10,12*$A48,4*(PlotControl!$C$6-1),12,1))) -> 1.0647 | F48: =IF(PlotControl!$B$4 = "Annual Max",MAX(OFFSET(Ndam!$D$10,12*$A48,4*(PlotControl!$C$6-1),12,1)),AVERAGE(OFFSET(Ndam!$D$10,12*$A48,4*(PlotControl!$C$6-1),12,1))) -> 1.2414 | G48: =IF(PlotControl!$B$4 = "Annual Max",MAX(OFFSET(Ndam!$E$10,12*$A48,4*(PlotControl!$C$6-1),12,1)),AVERAGE(OFFSET(Ndam!$E$10,12*$A48,4*(PlotControl!$C$6-1),12,1))) -> 1.5219 | H48: =IF(PlotControl!$B$4 = "Annual Max",MAX(OFFSET(Ebeach!$C$10,12*$A48,4*(PlotControl!$C$6-1),12,1)),AVERAGE(OFFSET(Ebeach!$C$10,12*$A48,4*(PlotControl!$C$6-1),12,1))) -> 12.499 | I48: =IF(PlotControl!$B$4 = "Annual Max",MAX(OFFSET(Ebeach!$D$10,12*$A48,4*(PlotControl!$C$6-1),12,1)),AVERAGE(OFFSET(Ebeach!$D$10,12*$A48,4*(PlotControl!$C$6-1),12,1))) -> 65.945 | J48: =IF(PlotControl!$B$4 = "Annual Max",MAX(OFFSET(Ebeach!$E$10,12*$A48,4*(PlotControl!$C$6-1),12,1)),AVERAGE(OFFSET(Ebeach!$E$10,12*$A48,4*(PlotControl!$C$6-1),12,1))) -> 323.48 | K48: =IF(PlotControl!$B$4 = "Annual Max",MAX(OFFSET(Edam!$C$10,12*$A48,4*(PlotControl!$C$6-1),12,1)),AVERAGE(OFFSET(Edam!$C$10,12*$A48,4*(PlotControl!$C$6-1),12,1))) -> 0.21004 | L48: =IF(PlotControl!$B$4 = "Annual Max",MAX(OFFSET(Edam!$D$10,12*$A48,4*(PlotControl!$C$6-1),12,1)),AVERAGE(OFFSET(Edam!$D$10,12*$A48,4*(PlotControl!$C$6-1),12,1))) -> 0.29138 | M48: =IF(PlotControl!$B$4 = "Annual Max",MAX(OFFSET(Edam!$E$10,12*$A48,4*(PlotControl!$C$6-1),12,1)),AVERAGE(OFFSET(Edam!$E$10,12*$A48,4*(PlotControl!$C$6-1),12,1))) -> 0.41524 | N48: =IF(PlotControl!$B$4 = "Annual Max",MAX(OFFSET(Sbeach!$C$10,12*$A48,4*(PlotControl!$C$6-1),12,1)),AVERAGE(OFFSET(Sbeach!$C$10,12*$A48,4*(PlotControl!$C$6-1),12,1))) -> 10.092 | O48: =IF(PlotControl!$B$4 = "Annual Max",MAX(OFFSET(Sbeach!$D$10,12*$A48,4*(PlotControl!$C$6-1),12,1)),AVERAGE(OFFSET(Sbeach!$D$10,12*$A48,4*(PlotControl!$C$6-1),12,1))) -> 55.419 | P48: =IF(PlotControl!$B$4 = "Annual Max",MAX(OFFSET(Sbeach!$E$10,12*$A48,4*(PlotControl!$C$6-1),12,1)),AVERAGE(OFFSET(Sbeach!$E$10,12*$A48,4*(PlotControl!$C$6-1),12,1))) -> 338.08 | Q48: =IF(PlotControl!$B$4 = "Annual Max",MAX(OFFSET(Sdam!$C$10,12*$A48,4*(PlotControl!$C$6-1),12,1)),AVERAGE(OFFSET(Sdam!$C$10,12*$A48,4*(PlotControl!$C$6-1),12,1))) -> 0.45144 | R48: =IF(PlotControl!$B$4 = "Annual Max",MAX(OFFSET(Sdam!$D$10,12*$A48,4*(PlotControl!$C$6-1),12,1)),AVERAGE(OFFSET(Sdam!$D$10,12*$A48,4*(PlotControl!$C$6-1),12,1))) -> 0.55396 | S48: =IF(PlotControl!$B$4 = "Annual Max",MAX(OFFSET(Sdam!$E$10,12*$A48,4*(PlotControl!$C$6-1),12,1)),AVERAGE(OFFSET(Sdam!$E$10,12*$A48,4*(PlotControl!$C$6-1),12,1))) -> 0.7143 | T48: =IF(PlotControl!$B$4 = "Annual Max",MAX(OFFSET(Cbeach!$C$10,12*$A48,4*(PlotControl!$C$6-1),12,1)),AVERAGE(OFFSET(Cbeach!$C$10,12*$A48,4*(PlotControl!$C$6-1),12,1))) -> 12.513 | U48: =IF(PlotControl!$B$4 = "Annual Max",MAX(OFFSET(Cbeach!$D$10,12*$A48,4*(PlotControl!$C$6-1),12,1)),AVERAGE(OFFSET(Cbeach!$D$10,12*$A48,4*(PlotControl!$C$6-1),12,1))) -> 66.125 | V48: =IF(PlotControl!$B$4 = "Annual Max",MAX(OFFSET(Cbeach!$E$10,12*$A48,4*(PlotControl!$C$6-1),12,1)),AVERAGE(OFFSET(Cbeach!$E$10,12*$A48,4*(PlotControl!$C$6-1),12,1))) -> 323.48
A49: 44 | B49: =IF(PlotControl!$B$4 = "Annual Max",MAX(OFFSET(Nbeach!$C$10,12*$A49,4*(PlotControl!$C$6-1),12,1)),AVERAGE(OFFSET(Nbeach!$C$10,12*$A49,4*(PlotControl!$C$6-1),12,1))) -> 10.202 | C49: =IF(PlotControl!$B$4 = "Annual Max",MAX(OFFSET(Nbeach!$D$10,12*$A49,4*(PlotControl!$C$6-1),12,1)),AVERAGE(OFFSET(Nbeach!$D$10,12*$A49,4*(PlotControl!$C$6-1),12,1))) -> 52.732 | D49: =IF(PlotControl!$B$4 = "Annual Max",MAX(OFFSET(Nbeach!$E$10,12*$A49,4*(PlotControl!$C$6-1),12,1)),AVERAGE(OFFSET(Nbeach!$E$10,12*$A49,4*(PlotControl!$C$6-1),12,1))) -> 347.66 | E49: =IF(PlotControl!$B$4 = "Annual Max",MAX(OFFSET(Ndam!$C$10,12*$A49,4*(PlotControl!$C$6-1),12,1)),AVERAGE(OFFSET(Ndam!$C$10,12*$A49,4*(PlotControl!$C$6-1),12,1))) -> 1.0171 | F49: =IF(PlotControl!$B$4 = "Annual Max",MAX(OFFSET(Ndam!$D$10,12*$A49,4*(PlotControl!$C$6-1),12,1)),AVERAGE(OFFSET(Ndam!$D$10,12*$A49,4*(PlotControl!$C$6-1),12,1))) -> 1.1866 | G49: =IF(PlotControl!$B$4 = "Annual Max",MAX(OFFSET(Ndam!$E$10,12*$A49,4*(PlotControl!$C$6-1),12,1)),AVERAGE(OFFSET(Ndam!$E$10,12*$A49,4*(PlotControl!$C$6-1),12,1))) -> 1.4525 | H49: =IF(PlotControl!$B$4 = "Annual Max",MAX(OFFSET(Ebeach!$C$10,12*$A49,4*(PlotControl!$C$6-1),12,1)),AVERAGE(OFFSET(Ebeach!$C$10,12*$A49,4*(PlotControl!$C$6-1),12,1))) -> 11.754 | I49: =IF(PlotControl!$B$4 = "Annual Max",MAX(OFFSET(Ebeach!$D$10,12*$A49,4*(PlotControl!$C$6-1),12,1)),AVERAGE(OFFSET(Ebeach!$D$10,12*$A49,4*(PlotControl!$C$6-1),12,1))) -> 66.392 | J49: =IF(PlotControl!$B$4 = "Annual Max",MAX(OFFSET(Ebeach!$E$10,12*$A49,4*(PlotControl!$C$6-1),12,1)),AVERAGE(OFFSET(Ebeach!$E$10,12*$A49,4*(PlotControl!$C$6-1),12,1))) -> 322.82 | K49: =IF(PlotControl!$B$4 = "Annual Max",MAX(OFFSET(Edam!$C$10,12*$A49,4*(PlotControl!$C$6-1),12,1)),AVERAGE(OFFSET(Edam!$C$10,12*$A49,4*(PlotControl!$C$6-1),12,1))) -> 0.20349 | L49: =IF(PlotControl!$B$4 = "Annual Max",MAX(OFFSET(Edam!$D$10,12*$A49,4*(PlotControl!$C$6-1),12,1)),AVERAGE(OFFSET(Edam!$D$10,12*$A49,4*(PlotControl!$C$6-1),12,1))) -> 0.29078 | M49: =IF(PlotControl!$B$4 = "Annual Max",MAX(OFFSET(Edam!$E$10,12*$A49,4*(PlotControl!$C$6-1),12,1)),AVERAGE(OFFSET(Edam!$E$10,12*$A49,4*(PlotControl!$C$6-1),12,1))) -> 0.41636 | N49: =IF(PlotControl!$B$4 = "Annual Max",MAX(OFFSET(Sbeach!$C$10,12*$A49,4*(PlotControl!$C$6-1),12,1)),AVERAGE(OFFSET(Sbeach!$C$10,12*$A49,4*(PlotControl!$C$6-1),12,1))) -> 10.139 | O49: =IF(PlotControl!$B$4 = "Annual Max",MAX(OFFSET(Sbeach!$D$10,12*$A49,4*(PlotControl!$C$6-1),12,1)),AVERAGE(OFFSET(Sbeach!$D$10,12*$A49,4*(PlotControl!$C$6-1),12,1))) -> 55.944 | P49: =IF(PlotControl!$B$4 = "Annual Max",MAX(OFFSET(Sbeach!$E$10,12*$A49,4*(PlotControl!$C$6-1),12,1)),AVERAGE(OFFSET(Sbeach!$E$10,12*$A49,4*(PlotControl!$C$6-1),12,1))) -> 337.31 | Q49: =IF(PlotControl!$B$4 = "Annual Max",MAX(OFFSET(Sdam!$C$10,12*$A49,4*(PlotControl!$C$6-1),12,1)),AVERAGE(OFFSET(Sdam!$C$10,12*$A49,4*(PlotControl!$C$6-1),12,1))) -> 0.43069 | R49: =IF(PlotControl!$B$4 = "Annual Max",MAX(OFFSET(Sdam!$D$10,12*$A49,4*(PlotControl!$C$6-1),12,1)),AVERAGE(OFFSET(Sdam!$D$10,12*$A49,4*(PlotControl!$C$6-1),12,1))) -> 0.53119 | S49: =IF(PlotControl!$B$4 = "Annual Max",MAX(OFFSET(Sdam!$E$10,12*$A49,4*(PlotControl!$C$6-1),12,1)),AVERAGE(OFFSET(Sdam!$E$10,12*$A49,4*(PlotControl!$C$6-1),12,1))) -> 0.6945 | T49: =IF(PlotControl!$B$4 = "Annual Max",MAX(OFFSET(Cbeach!$C$10,12*$A49,4*(PlotControl!$C$6-1),12,1)),AVERAGE(OFFSET(Cbeach!$C$10,12*$A49,4*(PlotControl!$C$6-1),12,1))) -> 11.723 | U49: =IF(PlotControl!$B$4 = "Annual Max",MAX(OFFSET(Cbeach!$D$10,12*$A49,4*(PlotControl!$C$6-1),12,1)),AVERAGE(OFFSET(Cbeach!$D$10,12*$A49,4*(PlotControl!$C$6-1),12,1))) -> 66.523 | V49: =IF(PlotControl!$B$4 = "Annual Max",MAX(OFFSET(Cbeach!$E$10,12*$A49,4*(PlotControl!$C$6-1),12,1)),AVERAGE(OFFSET(Cbeach!$E$10,12*$A49,4*(PlotControl!$C$6-1),12,1))) -> 322.82
A50: 45 | B50: =IF(PlotControl!$B$4 = "Annual Max",MAX(OFFSET(Nbeach!$C$10,12*$A50,4*(PlotControl!$C$6-1),12,1)),AVERAGE(OFFSET(Nbeach!$C$10,12*$A50,4*(PlotControl!$C$6-1),12,1))) -> 9.7425 | C50: =IF(PlotControl!$B$4 = "Annual Max",MAX(OFFSET(Nbeach!$D$10,12*$A50,4*(PlotControl!$C$6-1),12,1)),AVERAGE(OFFSET(Nbeach!$D$10,12*$A50,4*(PlotControl!$C$6-1),12,1))) -> 49.651 | D50: =IF(PlotControl!$B$4 = "Annual Max",MAX(OFFSET(Nbeach!$E$10,12*$A50,4*(PlotControl!$C$6-1),12,1)),AVERAGE(OFFSET(Nbeach!$E$10,12*$A50,4*(PlotControl!$C$6-1),12,1))) -> 346.88 | E50: =IF(PlotControl!$B$4 = "Annual Max",MAX(OFFSET(Ndam!$C$10,12*$A50,4*(PlotControl!$C$6-1),12,1)),AVERAGE(OFFSET(Ndam!$C$10,12*$A50,4*(PlotControl!$C$6-1),12,1))) -> 0.98513 | F50: =IF(PlotControl!$B$4 = "Annual Max",MAX(OFFSET(Ndam!$D$10,12*$A50,4*(PlotControl!$C$6-1),12,1)),AVERAGE(OFFSET(Ndam!$D$10,12*$A50,4*(PlotControl!$C$6-1),12,1))) -> 1.1466 | G50: =IF(PlotControl!$B$4 = "Annual Max",MAX(OFFSET(Ndam!$E$10,12*$A50,4*(PlotControl!$C$6-1),12,1)),AVERAGE(OFFSET(Ndam!$E$10,12*$A50,4*(PlotControl!$C$6-1),12,1))) -> 1.411 | H50: =IF(PlotControl!$B$4 = "Annual Max",MAX(OFFSET(Ebeach!$C$10,12*$A50,4*(PlotControl!$C$6-1),12,1)),AVERAGE(OFFSET(Ebeach!$C$10,12*$A50,4*(PlotControl!$C$6-1),12,1))) -> 11.92 | I50: =IF(PlotControl!$B$4 = "Annual Max",MAX(OFFSET(Ebeach!$D$10,12*$A50,4*(PlotControl!$C$6-1),12,1)),AVERAGE(OFFSET(Ebeach!$D$10,12*$A50,4*(PlotControl!$C$6-1),12,1))) -> 65.125 | J50: =IF(PlotControl!$B$4 = "Annual Max",MAX(OFFSET(Ebeach!$E$10,12*$A50,4*(PlotControl!$C$6-1),12,1)),AVERAGE(OFFSET(Ebeach!$E$10,12*$A50,4*(PlotControl!$C$6-1),12,1))) -> 322.82 | K50: =IF(PlotControl!$B$4 = "Annual Max",MAX(OFFSET(Edam!$C$10,12*$A50,4*(PlotControl!$C$6-1),12,1)),AVERAGE(OFFSET(Edam!$C$10,12*$A50,4*(PlotControl!$C$6-1),12,1))) -> 0.2046 | L50: =IF(PlotControl!$B$4 = "Annual Max",MAX(OFFSET(Edam!$D$10,12*$A50,4*(PlotControl!$C$6-1),12,1)),AVERAGE(OFFSET(Edam!$D$10,12*$A50,4*(PlotControl!$C$6-1),12,1))) -> 0.28864 | M50: =IF(PlotControl!$B$4 = "Annual Max",MAX(OFFSET(Edam!$E$10,12*$A50,4*(PlotControl!$C$6-1),12,1)),AVERAGE(OFFSET(Edam!$E$10,12*$A50,4*(PlotControl!$C$6-1),12,1))) -> 0.41486 | N50: =IF(PlotControl!$B$4 = "Annual Max",MAX(OFFSET(Sbeach!$C$10,12*$A50,4*(PlotControl!$C$6-1),12,1)),AVERAGE(OFFSET(Sbeach!$C$10,12*$A50,4*(PlotControl!$C$6-1),12,1))) -> 9.7172 | O50: =IF(PlotControl!$B$4 = "Annual Max",MAX(OFFSET(Sbeach!$D$10,12*$A50,4*(PlotControl!$C$6-1),12,1)),AVERAGE(OFFSET(Sbeach!$D$10,12*$A50,4*(PlotControl!$C$6-1),12,1))) -> 53.874 | P50: =IF(PlotControl!$B$4 = "Annual Max",MAX(OFFSET(Sbeach!$E$10,12*$A50,4*(PlotControl!$C$6-1),12,1)),AVERAGE(OFFSET(Sbeach!$E$10,12*$A50,4*(PlotControl!$C$6-1),12,1))) -> 336.67 | Q50: =IF(PlotControl!$B$4 = "Annual Max",MAX(OFFSET(Sdam!$C$10,12*$A50,4*(PlotControl!$C$6-1),12,1)),AVERAGE(OFFSET(Sdam!$C$10,12*$A50,4*(PlotControl!$C$6-1),12,1))) -> 0.41929 | R50: =IF(PlotControl!$B$4 = "Annual Max",MAX(OFFSET(Sdam!$D$10,12*$A50,4*(PlotControl!$C$6-1),12,1)),AVERAGE(OFFSET(Sdam!$D$10,12*$A50,4*(PlotControl!$C$6-1),12,1))) -> 0.52063 | S50: =IF(PlotControl!$B$4 = "Annual Max",MAX(OFFSET(Sdam!$E$10,12*$A50,4*(PlotControl!$C$6-1),12,1)),AVERAGE(OFFSET(Sdam!$E$10,12*$A50,4*(PlotControl!$C$6-1),12,1))) -> 0.68779 | T50: =IF(PlotControl!$B$4 = "Annual Max",MAX(OFFSET(Cbeach!$C$10,12*$A50,4*(PlotControl!$C$6-1),12,1)),AVERAGE(OFFSET(Cbeach!$C$10,12*$A50,4*(PlotControl!$C$6-1),12,1))) -> 11.964 | U50: =IF(PlotControl!$B$4 = "Annual Max",MAX(OFFSET(Cbeach!$D$10,12*$A50,4*(PlotControl!$C$6-1),12,1)),AVERAGE(OFFSET(Cbeach!$D$10,12*$A50,4*(PlotControl!$C$6-1),12,1))) -> 65.131 | V50: =IF(PlotControl!$B$4 = "Annual Max",MAX(OFFSET(Cbeach!$E$10,12*$A50,4*(PlotControl!$C$6-1),12,1)),AVERAGE(OFFSET(Cbeach!$E$10,12*$A50,4*(PlotControl!$C$6-1),12,1))) -> 322.82
A51: 46 | B51: =IF(PlotControl!$B$4 = "Annual Max",MAX(OFFSET(Nbeach!$C$10,12*$A51,4*(PlotControl!$C$6-1),12,1)),AVERAGE(OFFSET(Nbeach!$C$10,12*$A51,4*(PlotControl!$C$6-1),12,1))) -> 9.5429 | C51: =IF(PlotControl!$B$4 = "Annual Max",MAX(OFFSET(Nbeach!$D$10,12*$A51,4*(PlotControl!$C$6-1),12,1)),AVERAGE(OFFSET(Nbeach!$D$10,12*$A51,4*(PlotControl!$C$6-1),12,1))) -> 52.63 | D51: =IF(PlotControl!$B$4 = "Annual Max",MAX(OFFSET(Nbeach!$E$10,12*$A51,4*(PlotControl!$C$6-1),12,1)),AVERAGE(OFFSET(Nbeach!$E$10,12*$A51,4*(PlotControl!$C$6-1),12,1))) -> 346.88 | E51: =IF(PlotControl!$B$4 = "Annual Max",MAX(OFFSET(Ndam!$C$10,12*$A51,4*(PlotControl!$C$6-1),12,1)),AVERAGE(OFFSET(Ndam!$C$10,12*$A51,4*(PlotControl!$C$6-1),12,1))) -> 0.94308 | F51: =IF(PlotControl!$B$4 = "Annual Max",MAX(OFFSET(Ndam!$D$10,12*$A51,4*(PlotControl!$C$6-1),12,1)),AVERAGE(OFFSET(Ndam!$D$10,12*$A51,4*(PlotControl!$C$6-1),12,1))) -> 1.1031 | G51: =IF(PlotControl!$B$4 = "Annual Max",MAX(OFFSET(Ndam!$E$10,12*$A51,4*(PlotControl!$C$6-1),12,1)),AVERAGE(OFFSET(Ndam!$E$10,12*$A51,4*(PlotControl!$C$6-1),12,1))) -> 1.3717 | H51: =IF(PlotControl!$B$4 = "Annual Max",MAX(OFFSET(Ebeach!$C$10,12*$A51,4*(PlotControl!$C$6-1),12,1)),AVERAGE(OFFSET(Ebeach!$C$10,12*$A51,4*(PlotControl!$C$6-1),12,1))) -> 11.251 | I51: =IF(PlotControl!$B$4 = "Annual Max",MAX(OFFSET(Ebeach!$D$10,12*$A51,4*(PlotControl!$C$6-1),12,1)),AVERAGE(OFFSET(Ebeach!$D$10,12*$A51,4*(PlotControl!$C$6-1),12,1))) -> 68.557 | J51: =IF(PlotControl!$B$4 = "Annual Max",MAX(OFFSET(Ebeach!$E$10,12*$A51,4*(PlotControl!$C$6-1),12,1)),AVERAGE(OFFSET(Ebeach!$E$10,12*$A51,4*(PlotControl!$C$6-1),12,1))) -> 322.82 | K51: =IF(PlotControl!$B$4 = "Annual Max",MAX(OFFSET(Edam!$C$10,12*$A51,4*(PlotControl!$C$6-1),12,1)),AVERAGE(OFFSET(Edam!$C$10,12*$A51,4*(PlotControl!$C$6-1),12,1))) -> 0.20109 | L51: =IF(PlotControl!$B$4 = "Annual Max",MAX(OFFSET(Edam!$D$10,12*$A51,4*(PlotControl!$C$6-1),12,1)),AVERAGE(OFFSET(Edam!$D$10,12*$A51,4*(PlotControl!$C$6-1),12,1))) -> 0.28853 | M51: =IF(PlotControl!$B$4 = "Annual Max",MAX(OFFSET(Edam!$E$10,12*$A51,4*(PlotControl!$C$6-1),12,1)),AVERAGE(OFFSET(Edam!$E$10,12*$A51,4*(PlotControl!$C$6-1),12,1))) -> 0.411 | N51: =IF(PlotControl!$B$4 = "Annual Max",MAX(OFFSET(Sbeach!$C$10,12*$A51,4*(PlotControl!$C$6-1),12,1)),AVERAGE(OFFSET(Sbeach!$C$10,12*$A51,4*(PlotControl!$C$6-1),12,1))) -> 10.082 | O51: =IF(PlotControl!$B$4 = "Annual Max",MAX(OFFSET(Sbeach!$D$10,12*$A51,4*(PlotControl!$C$6-1),12,1)),AVERAGE(OFFSET(Sbeach!$D$10,12*$A51,4*(PlotControl!$C$6-1),12,1))) -> 56.704 | P51: =IF(PlotControl!$B$4 = "Annual Max",MAX(OFFSET(Sbeach!$E$10,12*$A51,4*(PlotControl!$C$6-1),12,1)),AVERAGE(OFFSET(Sbeach!$E$10,12*$A51,4*(PlotControl!$C$6-1),12,1))) -> 336.67 | Q51: =IF(PlotControl!$B$4 = "Annual Max",MAX(OFFSET(Sdam!$C$10,12*$A51,4*(PlotControl!$C$6-1),12,1)),AVERAGE(OFFSET(Sdam!$C$10,12*$A51,4*(PlotControl!$C$6-1),12,1))) -> 0.40345 | R51: =IF(PlotControl!$B$4 = "Annual Max",MAX(OFFSET(Sdam!$D$10,12*$A51,4*(PlotControl!$C$6-1),12,1)),AVERAGE(OFFSET(Sdam!$D$10,12*$A51,4*(PlotControl!$C$6-1),12,1))) -> 0.50792 | S51: =IF(PlotControl!$B$4 = "Annual Max",MAX(OFFSET(Sdam!$E$10,12*$A51,4*(PlotControl!$C$6-1),12,1)),AVERAGE(OFFSET(Sdam!$E$10,12*$A51,4*(PlotControl!$C$6-1),12,1))) -> 0.67889 | T51: =IF(PlotControl!$B$4 = "Annual Max",MAX(OFFSET(Cbeach!$C$10,12*$A51,4*(PlotControl!$C$6-1),12,1)),AVERAGE(OFFSET(Cbeach!$C$10,12*$A51,4*(PlotControl!$C$6-1),12,1))) -> 11.328 | U51: =IF(PlotControl!$B$4 = "Annual Max",MAX(OFFSET(Cbeach!$D$10,12*$A51,4*(PlotControl!$C$6-1),12,1)),AVERAGE(OFFSET(Cbeach!$D$10,12*$A51,4*(PlotControl!$C$6-1),12,1))) -> 68.797 | V51: =IF(PlotControl!$B$4 = "Annual Max",MAX(OFFSET(Cbeach!$E$10,12*$A51,4*(PlotControl!$C$6-1),12,1)),AVERAGE(OFFSET(Cbeach!$E$10,12*$A51,4*(PlotControl!$C$6-1),12,1))) -> 322.82
A52: 47 | B52: =IF(PlotControl!$B$4 = "Annual Max",MAX(OFFSET(Nbeach!$C$10,12*$A52,4*(PlotControl!$C$6-1),12,1)),AVERAGE(OFFSET(Nbeach!$C$10,12*$A52,4*(PlotControl!$C$6-1),12,1))) -> 9.5663 | C52: =IF(PlotControl!$B$4 = "Annual Max",MAX(OFFSET(Nbeach!$D$10,12*$A52,4*(PlotControl!$C$6-1),12,1)),AVERAGE(OFFSET(Nbeach!$D$10,12*$A52,4*(PlotControl!$C$6-1),12,1))) -> 52.3 | D52: =IF(PlotControl!$B$4 = "Annual Max",MAX(OFFSET(Nbeach!$E$10,12*$A52,4*(PlotControl!$C$6-1),12,1)),AVERAGE(OFFSET(Nbeach!$E$10,12*$A52,4*(PlotControl!$C$6-1),12,1))) -> 346.88 | E52: =IF(PlotControl!$B$4 = "Annual Max",MAX(OFFSET(Ndam!$C$10,12*$A52,4*(PlotControl!$C$6-1),12,1)),AVERAGE(OFFSET(Ndam!$C$10,12*$A52,4*(PlotControl!$C$6-1),12,1))) -> 0.90917 | F52: =IF(PlotControl!$B$4 = "Annual Max",MAX(OFFSET(Ndam!$D$10,12*$A52,4*(PlotControl!$C$6-1),12,1)),AVERAGE(OFFSET(Ndam!$D$10,12*$A52,4*(PlotControl!$C$6-1),12,1))) -> 1.074 | G52: =IF(PlotControl!$B$4 = "Annual Max",MAX(OFFSET(Ndam!$E$10,12*$A52,4*(PlotControl!$C$6-1),12,1)),AVERAGE(OFFSET(Ndam!$E$10,12*$A52,4*(PlotControl!$C$6-1),12,1))) -> 1.3398 | H52: =IF(PlotControl!$B$4 = "Annual Max",MAX(OFFSET(Ebeach!$C$10,12*$A52,4*(PlotControl!$C$6-1),12,1)),AVERAGE(OFFSET(Ebeach!$C$10,12*$A52,4*(PlotControl!$C$6-1),12,1))) -> 11.634 | I52: =IF(PlotControl!$B$4 = "Annual Max",MAX(OFFSET(Ebeach!$D$10,12*$A52,4*(PlotControl!$C$6-1),12,1)),AVERAGE(OFFSET(Ebeach!$D$10,12*$A52,4*(PlotControl!$C$6-1),12,1))) -> 65.144 | J52: =IF(PlotControl!$B$4 = "Annual Max",MAX(OFFSET(Ebeach!$E$10,12*$A52,4*(PlotControl!$C$6-1),12,1)),AVERAGE(OFFSET(Ebeach!$E$10,12*$A52,4*(PlotControl!$C$6-1),12,1))) -> 323.48 | K52: =IF(PlotControl!$B$4 = "Annual Max",MAX(OFFSET(Edam!$C$10,12*$A52,4*(PlotControl!$C$6-1),12,1)),AVERAGE(OFFSET(Edam!$C$10,12*$A52,4*(PlotControl!$C$6-1),12,1))) -> 0.19696 | L52: =IF(PlotControl!$B$4 = "Annual Max",MAX(OFFSET(Edam!$D$10,12*$A52,4*(PlotControl!$C$6-1),12,1)),AVERAGE(OFFSET(Edam!$D$10,12*$A52,4*(PlotControl!$C$6-1),12,1))) -> 0.28664 | M52: =IF(PlotControl!$B$4 = "Annual Max",MAX(OFFSET(Edam!$E$10,12*$A52,4*(PlotControl!$C$6-1),12,1)),AVERAGE(OFFSET(Edam!$E$10,12*$A52,4*(PlotControl!$C$6-1),12,1))) -> 0.40431 | N52: =IF(PlotControl!$B$4 = "Annual Max",MAX(OFFSET(Sbeach!$C$10,12*$A52,4*(PlotControl!$C$6-1),12,1)),AVERAGE(OFFSET(Sbeach!$C$10,12*$A52,4*(PlotControl!$C$6-1),12,1))) -> 10.112 | O52: =IF(PlotControl!$B$4 = "Annual Max",MAX(OFFSET(Sbeach!$D$10,12*$A52,4*(PlotControl!$C$6-1),12,1)),AVERAGE(OFFSET(Sbeach!$D$10,12*$A52,4*(PlotControl!$C$6-1),12,1))) -> 55.533 | P52: =IF(PlotControl!$B$4 = "Annual Max",MAX(OFFSET(Sbeach!$E$10,12*$A52,4*(PlotControl!$C$6-1),12,1)),AVERAGE(OFFSET(Sbeach!$E$10,12*$A52,4*(PlotControl!$C$6-1),12,1))) -> 335.25 | Q52: =IF(PlotControl!$B$4 = "Annual Max",MAX(OFFSET(Sdam!$C$10,12*$A52,4*(PlotControl!$C$6-1),12,1)),AVERAGE(OFFSET(Sdam!$C$10,12*$A52,4*(PlotControl!$C$6-1),12,1))) -> 0.38955 | R52: =IF(PlotControl!$B$4 = "Annual Max",MAX(OFFSET(Sdam!$D$10,12*$A52,4*(PlotControl!$C$6-1),12,1)),AVERAGE(OFFSET(Sdam!$D$10,12*$A52,4*(PlotControl!$C$6-1),12,1))) -> 0.49867 | S52: =IF(PlotControl!$B$4 = "Annual Max",MAX(OFFSET(Sdam!$E$10,12*$A52,4*(PlotControl!$C$6-1),12,1)),AVERAGE(OFFSET(Sdam!$E$10,12*$A52,4*(PlotControl!$C$6-1),12,1))) -> 0.64967 | T52: =IF(PlotControl!$B$4 = "Annual Max",MAX(OFFSET(Cbeach!$C$10,12*$A52,4*(PlotControl!$C$6-1),12,1)),AVERAGE(OFFSET(Cbeach!$C$10,12*$A52,4*(PlotControl!$C$6-1),12,1))) -> 11.661 | U52: =IF(PlotControl!$B$4 = "Annual Max",MAX(OFFSET(Cbeach!$D$10,12*$A52,4*(PlotControl!$C$6-1),12,1)),AVERAGE(OFFSET(Cbeach!$D$10,12*$A52,4*(PlotControl!$C$6-1),12,1))) -> 65.394 | V52: =IF(PlotControl!$B$4 = "Annual Max",MAX(OFFSET(Cbeach!$E$10,12*$A52,4*(PlotControl!$C$6-1),12,1)),AVERAGE(OFFSET(Cbeach!$E$10,12*$A52,4*(PlotControl!$C$6-1),12,1))) -> 322.82
A53: 48 | B53: =IF(PlotControl!$B$4 = "Annual Max",MAX(OFFSET(Nbeach!$C$10,12*$A53,4*(PlotControl!$C$6-1),12,1)),AVERAGE(OFFSET(Nbeach!$C$10,12*$A53,4*(PlotControl!$C$6-1),12,1))) -> 9.3297 | C53: =IF(PlotControl!$B$4 = "Annual Max",MAX(OFFSET(Nbeach!$D$10,12*$A53,4*(PlotControl!$C$6-1),12,1)),AVERAGE(OFFSET(Nbeach!$D$10,12*$A53,4*(PlotControl!$C$6-1),12,1))) -> 52.494 | D53: =IF(PlotControl!$B$4 = "Annual Max",MAX(OFFSET(Nbeach!$E$10,12*$A53,4*(PlotControl!$C$6-1),12,1)),AVERAGE(OFFSET(Nbeach!$E$10,12*$A53,4*(PlotControl!$C$6-1),12,1))) -> 346.88 | E53: =IF(PlotControl!$B$4 = "Annual Max",MAX(OFFSET(Ndam!$C$10,12*$A53,4*(PlotControl!$C$6-1),12,1)),AVERAGE(OFFSET(Ndam!$C$10,12*$A53,4*(PlotControl!$C$6-1),12,1))) -> 0.86911 | F53: =IF(PlotControl!$B$4 = "Annual Max",MAX(OFFSET(Ndam!$D$10,12*$A53,4*(PlotControl!$C$6-1),12,1)),AVERAGE(OFFSET(Ndam!$D$10,12*$A53,4*(PlotControl!$C$6-1),12,1))) -> 1.0401 | G53: =IF(PlotControl!$B$4 = "Annual Max",MAX(OFFSET(Ndam!$E$10,12*$A53,4*(PlotControl!$C$6-1),12,1)),AVERAGE(OFFSET(Ndam!$E$10,12*$A53,4*(PlotControl!$C$6-1),12,1))) -> 1.2611 | H53: =IF(PlotControl!$B$4 = "Annual Max",MAX(OFFSET(Ebeach!$C$10,12*$A53,4*(PlotControl!$C$6-1),12,1)),AVERAGE(OFFSET(Ebeach!$C$10,12*$A53,4*(PlotControl!$C$6-1),12,1))) -> 11.772 | I53: =IF(PlotControl!$B$4 = "Annual Max",MAX(OFFSET(Ebeach!$D$10,12*$A53,4*(PlotControl!$C$6-1),12,1)),AVERAGE(OFFSET(Ebeach!$D$10,12*$A53,4*(PlotControl!$C$6-1),12,1))) -> 66.841 | J53: =IF(PlotControl!$B$4 = "Annual Max",MAX(OFFSET(Ebeach!$E$10,12*$A53,4*(PlotControl!$C$6-1),12,1)),AVERAGE(OFFSET(Ebeach!$E$10,12*$A53,4*(PlotControl!$C$6-1),12,1))) -> 322.31 | K53: =IF(PlotControl!$B$4 = "Annual Max",MAX(OFFSET(Edam!$C$10,12*$A53,4*(PlotControl!$C$6-1),12,1)),AVERAGE(OFFSET(Edam!$C$10,12*$A53,4*(PlotControl!$C$6-1),12,1))) -> 0.19575 | L53: =IF(PlotControl!$B$4 = "Annual Max",MAX(OFFSET(Edam!$D$10,12*$A53,4*(PlotControl!$C$6-1),12,1)),AVERAGE(OFFSET(Edam!$D$10,12*$A53,4*(PlotControl!$C$6-1),12,1))) -> 0.28079 | M53: =IF(PlotControl!$B$4 = "Annual Max",MAX(OFFSET(Edam!$E$10,12*$A53,4*(PlotControl!$C$6-1),12,1)),AVERAGE(OFFSET(Edam!$E$10,12*$A53,4*(PlotControl!$C$6-1),12,1))) -> 0.41159 | N53: =IF(PlotControl!$B$4 = "Annual Max",MAX(OFFSET(Sbeach!$C$10,12*$A53,4*(PlotControl!$C$6-1),12,1)),AVERAGE(OFFSET(Sbeach!$C$10,12*$A53,4*(PlotControl!$C$6-1),12,1))) -> 10.447 | O53: =IF(PlotControl!$B$4 = "Annual Max",MAX(OFFSET(Sbeach!$D$10,12*$A53,4*(PlotControl!$C$6-1),12,1)),AVERAGE(OFFSET(Sbeach!$D$10,12*$A53,4*(PlotControl!$C$6-1),12,1))) -> 58.631 | P53: =IF(PlotControl!$B$4 = "Annual Max",MAX(OFFSET(Sbeach!$E$10,12*$A53,4*(PlotControl!$C$6-1),12,1)),AVERAGE(OFFSET(Sbeach!$E$10,12*$A53,4*(PlotControl!$C$6-1),12,1))) -> 332.75 | Q53: =IF(PlotControl!$B$4 = "Annual Max",MAX(OFFSET(Sdam!$C$10,12*$A53,4*(PlotControl!$C$6-1),12,1)),AVERAGE(OFFSET(Sdam!$C$10,12*$A53,4*(PlotControl!$C$6-1),12,1))) -> 0.37743 | R53: =IF(PlotControl!$B$4 = "Annual Max",MAX(OFFSET(Sdam!$D$10,12*$A53,4*(PlotControl!$C$6-1),12,1)),AVERAGE(OFFSET(Sdam!$D$10,12*$A53,4*(PlotControl!$C$6-1),12,1))) -> 0.4819 | S53: =IF(PlotControl!$B$4 = "Annual Max",MAX(OFFSET(Sdam!$E$10,12*$A53,4*(PlotControl!$C$6-1),12,1)),AVERAGE(OFFSET(Sdam!$E$10,12*$A53,4*(PlotControl!$C$6-1),12,1))) -> 0.62849 | T53: =IF(PlotControl!$B$4 = "Annual Max",MAX(OFFSET(Cbeach!$C$10,12*$A53,4*(PlotControl!$C$6-1),12,1)),AVERAGE(OFFSET(Cbeach!$C$10,12*$A53,4*(PlotControl!$C$6-1),12,1))) -> 11.826 | U53: =IF(PlotControl!$B$4 = "Annual Max",MAX(OFFSET(Cbeach!$D$10,12*$A53,4*(PlotControl!$C$6-1),12,1)),AVERAGE(OFFSET(Cbeach!$D$10,12*$A53,4*(PlotControl!$C$6-1),12,1))) -> 67.208 | V53: =IF(PlotControl!$B$4 = "Annual Max",MAX(OFFSET(Cbeach!$E$10,12*$A53,4*(PlotControl!$C$6-1),12,1)),AVERAGE(OFFSET(Cbeach!$E$10,12*$A53,4*(PlotControl!$C$6-1),12,1))) -> 320.91
A54: 49 | B54: =IF(PlotControl!$B$4 = "Annual Max",MAX(OFFSET(Nbeach!$C$10,12*$A54,4*(PlotControl!$C$6-1),12,1)),AVERAGE(OFFSET(Nbeach!$C$10,12*$A54,4*(PlotControl!$C$6-1),12,1))) -> 9.5726 | C54: =IF(PlotControl!$B$4 = "Annual Max",MAX(OFFSET(Nbeach!$D$10,12*$A54,4*(PlotControl!$C$6-1),12,1)),AVERAGE(OFFSET(Nbeach!$D$10,12*$A54,4*(PlotControl!$C$6-1),12,1))) -> 51.93 | D54: =IF(PlotControl!$B$4 = "Annual Max",MAX(OFFSET(Nbeach!$E$10,12*$A54,4*(PlotControl!$C$6-1),12,1)),AVERAGE(OFFSET(Nbeach!$E$10,12*$A54,4*(PlotControl!$C$6-1),12,1))) -> 345.74 | E54: =IF(PlotControl!$B$4 = "Annual Max",MAX(OFFSET(Ndam!$C$10,12*$A54,4*(PlotControl!$C$6-1),12,1)),AVERAGE(OFFSET(Ndam!$C$10,12*$A54,4*(PlotControl!$C$6-1),12,1))) -> 0.84206 | F54: =IF(PlotControl!$B$4 = "Annual Max",MAX(OFFSET(Ndam!$D$10,12*$A54,4*(PlotControl!$C$6-1),12,1)),AVERAGE(OFFSET(Ndam!$D$10,12*$A54,4*(PlotControl!$C$6-1),12,1))) -> 0.99514 | G54: =IF(PlotControl!$B$4 = "Annual Max",MAX(OFFSET(Ndam!$E$10,12*$A54,4*(PlotControl!$C$6-1),12,1)),AVERAGE(OFFSET(Ndam!$E$10,12*$A54,4*(PlotControl!$C$6-1),12,1))) -> 1.2587 | H54: =IF(PlotControl!$B$4 = "Annual Max",MAX(OFFSET(Ebeach!$C$10,12*$A54,4*(PlotControl!$C$6-1),12,1)),AVERAGE(OFFSET(Ebeach!$C$10,12*$A54,4*(PlotControl!$C$6-1),12,1))) -> 11.788 | I54: =IF(PlotControl!$B$4 = "Annual Max",MAX(OFFSET(Ebeach!$D$10,12*$A54,4*(PlotControl!$C$6-1),12,1)),AVERAGE(OFFSET(Ebeach!$D$10,12*$A54,4*(PlotControl!$C$6-1),12,1))) -> 67.824 | J54: =IF(PlotControl!$B$4 = "Annual Max",MAX(OFFSET(Ebeach!$E$10,12*$A54,4*(PlotControl!$C$6-1),12,1)),AVERAGE(OFFSET(Ebeach!$E$10,12*$A54,4*(PlotControl!$C$6-1),12,1))) -> 326.91 | K54: =IF(PlotControl!$B$4 = "Annual Max",MAX(OFFSET(Edam!$C$10,12*$A54,4*(PlotControl!$C$6-1),12,1)),AVERAGE(OFFSET(Edam!$C$10,12*$A54,4*(PlotControl!$C$6-1),12,1))) -> 0.19674 | L54: =IF(PlotControl!$B$4 = "Annual Max",MAX(OFFSET(Edam!$D$10,12*$A54,4*(PlotControl!$C$6-1),12,1)),AVERAGE(OFFSET(Edam!$D$10,12*$A54,4*(PlotControl!$C$6-1),12,1))) -> 0.27846 | M54: =IF(PlotControl!$B$4 = "Annual Max",MAX(OFFSET(Edam!$E$10,12*$A54,4*(PlotControl!$C$6-1),12,1)),AVERAGE(OFFSET(Edam!$E$10,12*$A54,4*(PlotControl!$C$6-1),12,1))) -> 0.41431 | N54: =IF(PlotControl!$B$4 = "Annual Max",MAX(OFFSET(Sbeach!$C$10,12*$A54,4*(PlotControl!$C$6-1),12,1)),AVERAGE(OFFSET(Sbeach!$C$10,12*$A54,4*(PlotControl!$C$6-1),12,1))) -> 10.147 | O54: =IF(PlotControl!$B$4 = "Annual Max",MAX(OFFSET(Sbeach!$D$10,12*$A54,4*(PlotControl!$C$6-1),12,1)),AVERAGE(OFFSET(Sbeach!$D$10,12*$A54,4*(PlotControl!$C$6-1),12,1))) -> 58.459 | P54: =IF(PlotControl!$B$4 = "Annual Max",MAX(OFFSET(Sbeach!$E$10,12*$A54,4*(PlotControl!$C$6-1),12,1)),AVERAGE(OFFSET(Sbeach!$E$10,12*$A54,4*(PlotControl!$C$6-1),12,1))) -> 330.63 | Q54: =IF(PlotControl!$B$4 = "Annual Max",MAX(OFFSET(Sdam!$C$10,12*$A54,4*(PlotControl!$C$6-1),12,1)),AVERAGE(OFFSET(Sdam!$C$10,12*$A54,4*(PlotControl!$C$6-1),12,1))) -> 0.368 | R54: =IF(PlotControl!$B$4 = "Annual Max",MAX(OFFSET(Sdam!$D$10,12*$A54,4*(PlotControl!$C$6-1),12,1)),AVERAGE(OFFSET(Sdam!$D$10,12*$A54,4*(PlotControl!$C$6-1),12,1))) -> 0.46941 | S54: =IF(PlotControl!$B$4 = "Annual Max",MAX(OFFSET(Sdam!$E$10,12*$A54,4*(PlotControl!$C$6-1),12,1)),AVERAGE(OFFSET(Sdam!$E$10,12*$A54,4*(PlotControl!$C$6-1),12,1))) -> 0.62597 | T54: =IF(PlotControl!$B$4 = "Annual Max",MAX(OFFSET(Cbeach!$C$10,12*$A54,4*(PlotControl!$C$6-1),12,1)),AVERAGE(OFFSET(Cbeach!$C$10,12*$A54,4*(PlotControl!$C$6-1),12,1))) -> 11.85 | U54: =IF(PlotControl!$B$4 = "Annual Max",MAX(OFFSET(Cbeach!$D$10,12*$A54,4*(PlotControl!$C$6-1),12,1)),AVERAGE(OFFSET(Cbeach!$D$10,12*$A54,4*(PlotControl!$C$6-1),12,1))) -> 68.246 | V54: =IF(PlotControl!$B$4 = "Annual Max",MAX(OFFSET(Cbeach!$E$10,12*$A54,4*(PlotControl!$C$6-1),12,1)),AVERAGE(OFFSET(Cbeach!$E$10,12*$A54,4*(PlotControl!$C$6-1),12,1))) -> 326.46
A55: 50 | B55: =IF(PlotControl!$B$4 = "Annual Max",MAX(OFFSET(Nbeach!$C$10,12*$A55,4*(PlotControl!$C$6-1),12,1)),AVERAGE(OFFSET(Nbeach!$C$10,12*$A55,4*(PlotControl!$C$6-1),12,1))) -> 9.2869 | C55: =IF(PlotControl!$B$4 = "Annual Max",MAX(OFFSET(Nbeach!$D$10,12*$A55,4*(PlotControl!$C$6-1),12,1)),AVERAGE(OFFSET(Nbeach!$D$10,12*$A55,4*(PlotControl!$C$6-1),12,1))) -> 50.542 | D55: =IF(PlotControl!$B$4 = "Annual Max",MAX(OFFSET(Nbeach!$E$10,12*$A55,4*(PlotControl!$C$6-1),12,1)),AVERAGE(OFFSET(Nbeach!$E$10,12*$A55,4*(PlotControl!$C$6-1),12,1))) -> 344.5 | E55: =IF(PlotControl!$B$4 = "Annual Max",MAX(OFFSET(Ndam!$C$10,12*$A55,4*(PlotControl!$C$6-1),12,1)),AVERAGE(OFFSET(Ndam!$C$10,12*$A55,4*(PlotControl!$C$6-1),12,1))) -> 0.82213 | F55: =IF(PlotControl!$B$4 = "Annual Max",MAX(OFFSET(Ndam!$D$10,12*$A55,4*(PlotControl!$C$6-1),12,1)),AVERAGE(OFFSET(Ndam!$D$10,12*$A55,4*(PlotControl!$C$6-1),12,1))) -> 0.96393 | G55: =IF(PlotControl!$B$4 = "Annual Max",MAX(OFFSET(Ndam!$E$10,12*$A55,4*(PlotControl!$C$6-1),12,1)),AVERAGE(OFFSET(Ndam!$E$10,12*$A55,4*(PlotControl!$C$6-1),12,1))) -> 1.1745 | H55: =IF(PlotControl!$B$4 = "Annual Max",MAX(OFFSET(Ebeach!$C$10,12*$A55,4*(PlotControl!$C$6-1),12,1)),AVERAGE(OFFSET(Ebeach!$C$10,12*$A55,4*(PlotControl!$C$6-1),12,1))) -> 11.539 | I55: =IF(PlotControl!$B$4 = "Annual Max",MAX(OFFSET(Ebeach!$D$10,12*$A55,4*(PlotControl!$C$6-1),12,1)),AVERAGE(OFFSET(Ebeach!$D$10,12*$A55,4*(PlotControl!$C$6-1),12,1))) -> 66.879 | J55: =IF(PlotControl!$B$4 = "Annual Max",MAX(OFFSET(Ebeach!$E$10,12*$A55,4*(PlotControl!$C$6-1),12,1)),AVERAGE(OFFSET(Ebeach!$E$10,12*$A55,4*(PlotControl!$C$6-1),12,1))) -> 324.49 | K55: =IF(PlotControl!$B$4 = "Annual Max",MAX(OFFSET(Edam!$C$10,12*$A55,4*(PlotControl!$C$6-1),12,1)),AVERAGE(OFFSET(Edam!$C$10,12*$A55,4*(PlotControl!$C$6-1),12,1))) -> 0.19609 | L55: =IF(PlotControl!$B$4 = "Annual Max",MAX(OFFSET(Edam!$D$10,12*$A55,4*(PlotControl!$C$6-1),12,1)),AVERAGE(OFFSET(Edam!$D$10,12*$A55,4*(PlotControl!$C$6-1),12,1))) -> 0.27856 | M55: =IF(PlotControl!$B$4 = "Annual Max",MAX(OFFSET(Edam!$E$10,12*$A55,4*(PlotControl!$C$6-1),12,1)),AVERAGE(OFFSET(Edam!$E$10,12*$A55,4*(PlotControl!$C$6-1),12,1))) -> 0.41018 | N55: =IF(PlotControl!$B$4 = "Annual Max",MAX(OFFSET(Sbeach!$C$10,12*$A55,4*(PlotControl!$C$6-1),12,1)),AVERAGE(OFFSET(Sbeach!$C$10,12*$A55,4*(PlotControl!$C$6-1),12,1))) -> 9.885 | O55: =IF(PlotControl!$B$4 = "Annual Max",MAX(OFFSET(Sbeach!$D$10,12*$A55,4*(PlotControl!$C$6-1),12,1)),AVERAGE(OFFSET(Sbeach!$D$10,12*$A55,4*(PlotControl!$C$6-1),12,1))) -> 57.366 | P55: =IF(PlotControl!$B$4 = "Annual Max",MAX(OFFSET(Sbeach!$E$10,12*$A55,4*(PlotControl!$C$6-1),12,1)),AVERAGE(OFFSET(Sbeach!$E$10,12*$A55,4*(PlotControl!$C$6-1),12,1))) -> 330.63 | Q55: =IF(PlotControl!$B$4 = "Annual Max",MAX(OFFSET(Sdam!$C$10,12*$A55,4*(PlotControl!$C$6-1),12,1)),AVERAGE(OFFSET(Sdam!$C$10,12*$A55,4*(PlotControl!$C$6-1),12,1))) -> 0.36168 | R55: =IF(PlotControl!$B$4 = "Annual Max",MAX(OFFSET(Sdam!$D$10,12*$A55,4*(PlotControl!$C$6-1),12,1)),AVERAGE(OFFSET(Sdam!$D$10,12*$A55,4*(PlotControl!$C$6-1),12,1))) -> 0.45687 | S55: =IF(PlotControl!$B$4 = "Annual Max",MAX(OFFSET(Sdam!$E$10,12*$A55,4*(PlotControl!$C$6-1),12,1)),AVERAGE(OFFSET(Sdam!$E$10,12*$A55,4*(PlotControl!$C$6-1),12,1))) -> 0.60604 | T55: =IF(PlotControl!$B$4 = "Annual Max",MAX(OFFSET(Cbeach!$C$10,12*$A55,4*(PlotControl!$C$6-1),12,1)),AVERAGE(OFFSET(Cbeach!$C$10,12*$A55,4*(PlotControl!$C$6-1),12,1))) -> 11.586 | U55: =IF(PlotControl!$B$4 = "Annual Max",MAX(OFFSET(Cbeach!$D$10,12*$A55,4*(PlotControl!$C$6-1),12,1)),AVERAGE(OFFSET(Cbeach!$D$10,12*$A55,4*(PlotControl!$C$6-1),12,1))) -> 67.203 | V55: =IF(PlotControl!$B$4 = "Annual Max",MAX(OFFSET(Cbeach!$E$10,12*$A55,4*(PlotControl!$C$6-1),12,1)),AVERAGE(OFFSET(Cbeach!$E$10,12*$A55,4*(PlotControl!$C$6-1),12,1))) -> 323.48
A56: 51 | B56: =IF(PlotControl!$B$4 = "Annual Max",MAX(OFFSET(Nbeach!$C$10,12*$A56,4*(PlotControl!$C$6-1),12,1)),AVERAGE(OFFSET(Nbeach!$C$10,12*$A56,4*(PlotControl!$C$6-1),12,1))) -> 9.2925 | C56: =IF(PlotControl!$B$4 = "Annual Max",MAX(OFFSET(Nbeach!$D$10,12*$A56,4*(PlotControl!$C$6-1),12,1)),AVERAGE(OFFSET(Nbeach!$D$10,12*$A56,4*(PlotControl!$C$6-1),12,1))) -> 50.622 | D56: =IF(PlotControl!$B$4 = "Annual Max",MAX(OFFSET(Nbeach!$E$10,12*$A56,4*(PlotControl!$C$6-1),12,1)),AVERAGE(OFFSET(Nbeach!$E$10,12*$A56,4*(PlotControl!$C$6-1),12,1))) -> 343.9 | E56: =IF(PlotControl!$B$4 = "Annual Max",MAX(OFFSET(Ndam!$C$10,12*$A56,4*(PlotControl!$C$6-1),12,1)),AVERAGE(OFFSET(Ndam!$C$10,12*$A56,4*(PlotControl!$C$6-1),12,1))) -> 0.79335 | F56: =IF(PlotControl!$B$4 = "Annual Max",MAX(OFFSET(Ndam!$D$10,12*$A56,4*(PlotControl!$C$6-1),12,1)),AVERAGE(OFFSET(Ndam!$D$10,12*$A56,4*(PlotControl!$C$6-1),12,1))) -> 0.95108 | G56: =IF(PlotControl!$B$4 = "Annual Max",MAX(OFFSET(Ndam!$E$10,12*$A56,4*(PlotControl!$C$6-1),12,1)),AVERAGE(OFFSET(Ndam!$E$10,12*$A56,4*(PlotControl!$C$6-1),12,1))) -> 1.1698 | H56: =IF(PlotControl!$B$4 = "Annual Max",MAX(OFFSET(Ebeach!$C$10,12*$A56,4*(PlotControl!$C$6-1),12,1)),AVERAGE(OFFSET(Ebeach!$C$10,12*$A56,4*(PlotControl!$C$6-1),12,1))) -> 12.449 | I56: =IF(PlotControl!$B$4 = "Annual Max",MAX(OFFSET(Ebeach!$D$10,12*$A56,4*(PlotControl!$C$6-1),12,1)),AVERAGE(OFFSET(Ebeach!$D$10,12*$A56,4*(PlotControl!$C$6-1),12,1))) -> 65.943 | J56: =IF(PlotControl!$B$4 = "Annual Max",MAX(OFFSET(Ebeach!$E$10,12*$A56,4*(PlotControl!$C$6-1),12,1)),AVERAGE(OFFSET(Ebeach!$E$10,12*$A56,4*(PlotControl!$C$6-1),12,1))) -> 322.82 | K56: =IF(PlotControl!$B$4 = "Annual Max",MAX(OFFSET(Edam!$C$10,12*$A56,4*(PlotControl!$C$6-1),12,1)),AVERAGE(OFFSET(Edam!$C$10,12*$A56,4*(PlotControl!$C$6-1),12,1))) -> 0.19987 | L56: =IF(PlotControl!$B$4 = "Annual Max",MAX(OFFSET(Edam!$D$10,12*$A56,4*(PlotControl!$C$6-1),12,1)),AVERAGE(OFFSET(Edam!$D$10,12*$A56,4*(PlotControl!$C$6-1),12,1))) -> 0.28414 | M56: =IF(PlotControl!$B$4 = "Annual Max",MAX(OFFSET(Edam!$E$10,12*$A56,4*(PlotControl!$C$6-1),12,1)),AVERAGE(OFFSET(Edam!$E$10,12*$A56,4*(PlotControl!$C$6-1),12,1))) -> 0.41315 | N56: =IF(PlotControl!$B$4 = "Annual Max",MAX(OFFSET(Sbeach!$C$10,12*$A56,4*(PlotControl!$C$6-1),12,1)),AVERAGE(OFFSET(Sbeach!$C$10,12*$A56,4*(PlotControl!$C$6-1),12,1))) -> 10.049 | O56: =IF(PlotControl!$B$4 = "Annual Max",MAX(OFFSET(Sbeach!$D$10,12*$A56,4*(PlotControl!$C$6-1),12,1)),AVERAGE(OFFSET(Sbeach!$D$10,12*$A56,4*(PlotControl!$C$6-1),12,1))) -> 57.717 | P56: =IF(PlotControl!$B$4 = "Annual Max",MAX(OFFSET(Sbeach!$E$10,12*$A56,4*(PlotControl!$C$6-1),12,1)),AVERAGE(OFFSET(Sbeach!$E$10,12*$A56,4*(PlotControl!$C$6-1),12,1))) -> 330.63 | Q56: =IF(PlotControl!$B$4 = "Annual Max",MAX(OFFSET(Sdam!$C$10,12*$A56,4*(PlotControl!$C$6-1),12,1)),AVERAGE(OFFSET(Sdam!$C$10,12*$A56,4*(PlotControl!$C$6-1),12,1))) -> 0.34641 | R56: =IF(PlotControl!$B$4 = "Annual Max",MAX(OFFSET(Sdam!$D$10,12*$A56,4*(PlotControl!$C$6-1),12,1)),AVERAGE(OFFSET(Sdam!$D$10,12*$A56,4*(PlotControl!$C$6-1),12,1))) -> 0.45333 | S56: =IF(PlotControl!$B$4 = "Annual Max",MAX(OFFSET(Sdam!$E$10,12*$A56,4*(PlotControl!$C$6-1),12,1)),AVERAGE(OFFSET(Sdam!$E$10,12*$A56,4*(PlotControl!$C$6-1),12,1))) -> 0.60037 | T56: =IF(PlotControl!$B$4 = "Annual Max",MAX(OFFSET(Cbeach!$C$10,12*$A56,4*(PlotControl!$C$6-1),12,1)),AVERAGE(OFFSET(Cbeach!$C$10,12*$A56,4*(PlotControl!$C$6-1),12,1))) -> 12.464 | U56: =IF(PlotControl!$B$4 = "Annual Max",MAX(OFFSET(Cbeach!$D$10,12*$A56,4*(PlotControl!$C$6-1),12,1)),AVERAGE(OFFSET(Cbeach!$D$10,12*$A56,4*(PlotControl!$C$6-1),12,1))) -> 66.077 | V56: =IF(PlotControl!$B$4 = "Annual Max",MAX(OFFSET(Cbeach!$E$10,12*$A56,4*(PlotControl!$C$6-1),12,1)),AVERAGE(OFFSET(Cbeach!$E$10,12*$A56,4*(PlotControl!$C$6-1),12,1))) -> 322.31
A57: 52 | B57: =IF(PlotControl!$B$4 = "Annual Max",MAX(OFFSET(Nbeach!$C$10,12*$A57,4*(PlotControl!$C$6-1),12,1)),AVERAGE(OFFSET(Nbeach!$C$10,12*$A57,4*(PlotControl!$C$6-1),12,1))) -> 9.4341 | C57: =IF(PlotControl!$B$4 = "Annual Max",MAX(OFFSET(Nbeach!$D$10,12*$A57,4*(PlotControl!$C$6-1),12,1)),AVERAGE(OFFSET(Nbeach!$D$10,12*$A57,4*(PlotControl!$C$6-1),12,1))) -> 50.226 | D57: =IF(PlotControl!$B$4 = "Annual Max",MAX(OFFSET(Nbeach!$E$10,12*$A57,4*(PlotControl!$C$6-1),12,1)),AVERAGE(OFFSET(Nbeach!$E$10,12*$A57,4*(PlotControl!$C$6-1),12,1))) -> 343.9 | E57: =IF(PlotControl!$B$4 = "Annual Max",MAX(OFFSET(Ndam!$C$10,12*$A57,4*(PlotControl!$C$6-1),12,1)),AVERAGE(OFFSET(Ndam!$C$10,12*$A57,4*(PlotControl!$C$6-1),12,1))) -> 0.77931 | F57: =IF(PlotControl!$B$4 = "Annual Max",MAX(OFFSET(Ndam!$D$10,12*$A57,4*(PlotControl!$C$6-1),12,1)),AVERAGE(OFFSET(Ndam!$D$10,12*$A57,4*(PlotControl!$C$6-1),12,1))) -> 0.92263 | G57: =IF(PlotControl!$B$4 = "Annual Max",MAX(OFFSET(Ndam!$E$10,12*$A57,4*(PlotControl!$C$6-1),12,1)),AVERAGE(OFFSET(Ndam!$E$10,12*$A57,4*(PlotControl!$C$6-1),12,1))) -> 1.1509 | H57: =IF(PlotControl!$B$4 = "Annual Max",MAX(OFFSET(Ebeach!$C$10,12*$A57,4*(PlotControl!$C$6-1),12,1)),AVERAGE(OFFSET(Ebeach!$C$10,12*$A57,4*(PlotControl!$C$6-1),12,1))) -> 12.193 | I57: =IF(PlotControl!$B$4 = "Annual Max",MAX(OFFSET(Ebeach!$D$10,12*$A57,4*(PlotControl!$C$6-1),12,1)),AVERAGE(OFFSET(Ebeach!$D$10,12*$A57,4*(PlotControl!$C$6-1),12,1))) -> 66.591 | J57: =IF(PlotControl!$B$4 = "Annual Max",MAX(OFFSET(Ebeach!$E$10,12*$A57,4*(PlotControl!$C$6-1),12,1)),AVERAGE(OFFSET(Ebeach!$E$10,12*$A57,4*(PlotControl!$C$6-1),12,1))) -> 326.91 | K57: =IF(PlotControl!$B$4 = "Annual Max",MAX(OFFSET(Edam!$C$10,12*$A57,4*(PlotControl!$C$6-1),12,1)),AVERAGE(OFFSET(Edam!$C$10,12*$A57,4*(PlotControl!$C$6-1),12,1))) -> 0.20327 | L57: =IF(PlotControl!$B$4 = "Annual Max",MAX(OFFSET(Edam!$D$10,12*$A57,4*(PlotControl!$C$6-1),12,1)),AVERAGE(OFFSET(Edam!$D$10,12*$A57,4*(PlotControl!$C$6-1),12,1))) -> 0.287 | M57: =IF(PlotControl!$B$4 = "Annual Max",MAX(OFFSET(Edam!$E$10,12*$A57,4*(PlotControl!$C$6-1),12,1)),AVERAGE(OFFSET(Edam!$E$10,12*$A57,4*(PlotControl!$C$6-1),12,1))) -> 0.41839 | N57: =IF(PlotControl!$B$4 = "Annual Max",MAX(OFFSET(Sbeach!$C$10,12*$A57,4*(PlotControl!$C$6-1),12,1)),AVERAGE(OFFSET(Sbeach!$C$10,12*$A57,4*(PlotControl!$C$6-1),12,1))) -> 10.653 | O57: =IF(PlotControl!$B$4 = "Annual Max",MAX(OFFSET(Sbeach!$D$10,12*$A57,4*(PlotControl!$C$6-1),12,1)),AVERAGE(OFFSET(Sbeach!$D$10,12*$A57,4*(PlotControl!$C$6-1),12,1))) -> 55.756 | P57: =IF(PlotControl!$B$4 = "Annual Max",MAX(OFFSET(Sbeach!$E$10,12*$A57,4*(PlotControl!$C$6-1),12,1)),AVERAGE(OFFSET(Sbeach!$E$10,12*$A57,4*(PlotControl!$C$6-1),12,1))) -> 330.63 | Q57: =IF(PlotControl!$B$4 = "Annual Max",MAX(OFFSET(Sdam!$C$10,12*$A57,4*(PlotControl!$C$6-1),12,1)),AVERAGE(OFFSET(Sdam!$C$10,12*$A57,4*(PlotControl!$C$6-1),12,1))) -> 0.33911 | R57: =IF(PlotControl!$B$4 = "Annual Max",MAX(OFFSET(Sdam!$D$10,12*$A57,4*(PlotControl!$C$6-1),12,1)),AVERAGE(OFFSET(Sdam!$D$10,12*$A57,4*(PlotControl!$C$6-1),12,1))) -> 0.44018 | S57: =IF(PlotControl!$B$4 = "Annual Max",MAX(OFFSET(Sdam!$E$10,12*$A57,4*(PlotControl!$C$6-1),12,1)),AVERAGE(OFFSET(Sdam!$E$10,12*$A57,4*(PlotControl!$C$6-1),12,1))) -> 0.59106 | T57: =IF(PlotControl!$B$4 = "Annual Max",MAX(OFFSET(Cbeach!$C$10,12*$A57,4*(PlotControl!$C$6-1),12,1)),AVERAGE(OFFSET(Cbeach!$C$10,12*$A57,4*(PlotControl!$C$6-1),12,1))) -> 12.199 | U57: =IF(PlotControl!$B$4 = "Annual Max",MAX(OFFSET(Cbeach!$D$10,12*$A57,4*(PlotControl!$C$6-1),12,1)),AVERAGE(OFFSET(Cbeach!$D$10,12*$A57,4*(PlotControl!$C$6-1),12,1))) -> 66.626 | V57: =IF(PlotControl!$B$4 = "Annual Max",MAX(OFFSET(Cbeach!$E$10,12*$A57,4*(PlotControl!$C$6-1),12,1)),AVERAGE(OFFSET(Cbeach!$E$10,12*$A57,4*(PlotControl!$C$6-1),12,1))) -> 325.01
A58: 53 | B58: =IF(PlotControl!$B$4 = "Annual Max",MAX(OFFSET(Nbeach!$C$10,12*$A58,4*(PlotControl!$C$6-1),12,1)),AVERAGE(OFFSET(Nbeach!$C$10,12*$A58,4*(PlotControl!$C$6-1),12,1))) -> 9.7189 | C58: =IF(PlotControl!$B$4 = "Annual Max",MAX(OFFSET(Nbeach!$D$10,12*$A58,4*(PlotControl!$C$6-1),12,1)),AVERAGE(OFFSET(Nbeach!$D$10,12*$A58,4*(PlotControl!$C$6-1),12,1))) -> 50.041 | D58: =IF(PlotControl!$B$4 = "Annual Max",MAX(OFFSET(Nbeach!$E$10,12*$A58,4*(PlotControl!$C$6-1),12,1)),AVERAGE(OFFSET(Nbeach!$E$10,12*$A58,4*(PlotControl!$C$6-1),12,1))) -> 343.9 | E58: =IF(PlotControl!$B$4 = "Annual Max",MAX(OFFSET(Ndam!$C$10,12*$A58,4*(PlotControl!$C$6-1),12,1)),AVERAGE(OFFSET(Ndam!$C$10,12*$A58,4*(PlotControl!$C$6-1),12,1))) -> 0.7532 | F58: =IF(PlotControl!$B$4 = "Annual Max",MAX(OFFSET(Ndam!$D$10,12*$A58,4*(PlotControl!$C$6-1),12,1)),AVERAGE(OFFSET(Ndam!$D$10,12*$A58,4*(PlotControl!$C$6-1),12,1))) -> 0.89732 | G58: =IF(PlotControl!$B$4 = "Annual Max",MAX(OFFSET(Ndam!$E$10,12*$A58,4*(PlotControl!$C$6-1),12,1)),AVERAGE(OFFSET(Ndam!$E$10,12*$A58,4*(PlotControl!$C$6-1),12,1))) -> 1.1055 | H58: =IF(PlotControl!$B$4 = "Annual Max",MAX(OFFSET(Ebeach!$C$10,12*$A58,4*(PlotControl!$C$6-1),12,1)),AVERAGE(OFFSET(Ebeach!$C$10,12*$A58,4*(PlotControl!$C$6-1),12,1))) -> 11.445 | I58: =IF(PlotControl!$B$4 = "Annual Max",MAX(OFFSET(Ebeach!$D$10,12*$A58,4*(PlotControl!$C$6-1),12,1)),AVERAGE(OFFSET(Ebeach!$D$10,12*$A58,4*(PlotControl!$C$6-1),12,1))) -> 68.734 | J58: =IF(PlotControl!$B$4 = "Annual Max",MAX(OFFSET(Ebeach!$E$10,12*$A58,4*(PlotControl!$C$6-1),12,1)),AVERAGE(OFFSET(Ebeach!$E$10,12*$A58,4*(PlotControl!$C$6-1),12,1))) -> 322.31 | K58: =IF(PlotControl!$B$4 = "Annual Max",MAX(OFFSET(Edam!$C$10,12*$A58,4*(PlotControl!$C$6-1),12,1)),AVERAGE(OFFSET(Edam!$C$10,12*$A58,4*(PlotControl!$C$6-1),12,1))) -> 0.20608 | L58: =IF(PlotControl!$B$4 = "Annual Max",MAX(OFFSET(Edam!$D$10,12*$A58,4*(PlotControl!$C$6-1),12,1)),AVERAGE(OFFSET(Edam!$D$10,12*$A58,4*(PlotControl!$C$6-1),12,1))) -> 0.29008 | M58: =IF(PlotControl!$B$4 = "Annual Max",MAX(OFFSET(Edam!$E$10,12*$A58,4*(PlotControl!$C$6-1),12,1)),AVERAGE(OFFSET(Edam!$E$10,12*$A58,4*(PlotControl!$C$6-1),12,1))) -> 0.41423 | N58: =IF(PlotControl!$B$4 = "Annual Max",MAX(OFFSET(Sbeach!$C$10,12*$A58,4*(PlotControl!$C$6-1),12,1)),AVERAGE(OFFSET(Sbeach!$C$10,12*$A58,4*(PlotControl!$C$6-1),12,1))) -> 10.692 | O58: =IF(PlotControl!$B$4 = "Annual Max",MAX(OFFSET(Sbeach!$D$10,12*$A58,4*(PlotControl!$C$6-1),12,1)),AVERAGE(OFFSET(Sbeach!$D$10,12*$A58,4*(PlotControl!$C$6-1),12,1))) -> 57.258 | P58: =IF(PlotControl!$B$4 = "Annual Max",MAX(OFFSET(Sbeach!$E$10,12*$A58,4*(PlotControl!$C$6-1),12,1)),AVERAGE(OFFSET(Sbeach!$E$10,12*$A58,4*(PlotControl!$C$6-1),12,1))) -> 330.63 | Q58: =IF(PlotControl!$B$4 = "Annual Max",MAX(OFFSET(Sdam!$C$10,12*$A58,4*(PlotControl!$C$6-1),12,1)),AVERAGE(OFFSET(Sdam!$C$10,12*$A58,4*(PlotControl!$C$6-1),12,1))) -> 0.32866 | R58: =IF(PlotControl!$B$4 = "Annual Max",MAX(OFFSET(Sdam!$D$10,12*$A58,4*(PlotControl!$C$6-1),12,1)),AVERAGE(OFFSET(Sdam!$D$10,12*$A58,4*(PlotControl!$C$6-1),12,1))) -> 0.43003 | S58: =IF(PlotControl!$B$4 = "Annual Max",MAX(OFFSET(Sdam!$E$10,12*$A58,4*(PlotControl!$C$6-1),12,1)),AVERAGE(OFFSET(Sdam!$E$10,12*$A58,4*(PlotControl!$C$6-1),12,1))) -> 0.57387 | T58: =IF(PlotControl!$B$4 = "Annual Max",MAX(OFFSET(Cbeach!$C$10,12*$A58,4*(PlotControl!$C$6-1),12,1)),AVERAGE(OFFSET(Cbeach!$C$10,12*$A58,4*(PlotControl!$C$6-1),12,1))) -> 11.449 | U58: =IF(PlotControl!$B$4 = "Annual Max",MAX(OFFSET(Cbeach!$D$10,12*$A58,4*(PlotControl!$C$6-1),12,1)),AVERAGE(OFFSET(Cbeach!$D$10,12*$A58,4*(PlotControl!$C$6-1),12,1))) -> 68.747 | V58: =IF(PlotControl!$B$4 = "Annual Max",MAX(OFFSET(Cbeach!$E$10,12*$A58,4*(PlotControl!$C$6-1),12,1)),AVERAGE(OFFSET(Cbeach!$E$10,12*$A58,4*(PlotControl!$C$6-1),12,1))) -> 322.31
A59: 54 | B59: =IF(PlotControl!$B$4 = "Annual Max",MAX(OFFSET(Nbeach!$C$10,12*$A59,4*(PlotControl!$C$6-1),12,1)),AVERAGE(OFFSET(Nbeach!$C$10,12*$A59,4*(PlotControl!$C$6-1),12,1))) -> 9.6452 | C59: =IF(PlotControl!$B$4 = "Annual Max",MAX(OFFSET(Nbeach!$D$10,12*$A59,4*(PlotControl!$C$6-1),12,1)),AVERAGE(OFFSET(Nbeach!$D$10,12*$A59,4*(PlotControl!$C$6-1),12,1))) -> 50.492 | D59: =IF(PlotControl!$B$4 = "Annual Max",MAX(OFFSET(Nbeach!$E$10,12*$A59,4*(PlotControl!$C$6-1),12,1)),AVERAGE(OFFSET(Nbeach!$E$10,12*$A59,4*(PlotControl!$C$6-1),12,1))) -> 343.9 | E59: =IF(PlotControl!$B$4 = "Annual Max",MAX(OFFSET(Ndam!$C$10,12*$A59,4*(PlotControl!$C$6-1),12,1)),AVERAGE(OFFSET(Ndam!$C$10,12*$A59,4*(PlotControl!$C$6-1),12,1))) -> 0.74241 | F59: =IF(PlotControl!$B$4 = "Annual Max",MAX(OFFSET(Ndam!$D$10,12*$A59,4*(PlotControl!$C$6-1),12,1)),AVERAGE(OFFSET(Ndam!$D$10,12*$A59,4*(PlotControl!$C$6-1),12,1))) -> 0.8797 | G59: =IF(PlotControl!$B$4 = "Annual Max",MAX(OFFSET(Ndam!$E$10,12*$A59,4*(PlotControl!$C$6-1),12,1)),AVERAGE(OFFSET(Ndam!$E$10,12*$A59,4*(PlotControl!$C$6-1),12,1))) -> 1.0821 | H59: =IF(PlotControl!$B$4 = "Annual Max",MAX(OFFSET(Ebeach!$C$10,12*$A59,4*(PlotControl!$C$6-1),12,1)),AVERAGE(OFFSET(Ebeach!$C$10,12*$A59,4*(PlotControl!$C$6-1),12,1))) -> 12.001 | I59: =IF(PlotControl!$B$4 = "Annual Max",MAX(OFFSET(Ebeach!$D$10,12*$A59,4*(PlotControl!$C$6-1),12,1)),AVERAGE(OFFSET(Ebeach!$D$10,12*$A59,4*(PlotControl!$C$6-1),12,1))) -> 69.789 | J59: =IF(PlotControl!$B$4 = "Annual Max",MAX(OFFSET(Ebeach!$E$10,12*$A59,4*(PlotControl!$C$6-1),12,1)),AVERAGE(OFFSET(Ebeach!$E$10,12*$A59,4*(PlotControl!$C$6-1),12,1))) -> 325.01 | K59: =IF(PlotControl!$B$4 = "Annual Max",MAX(OFFSET(Edam!$C$10,12*$A59,4*(PlotControl!$C$6-1),12,1)),AVERAGE(OFFSET(Edam!$C$10,12*$A59,4*(PlotControl!$C$6-1),12,1))) -> 0.20453 | L59: =IF(PlotControl!$B$4 = "Annual Max",MAX(OFFSET(Edam!$D$10,12*$A59,4*(PlotControl!$C$6-1),12,1)),AVERAGE(OFFSET(Edam!$D$10,12*$A59,4*(PlotControl!$C$6-1),12,1))) -> 0.29692 | M59: =IF(PlotControl!$B$4 = "Annual Max",MAX(OFFSET(Edam!$E$10,12*$A59,4*(PlotControl!$C$6-1),12,1)),AVERAGE(OFFSET(Edam!$E$10,12*$A59,4*(PlotControl!$C$6-1),12,1))) -> 0.42572 | N59: =IF(PlotControl!$B$4 = "Annual Max",MAX(OFFSET(Sbeach!$C$10,12*$A59,4*(PlotControl!$C$6-1),12,1)),AVERAGE(OFFSET(Sbeach!$C$10,12*$A59,4*(PlotControl!$C$6-1),12,1))) -> 10.596 | O59: =IF(PlotControl!$B$4 = "Annual Max",MAX(OFFSET(Sbeach!$D$10,12*$A59,4*(PlotControl!$C$6-1),12,1)),AVERAGE(OFFSET(Sbeach!$D$10,12*$A59,4*(PlotControl!$C$6-1),12,1))) -> 58.639 | P59: =IF(PlotControl!$B$4 = "Annual Max",MAX(OFFSET(Sbeach!$E$10,12*$A59,4*(PlotControl!$C$6-1),12,1)),AVERAGE(OFFSET(Sbeach!$E$10,12*$A59,4*(PlotControl!$C$6-1),12,1))) -> 330.63 | Q59: =IF(PlotControl!$B$4 = "Annual Max",MAX(OFFSET(Sdam!$C$10,12*$A59,4*(PlotControl!$C$6-1),12,1)),AVERAGE(OFFSET(Sdam!$C$10,12*$A59,4*(PlotControl!$C$6-1),12,1))) -> 0.32436 | R59: =IF(PlotControl!$B$4 = "Annual Max",MAX(OFFSET(Sdam!$D$10,12*$A59,4*(PlotControl!$C$6-1),12,1)),AVERAGE(OFFSET(Sdam!$D$10,12*$A59,4*(PlotControl!$C$6-1),12,1))) -> 0.42337 | S59: =IF(PlotControl!$B$4 = "Annual Max",MAX(OFFSET(Sdam!$E$10,12*$A59,4*(PlotControl!$C$6-1),12,1)),AVERAGE(OFFSET(Sdam!$E$10,12*$A59,4*(PlotControl!$C$6-1),12,1))) -> 0.56518 | T59: =IF(PlotControl!$B$4 = "Annual Max",MAX(OFFSET(Cbeach!$C$10,12*$A59,4*(PlotControl!$C$6-1),12,1)),AVERAGE(OFFSET(Cbeach!$C$10,12*$A59,4*(PlotControl!$C$6-1),12,1))) -> 12.003 | U59: =IF(PlotControl!$B$4 = "Annual Max",MAX(OFFSET(Cbeach!$D$10,12*$A59,4*(PlotControl!$C$6-1),12,1)),AVERAGE(OFFSET(Cbeach!$D$10,12*$A59,4*(PlotControl!$C$6-1),12,1))) -> 69.8 | V59: =IF(PlotControl!$B$4 = "Annual Max",MAX(OFFSET(Cbeach!$E$10,12*$A59,4*(PlotControl!$C$6-1),12,1)),AVERAGE(OFFSET(Cbeach!$E$10,12*$A59,4*(PlotControl!$C$6-1),12,1))) -> 323.48
A60: 55 | B60: =IF(PlotControl!$B$4 = "Annual Max",MAX(OFFSET(Nbeach!$C$10,12*$A60,4*(PlotControl!$C$6-1),12,1)),AVERAGE(OFFSET(Nbeach!$C$10,12*$A60,4*(PlotControl!$C$6-1),12,1))) -> 9.8512 | C60: =IF(PlotControl!$B$4 = "Annual Max",MAX(OFFSET(Nbeach!$D$10,12*$A60,4*(PlotControl!$C$6-1),12,1)),AVERAGE(OFFSET(Nbeach!$D$10,12*$A60,4*(PlotControl!$C$6-1),12,1))) -> 50.543 | D60: =IF(PlotControl!$B$4 = "Annual Max",MAX(OFFSET(Nbeach!$E$10,12*$A60,4*(PlotControl!$C$6-1),12,1)),AVERAGE(OFFSET(Nbeach!$E$10,12*$A60,4*(PlotControl!$C$6-1),12,1))) -> 343.9 | E60: =IF(PlotControl!$B$4 = "Annual Max",MAX(OFFSET(Ndam!$C$10,12*$A60,4*(PlotControl!$C$6-1),12,1)),AVERAGE(OFFSET(Ndam!$C$10,12*$A60,4*(PlotControl!$C$6-1),12,1))) -> 0.72436 | F60: =IF(PlotControl!$B$4 = "Annual Max",MAX(OFFSET(Ndam!$D$10,12*$A60,4*(PlotControl!$C$6-1),12,1)),AVERAGE(OFFSET(Ndam!$D$10,12*$A60,4*(PlotControl!$C$6-1),12,1))) -> 0.85828 | G60: =IF(PlotControl!$B$4 = "Annual Max",MAX(OFFSET(Ndam!$E$10,12*$A60,4*(PlotControl!$C$6-1),12,1)),AVERAGE(OFFSET(Ndam!$E$10,12*$A60,4*(PlotControl!$C$6-1),12,1))) -> 1.0765 | H60: =IF(PlotControl!$B$4 = "Annual Max",MAX(OFFSET(Ebeach!$C$10,12*$A60,4*(PlotControl!$C$6-1),12,1)),AVERAGE(OFFSET(Ebeach!$C$10,12*$A60,4*(PlotControl!$C$6-1),12,1))) -> 12.394 | I60: =IF(PlotControl!$B$4 = "Annual Max",MAX(OFFSET(Ebeach!$D$10,12*$A60,4*(PlotControl!$C$6-1),12,1)),AVERAGE(OFFSET(Ebeach!$D$10,12*$A60,4*(PlotControl!$C$6-1),12,1))) -> 62.646 | J60: =IF(PlotControl!$B$4 = "Annual Max",MAX(OFFSET(Ebeach!$E$10,12*$A60,4*(PlotControl!$C$6-1),12,1)),AVERAGE(OFFSET(Ebeach!$E$10,12*$A60,4*(PlotControl!$C$6-1),12,1))) -> 325.01 | K60: =IF(PlotControl!$B$4 = "Annual Max",MAX(OFFSET(Edam!$C$10,12*$A60,4*(PlotControl!$C$6-1),12,1)),AVERAGE(OFFSET(Edam!$C$10,12*$A60,4*(PlotControl!$C$6-1),12,1))) -> 0.20502 | L60: =IF(PlotControl!$B$4 = "Annual Max",MAX(OFFSET(Edam!$D$10,12*$A60,4*(PlotControl!$C$6-1),12,1)),AVERAGE(OFFSET(Edam!$D$10,12*$A60,4*(PlotControl!$C$6-1),12,1))) -> 0.29989 | M60: =IF(PlotControl!$B$4 = "Annual Max",MAX(OFFSET(Edam!$E$10,12*$A60,4*(PlotControl!$C$6-1),12,1)),AVERAGE(OFFSET(Edam!$E$10,12*$A60,4*(PlotControl!$C$6-1),12,1))) -> 0.42943 | N60: =IF(PlotControl!$B$4 = "Annual Max",MAX(OFFSET(Sbeach!$C$10,12*$A60,4*(PlotControl!$C$6-1),12,1)),AVERAGE(OFFSET(Sbeach!$C$10,12*$A60,4*(PlotControl!$C$6-1),12,1))) -> 11.082 | O60: =IF(PlotControl!$B$4 = "Annual Max",MAX(OFFSET(Sbeach!$D$10,12*$A60,4*(PlotControl!$C$6-1),12,1)),AVERAGE(OFFSET(Sbeach!$D$10,12*$A60,4*(PlotControl!$C$6-1),12,1))) -> 57.418 | P60: =IF(PlotControl!$B$4 = "Annual Max",MAX(OFFSET(Sbeach!$E$10,12*$A60,4*(PlotControl!$C$6-1),12,1)),AVERAGE(OFFSET(Sbeach!$E$10,12*$A60,4*(PlotControl!$C$6-1),12,1))) -> 329.03 | Q60: =IF(PlotControl!$B$4 = "Annual Max",MAX(OFFSET(Sdam!$C$10,12*$A60,4*(PlotControl!$C$6-1),12,1)),AVERAGE(OFFSET(Sdam!$C$10,12*$A60,4*(PlotControl!$C$6-1),12,1))) -> 0.31937 | R60: =IF(PlotControl!$B$4 = "Annual Max",MAX(OFFSET(Sdam!$D$10,12*$A60,4*(PlotControl!$C$6-1),12,1)),AVERAGE(OFFSET(Sdam!$D$10,12*$A60,4*(PlotControl!$C$6-1),12,1))) -> 0.41759 | S60: =IF(PlotControl!$B$4 = "Annual Max",MAX(OFFSET(Sdam!$E$10,12*$A60,4*(PlotControl!$C$6-1),12,1)),AVERAGE(OFFSET(Sdam!$E$10,12*$A60,4*(PlotControl!$C$6-1),12,1))) -> 0.56361 | T60: =IF(PlotControl!$B$4 = "Annual Max",MAX(OFFSET(Cbeach!$C$10,12*$A60,4*(PlotControl!$C$6-1),12,1)),AVERAGE(OFFSET(Cbeach!$C$10,12*$A60,4*(PlotControl!$C$6-1),12,1))) -> 12.395 | U60: =IF(PlotControl!$B$4 = "Annual Max",MAX(OFFSET(Cbeach!$D$10,12*$A60,4*(PlotControl!$C$6-1),12,1)),AVERAGE(OFFSET(Cbeach!$D$10,12*$A60,4*(PlotControl!$C$6-1),12,1))) -> 62.649 | V60: =IF(PlotControl!$B$4 = "Annual Max",MAX(OFFSET(Cbeach!$E$10,12*$A60,4*(PlotControl!$C$6-1),12,1)),AVERAGE(OFFSET(Cbeach!$E$10,12*$A60,4*(PlotControl!$C$6-1),12,1))) -> 325.01
A61: 56 | B61: =IF(PlotControl!$B$4 = "Annual Max",MAX(OFFSET(Nbeach!$C$10,12*$A61,4*(PlotControl!$C$6-1),12,1)),AVERAGE(OFFSET(Nbeach!$C$10,12*$A61,4*(PlotControl!$C$6-1),12,1))) -> 10.343 | C61: =IF(PlotControl!$B$4 = "Annual Max",MAX(OFFSET(Nbeach!$D$10,12*$A61,4*(PlotControl!$C$6-1),12,1)),AVERAGE(OFFSET(Nbeach!$D$10,12*$A61,4*(PlotControl!$C$6-1),12,1))) -> 54.744 | D61: =IF(PlotControl!$B$4 = "Annual Max",MAX(OFFSET(Nbeach!$E$10,12*$A61,4*(PlotControl!$C$6-1),12,1)),AVERAGE(OFFSET(Nbeach!$E$10,12*$A61,4*(PlotControl!$C$6-1),12,1))) -> 343.9 | E61: =IF(PlotControl!$B$4 = "Annual Max",MAX(OFFSET(Ndam!$C$10,12*$A61,4*(PlotControl!$C$6-1),12,1)),AVERAGE(OFFSET(Ndam!$C$10,12*$A61,4*(PlotControl!$C$6-1),12,1))) -> 0.71509 | F61: =IF(PlotControl!$B$4 = "Annual Max",MAX(OFFSET(Ndam!$D$10,12*$A61,4*(PlotControl!$C$6-1),12,1)),AVERAGE(OFFSET(Ndam!$D$10,12*$A61,4*(PlotControl!$C$6-1),12,1))) -> 0.84236 | G61: =IF(PlotControl!$B$4 = "Annual Max",MAX(OFFSET(Ndam!$E$10,12*$A61,4*(PlotControl!$C$6-1),12,1)),AVERAGE(OFFSET(Ndam!$E$10,12*$A61,4*(PlotControl!$C$6-1),12,1))) -> 1.0506 | H61: =IF(PlotControl!$B$4 = "Annual Max",MAX(OFFSET(Ebeach!$C$10,12*$A61,4*(PlotControl!$C$6-1),12,1)),AVERAGE(OFFSET(Ebeach!$C$10,12*$A61,4*(PlotControl!$C$6-1),12,1))) -> 12.974 | I61: =IF(PlotControl!$B$4 = "Annual Max",MAX(OFFSET(Ebeach!$D$10,12*$A61,4*(PlotControl!$C$6-1),12,1)),AVERAGE(OFFSET(Ebeach!$D$10,12*$A61,4*(PlotControl!$C$6-1),12,1))) -> 65.686 | J61: =IF(PlotControl!$B$4 = "Annual Max",MAX(OFFSET(Ebeach!$E$10,12*$A61,4*(PlotControl!$C$6-1),12,1)),AVERAGE(OFFSET(Ebeach!$E$10,12*$A61,4*(PlotControl!$C$6-1),12,1))) -> 323.48 | K61: =IF(PlotControl!$B$4 = "Annual Max",MAX(OFFSET(Edam!$C$10,12*$A61,4*(PlotControl!$C$6-1),12,1)),AVERAGE(OFFSET(Edam!$C$10,12*$A61,4*(PlotControl!$C$6-1),12,1))) -> 0.20607 | L61: =IF(PlotControl!$B$4 = "Annual Max",MAX(OFFSET(Edam!$D$10,12*$A61,4*(PlotControl!$C$6-1),12,1)),AVERAGE(OFFSET(Edam!$D$10,12*$A61,4*(PlotControl!$C$6-1),12,1))) -> 0.30303 | M61: =IF(PlotControl!$B$4 = "Annual Max",MAX(OFFSET(Edam!$E$10,12*$A61,4*(PlotControl!$C$6-1),12,1)),AVERAGE(OFFSET(Edam!$E$10,12*$A61,4*(PlotControl!$C$6-1),12,1))) -> 0.43401 | N61: =IF(PlotControl!$B$4 = "Annual Max",MAX(OFFSET(Sbeach!$C$10,12*$A61,4*(PlotControl!$C$6-1),12,1)),AVERAGE(OFFSET(Sbeach!$C$10,12*$A61,4*(PlotControl!$C$6-1),12,1))) -> 11.159 | O61: =IF(PlotControl!$B$4 = "Annual Max",MAX(OFFSET(Sbeach!$D$10,12*$A61,4*(PlotControl!$C$6-1),12,1)),AVERAGE(OFFSET(Sbeach!$D$10,12*$A61,4*(PlotControl!$C$6-1),12,1))) -> 60.405 | P61: =IF(PlotControl!$B$4 = "Annual Max",MAX(OFFSET(Sbeach!$E$10,12*$A61,4*(PlotControl!$C$6-1),12,1)),AVERAGE(OFFSET(Sbeach!$E$10,12*$A61,4*(PlotControl!$C$6-1),12,1))) -> 329.03 | Q61: =IF(PlotControl!$B$4 = "Annual Max",MAX(OFFSET(Sdam!$C$10,12*$A61,4*(PlotControl!$C$6-1),12,1)),AVERAGE(OFFSET(Sdam!$C$10,12*$A61,4*(PlotControl!$C$6-1),12,1))) -> 0.31177 | R61: =IF(PlotControl!$B$4 = "Annual Max",MAX(OFFSET(Sdam!$D$10,12*$A61,4*(PlotControl!$C$6-1),12,1)),AVERAGE(OFFSET(Sdam!$D$10,12*$A61,4*(PlotControl!$C$6-1),12,1))) -> 0.41113 | S61: =IF(PlotControl!$B$4 = "Annual Max",MAX(OFFSET(Sdam!$E$10,12*$A61,4*(PlotControl!$C$6-1),12,1)),AVERAGE(OFFSET(Sdam!$E$10,12*$A61,4*(PlotControl!$C$6-1),12,1))) -> 0.56379 | T61: =IF(PlotControl!$B$4 = "Annual Max",MAX(OFFSET(Cbeach!$C$10,12*$A61,4*(PlotControl!$C$6-1),12,1)),AVERAGE(OFFSET(Cbeach!$C$10,12*$A61,4*(PlotControl!$C$6-1),12,1))) -> 12.974 | U61: =IF(PlotControl!$B$4 = "Annual Max",MAX(OFFSET(Cbeach!$D$10,12*$A61,4*(PlotControl!$C$6-1),12,1)),AVERAGE(OFFSET(Cbeach!$D$10,12*$A61,4*(PlotControl!$C$6-1),12,1))) -> 65.688 | V61: =IF(PlotControl!$B$4 = "Annual Max",MAX(OFFSET(Cbeach!$E$10,12*$A61,4*(PlotControl!$C$6-1),12,1)),AVERAGE(OFFSET(Cbeach!$E$10,12*$A61,4*(PlotControl!$C$6-1),12,1))) -> 323.48
A62: 57 | B62: =IF(PlotControl!$B$4 = "Annual Max",MAX(OFFSET(Nbeach!$C$10,12*$A62,4*(PlotControl!$C$6-1),12,1)),AVERAGE(OFFSET(Nbeach!$C$10,12*$A62,4*(PlotControl!$C$6-1),12,1))) -> 10.347 | C62: =IF(PlotControl!$B$4 = "Annual Max",MAX(OFFSET(Nbeach!$D$10,12*$A62,4*(PlotControl!$C$6-1),12,1)),AVERAGE(OFFSET(Nbeach!$D$10,12*$A62,4*(PlotControl!$C$6-1),12,1))) -> 55.258 | D62: =IF(PlotControl!$B$4 = "Annual Max",MAX(OFFSET(Nbeach!$E$10,12*$A62,4*(PlotControl!$C$6-1),12,1)),AVERAGE(OFFSET(Nbeach!$E$10,12*$A62,4*(PlotControl!$C$6-1),12,1))) -> 343.9 | E62: =IF(PlotControl!$B$4 = "Annual Max",MAX(OFFSET(Ndam!$C$10,12*$A62,4*(PlotControl!$C$6-1),12,1)),AVERAGE(OFFSET(Ndam!$C$10,12*$A62,4*(PlotControl!$C$6-1),12,1))) -> 0.68601 | F62: =IF(PlotControl!$B$4 = "Annual Max",MAX(OFFSET(Ndam!$D$10,12*$A62,4*(PlotControl!$C$6-1),12,1)),AVERAGE(OFFSET(Ndam!$D$10,12*$A62,4*(PlotControl!$C$6-1),12,1))) -> 0.82112 | G62: =IF(PlotControl!$B$4 = "Annual Max",MAX(OFFSET(Ndam!$E$10,12*$A62,4*(PlotControl!$C$6-1),12,1)),AVERAGE(OFFSET(Ndam!$E$10,12*$A62,4*(PlotControl!$C$6-1),12,1))) -> 1.0268 | H62: =IF(PlotControl!$B$4 = "Annual Max",MAX(OFFSET(Ebeach!$C$10,12*$A62,4*(PlotControl!$C$6-1),12,1)),AVERAGE(OFFSET(Ebeach!$C$10,12*$A62,4*(PlotControl!$C$6-1),12,1))) -> 12.6 | I62: =IF(PlotControl!$B$4 = "Annual Max",MAX(OFFSET(Ebeach!$D$10,12*$A62,4*(PlotControl!$C$6-1),12,1)),AVERAGE(OFFSET(Ebeach!$D$10,12*$A62,4*(PlotControl!$C$6-1),12,1))) -> 68.919 | J62: =IF(PlotControl!$B$4 = "Annual Max",MAX(OFFSET(Ebeach!$E$10,12*$A62,4*(PlotControl!$C$6-1),12,1)),AVERAGE(OFFSET(Ebeach!$E$10,12*$A62,4*(PlotControl!$C$6-1),12,1))) -> 323.21 | K62: =IF(PlotControl!$B$4 = "Annual Max",MAX(OFFSET(Edam!$C$10,12*$A62,4*(PlotControl!$C$6-1),12,1)),AVERAGE(OFFSET(Edam!$C$10,12*$A62,4*(PlotControl!$C$6-1),12,1))) -> 0.20968 | L62: =IF(PlotControl!$B$4 = "Annual Max",MAX(OFFSET(Edam!$D$10,12*$A62,4*(PlotControl!$C$6-1),12,1)),AVERAGE(OFFSET(Edam!$D$10,12*$A62,4*(PlotControl!$C$6-1),12,1))) -> 0.30387 | M62: =IF(PlotControl!$B$4 = "Annual Max",MAX(OFFSET(Edam!$E$10,12*$A62,4*(PlotControl!$C$6-1),12,1)),AVERAGE(OFFSET(Edam!$E$10,12*$A62,4*(PlotControl!$C$6-1),12,1))) -> 0.43178 | N62: =IF(PlotControl!$B$4 = "Annual Max",MAX(OFFSET(Sbeach!$C$10,12*$A62,4*(PlotControl!$C$6-1),12,1)),AVERAGE(OFFSET(Sbeach!$C$10,12*$A62,4*(PlotControl!$C$6-1),12,1))) -> 11.721 | O62: =IF(PlotControl!$B$4 = "Annual Max",MAX(OFFSET(Sbeach!$D$10,12*$A62,4*(PlotControl!$C$6-1),12,1)),AVERAGE(OFFSET(Sbeach!$D$10,12*$A62,4*(PlotControl!$C$6-1),12,1))) -> 61.78 | P62: =IF(PlotControl!$B$4 = "Annual Max",MAX(OFFSET(Sbeach!$E$10,12*$A62,4*(PlotControl!$C$6-1),12,1)),AVERAGE(OFFSET(Sbeach!$E$10,12*$A62,4*(PlotControl!$C$6-1),12,1))) -> 329.03 | Q62: =IF(PlotControl!$B$4 = "Annual Max",MAX(OFFSET(Sdam!$C$10,12*$A62,4*(PlotControl!$C$6-1),12,1)),AVERAGE(OFFSET(Sdam!$C$10,12*$A62,4*(PlotControl!$C$6-1),12,1))) -> 0.30446 | R62: =IF(PlotControl!$B$4 = "Annual Max",MAX(OFFSET(Sdam!$D$10,12*$A62,4*(PlotControl!$C$6-1),12,1)),AVERAGE(OFFSET(Sdam!$D$10,12*$A62,4*(PlotControl!$C$6-1),12,1))) -> 0.40217 | S62: =IF(PlotControl!$B$4 = "Annual Max",MAX(OFFSET(Sdam!$E$10,12*$A62,4*(PlotControl!$C$6-1),12,1)),AVERAGE(OFFSET(Sdam!$E$10,12*$A62,4*(PlotControl!$C$6-1),12,1))) -> 0.54521 | T62: =IF(PlotControl!$B$4 = "Annual Max",MAX(OFFSET(Cbeach!$C$10,12*$A62,4*(PlotControl!$C$6-1),12,1)),AVERAGE(OFFSET(Cbeach!$C$10,12*$A62,4*(PlotControl!$C$6-1),12,1))) -> 12.6 | U62: =IF(PlotControl!$B$4 = "Annual Max",MAX(OFFSET(Cbeach!$D$10,12*$A62,4*(PlotControl!$C$6-1),12,1)),AVERAGE(OFFSET(Cbeach!$D$10,12*$A62,4*(PlotControl!$C$6-1),12,1))) -> 68.92 | V62: =IF(PlotControl!$B$4 = "Annual Max",MAX(OFFSET(Cbeach!$E$10,12*$A62,4*(PlotControl!$C$6-1),12,1)),AVERAGE(OFFSET(Cbeach!$E$10,12*$A62,4*(PlotControl!$C$6-1),12,1))) -> 322.82
A63: 58 | B63: =IF(PlotControl!$B$4 = "Annual Max",MAX(OFFSET(Nbeach!$C$10,12*$A63,4*(PlotControl!$C$6-1),12,1)),AVERAGE(OFFSET(Nbeach!$C$10,12*$A63,4*(PlotControl!$C$6-1),12,1))) -> 10.563 | C63: =IF(PlotControl!$B$4 = "Annual Max",MAX(OFFSET(Nbeach!$D$10,12*$A63,4*(PlotControl!$C$6-1),12,1)),AVERAGE(OFFSET(Nbeach!$D$10,12*$A63,4*(PlotControl!$C$6-1),12,1))) -> 55.435 | D63: =IF(PlotControl!$B$4 = "Annual Max",MAX(OFFSET(Nbeach!$E$10,12*$A63,4*(PlotControl!$C$6-1),12,1)),AVERAGE(OFFSET(Nbeach!$E$10,12*$A63,4*(PlotControl!$C$6-1),12,1))) -> 343.9 | E63: =IF(PlotControl!$B$4 = "Annual Max",MAX(OFFSET(Ndam!$C$10,12*$A63,4*(PlotControl!$C$6-1),12,1)),AVERAGE(OFFSET(Ndam!$C$10,12*$A63,4*(PlotControl!$C$6-1),12,1))) -> 0.66904 | F63: =IF(PlotControl!$B$4 = "Annual Max",MAX(OFFSET(Ndam!$D$10,12*$A63,4*(PlotControl!$C$6-1),12,1)),AVERAGE(OFFSET(Ndam!$D$10,12*$A63,4*(PlotControl!$C$6-1),12,1))) -> 0.79672 | G63: =IF(PlotControl!$B$4 = "Annual Max",MAX(OFFSET(Ndam!$E$10,12*$A63,4*(PlotControl!$C$6-1),12,1)),AVERAGE(OFFSET(Ndam!$E$10,12*$A63,4*(PlotControl!$C$6-1),12,1))) -> 0.99181 | H63: =IF(PlotControl!$B$4 = "Annual Max",MAX(OFFSET(Ebeach!$C$10,12*$A63,4*(PlotControl!$C$6-1),12,1)),AVERAGE(OFFSET(Ebeach!$C$10,12*$A63,4*(PlotControl!$C$6-1),12,1))) -> 12.266 | I63: =IF(PlotControl!$B$4 = "Annual Max",MAX(OFFSET(Ebeach!$D$10,12*$A63,4*(PlotControl!$C$6-1),12,1)),AVERAGE(OFFSET(Ebeach!$D$10,12*$A63,4*(PlotControl!$C$6-1),12,1))) -> 69.041 | J63: =IF(PlotControl!$B$4 = "Annual Max",MAX(OFFSET(Ebeach!$E$10,12*$A63,4*(PlotControl!$C$6-1),12,1)),AVERAGE(OFFSET(Ebeach!$E$10,12*$A63,4*(PlotControl!$C$6-1),12,1))) -> 322.82 | K63: =IF(PlotControl!$B$4 = "Annual Max",MAX(OFFSET(Edam!$C$10,12*$A63,4*(PlotControl!$C$6-1),12,1)),AVERAGE(OFFSET(Edam!$C$10,12*$A63,4*(PlotControl!$C$6-1),12,1))) -> 0.20997 | L63: =IF(PlotControl!$B$4 = "Annual Max",MAX(OFFSET(Edam!$D$10,12*$A63,4*(PlotControl!$C$6-1),12,1)),AVERAGE(OFFSET(Edam!$D$10,12*$A63,4*(PlotControl!$C$6-1),12,1))) -> 0.29695 | M63: =IF(PlotControl!$B$4 = "Annual Max",MAX(OFFSET(Edam!$E$10,12*$A63,4*(PlotControl!$C$6-1),12,1)),AVERAGE(OFFSET(Edam!$E$10,12*$A63,4*(PlotControl!$C$6-1),12,1))) -> 0.44142 | N63: =IF(PlotControl!$B$4 = "Annual Max",MAX(OFFSET(Sbeach!$C$10,12*$A63,4*(PlotControl!$C$6-1),12,1)),AVERAGE(OFFSET(Sbeach!$C$10,12*$A63,4*(PlotControl!$C$6-1),12,1))) -> 11.671 | O63: =IF(PlotControl!$B$4 = "Annual Max",MAX(OFFSET(Sbeach!$D$10,12*$A63,4*(PlotControl!$C$6-1),12,1)),AVERAGE(OFFSET(Sbeach!$D$10,12*$A63,4*(PlotControl!$C$6-1),12,1))) -> 60.848 | P63: =IF(PlotControl!$B$4 = "Annual Max",MAX(OFFSET(Sbeach!$E$10,12*$A63,4*(PlotControl!$C$6-1),12,1)),AVERAGE(OFFSET(Sbeach!$E$10,12*$A63,4*(PlotControl!$C$6-1),12,1))) -> 329.03 | Q63: =IF(PlotControl!$B$4 = "Annual Max",MAX(OFFSET(Sdam!$C$10,12*$A63,4*(PlotControl!$C$6-1),12,1)),AVERAGE(OFFSET(Sdam!$C$10,12*$A63,4*(PlotControl!$C$6-1),12,1))) -> 0.30191 | R63: =IF(PlotControl!$B$4 = "Annual Max",MAX(OFFSET(Sdam!$D$10,12*$A63,4*(PlotControl!$C$6-1),12,1)),AVERAGE(OFFSET(Sdam!$D$10,12*$A63,4*(PlotControl!$C$6-1),12,1))) -> 0.39124 | S63: =IF(PlotControl!$B$4 = "Annual Max",MAX(OFFSET(Sdam!$E$10,12*$A63,4*(PlotControl!$C$6-1),12,1)),AVERAGE(OFFSET(Sdam!$E$10,12*$A63,4*(PlotControl!$C$6-1),12,1))) -> 0.52901 | T63: =IF(PlotControl!$B$4 = "Annual Max",MAX(OFFSET(Cbeach!$C$10,12*$A63,4*(PlotControl!$C$6-1),12,1)),AVERAGE(OFFSET(Cbeach!$C$10,12*$A63,4*(PlotControl!$C$6-1),12,1))) -> 12.266 | U63: =IF(PlotControl!$B$4 = "Annual Max",MAX(OFFSET(Cbeach!$D$10,12*$A63,4*(PlotControl!$C$6-1),12,1)),AVERAGE(OFFSET(Cbeach!$D$10,12*$A63,4*(PlotControl!$C$6-1),12,1))) -> 69.041 | V63: =IF(PlotControl!$B$4 = "Annual Max",MAX(OFFSET(Cbeach!$E$10,12*$A63,4*(PlotControl!$C$6-1),12,1)),AVERAGE(OFFSET(Cbeach!$E$10,12*$A63,4*(PlotControl!$C$6-1),12,1))) -> 322.31
A64: 59 | B64: =IF(PlotControl!$B$4 = "Annual Max",MAX(OFFSET(Nbeach!$C$10,12*$A64,4*(PlotControl!$C$6-1),12,1)),AVERAGE(OFFSET(Nbeach!$C$10,12*$A64,4*(PlotControl!$C$6-1),12,1))) -> 10.239 | C64: =IF(PlotControl!$B$4 = "Annual Max",MAX(OFFSET(Nbeach!$D$10,12*$A64,4*(PlotControl!$C$6-1),12,1)),AVERAGE(OFFSET(Nbeach!$D$10,12*$A64,4*(PlotControl!$C$6-1),12,1))) -> 55.453 | D64: =IF(PlotControl!$B$4 = "Annual Max",MAX(OFFSET(Nbeach!$E$10,12*$A64,4*(PlotControl!$C$6-1),12,1)),AVERAGE(OFFSET(Nbeach!$E$10,12*$A64,4*(PlotControl!$C$6-1),12,1))) -> 343.9 | E64: =IF(PlotControl!$B$4 = "Annual Max",MAX(OFFSET(Ndam!$C$10,12*$A64,4*(PlotControl!$C$6-1),12,1)),AVERAGE(OFFSET(Ndam!$C$10,12*$A64,4*(PlotControl!$C$6-1),12,1))) -> 0.65789 | F64: =IF(PlotControl!$B$4 = "Annual Max",MAX(OFFSET(Ndam!$D$10,12*$A64,4*(PlotControl!$C$6-1),12,1)),AVERAGE(OFFSET(Ndam!$D$10,12*$A64,4*(PlotControl!$C$6-1),12,1))) -> 0.77729 | G64: =IF(PlotControl!$B$4 = "Annual Max",MAX(OFFSET(Ndam!$E$10,12*$A64,4*(PlotControl!$C$6-1),12,1)),AVERAGE(OFFSET(Ndam!$E$10,12*$A64,4*(PlotControl!$C$6-1),12,1))) -> 0.9707 | H64: =IF(PlotControl!$B$4 = "Annual Max",MAX(OFFSET(Ebeach!$C$10,12*$A64,4*(PlotControl!$C$6-1),12,1)),AVERAGE(OFFSET(Ebeach!$C$10,12*$A64,4*(PlotControl!$C$6-1),12,1))) -> 11.358 | I64: =IF(PlotControl!$B$4 = "Annual Max",MAX(OFFSET(Ebeach!$D$10,12*$A64,4*(PlotControl!$C$6-1),12,1)),AVERAGE(OFFSET(Ebeach!$D$10,12*$A64,4*(PlotControl!$C$6-1),12,1))) -> 65.187 | J64: =IF(PlotControl!$B$4 = "Annual Max",MAX(OFFSET(Ebeach!$E$10,12*$A64,4*(PlotControl!$C$6-1),12,1)),AVERAGE(OFFSET(Ebeach!$E$10,12*$A64,4*(PlotControl!$C$6-1),12,1))) -> 323.69 | K64: =IF(PlotControl!$B$4 = "Annual Max",MAX(OFFSET(Edam!$C$10,12*$A64,4*(PlotControl!$C$6-1),12,1)),AVERAGE(OFFSET(Edam!$C$10,12*$A64,4*(PlotControl!$C$6-1),12,1))) -> 0.21641 | L64: =IF(PlotControl!$B$4 = "Annual Max",MAX(OFFSET(Edam!$D$10,12*$A64,4*(PlotControl!$C$6-1),12,1)),AVERAGE(OFFSET(Edam!$D$10,12*$A64,4*(PlotControl!$C$6-1),12,1))) -> 0.30167 | M64: =IF(PlotControl!$B$4 = "Annual Max",MAX(OFFSET(Edam!$E$10,12*$A64,4*(PlotControl!$C$6-1),12,1)),AVERAGE(OFFSET(Edam!$E$10,12*$A64,4*(PlotControl!$C$6-1),12,1))) -> 0.43829 | N64: =IF(PlotControl!$B$4 = "Annual Max",MAX(OFFSET(Sbeach!$C$10,12*$A64,4*(PlotControl!$C$6-1),12,1)),AVERAGE(OFFSET(Sbeach!$C$10,12*$A64,4*(PlotControl!$C$6-1),12,1))) -> 10.913 | O64: =IF(PlotControl!$B$4 = "Annual Max",MAX(OFFSET(Sbeach!$D$10,12*$A64,4*(PlotControl!$C$6-1),12,1)),AVERAGE(OFFSET(Sbeach!$D$10,12*$A64,4*(PlotControl!$C$6-1),12,1))) -> 61.432 | P64: =IF(PlotControl!$B$4 = "Annual Max",MAX(OFFSET(Sbeach!$E$10,12*$A64,4*(PlotControl!$C$6-1),12,1)),AVERAGE(OFFSET(Sbeach!$E$10,12*$A64,4*(PlotControl!$C$6-1),12,1))) -> 329.03 | Q64: =IF(PlotControl!$B$4 = "Annual Max",MAX(OFFSET(Sdam!$C$10,12*$A64,4*(PlotControl!$C$6-1),12,1)),AVERAGE(OFFSET(Sdam!$C$10,12*$A64,4*(PlotControl!$C$6-1),12,1))) -> 0.2997 | R64: =IF(PlotControl!$B$4 = "Annual Max",MAX(OFFSET(Sdam!$D$10,12*$A64,4*(PlotControl!$C$6-1),12,1)),AVERAGE(OFFSET(Sdam!$D$10,12*$A64,4*(PlotControl!$C$6-1),12,1))) -> 0.38851 | S64: =IF(PlotControl!$B$4 = "Annual Max",MAX(OFFSET(Sdam!$E$10,12*$A64,4*(PlotControl!$C$6-1),12,1)),AVERAGE(OFFSET(Sdam!$E$10,12*$A64,4*(PlotControl!$C$6-1),12,1))) -> 0.52873 | T64: =IF(PlotControl!$B$4 = "Annual Max",MAX(OFFSET(Cbeach!$C$10,12*$A64,4*(PlotControl!$C$6-1),12,1)),AVERAGE(OFFSET(Cbeach!$C$10,12*$A64,4*(PlotControl!$C$6-1),12,1))) -> 11.358 | U64: =IF(PlotControl!$B$4 = "Annual Max",MAX(OFFSET(Cbeach!$D$10,12*$A64,4*(PlotControl!$C$6-1),12,1)),AVERAGE(OFFSET(Cbeach!$D$10,12*$A64,4*(PlotControl!$C$6-1),12,1))) -> 65.187 | V64: =IF(PlotControl!$B$4 = "Annual Max",MAX(OFFSET(Cbeach!$E$10,12*$A64,4*(PlotControl!$C$6-1),12,1)),AVERAGE(OFFSET(Cbeach!$E$10,12*$A64,4*(PlotControl!$C$6-1),12,1))) -> 323.09
A65: 60 | B65: =IF(PlotControl!$B$4 = "Annual Max",MAX(OFFSET(Nbeach!$C$10,12*$A65,4*(PlotControl!$C$6-1),12,1)),AVERAGE(OFFSET(Nbeach!$C$10,12*$A65,4*(PlotControl!$C$6-1),12,1))) -> 10.182 | C65: =IF(PlotControl!$B$4 = "Annual Max",MAX(OFFSET(Nbeach!$D$10,12*$A65,4*(PlotControl!$C$6-1),12,1)),AVERAGE(OFFSET(Nbeach!$D$10,12*$A65,4*(PlotControl!$C$6-1),12,1))) -> 54.7 | D65: =IF(PlotControl!$B$4 = "Annual Max",MAX(OFFSET(Nbeach!$E$10,12*$A65,4*(PlotControl!$C$6-1),12,1)),AVERAGE(OFFSET(Nbeach!$E$10,12*$A65,4*(PlotControl!$C$6-1),12,1))) -> 344.5 | E65: =IF(PlotControl!$B$4 = "Annual Max",MAX(OFFSET(Ndam!$C$10,12*$A65,4*(PlotControl!$C$6-1),12,1)),AVERAGE(OFFSET(Ndam!$C$10,12*$A65,4*(PlotControl!$C$6-1),12,1))) -> 0.64966 | F65: =IF(PlotControl!$B$4 = "Annual Max",MAX(OFFSET(Ndam!$D$10,12*$A65,4*(PlotControl!$C$6-1),12,1)),AVERAGE(OFFSET(Ndam!$D$10,12*$A65,4*(PlotControl!$C$6-1),12,1))) -> 0.7636 | G65: =IF(PlotControl!$B$4 = "Annual Max",MAX(OFFSET(Ndam!$E$10,12*$A65,4*(PlotControl!$C$6-1),12,1)),AVERAGE(OFFSET(Ndam!$E$10,12*$A65,4*(PlotControl!$C$6-1),12,1))) -> 0.95807 | H65: =IF(PlotControl!$B$4 = "Annual Max",MAX(OFFSET(Ebeach!$C$10,12*$A65,4*(PlotControl!$C$6-1),12,1)),AVERAGE(OFFSET(Ebeach!$C$10,12*$A65,4*(PlotControl!$C$6-1),12,1))) -> 11.578 | I65: =IF(PlotControl!$B$4 = "Annual Max",MAX(OFFSET(Ebeach!$D$10,12*$A65,4*(PlotControl!$C$6-1),12,1)),AVERAGE(OFFSET(Ebeach!$D$10,12*$A65,4*(PlotControl!$C$6-1),12,1))) -> 63.043 | J65: =IF(PlotControl!$B$4 = "Annual Max",MAX(OFFSET(Ebeach!$E$10,12*$A65,4*(PlotControl!$C$6-1),12,1)),AVERAGE(OFFSET(Ebeach!$E$10,12*$A65,4*(PlotControl!$C$6-1),12,1))) -> 322.31 | K65: =IF(PlotControl!$B$4 = "Annual Max",MAX(OFFSET(Edam!$C$10,12*$A65,4*(PlotControl!$C$6-1),12,1)),AVERAGE(OFFSET(Edam!$C$10,12*$A65,4*(PlotControl!$C$6-1),12,1))) -> 0.21811 | L65: =IF(PlotControl!$B$4 = "Annual Max",MAX(OFFSET(Edam!$D$10,12*$A65,4*(PlotControl!$C$6-1),12,1)),AVERAGE(OFFSET(Edam!$D$10,12*$A65,4*(PlotControl!$C$6-1),12,1))) -> 0.30647 | M65: =IF(PlotControl!$B$4 = "Annual Max",MAX(OFFSET(Edam!$E$10,12*$A65,4*(PlotControl!$C$6-1),12,1)),AVERAGE(OFFSET(Edam!$E$10,12*$A65,4*(PlotControl!$C$6-1),12,1))) -> 0.43403 | N65: =IF(PlotControl!$B$4 = "Annual Max",MAX(OFFSET(Sbeach!$C$10,12*$A65,4*(PlotControl!$C$6-1),12,1)),AVERAGE(OFFSET(Sbeach!$C$10,12*$A65,4*(PlotControl!$C$6-1),12,1))) -> 10.874 | O65: =IF(PlotControl!$B$4 = "Annual Max",MAX(OFFSET(Sbeach!$D$10,12*$A65,4*(PlotControl!$C$6-1),12,1)),AVERAGE(OFFSET(Sbeach!$D$10,12*$A65,4*(PlotControl!$C$6-1),12,1))) -> 59.428 | P65: =IF(PlotControl!$B$4 = "Annual Max",MAX(OFFSET(Sbeach!$E$10,12*$A65,4*(PlotControl!$C$6-1),12,1)),AVERAGE(OFFSET(Sbeach!$E$10,12*$A65,4*(PlotControl!$C$6-1),12,1))) -> 329.03 | Q65: =IF(PlotControl!$B$4 = "Annual Max",MAX(OFFSET(Sdam!$C$10,12*$A65,4*(PlotControl!$C$6-1),12,1)),AVERAGE(OFFSET(Sdam!$C$10,12*$A65,4*(PlotControl!$C$6-1),12,1))) -> 0.29666 | R65: =IF(PlotControl!$B$4 = "Annual Max",MAX(OFFSET(Sdam!$D$10,12*$A65,4*(PlotControl!$C$6-1),12,1)),AVERAGE(OFFSET(Sdam!$D$10,12*$A65,4*(PlotControl!$C$6-1),12,1))) -> 0.38815 | S65: =IF(PlotControl!$B$4 = "Annual Max",MAX(OFFSET(Sdam!$E$10,12*$A65,4*(PlotControl!$C$6-1),12,1)),AVERAGE(OFFSET(Sdam!$E$10,12*$A65,4*(PlotControl!$C$6-1),12,1))) -> 0.52351 | T65: =IF(PlotControl!$B$4 = "Annual Max",MAX(OFFSET(Cbeach!$C$10,12*$A65,4*(PlotControl!$C$6-1),12,1)),AVERAGE(OFFSET(Cbeach!$C$10,12*$A65,4*(PlotControl!$C$6-1),12,1))) -> 11.578 | U65: =IF(PlotControl!$B$4 = "Annual Max",MAX(OFFSET(Cbeach!$D$10,12*$A65,4*(PlotControl!$C$6-1),12,1)),AVERAGE(OFFSET(Cbeach!$D$10,12*$A65,4*(PlotControl!$C$6-1),12,1))) -> 63.043 | V65: =IF(PlotControl!$B$4 = "Annual Max",MAX(OFFSET(Cbeach!$E$10,12*$A65,4*(PlotControl!$C$6-1),12,1)),AVERAGE(OFFSET(Cbeach!$E$10,12*$A65,4*(PlotControl!$C$6-1),12,1))) -> 322.31
A66: 61 | B66: =IF(PlotControl!$B$4 = "Annual Max",MAX(OFFSET(Nbeach!$C$10,12*$A66,4*(PlotControl!$C$6-1),12,1)),AVERAGE(OFFSET(Nbeach!$C$10,12*$A66,4*(PlotControl!$C$6-1),12,1))) -> 9.9578 | C66: =IF(PlotControl!$B$4 = "Annual Max",MAX(OFFSET(Nbeach!$D$10,12*$A66,4*(PlotControl!$C$6-1),12,1)),AVERAGE(OFFSET(Nbeach!$D$10,12*$A66,4*(PlotControl!$C$6-1),12,1))) -> 54.162 | D66: =IF(PlotControl!$B$4 = "Annual Max",MAX(OFFSET(Nbeach!$E$10,12*$A66,4*(PlotControl!$C$6-1),12,1)),AVERAGE(OFFSET(Nbeach!$E$10,12*$A66,4*(PlotControl!$C$6-1),12,1))) -> 344.5 | E66: =IF(PlotControl!$B$4 = "Annual Max",MAX(OFFSET(Ndam!$C$10,12*$A66,4*(PlotControl!$C$6-1),12,1)),AVERAGE(OFFSET(Ndam!$C$10,12*$A66,4*(PlotControl!$C$6-1),12,1))) -> 0.62773 | F66: =IF(PlotControl!$B$4 = "Annual Max",MAX(OFFSET(Ndam!$D$10,12*$A66,4*(PlotControl!$C$6-1),12,1)),AVERAGE(OFFSET(Ndam!$D$10,12*$A66,4*(PlotControl!$C$6-1),12,1))) -> 0.7443 | G66: =IF(PlotControl!$B$4 = "Annual Max",MAX(OFFSET(Ndam!$E$10,12*$A66,4*(PlotControl!$C$6-1),12,1)),AVERAGE(OFFSET(Ndam!$E$10,12*$A66,4*(PlotControl!$C$6-1),12,1))) -> 0.95486 | H66: =IF(PlotControl!$B$4 = "Annual Max",MAX(OFFSET(Ebeach!$C$10,12*$A66,4*(PlotControl!$C$6-1),12,1)),AVERAGE(OFFSET(Ebeach!$C$10,12*$A66,4*(PlotControl!$C$6-1),12,1))) -> 10.717 | I66: =IF(PlotControl!$B$4 = "Annual Max",MAX(OFFSET(Ebeach!$D$10,12*$A66,4*(PlotControl!$C$6-1),12,1)),AVERAGE(OFFSET(Ebeach!$D$10,12*$A66,4*(PlotControl!$C$6-1),12,1))) -> 63.259 | J66: =IF(PlotControl!$B$4 = "Annual Max",MAX(OFFSET(Ebeach!$E$10,12*$A66,4*(PlotControl!$C$6-1),12,1)),AVERAGE(OFFSET(Ebeach!$E$10,12*$A66,4*(PlotControl!$C$6-1),12,1))) -> 323.48 | K66: =IF(PlotControl!$B$4 = "Annual Max",MAX(OFFSET(Edam!$C$10,12*$A66,4*(PlotControl!$C$6-1),12,1)),AVERAGE(OFFSET(Edam!$C$10,12*$A66,4*(PlotControl!$C$6-1),12,1))) -> 0.21445 | L66: =IF(PlotControl!$B$4 = "Annual Max",MAX(OFFSET(Edam!$D$10,12*$A66,4*(PlotControl!$C$6-1),12,1)),AVERAGE(OFFSET(Edam!$D$10,12*$A66,4*(PlotControl!$C$6-1),12,1))) -> 0.30723 | M66: =IF(PlotControl!$B$4 = "Annual Max",MAX(OFFSET(Edam!$E$10,12*$A66,4*(PlotControl!$C$6-1),12,1)),AVERAGE(OFFSET(Edam!$E$10,12*$A66,4*(PlotControl!$C$6-1),12,1))) -> 0.44345 | N66: =IF(PlotControl!$B$4 = "Annual Max",MAX(OFFSET(Sbeach!$C$10,12*$A66,4*(PlotControl!$C$6-1),12,1)),AVERAGE(OFFSET(Sbeach!$C$10,12*$A66,4*(PlotControl!$C$6-1),12,1))) -> 10.48 | O66: =IF(PlotControl!$B$4 = "Annual Max",MAX(OFFSET(Sbeach!$D$10,12*$A66,4*(PlotControl!$C$6-1),12,1)),AVERAGE(OFFSET(Sbeach!$D$10,12*$A66,4*(PlotControl!$C$6-1),12,1))) -> 58.23 | P66: =IF(PlotControl!$B$4 = "Annual Max",MAX(OFFSET(Sbeach!$E$10,12*$A66,4*(PlotControl!$C$6-1),12,1)),AVERAGE(OFFSET(Sbeach!$E$10,12*$A66,4*(PlotControl!$C$6-1),12,1))) -> 329.03 | Q66: =IF(PlotControl!$B$4 = "Annual Max",MAX(OFFSET(Sdam!$C$10,12*$A66,4*(PlotControl!$C$6-1),12,1)),AVERAGE(OFFSET(Sdam!$C$10,12*$A66,4*(PlotControl!$C$6-1),12,1))) -> 0.28778 | R66: =IF(PlotControl!$B$4 = "Annual Max",MAX(OFFSET(Sdam!$D$10,12*$A66,4*(PlotControl!$C$6-1),12,1)),AVERAGE(OFFSET(Sdam!$D$10,12*$A66,4*(PlotControl!$C$6-1),12,1))) -> 0.38157 | S66: =IF(PlotControl!$B$4 = "Annual Max",MAX(OFFSET(Sdam!$E$10,12*$A66,4*(PlotControl!$C$6-1),12,1)),AVERAGE(OFFSET(Sdam!$E$10,12*$A66,4*(PlotControl!$C$6-1),12,1))) -> 0.51753 | T66: =IF(PlotControl!$B$4 = "Annual Max",MAX(OFFSET(Cbeach!$C$10,12*$A66,4*(PlotControl!$C$6-1),12,1)),AVERAGE(OFFSET(Cbeach!$C$10,12*$A66,4*(PlotControl!$C$6-1),12,1))) -> 10.717 | U66: =IF(PlotControl!$B$4 = "Annual Max",MAX(OFFSET(Cbeach!$D$10,12*$A66,4*(PlotControl!$C$6-1),12,1)),AVERAGE(OFFSET(Cbeach!$D$10,12*$A66,4*(PlotControl!$C$6-1),12,1))) -> 63.259 | V66: =IF(PlotControl!$B$4 = "Annual Max",MAX(OFFSET(Cbeach!$E$10,12*$A66,4*(PlotControl!$C$6-1),12,1)),AVERAGE(OFFSET(Cbeach!$E$10,12*$A66,4*(PlotControl!$C$6-1),12,1))) -> 323.48
A67: 62 | B67: =IF(PlotControl!$B$4 = "Annual Max",MAX(OFFSET(Nbeach!$C$10,12*$A67,4*(PlotControl!$C$6-1),12,1)),AVERAGE(OFFSET(Nbeach!$C$10,12*$A67,4*(PlotControl!$C$6-1),12,1))) -> 10.444 | C67: =IF(PlotControl!$B$4 = "Annual Max",MAX(OFFSET(Nbeach!$D$10,12*$A67,4*(PlotControl!$C$6-1),12,1)),AVERAGE(OFFSET(Nbeach!$D$10,12*$A67,4*(PlotControl!$C$6-1),12,1))) -> 55.969 | D67: =IF(PlotControl!$B$4 = "Annual Max",MAX(OFFSET(Nbeach!$E$10,12*$A67,4*(PlotControl!$C$6-1),12,1)),AVERAGE(OFFSET(Nbeach!$E$10,12*$A67,4*(PlotControl!$C$6-1),12,1))) -> 343.9 | E67: =IF(PlotControl!$B$4 = "Annual Max",MAX(OFFSET(Ndam!$C$10,12*$A67,4*(PlotControl!$C$6-1),12,1)),AVERAGE(OFFSET(Ndam!$C$10,12*$A67,4*(PlotControl!$C$6-1),12,1))) -> 0.61197 | F67: =IF(PlotControl!$B$4 = "Annual Max",MAX(OFFSET(Ndam!$D$10,12*$A67,4*(PlotControl!$C$6-1),12,1)),AVERAGE(OFFSET(Ndam!$D$10,12*$A67,4*(PlotControl!$C$6-1),12,1))) -> 0.72994 | G67: =IF(PlotControl!$B$4 = "Annual Max",MAX(OFFSET(Ndam!$E$10,12*$A67,4*(PlotControl!$C$6-1),12,1)),AVERAGE(OFFSET(Ndam!$E$10,12*$A67,4*(PlotControl!$C$6-1),12,1))) -> 0.92012 | H67: =IF(PlotControl!$B$4 = "Annual Max",MAX(OFFSET(Ebeach!$C$10,12*$A67,4*(PlotControl!$C$6-1),12,1)),AVERAGE(OFFSET(Ebeach!$C$10,12*$A67,4*(PlotControl!$C$6-1),12,1))) -> 11.335 | I67: =IF(PlotControl!$B$4 = "Annual Max",MAX(OFFSET(Ebeach!$D$10,12*$A67,4*(PlotControl!$C$6-1),12,1)),AVERAGE(OFFSET(Ebeach!$D$10,12*$A67,4*(PlotControl!$C$6-1),12,1))) -> 62.799 | J67: =IF(PlotControl!$B$4 = "Annual Max",MAX(OFFSET(Ebeach!$E$10,12*$A67,4*(PlotControl!$C$6-1),12,1)),AVERAGE(OFFSET(Ebeach!$E$10,12*$A67,4*(PlotControl!$C$6-1),12,1))) -> 321.7 | K67: =IF(PlotControl!$B$4 = "Annual Max",MAX(OFFSET(Edam!$C$10,12*$A67,4*(PlotControl!$C$6-1),12,1)),AVERAGE(OFFSET(Edam!$C$10,12*$A67,4*(PlotControl!$C$6-1),12,1))) -> 0.21321 | L67: =IF(PlotControl!$B$4 = "Annual Max",MAX(OFFSET(Edam!$D$10,12*$A67,4*(PlotControl!$C$6-1),12,1)),AVERAGE(OFFSET(Edam!$D$10,12*$A67,4*(PlotControl!$C$6-1),12,1))) -> 0.30417 | M67: =IF(PlotControl!$B$4 = "Annual Max",MAX(OFFSET(Edam!$E$10,12*$A67,4*(PlotControl!$C$6-1),12,1)),AVERAGE(OFFSET(Edam!$E$10,12*$A67,4*(PlotControl!$C$6-1),12,1))) -> 0.44228 | N67: =IF(PlotControl!$B$4 = "Annual Max",MAX(OFFSET(Sbeach!$C$10,12*$A67,4*(PlotControl!$C$6-1),12,1)),AVERAGE(OFFSET(Sbeach!$C$10,12*$A67,4*(PlotControl!$C$6-1),12,1))) -> 10.665 | O67: =IF(PlotControl!$B$4 = "Annual Max",MAX(OFFSET(Sbeach!$D$10,12*$A67,4*(PlotControl!$C$6-1),12,1)),AVERAGE(OFFSET(Sbeach!$D$10,12*$A67,4*(PlotControl!$C$6-1),12,1))) -> 59.855 | P67: =IF(PlotControl!$B$4 = "Annual Max",MAX(OFFSET(Sbeach!$E$10,12*$A67,4*(PlotControl!$C$6-1),12,1)),AVERAGE(OFFSET(Sbeach!$E$10,12*$A67,4*(PlotControl!$C$6-1),12,1))) -> 328.18 | Q67: =IF(PlotControl!$B$4 = "Annual Max",MAX(OFFSET(Sdam!$C$10,12*$A67,4*(PlotControl!$C$6-1),12,1)),AVERAGE(OFFSET(Sdam!$C$10,12*$A67,4*(PlotControl!$C$6-1),12,1))) -> 0.28134 | R67: =IF(PlotControl!$B$4 = "Annual Max",MAX(OFFSET(Sdam!$D$10,12*$A67,4*(PlotControl!$C$6-1),12,1)),AVERAGE(OFFSET(Sdam!$D$10,12*$A67,4*(PlotControl!$C$6-1),12,1))) -> 0.37399 | S67: =IF(PlotControl!$B$4 = "Annual Max",MAX(OFFSET(Sdam!$E$10,12*$A67,4*(PlotControl!$C$6-1),12,1)),AVERAGE(OFFSET(Sdam!$E$10,12*$A67,4*(PlotControl!$C$6-1),12,1))) -> 0.51258 | T67: =IF(PlotControl!$B$4 = "Annual Max",MAX(OFFSET(Cbeach!$C$10,12*$A67,4*(PlotControl!$C$6-1),12,1)),AVERAGE(OFFSET(Cbeach!$C$10,12*$A67,4*(PlotControl!$C$6-1),12,1))) -> 11.335 | U67: =IF(PlotControl!$B$4 = "Annual Max",MAX(OFFSET(Cbeach!$D$10,12*$A67,4*(PlotControl!$C$6-1),12,1)),AVERAGE(OFFSET(Cbeach!$D$10,12*$A67,4*(PlotControl!$C$6-1),12,1))) -> 62.799 | V67: =IF(PlotControl!$B$4 = "Annual Max",MAX(OFFSET(Cbeach!$E$10,12*$A67,4*(PlotControl!$C$6-1),12,1)),AVERAGE(OFFSET(Cbeach!$E$10,12*$A67,4*(PlotControl!$C$6-1),12,1))) -> 322.03
A68: 63 | B68: =IF(PlotControl!$B$4 = "Annual Max",MAX(OFFSET(Nbeach!$C$10,12*$A68,4*(PlotControl!$C$6-1),12,1)),AVERAGE(OFFSET(Nbeach!$C$10,12*$A68,4*(PlotControl!$C$6-1),12,1))) -> 10.422 | C68: =IF(PlotControl!$B$4 = "Annual Max",MAX(OFFSET(Nbeach!$D$10,12*$A68,4*(PlotControl!$C$6-1),12,1)),AVERAGE(OFFSET(Nbeach!$D$10,12*$A68,4*(PlotControl!$C$6-1),12,1))) -> 56.041 | D68: =IF(PlotControl!$B$4 = "Annual Max",MAX(OFFSET(Nbeach!$E$10,12*$A68,4*(PlotControl!$C$6-1),12,1)),AVERAGE(OFFSET(Nbeach!$E$10,12*$A68,4*(PlotControl!$C$6-1),12,1))) -> 343.43 | E68: =IF(PlotControl!$B$4 = "Annual Max",MAX(OFFSET(Ndam!$C$10,12*$A68,4*(PlotControl!$C$6-1),12,1)),AVERAGE(OFFSET(Ndam!$C$10,12*$A68,4*(PlotControl!$C$6-1),12,1))) -> 0.59598 | F68: =IF(PlotControl!$B$4 = "Annual Max",MAX(OFFSET(Ndam!$D$10,12*$A68,4*(PlotControl!$C$6-1),12,1)),AVERAGE(OFFSET(Ndam!$D$10,12*$A68,4*(PlotControl!$C$6-1),12,1))) -> 0.71177 | G68: =IF(PlotControl!$B$4 = "Annual Max",MAX(OFFSET(Ndam!$E$10,12*$A68,4*(PlotControl!$C$6-1),12,1)),AVERAGE(OFFSET(Ndam!$E$10,12*$A68,4*(PlotControl!$C$6-1),12,1))) -> 0.89587 | H68: =IF(PlotControl!$B$4 = "Annual Max",MAX(OFFSET(Ebeach!$C$10,12*$A68,4*(PlotControl!$C$6-1),12,1)),AVERAGE(OFFSET(Ebeach!$C$10,12*$A68,4*(PlotControl!$C$6-1),12,1))) -> 11.466 | I68: =IF(PlotControl!$B$4 = "Annual Max",MAX(OFFSET(Ebeach!$D$10,12*$A68,4*(PlotControl!$C$6-1),12,1)),AVERAGE(OFFSET(Ebeach!$D$10,12*$A68,4*(PlotControl!$C$6-1),12,1))) -> 65.653 | J68: =IF(PlotControl!$B$4 = "Annual Max",MAX(OFFSET(Ebeach!$E$10,12*$A68,4*(PlotControl!$C$6-1),12,1)),AVERAGE(OFFSET(Ebeach!$E$10,12*$A68,4*(PlotControl!$C$6-1),12,1))) -> 321.39 | K68: =IF(PlotControl!$B$4 = "Annual Max",MAX(OFFSET(Edam!$C$10,12*$A68,4*(PlotControl!$C$6-1),12,1)),AVERAGE(OFFSET(Edam!$C$10,12*$A68,4*(PlotControl!$C$6-1),12,1))) -> 0.21298 | L68: =IF(PlotControl!$B$4 = "Annual Max",MAX(OFFSET(Edam!$D$10,12*$A68,4*(PlotControl!$C$6-1),12,1)),AVERAGE(OFFSET(Edam!$D$10,12*$A68,4*(PlotControl!$C$6-1),12,1))) -> 0.30365 | M68: =IF(PlotControl!$B$4 = "Annual Max",MAX(OFFSET(Edam!$E$10,12*$A68,4*(PlotControl!$C$6-1),12,1)),AVERAGE(OFFSET(Edam!$E$10,12*$A68,4*(PlotControl!$C$6-1),12,1))) -> 0.44051 | N68: =IF(PlotControl!$B$4 = "Annual Max",MAX(OFFSET(Sbeach!$C$10,12*$A68,4*(PlotControl!$C$6-1),12,1)),AVERAGE(OFFSET(Sbeach!$C$10,12*$A68,4*(PlotControl!$C$6-1),12,1))) -> 10.463 | O68: =IF(PlotControl!$B$4 = "Annual Max",MAX(OFFSET(Sbeach!$D$10,12*$A68,4*(PlotControl!$C$6-1),12,1)),AVERAGE(OFFSET(Sbeach!$D$10,12*$A68,4*(PlotControl!$C$6-1),12,1))) -> 59.018 | P68: =IF(PlotControl!$B$4 = "Annual Max",MAX(OFFSET(Sbeach!$E$10,12*$A68,4*(PlotControl!$C$6-1),12,1)),AVERAGE(OFFSET(Sbeach!$E$10,12*$A68,4*(PlotControl!$C$6-1),12,1))) -> 327.94 | Q68: =IF(PlotControl!$B$4 = "Annual Max",MAX(OFFSET(Sdam!$C$10,12*$A68,4*(PlotControl!$C$6-1),12,1)),AVERAGE(OFFSET(Sdam!$C$10,12*$A68,4*(PlotControl!$C$6-1),12,1))) -> 0.27564 | R68: =IF(PlotControl!$B$4 = "Annual Max",MAX(OFFSET(Sdam!$D$10,12*$A68,4*(PlotControl!$C$6-1),12,1)),AVERAGE(OFFSET(Sdam!$D$10,12*$A68,4*(PlotControl!$C$6-1),12,1))) -> 0.36836 | S68: =IF(PlotControl!$B$4 = "Annual Max",MAX(OFFSET(Sdam!$E$10,12*$A68,4*(PlotControl!$C$6-1),12,1)),AVERAGE(OFFSET(Sdam!$E$10,12*$A68,4*(PlotControl!$C$6-1),12,1))) -> 0.50395 | T68: =IF(PlotControl!$B$4 = "Annual Max",MAX(OFFSET(Cbeach!$C$10,12*$A68,4*(PlotControl!$C$6-1),12,1)),AVERAGE(OFFSET(Cbeach!$C$10,12*$A68,4*(PlotControl!$C$6-1),12,1))) -> 11.466 | U68: =IF(PlotControl!$B$4 = "Annual Max",MAX(OFFSET(Cbeach!$D$10,12*$A68,4*(PlotControl!$C$6-1),12,1)),AVERAGE(OFFSET(Cbeach!$D$10,12*$A68,4*(PlotControl!$C$6-1),12,1))) -> 65.653 | V68: =IF(PlotControl!$B$4 = "Annual Max",MAX(OFFSET(Cbeach!$E$10,12*$A68,4*(PlotControl!$C$6-1),12,1)),AVERAGE(OFFSET(Cbeach!$E$10,12*$A68,4*(PlotControl!$C$6-1),12,1))) -> 321.39
A69: 64 | B69: =IF(PlotControl!$B$4 = "Annual Max",MAX(OFFSET(Nbeach!$C$10,12*$A69,4*(PlotControl!$C$6-1),12,1)),AVERAGE(OFFSET(Nbeach!$C$10,12*$A69,4*(PlotControl!$C$6-1),12,1))) -> 9.8688 | C69: =IF(PlotControl!$B$4 = "Annual Max",MAX(OFFSET(Nbeach!$D$10,12*$A69,4*(PlotControl!$C$6-1),12,1)),AVERAGE(OFFSET(Nbeach!$D$10,12*$A69,4*(PlotControl!$C$6-1),12,1))) -> 54.141 | D69: =IF(PlotControl!$B$4 = "Annual Max",MAX(OFFSET(Nbeach!$E$10,12*$A69,4*(PlotControl!$C$6-1),12,1)),AVERAGE(OFFSET(Nbeach!$E$10,12*$A69,4*(PlotControl!$C$6-1),12,1))) -> 343.9 | E69: =IF(PlotControl!$B$4 = "Annual Max",MAX(OFFSET(Ndam!$C$10,12*$A69,4*(PlotControl!$C$6-1),12,1)),AVERAGE(OFFSET(Ndam!$C$10,12*$A69,4*(PlotControl!$C$6-1),12,1))) -> 0.57872 | F69: =IF(PlotControl!$B$4 = "Annual Max",MAX(OFFSET(Ndam!$D$10,12*$A69,4*(PlotControl!$C$6-1),12,1)),AVERAGE(OFFSET(Ndam!$D$10,12*$A69,4*(PlotControl!$C$6-1),12,1))) -> 0.6971 | G69: =IF(PlotControl!$B$4 = "Annual Max",MAX(OFFSET(Ndam!$E$10,12*$A69,4*(PlotControl!$C$6-1),12,1)),AVERAGE(OFFSET(Ndam!$E$10,12*$A69,4*(PlotControl!$C$6-1),12,1))) -> 0.86789 | H69: =IF(PlotControl!$B$4 = "Annual Max",MAX(OFFSET(Ebeach!$C$10,12*$A69,4*(PlotControl!$C$6-1),12,1)),AVERAGE(OFFSET(Ebeach!$C$10,12*$A69,4*(PlotControl!$C$6-1),12,1))) -> 11.032 | I69: =IF(PlotControl!$B$4 = "Annual Max",MAX(OFFSET(Ebeach!$D$10,12*$A69,4*(PlotControl!$C$6-1),12,1)),AVERAGE(OFFSET(Ebeach!$D$10,12*$A69,4*(PlotControl!$C$6-1),12,1))) -> 64.344 | J69: =IF(PlotControl!$B$4 = "Annual Max",MAX(OFFSET(Ebeach!$E$10,12*$A69,4*(PlotControl!$C$6-1),12,1)),AVERAGE(OFFSET(Ebeach!$E$10,12*$A69,4*(PlotControl!$C$6-1),12,1))) -> 323.45 | K69: =IF(PlotControl!$B$4 = "Annual Max",MAX(OFFSET(Edam!$C$10,12*$A69,4*(PlotControl!$C$6-1),12,1)),AVERAGE(OFFSET(Edam!$C$10,12*$A69,4*(PlotControl!$C$6-1),12,1))) -> 0.21224 | L69: =IF(PlotControl!$B$4 = "Annual Max",MAX(OFFSET(Edam!$D$10,12*$A69,4*(PlotControl!$C$6-1),12,1)),AVERAGE(OFFSET(Edam!$D$10,12*$A69,4*(PlotControl!$C$6-1),12,1))) -> 0.30368 | M69: =IF(PlotControl!$B$4 = "Annual Max",MAX(OFFSET(Edam!$E$10,12*$A69,4*(PlotControl!$C$6-1),12,1)),AVERAGE(OFFSET(Edam!$E$10,12*$A69,4*(PlotControl!$C$6-1),12,1))) -> 0.4413 | N69: =IF(PlotControl!$B$4 = "Annual Max",MAX(OFFSET(Sbeach!$C$10,12*$A69,4*(PlotControl!$C$6-1),12,1)),AVERAGE(OFFSET(Sbeach!$C$10,12*$A69,4*(PlotControl!$C$6-1),12,1))) -> 10.206 | O69: =IF(PlotControl!$B$4 = "Annual Max",MAX(OFFSET(Sbeach!$D$10,12*$A69,4*(PlotControl!$C$6-1),12,1)),AVERAGE(OFFSET(Sbeach!$D$10,12*$A69,4*(PlotControl!$C$6-1),12,1))) -> 58.48 | P69: =IF(PlotControl!$B$4 = "Annual Max",MAX(OFFSET(Sbeach!$E$10,12*$A69,4*(PlotControl!$C$6-1),12,1)),AVERAGE(OFFSET(Sbeach!$E$10,12*$A69,4*(PlotControl!$C$6-1),12,1))) -> 327.94 | Q69: =IF(PlotControl!$B$4 = "Annual Max",MAX(OFFSET(Sdam!$C$10,12*$A69,4*(PlotControl!$C$6-1),12,1)),AVERAGE(OFFSET(Sdam!$C$10,12*$A69,4*(PlotControl!$C$6-1),12,1))) -> 0.27229 | R69: =IF(PlotControl!$B$4 = "Annual Max",MAX(OFFSET(Sdam!$D$10,12*$A69,4*(PlotControl!$C$6-1),12,1)),AVERAGE(OFFSET(Sdam!$D$10,12*$A69,4*(PlotControl!$C$6-1),12,1))) -> 0.3642 | S69: =IF(PlotControl!$B$4 = "Annual Max",MAX(OFFSET(Sdam!$E$10,12*$A69,4*(PlotControl!$C$6-1),12,1)),AVERAGE(OFFSET(Sdam!$E$10,12*$A69,4*(PlotControl!$C$6-1),12,1))) -> 0.50045 | T69: =IF(PlotControl!$B$4 = "Annual Max",MAX(OFFSET(Cbeach!$C$10,12*$A69,4*(PlotControl!$C$6-1),12,1)),AVERAGE(OFFSET(Cbeach!$C$10,12*$A69,4*(PlotControl!$C$6-1),12,1))) -> 11.032 | U69: =IF(PlotControl!$B$4 = "Annual Max",MAX(OFFSET(Cbeach!$D$10,12*$A69,4*(PlotControl!$C$6-1),12,1)),AVERAGE(OFFSET(Cbeach!$D$10,12*$A69,4*(PlotControl!$C$6-1),12,1))) -> 64.344 | V69: =IF(PlotControl!$B$4 = "Annual Max",MAX(OFFSET(Cbeach!$E$10,12*$A69,4*(PlotControl!$C$6-1),12,1)),AVERAGE(OFFSET(Cbeach!$E$10,12*$A69,4*(PlotControl!$C$6-1),12,1))) -> 323.45
A70: 65 | B70: =IF(PlotControl!$B$4 = "Annual Max",MAX(OFFSET(Nbeach!$C$10,12*$A70,4*(PlotControl!$C$6-1),12,1)),AVERAGE(OFFSET(Nbeach!$C$10,12*$A70,4*(PlotControl!$C$6-1),12,1))) -> 10.191 | C70: =IF(PlotControl!$B$4 = "Annual Max",MAX(OFFSET(Nbeach!$D$10,12*$A70,4*(PlotControl!$C$6-1),12,1)),AVERAGE(OFFSET(Nbeach!$D$10,12*$A70,4*(PlotControl!$C$6-1),12,1))) -> 55.798 | D70: =IF(PlotControl!$B$4 = "Annual Max",MAX(OFFSET(Nbeach!$E$10,12*$A70,4*(PlotControl!$C$6-1),12,1)),AVERAGE(OFFSET(Nbeach!$E$10,12*$A70,4*(PlotControl!$C$6-1),12,1))) -> 343.37 | E70: =IF(PlotControl!$B$4 = "Annual Max",MAX(OFFSET(Ndam!$C$10,12*$A70,4*(PlotControl!$C$6-1),12,1)),AVERAGE(OFFSET(Ndam!$C$10,12*$A70,4*(PlotControl!$C$6-1),12,1))) -> 0.56734 | F70: =IF(PlotControl!$B$4 = "Annual Max",MAX(OFFSET(Ndam!$D$10,12*$A70,4*(PlotControl!$C$6-1),12,1)),AVERAGE(OFFSET(Ndam!$D$10,12*$A70,4*(PlotControl!$C$6-1),12,1))) -> 0.68729 | G70: =IF(PlotControl!$B$4 = "Annual Max",MAX(OFFSET(Ndam!$E$10,12*$A70,4*(PlotControl!$C$6-1),12,1)),AVERAGE(OFFSET(Ndam!$E$10,12*$A70,4*(PlotControl!$C$6-1),12,1))) -> 0.85567 | H70: =IF(PlotControl!$B$4 = "Annual Max",MAX(OFFSET(Ebeach!$C$10,12*$A70,4*(PlotControl!$C$6-1),12,1)),AVERAGE(OFFSET(Ebeach!$C$10,12*$A70,4*(PlotControl!$C$6-1),12,1))) -> 11.38 | I70: =IF(PlotControl!$B$4 = "Annual Max",MAX(OFFSET(Ebeach!$D$10,12*$A70,4*(PlotControl!$C$6-1),12,1)),AVERAGE(OFFSET(Ebeach!$D$10,12*$A70,4*(PlotControl!$C$6-1),12,1))) -> 66.114 | J70: =IF(PlotControl!$B$4 = "Annual Max",MAX(OFFSET(Ebeach!$E$10,12*$A70,4*(PlotControl!$C$6-1),12,1)),AVERAGE(OFFSET(Ebeach!$E$10,12*$A70,4*(PlotControl!$C$6-1),12,1))) -> 323.04 | K70: =IF(PlotControl!$B$4 = "Annual Max",MAX(OFFSET(Edam!$C$10,12*$A70,4*(PlotControl!$C$6-1),12,1)),AVERAGE(OFFSET(Edam!$C$10,12*$A70,4*(PlotControl!$C$6-1),12,1))) -> 0.21291 | L70: =IF(PlotControl!$B$4 = "Annual Max",MAX(OFFSET(Edam!$D$10,12*$A70,4*(PlotControl!$C$6-1),12,1)),AVERAGE(OFFSET(Edam!$D$10,12*$A70,4*(PlotControl!$C$6-1),12,1))) -> 0.30782 | M70: =IF(PlotControl!$B$4 = "Annual Max",MAX(OFFSET(Edam!$E$10,12*$A70,4*(PlotControl!$C$6-1),12,1)),AVERAGE(OFFSET(Edam!$E$10,12*$A70,4*(PlotControl!$C$6-1),12,1))) -> 0.43181 | N70: =IF(PlotControl!$B$4 = "Annual Max",MAX(OFFSET(Sbeach!$C$10,12*$A70,4*(PlotControl!$C$6-1),12,1)),AVERAGE(OFFSET(Sbeach!$C$10,12*$A70,4*(PlotControl!$C$6-1),12,1))) -> 10.609 | O70: =IF(PlotControl!$B$4 = "Annual Max",MAX(OFFSET(Sbeach!$D$10,12*$A70,4*(PlotControl!$C$6-1),12,1)),AVERAGE(OFFSET(Sbeach!$D$10,12*$A70,4*(PlotControl!$C$6-1),12,1))) -> 60.07 | P70: =IF(PlotControl!$B$4 = "Annual Max",MAX(OFFSET(Sbeach!$E$10,12*$A70,4*(PlotControl!$C$6-1),12,1)),AVERAGE(OFFSET(Sbeach!$E$10,12*$A70,4*(PlotControl!$C$6-1),12,1))) -> 327.94 | Q70: =IF(PlotControl!$B$4 = "Annual Max",MAX(OFFSET(Sdam!$C$10,12*$A70,4*(PlotControl!$C$6-1),12,1)),AVERAGE(OFFSET(Sdam!$C$10,12*$A70,4*(PlotControl!$C$6-1),12,1))) -> 0.26835 | R70: =IF(PlotControl!$B$4 = "Annual Max",MAX(OFFSET(Sdam!$D$10,12*$A70,4*(PlotControl!$C$6-1),12,1)),AVERAGE(OFFSET(Sdam!$D$10,12*$A70,4*(PlotControl!$C$6-1),12,1))) -> 0.36491 | S70: =IF(PlotControl!$B$4 = "Annual Max",MAX(OFFSET(Sdam!$E$10,12*$A70,4*(PlotControl!$C$6-1),12,1)),AVERAGE(OFFSET(Sdam!$E$10,12*$A70,4*(PlotControl!$C$6-1),12,1))) -> 0.48319 | T70: =IF(PlotControl!$B$4 = "Annual Max",MAX(OFFSET(Cbeach!$C$10,12*$A70,4*(PlotControl!$C$6-1),12,1)),AVERAGE(OFFSET(Cbeach!$C$10,12*$A70,4*(PlotControl!$C$6-1),12,1))) -> 11.38 | U70: =IF(PlotControl!$B$4 = "Annual Max",MAX(OFFSET(Cbeach!$D$10,12*$A70,4*(PlotControl!$C$6-1),12,1)),AVERAGE(OFFSET(Cbeach!$D$10,12*$A70,4*(PlotControl!$C$6-1),12,1))) -> 66.114 | V70: =IF(PlotControl!$B$4 = "Annual Max",MAX(OFFSET(Cbeach!$E$10,12*$A70,4*(PlotControl!$C$6-1),12,1)),AVERAGE(OFFSET(Cbeach!$E$10,12*$A70,4*(PlotControl!$C$6-1),12,1))) -> 323.03
A71: 66 | B71: =IF(PlotControl!$B$4 = "Annual Max",MAX(OFFSET(Nbeach!$C$10,12*$A71,4*(PlotControl!$C$6-1),12,1)),AVERAGE(OFFSET(Nbeach!$C$10,12*$A71,4*(PlotControl!$C$6-1),12,1))) -> 10.419 | C71: =IF(PlotControl!$B$4 = "Annual Max",MAX(OFFSET(Nbeach!$D$10,12*$A71,4*(PlotControl!$C$6-1),12,1)),AVERAGE(OFFSET(Nbeach!$D$10,12*$A71,4*(PlotControl!$C$6-1),12,1))) -> 55.133 | D71: =IF(PlotControl!$B$4 = "Annual Max",MAX(OFFSET(Nbeach!$E$10,12*$A71,4*(PlotControl!$C$6-1),12,1)),AVERAGE(OFFSET(Nbeach!$E$10,12*$A71,4*(PlotControl!$C$6-1),12,1))) -> 343.37 | E71: =IF(PlotControl!$B$4 = "Annual Max",MAX(OFFSET(Ndam!$C$10,12*$A71,4*(PlotControl!$C$6-1),12,1)),AVERAGE(OFFSET(Ndam!$C$10,12*$A71,4*(PlotControl!$C$6-1),12,1))) -> 0.55682 | F71: =IF(PlotControl!$B$4 = "Annual Max",MAX(OFFSET(Ndam!$D$10,12*$A71,4*(PlotControl!$C$6-1),12,1)),AVERAGE(OFFSET(Ndam!$D$10,12*$A71,4*(PlotControl!$C$6-1),12,1))) -> 0.67718 | G71: =IF(PlotControl!$B$4 = "Annual Max",MAX(OFFSET(Ndam!$E$10,12*$A71,4*(PlotControl!$C$6-1),12,1)),AVERAGE(OFFSET(Ndam!$E$10,12*$A71,4*(PlotControl!$C$6-1),12,1))) -> 0.85419 | H71: =IF(PlotControl!$B$4 = "Annual Max",MAX(OFFSET(Ebeach!$C$10,12*$A71,4*(PlotControl!$C$6-1),12,1)),AVERAGE(OFFSET(Ebeach!$C$10,12*$A71,4*(PlotControl!$C$6-1),12,1))) -> 12.01 | I71: =IF(PlotControl!$B$4 = "Annual Max",MAX(OFFSET(Ebeach!$D$10,12*$A71,4*(PlotControl!$C$6-1),12,1)),AVERAGE(OFFSET(Ebeach!$D$10,12*$A71,4*(PlotControl!$C$6-1),12,1))) -> 62.169 | J71: =IF(PlotControl!$B$4 = "Annual Max",MAX(OFFSET(Ebeach!$E$10,12*$A71,4*(PlotControl!$C$6-1),12,1)),AVERAGE(OFFSET(Ebeach!$E$10,12*$A71,4*(PlotControl!$C$6-1),12,1))) -> 322.31 | K71: =IF(PlotControl!$B$4 = "Annual Max",MAX(OFFSET(Edam!$C$10,12*$A71,4*(PlotControl!$C$6-1),12,1)),AVERAGE(OFFSET(Edam!$C$10,12*$A71,4*(PlotControl!$C$6-1),12,1))) -> 0.21592 | L71: =IF(PlotControl!$B$4 = "Annual Max",MAX(OFFSET(Edam!$D$10,12*$A71,4*(PlotControl!$C$6-1),12,1)),AVERAGE(OFFSET(Edam!$D$10,12*$A71,4*(PlotControl!$C$6-1),12,1))) -> 0.31006 | M71: =IF(PlotControl!$B$4 = "Annual Max",MAX(OFFSET(Edam!$E$10,12*$A71,4*(PlotControl!$C$6-1),12,1)),AVERAGE(OFFSET(Edam!$E$10,12*$A71,4*(PlotControl!$C$6-1),12,1))) -> 0.43404 | N71: =IF(PlotControl!$B$4 = "Annual Max",MAX(OFFSET(Sbeach!$C$10,12*$A71,4*(PlotControl!$C$6-1),12,1)),AVERAGE(OFFSET(Sbeach!$C$10,12*$A71,4*(PlotControl!$C$6-1),12,1))) -> 10.92 | O71: =IF(PlotControl!$B$4 = "Annual Max",MAX(OFFSET(Sbeach!$D$10,12*$A71,4*(PlotControl!$C$6-1),12,1)),AVERAGE(OFFSET(Sbeach!$D$10,12*$A71,4*(PlotControl!$C$6-1),12,1))) -> 59.388 | P71: =IF(PlotControl!$B$4 = "Annual Max",MAX(OFFSET(Sbeach!$E$10,12*$A71,4*(PlotControl!$C$6-1),12,1)),AVERAGE(OFFSET(Sbeach!$E$10,12*$A71,4*(PlotControl!$C$6-1),12,1))) -> 326.91 | Q71: =IF(PlotControl!$B$4 = "Annual Max",MAX(OFFSET(Sdam!$C$10,12*$A71,4*(PlotControl!$C$6-1),12,1)),AVERAGE(OFFSET(Sdam!$C$10,12*$A71,4*(PlotControl!$C$6-1),12,1))) -> 0.268 | R71: =IF(PlotControl!$B$4 = "Annual Max",MAX(OFFSET(Sdam!$D$10,12*$A71,4*(PlotControl!$C$6-1),12,1)),AVERAGE(OFFSET(Sdam!$D$10,12*$A71,4*(PlotControl!$C$6-1),12,1))) -> 0.36388 | S71: =IF(PlotControl!$B$4 = "Annual Max",MAX(OFFSET(Sdam!$E$10,12*$A71,4*(PlotControl!$C$6-1),12,1)),AVERAGE(OFFSET(Sdam!$E$10,12*$A71,4*(PlotControl!$C$6-1),12,1))) -> 0.48567 | T71: =IF(PlotControl!$B$4 = "Annual Max",MAX(OFFSET(Cbeach!$C$10,12*$A71,4*(PlotControl!$C$6-1),12,1)),AVERAGE(OFFSET(Cbeach!$C$10,12*$A71,4*(PlotControl!$C$6-1),12,1))) -> 12.01 | U71: =IF(PlotControl!$B$4 = "Annual Max",MAX(OFFSET(Cbeach!$D$10,12*$A71,4*(PlotControl!$C$6-1),12,1)),AVERAGE(OFFSET(Cbeach!$D$10,12*$A71,4*(PlotControl!$C$6-1),12,1))) -> 62.169 | V71: =IF(PlotControl!$B$4 = "Annual Max",MAX(OFFSET(Cbeach!$E$10,12*$A71,4*(PlotControl!$C$6-1),12,1)),AVERAGE(OFFSET(Cbeach!$E$10,12*$A71,4*(PlotControl!$C$6-1),12,1))) -> 322.31
A72: 67 | B72: =IF(PlotControl!$B$4 = "Annual Max",MAX(OFFSET(Nbeach!$C$10,12*$A72,4*(PlotControl!$C$6-1),12,1)),AVERAGE(OFFSET(Nbeach!$C$10,12*$A72,4*(PlotControl!$C$6-1),12,1))) -> 10.189 | C72: =IF(PlotControl!$B$4 = "Annual Max",MAX(OFFSET(Nbeach!$D$10,12*$A72,4*(PlotControl!$C$6-1),12,1)),AVERAGE(OFFSET(Nbeach!$D$10,12*$A72,4*(PlotControl!$C$6-1),12,1))) -> 55.603 | D72: =IF(PlotControl!$B$4 = "Annual Max",MAX(OFFSET(Nbeach!$E$10,12*$A72,4*(PlotControl!$C$6-1),12,1)),AVERAGE(OFFSET(Nbeach!$E$10,12*$A72,4*(PlotControl!$C$6-1),12,1))) -> 343.12 | E72: =IF(PlotControl!$B$4 = "Annual Max",MAX(OFFSET(Ndam!$C$10,12*$A72,4*(PlotControl!$C$6-1),12,1)),AVERAGE(OFFSET(Ndam!$C$10,12*$A72,4*(PlotControl!$C$6-1),12,1))) -> 0.54162 | F72: =IF(PlotControl!$B$4 = "Annual Max",MAX(OFFSET(Ndam!$D$10,12*$A72,4*(PlotControl!$C$6-1),12,1)),AVERAGE(OFFSET(Ndam!$D$10,12*$A72,4*(PlotControl!$C$6-1),12,1))) -> 0.65749 | G72: =IF(PlotControl!$B$4 = "Annual Max",MAX(OFFSET(Ndam!$E$10,12*$A72,4*(PlotControl!$C$6-1),12,1)),AVERAGE(OFFSET(Ndam!$E$10,12*$A72,4*(PlotControl!$C$6-1),12,1))) -> 0.83958 | H72: =IF(PlotControl!$B$4 = "Annual Max",MAX(OFFSET(Ebeach!$C$10,12*$A72,4*(PlotControl!$C$6-1),12,1)),AVERAGE(OFFSET(Ebeach!$C$10,12*$A72,4*(PlotControl!$C$6-1),12,1))) -> 11.848 | I72: =IF(PlotControl!$B$4 = "Annual Max",MAX(OFFSET(Ebeach!$D$10,12*$A72,4*(PlotControl!$C$6-1),12,1)),AVERAGE(OFFSET(Ebeach!$D$10,12*$A72,4*(PlotControl!$C$6-1),12,1))) -> 63.668 | J72: =IF(PlotControl!$B$4 = "Annual Max",MAX(OFFSET(Ebeach!$E$10,12*$A72,4*(PlotControl!$C$6-1),12,1)),AVERAGE(OFFSET(Ebeach!$E$10,12*$A72,4*(PlotControl!$C$6-1),12,1))) -> 322.15 | K72: =IF(PlotControl!$B$4 = "Annual Max",MAX(OFFSET(Edam!$C$10,12*$A72,4*(PlotControl!$C$6-1),12,1)),AVERAGE(OFFSET(Edam!$C$10,12*$A72,4*(PlotControl!$C$6-1),12,1))) -> 0.2121 | L72: =IF(PlotControl!$B$4 = "Annual Max",MAX(OFFSET(Edam!$D$10,12*$A72,4*(PlotControl!$C$6-1),12,1)),AVERAGE(OFFSET(Edam!$D$10,12*$A72,4*(PlotControl!$C$6-1),12,1))) -> 0.31042 | M72: =IF(PlotControl!$B$4 = "Annual Max",MAX(OFFSET(Edam!$E$10,12*$A72,4*(PlotControl!$C$6-1),12,1)),AVERAGE(OFFSET(Edam!$E$10,12*$A72,4*(PlotControl!$C$6-1),12,1))) -> 0.43784 | N72: =IF(PlotControl!$B$4 = "Annual Max",MAX(OFFSET(Sbeach!$C$10,12*$A72,4*(PlotControl!$C$6-1),12,1)),AVERAGE(OFFSET(Sbeach!$C$10,12*$A72,4*(PlotControl!$C$6-1),12,1))) -> 10.677 | O72: =IF(PlotControl!$B$4 = "Annual Max",MAX(OFFSET(Sbeach!$D$10,12*$A72,4*(PlotControl!$C$6-1),12,1)),AVERAGE(OFFSET(Sbeach!$D$10,12*$A72,4*(PlotControl!$C$6-1),12,1))) -> 59.868 | P72: =IF(PlotControl!$B$4 = "Annual Max",MAX(OFFSET(Sbeach!$E$10,12*$A72,4*(PlotControl!$C$6-1),12,1)),AVERAGE(OFFSET(Sbeach!$E$10,12*$A72,4*(PlotControl!$C$6-1),12,1))) -> 327.94 | Q72: =IF(PlotControl!$B$4 = "Annual Max",MAX(OFFSET(Sdam!$C$10,12*$A72,4*(PlotControl!$C$6-1),12,1)),AVERAGE(OFFSET(Sdam!$C$10,12*$A72,4*(PlotControl!$C$6-1),12,1))) -> 0.26397 | R72: =IF(PlotControl!$B$4 = "Annual Max",MAX(OFFSET(Sdam!$D$10,12*$A72,4*(PlotControl!$C$6-1),12,1)),AVERAGE(OFFSET(Sdam!$D$10,12*$A72,4*(PlotControl!$C$6-1),12,1))) -> 0.35603 | S72: =IF(PlotControl!$B$4 = "Annual Max",MAX(OFFSET(Sdam!$E$10,12*$A72,4*(PlotControl!$C$6-1),12,1)),AVERAGE(OFFSET(Sdam!$E$10,12*$A72,4*(PlotControl!$C$6-1),12,1))) -> 0.48341 | T72: =IF(PlotControl!$B$4 = "Annual Max",MAX(OFFSET(Cbeach!$C$10,12*$A72,4*(PlotControl!$C$6-1),12,1)),AVERAGE(OFFSET(Cbeach!$C$10,12*$A72,4*(PlotControl!$C$6-1),12,1))) -> 11.848 | U72: =IF(PlotControl!$B$4 = "Annual Max",MAX(OFFSET(Cbeach!$D$10,12*$A72,4*(PlotControl!$C$6-1),12,1)),AVERAGE(OFFSET(Cbeach!$D$10,12*$A72,4*(PlotControl!$C$6-1),12,1))) -> 63.668 | V72: =IF(PlotControl!$B$4 = "Annual Max",MAX(OFFSET(Cbeach!$E$10,12*$A72,4*(PlotControl!$C$6-1),12,1)),AVERAGE(OFFSET(Cbeach!$E$10,12*$A72,4*(PlotControl!$C$6-1),12,1))) -> 322.15
